{"text_format":"1","workbook":"xlsx","n_sheets":23,"sheets":["Read me","Identification","Family","Housing","Energy","Heating and cooling","Appliances and Lighting","Opinion","DatosBD","Summary Results","Optimal Power","Heating","DHW-ST","PV","Cooling","EE Appliances and Lighting","Statistics","Savings Indicator","Etiqueta Energética","Excel de Apoyo","Pull-down","RADIACION","WordReport"],"not_rendered":{"charts":12,"images":21,"macros":1,"external_links":0,"defined_names":108,"comments":13,"pivot_tables":0},"unopened":[],"bounds":{"document_bytes":16777216,"sheet_cells":100000,"rows_first":2000,"rows_last":500,"rows_between":2000,"halvings":0,"cell_chars":16384,"cell_head_chars":4096},"cells_cut":0,"cells_raw":0,"read":"whole","date_system":"1900"}

{"sheet":"Read me","index":0,"n_rows":26,"n_cols":5,"rows_kept":26,"cut":false,"hidden":false,"merged":[[25,2,25,8],[17,3,17,7],[7,0,7,10],[13,3,13,7],[14,3,14,7],[15,3,15,7],[16,3,16,7],[21,4,21,6]]}
[]
[]
[]
[]
[]
[]
[]
["FIESTA ENERGY TOOL"]
[]
[]
[]
[]
[]
[null,null,null,"CIRCE Foundation"]
[null,null,null,"Mariano Esquillor Gómez, 15 - 50018 Zaragoza (SPAIN)"]
[null,null,null,"Tel.:[+34] 976 761 863 Fax: [+34] 976 732 078"]
[null,null,null,"www.fcirce.es"]
[null,null,null,"E-Mail: jvalero@fcirce.es"]
[]
[]
[]
[null,null,null,null,"Version: 05.08.2016"]
[]
[]
[]
[null,null,"The sole responsibility for the content of this spreadesheet tool lies with the authors. It does not necessarily reflect the opinion of the European Union. Neither the EASME nor the European Commission are responsible for any use that may be made of the information contained therein."]

{"sheet":"Identification","index":1,"n_rows":20,"n_cols":10,"rows_kept":20,"cut":false,"hidden":false,"merged":[[19,1,19,5],[14,1,14,5],[8,1,8,5],[9,1,9,5],[10,1,10,5],[11,1,11,5],[12,1,12,5],[7,0,7,5],[4,1,4,5],[0,0,0,5],[2,1,2,5],[3,1,3,5],[5,1,5,5],[1,1,1,5]]}
["HOUSEHOLD / FAMILY"]
["ENERGY audit ID code*"]
["Address",null,null,null,null,null,null,null,null,"Required Field"]
["City / Town*",null,null,null,null,null,null,null,null,"Optional Field"]
["Postcode"]
["Country"]
[]
["CONTACT INFORMATION"]
["First Name"]
["Last Name"]
["Phone number"]
["E-Mail"]
["Nationality"]
[]
["Date "]
[]
[]
[]
[]
["Number of hours audit"]

{"sheet":"Family","index":2,"n_rows":16,"n_cols":7,"rows_kept":16,"cut":false,"hidden":false,"merged":[[13,1,13,2],[13,3,13,4],[2,5,11,5]]}
[]
[null,"Household / Family roster","Sex ","Age","Employment Situation*","Average time a week that the house remains empty"]
[null,"Person 1",null,null,null,null,{"$f":"IF(AND(D3<=16,D3>0),1,0)","v":0}]
[null,"Person 2",null,null,null,null,{"$f":"IF(AND(D4<=16,D4>0),1,0)","v":0}]
[null,"Person 3",null,null,null,null,0]
[null,"Person 4",null,null,null,null,0]
[null,"Person 5",null,null,null,null,0]
[null,"Person 6",null,null,null,null,0]
[null,"Person 7",null,null,null,null,0]
[null,"Person 8",null,null,null,null,0]
[null,"Person 9",null,null,null,null,0]
[null,"Person 10",null,null,null,null,0]
[null,{"$f":"10-COUNTBLANK(C3:C12)","v":0},null,null,null,{"$f":"(168-F3)/168","v":1}]
[null,"Monthly Family Net Income on average over the past year* "]
[]
[null,"Social Housing"]

{"sheet":"Housing","index":3,"n_rows":82,"n_cols":23,"rows_kept":82,"cut":false,"hidden":false,"merged":[[46,1,46,2],[15,1,16,1],[10,1,10,2],[41,1,42,1],[39,1,39,3],[40,2,40,3]]}
[]
[null,null,"Type"]
[null,"Building"]
[]
[null,null,"Type"]
[null,"Property"]
[]
[null,null,"Type"]
[null,"Roof"]
[]
[null,"Construction"]
[null,{"$f":"IF(C3=\"Housing block\",\"The_house_is_on\",\"Number_of_floors\")","v":"Number_of_floors"}]
[null,"Year of construction of the building"]
[null,"Total dwelling square meters"]
[null,"Number of rooms (kitchen, living-room, bathrooms, bedrooms, and others)"]
[null,"Indoor temperature (on average)  (ºC)","Winter","Summer"]
[]
[null,"What is your level of comfort with indoor temperature?"]
[]
[null,"Main orientation "]
[]
[null,"Refurbishment in recent years"," %"," How long ago?"]
[null,"Windows frame refurbished"]
[null,"Glazed surface over total glazed surface"]
[null,"Facade and envelope refurbished"]
[null,"Rooftop and/or ceiling refurbished"]
[null,null,null,"Window 2","Window 3","Window 4","Window 5","Window 6","Window 7","Window 8","Window 9","Window 10","Window 11","Window 12","Window 13","Window 14","Window 15","Window 16","Window 17","Window 18"]
[null,null,"Window 1",{"$f":"IF(C30=\"\",\"\",D27)","v":""},"","","","","",{"$f":"IF(I30=\"\",\"\",J27)","v":""},"","","","",{"$f":"IF(N30=\"\",\"\",O27)","v":""},"","","","","","",{"$f":"19-(1+COUNTBLANK((C28:U28)))","v":0}]
[null,"Orientation",null,null,null,null,null,null,null,null,null,null,null,null,null,null,null,null,null,null,null,{"$f":"COUNTIF(C29:U29,\"North\")","v":0}]
[null,"Room"]
[null,"Height (cm)"]
[null,"Width (cm)"]
[null,"Curtains ",null,null,null,null,null,null,null,null,null,null,null,null,null,null,null,null,null,null,null,{"$f":"19-(COUNTBLANK((C33:U33)))","v":0}]
[null,"Blinds",null,null,null,null,null,null,null,null,null,null,null,null,null,null,null,null,null,null,null,{"$f":"19-(COUNTBLANK((C34:U34)))","v":0}]
[null,"Windowpane",null,null,null,null,null,null,null,null,null,null,null,null,null,null,null,null,null,null,null,{"$f":"COUNTIF(C35:U35,\"Single\")","v":0},{"$f":"COUNTIF(C35:U35,\"Low e- glass\")","v":0}]
[null,"Window frame",null,null,null,null,null,null,null,null,null,null,null,null,null,null,null,null,null,null,null,{"$f":"COUNTIF(C36:U36,\"Metal\")","v":0}]
[null,"Awnings on windows ",null,null,null,null,null,null,null,null,null,null,null,null,null,null,null,null,null,null,null,{"$f":"19-(COUNTBLANK((C37:U37)))","v":0}]
[null,"Air leaks",null,null,null,null,null,null,null,null,null,null,null,null,null,null,null,null,null,null,null,{"$f":"COUNTIF(C38:U38,\"Typical\")","v":0}]
[]
[null,"House ventilation"]
[null,"Type"]
[null,"When?","Winter","Summer"]
[]
[null,"For how long (minutes/day)?"]
[null,"Does the house show signs of humidity? "]
[]
[null,"COMMUNITY OF OWNERS"]
[null,"Elevators"]
[null,"Concierge"]
[null,"Communal areas"]
[null,"Number of flats in the building"]
[null,"Monthly bill (€)"]
[]
[]
[]
[null,null,{"$f":"C31*C32","v":0},0,{"$f":"E31*E32","v":0},0,0,0,0,0,0,0,0,0,0,0,0,0,0,0,0]
[null,null,{"$f":"(C31+C32)*2","v":0},0,0,0,0,0,0,0,0,0,0,0,0,0,0,0,0,0,0]
[]
[null,null,{"$f":"IF(AND(AND(C29<>\"North\",C29<>\"\"),C37=\"\"),1,0)","v":0},{"$f":"IF(AND(AND(D29<>\"North\",D29<>\"\"),D37=\"\"),1,0)","v":0},0,0,0,0,0,0,0,0,0,0,0,0,0,0,0,0,0]
[null,null,{"$f":"C59*C31*C32/10000","v":0},{"$f":"D59*D31*D32/10000","v":0},0,0,0,0,0,0,0,0,0,0,0,0,0,0,0,0,0,{"$f":"SUM(C60:U60)","v":0}]
[null,null,{"$f":"IF(C29<>\"North\",1,0)*(C31*C32/10000)","v":0},{"$f":"IF(D29<>\"North\",1,0)*(D31*D32/10000)","v":0},0,0,0,0,0,0,0,0,0,0,0,0,0,0,0,0,0,{"$f":"SUM(C61:U61)","v":0},{"$f":"IFERROR(V60/V61,0)","v":0}]
[]
[null,null,{"$f":"IF(AND(C38<>\"Typical\",C38<>\"\"),1,0)","v":0},{"$f":"IF(AND(D38<>\"Typical\",D38<>\"\"),1,0)","v":0},0,0,0,0,0,0,0,0,0,0,0,0,0,0,0,0,0]
[null,null,{"$f":"C63*((C31+C32)/100)*2","v":0},{"$f":"D63*((D31+D32)/100)*2","v":0},0,0,0,0,0,0,0,0,0,0,0,0,0,0,0,0,0,{"$f":"SUM(C64:U64)","v":0}]
[]
[null,null,{"$f":"IF(OR(C35=\"Low e- glass\",C35=\"\",C35=\"Solar control\"),0,1)","v":0},0,0,0,0,0,0,0,0,0,0,0,0,0,0,0,0,0,0]
[null,null,{"$f":"IF(C66=1,(C31*C32)/10000,0)","v":0},0,0,0,0,0,0,0,0,0,0,0,0,0,0,0,0,0,0,{"$f":"SUM(C67:U67)","v":0}]
[]
[null,null,{"$f":"IF(C35=\"Single\",1,0)","v":0},0,0,0,0,0,0,0,0,0,0,0,0,0,0,0,0,0,0]
[null,null,{"$f":"IF(C69=1,(C31*C32)/10000,0)","v":0},0,0,0,0,0,0,0,0,0,0,0,0,0,0,0,0,0,0,{"$f":"SUM(C70:U70)","v":0}]
[]
[null,null,{"$f":"COUNTIF(C38,\"Drafty/ Street noise\")","v":0},0,0,0,0,0,0,0,0,0,0,0,0,0,0,0,0,0,0]
[null,null,{"$f":"C72*(C32*C31/10000)","v":0},0,0,0,0,0,0,0,0,0,0,0,0,0,0,0,0,0,0,{"$f":"SUM(C73:U73)","v":0}]
[]
[null,null,{"$f":"COUNTIF(C38,\"Rubber strips need repair\")","v":0},0,0,0,0,0,0,0,0,0,0,0,0,0,0,0,0,0,0]
[null,null,{"$f":"C75*(C31*C32/100000)","v":0},0,0,0,0,0,0,0,0,0,0,0,0,0,0,0,0,0,0,{"$f":"SUM(C76:U76)","v":0}]
[]
[null,null,{"$f":"IF(C33=\"Yes\",0,1)","v":1},1,1,1,1,1,1,1,1,1,1,1,1,1,1,1,1,1,1]
[null,null,{"$f":"(C78*C31*C32)/10000","v":0},0,0,0,0,0,0,0,0,0,0,0,0,0,0,0,0,0,0,{"$f":"SUM(C79:U79)","v":0}]
[]
[null,null,{"$f":"IF(AND(C33=\"\",C29<>\"\"),1,0)","v":0},{"$f":"IF(AND(D33=\"\",D29<>\"\"),1,0)","v":0},0,0,0,0,0,0,0,0,0,0,0,0,0,0,0,0,0,{"$f":"SUM(C81:U81)","v":0},{"$f":"IFERROR(V81/V28,0)","v":0}]
[null,null,{"$f":"(C81*C31*C32)/10000","v":0},{"$f":"(D81*D31*D32)/10000","v":0},0,0,0,0,0,0,0,0,0,0,0,0,0,0,0,0,0,{"$f":"SUM(C82:U82)","v":0}]

{"sheet":"Energy","index":4,"n_rows":45,"n_cols":47,"rows_kept":45,"cut":false,"hidden":false,"merged":[[20,1,20,2],[31,1,31,2],[25,6,25,8],[41,1,41,2]]}
[]
[]
[]
[null,"ENERGY SUPPLY","unit","Jan","Feb","Mar","Apr","May","Jun","Jul","Aug","Sep","Oct","Nov","Dec","TOTAL",null,"Energy cost","unit","Jan","Feb","Mar","Apr","May","Jun","Jul","Aug","Sep","Oct","Nov","Dec","Average",null,"€ fixed cost","Jan","Feb","Mar","Apr","May","Jun","Jul","Aug","Sep","Oct","Nov","Dec","TOTAL"]
[null,"Electricity TOTAL","kWh",{"$f":"SUM(D6:D9)","v":0},{"$f":"SUM(E6:E9)","v":0},0,0,0,0,0,0,0,0,0,0,{"$f":"SUM(D5:O5)","v":0},null,"Electricity TOTAL","€/kWh",{"$f":"IFERROR((T6*D6+D7*T7+T8*D8+D9*T9)/D5,0)","v":0},{"$f":"IFERROR((U6*E6+E7*U7+U8*E8+E9*U9)/E5,0)","v":0},0,0,0,0,0,0,0,0,0,0,{"$f":"IFERROR(AVERAGE(T5:AE5),\"\")","v":0},null,"Electricity",null,null,null,null,null,null,null,null,null,null,null,null,{"$f":"SUM(AI5:AT5)","v":0}]
[null,"Electricity F1","kWh",null,null,null,null,null,null,null,null,null,null,null,null,{"$f":"SUM(D6:O6)","v":0},null,"Electricity F1","€/kWh",null,null,null,null,null,null,null,null,null,null,null,null,null,null,"Natural Gas",null,null,null,null,null,null,null,null,null,null,null,null,{"$f":"SUM(AI6:AT6)","v":0}]
[null,"Electricity F2","kWh",null,null,null,null,null,null,null,null,null,null,null,null,0,null,"Electricity F2","€/kWh",null,null,null,null,null,null,null,null,null,null,null,null,null,null,"Butane"]
[null,"Electricity F3","kWh",null,null,null,null,null,null,null,null,null,null,null,null,0,null,"Electricity F3","€/kWh",null,null,null,null,null,null,null,null,null,null,null,null,null,null,"Propane",null,null,null,null,null,null,null,null,null,null,null,null,0]
[null,"Electricity F4","kWh",null,null,null,null,null,null,null,null,null,null,null,null,0,null,"Electricity F4","€/kWh",null,null,null,null,null,null,null,null,null,null,null,null,null,null,"Diesel"]
[null,"Natural Gas","m3",null,null,null,null,null,null,null,null,null,null,null,null,0,null,"Natural Gas","€/m3",null,null,null,null,null,null,null,null,null,null,null,null,{"$f":"IFERROR(AVERAGE(T10:AE10),\"\")","v":""},null,"Pellet"]
[null,"Butane","Kilograms",null,null,null,null,null,null,null,null,null,null,null,null,0,null,"Butane","€/kg",null,null,null,null,null,null,null,null,null,null,null,null,{"$f":"IFERROR(AVERAGE(T11:AE11),\"\")","v":""},null,"Firewood"]
[null,"Propane","Kilograms",null,null,null,null,null,null,null,null,null,null,null,null,0,null,"Propane","€/kg",null,null,null,null,null,null,null,null,null,null,null,null,"",null,"Central Boiler",null,null,null,null,null,null,null,null,null,null,null,null,0]
[null,"Diesel","Litres",null,null,null,null,null,null,null,null,null,null,null,null,0,null,"Diesel","€/l",null,null,null,null,null,null,null,null,null,null,null,null,"",null,"District heating ",null,null,null,null,null,null,null,null,null,null,null,null,0]
[null,"Pellet","Kilograms",null,null,null,null,null,null,null,null,null,null,null,null,0,null,"Pellet","€/kg",null,null,null,null,null,null,null,null,null,null,null,null,"",null,"District heating - Sanitary Hot Water",null,null,null,null,null,null,null,null,null,null,null,null,0]
[null,"Firewood","Kilograms",null,null,null,null,null,null,null,null,null,null,null,null,0,null,"Firewood","€/kg",null,null,null,null,null,null,null,null,null,null,null,null,"",null,"District cooling",null,null,null,null,null,null,null,null,null,null,null,null,0]
[null,"Central Boiler","kWh",null,null,null,null,null,null,null,null,null,null,null,null,0,null,"Central Boiler","€/kWh",null,null,null,null,null,null,null,null,null,null,null,null,"",null,"TOTAL",{"$f":"SUM(AI5:AI15)","v":0},0,0,0,0,0,0,0,0,0,0,0,0]
[null,"District heating ","kWh",null,null,null,null,null,null,null,null,null,null,null,null,0,null,"District heating ","€/kWh",null,null,null,null,null,null,null,null,null,null,null,null,""]
[null,"District heating - Sanitary Hot Water","kWh",null,null,null,null,null,null,null,null,null,null,null,null,{"$f":"SUM(D18:O18)","v":0},null,"District heating - Sanitary Hot Water","€/kWh",null,null,null,null,null,null,null,null,null,null,null,null,""]
[null,"District cooling","kWh",null,null,null,null,null,null,null,null,null,null,null,null,0,null,"District cooling","€/kWh",null,null,null,null,null,null,null,null,null,null,null,null,""]
[]
[null,"ELECTRICITY SUPPLY"]
[null,"The contract has been reviewed/changed over the last two years"]
[null,"Have you ever experienced a power disconnection for exceding your contracted demand of electricity?"]
[null,"Carbon emmisions average (kCO2/kWh)"]
[]
[null,"ELECTRICITY SUPPLY","Current","Previous",null,null,"RES total power "]
[null,"Company name",null,null,null,null,"Power","Application","Year of installation"]
[null,"Who is the contract holder ?",null,null,null,"Solar PV"]
[null,"Power (kW)",null,null,null,"Geothermal heat pump"]
[null,"Contract type ",null,null,null,"Wind power"]
[null,null,null,null,null,"Co-generation"]
[null,"Electricity payment method"]
[null,"Payment frequency"]
[null,"Flat rate"]
[null,"Electronic Meter"]
[null,"Additional Services"]
[]
[]
[null,"NATURAL GAS SUPPLY","Current","Previous"]
[null,"Company name"]
[]
[null,"Gas method of payment"]
[null,"Payment frequency"]
[null,"Flat rate"]
[null,"Additional Services"]

{"sheet":"Heating and cooling","index":5,"n_rows":81,"n_cols":17,"rows_kept":81,"cut":false,"hidden":false,"merged":[[51,8,51,9],[61,1,61,2],[75,1,75,2],[9,1,9,2],[23,1,23,2],[43,1,43,2],[48,1,48,2],[57,1,57,2]]}
[]
[]
[]
[]
[]
[null,"Month","Jan","Feb","Mar","Apr","May","Jun","Jul","Aug","Sep","Oct","Nov","Dec"]
[null,"Heating Degree Days",null,null,null,null,null,null,null,null,null,null,null,null,{"$f":"COUNTIF(C7:N7,\">5\")","v":0},{"$f":"SUM(C7:N7)","v":0},{"$f":"P7/O7","v":{"$error":"#DIV/0!"}}]
[null,"Cooling Degree Days",null,null,null,null,null,null,null,null,null,null,null,null,{"$f":"COUNTIF(C8:N8,\">2\")","v":0},{"$f":"SUM(C8:N8)","v":0},{"$f":"P8/O8","v":{"$error":"#DIV/0!"}}]
[]
[null,"HEATING SOURCE",null,"Installation year","Power (kW)","Hours/day (when necesary)","COP (%)","Fuel","Consumo teórico"]
[null,"Central heating"]
[null,"Individual meter "]
[null,"Individual adjustable thermostat"]
[null,"Adjustable thermostat in each radiator / room"]
[null," Natural Gas boiler"]
[null," Propane boiler"]
[null," Diesel boiler"]
[null," Biomass boiler"]
[null,"Central Heat Pump ",null,null,null,null,null,null,{"$f":"E19*F19*30*$O$7","v":0}]
[null," Electrical boiler without accumulator tank",null,null,null,null,null,null,{"$f":"E20*F20*30*$O$7","v":0}]
[null," Electrical boiler with accumulator tank",null,null,null,null,null,null,{"$f":"E21*F21*30*$O$7","v":0}]
[null," Electrical - Radiant heating",null,null,null,null,null,null,{"$f":"E22*F22*30*$O$7","v":0}]
[]
[null,"INDIVIDUAL HEATING SOURCE",null,"Installation year","Average Power (kW)","Hours/day (when necesary)","COP (%)","Number"]
[null,"Individual Electrical stove",null,null,null,null,null,null,{"$f":"IFERROR(E25*H25*F25*30*$O$7,0)","v":0}]
[null,"Individual Heat Pump split",null,null,null,null,null,null,{"$f":"IFERROR(E26*H26*F26*30*$O$7,0)","v":0}]
[null,"Butane/propane stove",null,null,null,null,null,null,{"$f":"E27*H27","v":0}]
[null," Wood- burning stove",null,null,null,null,null,null,0]
[null,"Fireplace",null,null,null,null,null,null,0]
[null,"Individual Pellet stove",null,null,null,null,null,null,0]
[null,"Electric baseboard heat",null,null,null,null,null,null,{"$f":"IFERROR(E31*H31*F31*30*$O$7,0)","v":0}]
[null,"Geothermal heat pump support",null,null,null,null,null,null,0]
[null,"Fan coil",null,null,null,null,null,null,{"$f":"IFERROR(E33*H33*F33*30*$O$7,0)","v":0}]
[null,"Solar thermal support",null,null,null,null,null,null,0]
[]
[null,"Main rooms","Number of rooms","Height of the ceiling (cm)","Square meters"]
[null,"Kitchen",null,null,null,{"$f":"COUNTIF(Housing!$C$30:$U$30,\"Kitchen\")","v":0},{"$f":"IF(F37=0,C37,IF(F37>C37,C37,F37))","v":0},{"$f":"G37*(D37/100)*E37*0.33","v":0}]
[null,"Living Room",null,null,null,{"$f":"COUNTIF(Housing!$C$30:$U$30,\"Living Room\")","v":0},{"$f":"IF(F38=0,C38,IF(F38>C38,C38,F38))","v":0},0]
[null,"Bedroom",null,null,null,{"$f":"COUNTIF(Housing!$C$30:$U$30,\"Bedroom\")","v":0},0,0]
[null,"Bathroom",null,null,null,{"$f":"COUNTIF(Housing!$C$30:$U$30,\"Bathroom\")","v":0},0,{"$f":"G40*(D40/100)*E40*0.33","v":0}]
[null,"Hall and corridors",null,null,null,{"$f":"COUNTIF(Housing!$C$30:$U$30,\"Hall and corridors\")","v":0},0,0]
[null,"Home office",null,null,null,{"$f":"COUNTIF(Housing!$C$30:$U$30,\"Home office\")","v":0},{"$f":"IF(F42>C42,C42,F42)","v":0},0]
[null,null,null,null,"Area of thermal insulation on facade",{"$f":"SUM(H37:H42)","v":0},"m2"]
[null,"HEATING DEVICES"]
[null,"Do you have temperature time setting plug?"]
[null,"Do you have a digital heating thermostat? "]
[null,"Percentage of thermostatic valves in radiators"]
[]
[null,"COOLING",null,"Installation year","Average Power (kW)","Hours/day (when necesary)","EER (%)"]
[null,"Central air conditioning",null,null,null,null,null,null,null,{"$f":"IFERROR(E50*F50*30*$O$8,0)","v":0}]
[null,"Geothermal"]
[null,"Solar cooling",null,null,null,null,null,"Number","Estimated electricity consumption"]
[null,"Individual air conditioning units (splits)",null,null,null,null,null,null,{"$f":"IFERROR(E53*F53*30*$O$8,0)*H53","v":0},"kWh",null,{"$f":"E53*H53","v":0}]
[null,"Fans",null,null,null,null,null,null,{"$f":"IFERROR(E54*F54*30*$O$8,0)*H54","v":0},"kWh",null,{"$f":"E54*H54","v":0}]
[null,"Small cooling appliances",null,null,null,null,null,null,{"$f":"IFERROR(E55*F55*30*$O$8,0)*H55","v":0},"kWh",null,{"$f":"E55*H55","v":0}]
[null,"Evaporative cooling",null,null,null,null,null,null,{"$f":"IFERROR(E56*F56*30*$O$8,0)*H56","v":0},"kWh",null,{"$f":"E56*H56","v":0}]
[null,null,null,null,null,null,null,null,{"$f":"SUM(I53:I56)","v":0},"kWh"]
[null,"COOLING DEVICES",null,null,null,null,null,null,{"$f":"IFERROR(I57/Energy!P5,\"\")","v":""},{"$f":"IF(I58<=\"\",\"\",\"of total of \"&Energy!P5&\" kWh in electricity\")","v":""}]
[null,"Do you have a temperature time setting plug?"]
[null,"Do you have a cooling system with digital thermostat? "]
[]
[null,"Domestic hot water",null,"Hours/day","With boiler system","Installation Year","Power (kW)","COP (%)","Fuel"]
[null,"Centralized system"]
[null,"Individual meter per dwelling"]
[null,"Electrical heater",null,null,null,null,null,null,{"$f":"IF(E65=\"yes\",0,G65)","v":0},{"$f":"IF(C65<>\"Yes\",0,IF(E65=\"Yes\",0,((330*30*Family!B13*(1.16/1000)*30*1.1))))","v":0}]
[null,"Natural gas heater"]
[null,"Butane/propane heater"]
[null,"Diesel heater"]
[null,"Biomass heater"]
[null,"Solar collectors"]
[]
[null,"Heated water flow control","Over total (%)"]
[null,"Single lever control or thermostatic taps"]
[null,"Aerators in taps"]
[]
[null,"HEATING EQUIPMENT MAINTENANCE",null,"Frequency "]
[null,"Self made",null,null,{"$f":"IF(Heating!C32=\"Si\",0,IF(C77=\"\",3,IF(D77=\"More than once a year\",2,IF(D77=\"Once a year\",1,0))))","v":3},{"$f":"E77*0.01","v":0.03}]
[null,"Subcontracted to a specialized company",null,null,{"$f":"IF(Heating!C32=\"Si\",0,IF(C78=\"\",2,IF(D78=\"More than once a year\",1,0)))","v":2},{"$f":"'Heating and cooling'!E78*IF(Heating!C31>12,0.1,0.05)","v":0.2},{"$f":"SUM(F77:F78)","v":0.23}]
[null,"No maintenance out of corrective is done"]
[]
[null,{"$f":"IF(OR(C15=\"Yes\",C66=\"Yes\"), \"\",\"Does the family have access to natural gas in the house?\")","v":"Does the family have access to natural gas in the house?"}]

{"sheet":"Appliances and Lighting","index":6,"n_rows":42,"n_cols":13,"rows_kept":42,"cut":false,"hidden":false,"merged":[[1,1,1,2],[20,1,20,2],[17,1,17,2],[17,7,17,8],[15,1,15,6]]}
[]
[null,"APPLIANCES",null,"Number","Use (Hours/Week)","Total Power (W)","Energy Label","Switching off","Estimated Electricity Consumption","Stand Bye"]
[null,"Fridge/ Combined refrigerator- freezer",null,null,null,null,null,null,{"$f":"(E3*F3*52*D3)/1000*(0.15+(0.01*Family!$B$13)+(0.015*('Heating and cooling'!P8/52)))","v":0},{"$f":"IF(D3>0,F3/1000/D3,F3/1000)","v":0},null,750]
[null,"Freezer",null,null,null,null,null,null,{"$f":"(E4*F4*52*D4)/1000*(0.15+(0.02*Family!$B$13))","v":0},{"$f":"IF(D4>0,F4/1000/D4,F4/1000)","v":0},null,500]
[null,"Oven",null,null,null,null,null,null,{"$f":"(E5*F5*52*D5)/1000*0.7","v":0},{"$f":"IF(D5>0,F5/1000/D5,F5/1000)","v":0},null,500]
[null,"Microwave",null,null,null,null,null,null,{"$f":"(E6*F6*52*D6)/1000*0.9","v":0},{"$f":"IF(D6>0,F6/1000/D6,F6/1000)","v":0}]
[null,"Electrical cooker",null,null,null,null,null,null,{"$f":"(E7*F7*52*D7)/1000*(0.3+0.02*Family!$B$13)","v":0},{"$f":"IF(D7>0,F7/1000/D7,F7/1000)","v":0}]
[null,"Ceramic hob",null,null,null,null,null,null,{"$f":"(E8*F8*52*D8)/1000*(0.3+0.02*Family!$B$13)","v":0},{"$f":"IF(D8>0,((F8/1000/D8)*(0.5+(0.5*Family!$F$13))),((F8/1000)*(0.5+(0.5*Family!$F$13))))","v":0}]
[null,"Induction cooktop",null,null,null,null,null,null,{"$f":"(E9*F9*52*D9)/1000*(0.3+0.02*Family!$B$13)","v":0},{"$f":"IF(D9>0,((F9/1000/D9)*(0.5+(0.5*Family!$F$13))),((F9/1000)*(0.5+(0.5*Family!$F$13))))","v":0},null,600]
[null,"Washing machine",null,null,null,null,null,null,{"$f":"(E10*F10*52*D10)/1000*0.65","v":0},{"$f":"IF(D10>0,F10/1000/D10,F10/1000)","v":0},null,400]
[null,"Dryer",null,null,null,null,null,null,{"$f":"(E11*F11*52*D11)/1000*0.9","v":0},0,null,400]
[null,"Dishwasher",null,null,null,null,null,null,{"$f":"(E12*F12*52*D12)/1000*0.3","v":0},0,null,500]
[null,"Television",null,null,null,null,null,null,{"$f":"(E13*F13*52*D13)/1000*0.5","v":0},0,{"$f":"IF(C13=\"Yes\",2*(365*24-(E13*52))/1000,0)","v":0},450]
[null,"Personal Computer",null,null,null,null,null,null,{"$f":"(E14*F14*52*D14)/1000*0.4","v":0},0,{"$f":"IF(C14=\"Yes\",5*(365*24-(E14*52))/1000,0)","v":0}]
[null,"Laptop",null,null,null,null,null,null,{"$f":"(E15*F15*52*D15)/1000*0.35","v":0},0,{"$f":"IF(C15=\"Yes\",4*(365*24-(E15*52))/1000,0)","v":0}]
[null,"Other electronic and informatic equipment (router, mobile charge...)"]
[null,null,null,null,null,null,null,null,{"$f":"SUM(I3:I15)","v":0},"kWh"]
[null,"APPLIANCES",null,"Number","Use (Hours/Week)","Total Power (W)","Energy Label","Estimated Gas Consumption",null,"Consumo anual teórico 100%"]
[null,"Gas cooker",null,null,null,null,null,{"$f":"(E19*F19*52*D19)/1000*(0.3+0.02*Family!$B$13)/IF(Energy!C10=\"kWh\",1,9.8)","v":0},{"$f":"IF(Energy!C10=\"kWh\",\"kWh\",\"m3\")& \" Gas for cooking\"","v":"m3 Gas for cooking"},null,null,{"$f":"IF(D19>0,F19/1000/D19,F19/1000)","v":0}]
[null,null,null,null,null,null,null,{"$f":"IFERROR(H19/(Energy!P10+(Energy!P11*12.78)+(Energy!P12*12.93)),\"0%\")","v":"0%"},{"$f":"\"of a total of \"&(Energy!P10+(Energy!P11*12.78)+(Energy!P12*12.93)&IF(Energy!C10=\"kWh\",\" kWh\",\" m3\")&\" gas total consumption\")","v":"of a total of 0 m3 gas total consumption"}]
[null,"Lighting",null,"Number","Use (Hours/Week)","Power of each bulb (kW)","Total power (W)","Energy Label","Estimated Energy Consumption","INV",null,"SAV","SAV (€)"]
[null,"Incandescent Light Bulbs ",null,null,null,null,null,null,{"$f":"(E22*G22*52)/1000","v":0},{"$f":"IF(C22=\"Yes\",IF(50*E22>1000,'EE Appliances and Lighting'!R6*G22,G22*'EE Appliances and Lighting'!R7),0)","v":0},null,{"$f":"IF(E22*50>400,0.75*G22*E22*50,IF(E22*50>100,0.65*E22*G22*50,0))/1000","v":0},{"$f":"IF('Appliances and Lighting'!E22*50>1000,('Appliances and Lighting'!D22*18)*(('Appliances and Lighting'!E22*50)/18000),IF('Appliances and Lighting'!E22*50>100,(6*'Appliances and Lighting'!D22)*(('Appliances and Lighting'!E22*50)/6000),0))","v":0}]
[null,"Low- consumption bulbs",null,null,null,null,null,null,{"$f":"(E23*G23*52)/1000","v":0},{"$f":"IF(C23=\"Yes\",IF(E23*50>2000,G23*'EE Appliances and Lighting'!S6,0),0)","v":0},null,{"$f":"IF(E23*50>2000,0.1*G23*E23*50,0)/1000","v":0},{"$f":"IF(E23*50>2000,D23*24*((E23*50)/(18000)),0)","v":0}]
[null,"Led light bulbs",null,null,null,null,null,null,{"$f":"(E24*G24*52)/1000","v":0}]
[null,"Fluorescent bulbs",null,null,null,null,null,null,{"$f":"(E25*G25*52)/1000","v":0},{"$f":"IF(C25=\"Yes\",IF(E25*50>2000,G25*'EE Appliances and Lighting'!S6,0),0)","v":0},null,{"$f":"IF(E25*50>2000,0.1*G25*E25*50,0)/1000","v":0},{"$f":"IF(E25*50>2000,D25*24*((E25*50)/(18000)),0)","v":0}]
[null,"Halogen light bulbs",null,null,null,null,null,null,{"$f":"(E26*G26*52)/1000","v":0},{"$f":"IF(C26=\"Yes\",IF(50*E26>1000,'EE Appliances and Lighting'!R6*G26,G26*'EE Appliances and Lighting'!R7),0)","v":0},null,{"$f":"IF(E26*50>400,0.75*G26*E26*50,IF(E26*50>100,0.65*E26*G26*50,0))/1000","v":0},{"$f":"IF('Appliances and Lighting'!E26*50>1000,('Appliances and Lighting'!D26*10)*(('Appliances and Lighting'!E26*50)/18000),IF('Appliances and Lighting'!E26*50>100,(4*'Appliances and Lighting'!D26)*(('Appliances and Lighting'!E26*50)/6000),0))","v":0}]
[null,null,null,null,null,null,null,"TOTAL estimated energy consumption of lighting",{"$f":"SUM(I22:I26)","v":0},{"$f":"SUM(J22:J26)","v":0},null,{"$f":"SUM(L22:L26)","v":0},{"$f":"SUM(M22:M26)","v":0}]
[]
[null,"Appliances","Nº Elect"]
[null,"A+++",{"$f":"COUNTIF($G$3:$G$15,B30)","v":0}]
[null,"A++",0]
[null,"A+",0]
[null,"A",0]
[null,"B",0]
[null,"C",0]
[null,"D",0]
[null,"E",0]
[null,"F",0]
[null,"Vacío",{"$f":"C20-SUM(C30:C38)-COUNTIF(C14:C15,\"Yes\")-COUNTIF(C6,\"Yes\")","v":0}]
[null,null,{"$f":"SUM(C30:C39)","v":0}]
[null,null,{"$f":"SUM(C34:C39)","v":0}]
[null,null,{"$f":"C41/C40","v":{"$error":"#DIV/0!"}}]

{"sheet":"Opinion","index":7,"n_rows":32,"n_cols":3,"rows_kept":32,"cut":false,"hidden":false,"merged":[[14,1,14,2],[20,1,20,2],[27,1,27,2]]}
[]
[null,"QUESTIONS TO ASSESS THE PERCEPTION OF ENERGY ISSUES","0 (TOTALLY DISAGREE) - 10 (TOTALLY AGREE)"]
[null,"Energy bills are too expansive for my family."]
[null,"In my country, there are many families who can't afford the energy bill."]
[null,"I am willing to buy \"green\" electricity (even if it is more expansive)."]
[null,"I am willing to change my habits to save energy."]
[null,"I am willing to invest some money to save energy."]
[null,"I already implement energy efficiency measures at home"]
[null,"I think my house has a very good insulation (facade, windows, rooftop)"]
[]
[]
[null,"FINAL OPINION","0 (TOTALLY DISAGREE) - 10 (TOTALLY AGREE)"]
[null,"Would you repeat the energy audit? Was it useful? Would you recommend it to your friends?"]
[]
[null,"ACTUAL SAVINGS ACHIEVED THROUGH IMPROVED HABITS"]
[null,"We CHANGED our habits following the tips received by FIESTA guide / EHD / Auditor. "]
[null,"Was it easy?"]
[null,"if NO, what was the main obstacle?"]
[]
[]
[null,"ACTUAL SAVINGS DUE TO PURCHASING EFFICIENT DEVICES"]
[null,"We PURCHASED energy efficient devices (e.g. lights, appliances, thermal regulation,  boilers, solar shading…) following the tips received by FIESTA guide / EHD / Auditor "]
[null,"We spent (or we will spend soon) [€]."]
[null,"Short description of the devices purchased (or to be purchased soon)."]
[null,"We did NOT purchase because…"]
[]
[]
[null,"ACTUAL SAVINGS DUE TO INVESTING IN RENOVATION"]
[null,"We INVESTED some money to improve the energy efficiency of our house (e.g. thermal insulation,windows, solar shadings, heating and cooling systems, solar and photovoltaic systems...)."]
[null,"We spent (or we will spend soon) [€]."]
[null,"Short description of the investments done (or to be done soon)."]
[null,"In my family, the obstacle we find harder to overcome when it comes to invest in renovation."]

{"sheet":"DatosBD","index":8,"n_rows":3,"n_cols":1267,"rows_kept":3,"cut":false,"hidden":true,"merged":[[0,1106,0,1204],[0,1205,0,1222],[0,1224,0,1246],[0,1247,0,1256],[0,1257,0,1266],[0,0,0,11],[0,12,0,53],[0,54,0,274],[0,275,0,854],[0,855,0,1105]]}
["Identification",null,null,null,null,null,null,null,null,null,null,null,"Family",null,null,null,null,null,null,null,null,null,null,null,null,null,null,null,null,null,null,null,null,null,null,null,null,null,null,null,null,null,null,null,null,null,null,null,null,null,null,null,null,null,"Hosuing",null,null,null,null,null,null,null,null,null,null,null,null,null,null,null,null,null,null,null,null,null,null,null,null,null,null,null,null,null,null,null,null,null,null,null,null,null,null,null,null,null,null,null,null,null,null,null,null,null,null,null,null,null,null,null,null,null,null,null,null,null,null,null,null,null,null,null,null,null,null,null,null,null,null,null,null,null,null,null,null,null,null,null,null,null,null,null,null,null,null,null,null,null,null,null,null,null,null,null,null,null,null,null,null,null,null,null,null,null,null,null,null,null,null,null,null,null,null,null,null,null,null,null,null,null,null,null,null,null,null,null,null,null,null,null,null,null,null,null,null,null,null,null,null,null,null,null,null,null,null,null,null,null,null,null,null,null,null,null,null,null,null,null,null,null,null,null,null,null,null,null,null,null,null,null,null,null,null,null,null,null,null,null,null,null,null,null,null,null,null,null,null,null,null,null,null,null,null,null,null,null,null,null,null,null,null,null,null,null,null,null,null,null,null,null,null,null,null,null,null,null,null,null,null,null,null,null,null,null,null,null,null,null,null,null,null,null,null,null,null,null,null,null,null,null,null,null,null,null,null,null,null,null,null,null,null,null,null,null,null,null,null,null,null,null,null,null,null,null,null,null,null,null,null,null,null,null,null,null,null,null,null,null,null,null,null,null,null,null,null,null,null,null,null,null,null,null,null,null,null,null,null,null,null,null,null,null,null,null,null,null,null,null,null,null,null,null,null,null,null,null,null,null,null,null,null,null,null,null,null,null,null,null,null,null,null,null,null,null,null,null,null,null,null,null,null,null,null,null,null,null,null,null,null,null,null,null,null,null,null,null,null,null,null,null,null,null,null,null,null,null,null,null,null,null,null,null,null,null,null,null,null,null,null,null,null,null,null,null,null,null,null,null,null,null,null,null,null,null,null,null,null,null,null,null,null,null,null,null,null,null,null,null,null,null,null,null,null,null,null,null,null,null,null,null,null,null,null,null,null,null,null,null,null,null,null,null,null,null,null,null,null,null,null,null,null,null,null,null,null,null,null,null,null,null,null,null,null,null,null,null,null,null,null,null,null,null,null,null,null,null,null,null,null,null,null,null,null,null,null,null,null,null,null,null,null,null,null,null,null,null,null,null,null,null,null,null,null,null,null,null,null,null,null,null,null,null,null,null,null,null,null,null,null,null,null,null,null,null,null,null,null,null,null,null,null,null,null,null,null,null,null,null,null,null,null,null,null,null,null,null,null,null,null,null,null,null,null,null,null,null,null,null,null,null,null,null,null,null,null,null,null,null,null,null,null,null,null,null,null,null,null,null,null,null,null,null,null,null,null,null,null,null,null,null,null,null,null,null,null,null,null,null,null,null,null,null,null,null,null,null,null,null,null,null,null,null,null,null,null,null,null,null,null,null,null,null,null,null,null,null,null,null,null,null,null,null,null,null,null,null,null,null,null,null,null,null,null,null,null,null,null,null,null,null,null,null,null,null,null,null,null,null,null,null,null,null,null,null,null,null,null,null,null,null,null,null,null,null,null,null,null,null,null,null,null,null,null,null,null,null,null,null,null,null,null,null,null,null,null,null,null,null,null,null,null,null,null,null,null,null,null,null,null,null,null,null,null,null,null,null,null,null,null,null,null,null,null,null,null,null,null,null,null,null,null,null,null,null,null,null,null,null,null,null,null,null,null,null,null,null,null,null,null,null,null,null,null,null,null,null,null,null,null,null,null,null,null,null,null,null,null,null,null,null,null,null,null,null,null,null,null,null,null,null,null,null,null,null,null,null,null,null,null,null,null,null,null,null,null,null,null,null,null,null,null,null,null,null,null,"Heating & Cooling",null,null,null,null,null,null,null,null,null,null,null,null,null,null,null,null,null,null,null,null,null,null,null,null,null,null,null,null,null,null,null,null,null,null,null,null,null,null,null,null,null,null,null,null,null,null,null,null,null,null,null,null,null,null,null,null,null,null,null,null,null,null,null,null,null,null,null,null,null,null,null,null,null,null,null,null,null,null,null,null,null,null,null,null,null,null,null,null,null,null,null,null,null,null,null,null,null,null,null,null,null,null,null,null,null,null,null,null,null,null,null,null,null,null,null,null,null,null,null,null,null,null,null,null,null,null,null,null,null,null,null,null,null,null,null,null,null,null,null,null,null,null,null,null,null,null,null,null,null,null,null,null,null,null,null,null,null,null,null,null,null,null,null,null,null,null,null,null,null,null,null,null,null,null,null,null,null,null,null,null,null,null,null,null,null,null,null,null,null,null,null,null,null,null,null,null,null,null,null,null,null,null,null,null,null,null,null,null,null,null,null,null,null,null,null,null,null,null,null,null,null,null,null,null,null,null,null,null,null,null,null,null,null,null,null,null,null,null,null,null,null,null,null,null,null,null,null,null,null,null,"Appliances and Lighting",null,null,null,null,null,null,null,null,null,null,null,null,null,null,null,null,null,null,null,null,null,null,null,null,null,null,null,null,null,null,null,null,null,null,null,null,null,null,null,null,null,null,null,null,null,null,null,null,null,null,null,null,null,null,null,null,null,null,null,null,null,null,null,null,null,null,null,null,null,null,null,null,null,null,null,null,null,null,null,null,null,null,null,null,null,null,null,null,null,null,null,null,null,null,null,null,null,null,"OPINION",null,null,null,null,null,null,null,null,null,null,null,null,null,null,null,null,null,null,"AUDIT",null,null,null,null,null,null,null,null,null,null,null,null,null,null,null,null,null,null,null,null,null,null,"QUESTIONARIE",null,null,null,null,null,null,null,null,null,"NEW DATA"]
["Energy Code Audit","Adress","City/Town","Postcode","Country","First Name","Last Name","Phone number","E-Mail","Nationality","Date ","Number of hours audit","Sex-Person 1","Sex-Person 2","Sex-Person 3","Sex-Person 4","Sex-Person 5","Sex-Person 6","Sex-Person 7","Sex-Person 8","Sex-Person 9","Sex-Person 10","Age - Person 1","Age - Person 2","Age - Person 3","Age - Person 4","Age - Person 5","Age - Person 6","Age - Person 7","Age - Person 8","Age - Person 9","Age - Person 10","Eployment Situation Person 1","Eployment Situation Person 2","Eployment Situation Person 3","Eployment Situation Person 4","Eployment Situation Person 5","Eployment Situation Person 6","Eployment Situation Person 7","Eployment Situation Person 8","Eployment Situation Person 9","Eployment Situation Person 10","Average time - Person 1","Average time - Person 2","Average time - Person 3","Average time - Person 4","Average time - Person 5","Average time - Person 6","Average time - Person 7","Average time - Person 8","Average time - Person 9","Average time - Person 10","Incomes","Social Housing","Property","Bulding Roof",{"$f":"Housing!B12","v":"Number_of_floors"},"Year of construction","Squre meters","Number of rooms","Indoor temperature Winter","Indoor temperatur Summer","Sensation Winter","Sensation Summer","Main orientation","Windows frame refurbished %","Glazed surface over total glazed surface %","Facade and envelope refurbished %","Roof and house top refurbished %","Windows frame refurbished Time Ago","Glazed surface over total glazed surface Time Ago","Facade and envelope refurbished Time Ago","Roof and house top refurbished Time Ago","Orientation Window 1","Orientation Window 2","Orientation Window 3","Orientation Window 4","Orientation Window 5","Orientation Window 6","Orientation Window 7","Orientation Window 8","Orientation Window 9","Orientation Window 10","Orientation Window 11","Orientation Window 12","Orientation Window 13","Orientation Window 14","Orientation Window 15","Orientation Window 16","Orientation Window 17","Orientation Window 18","Orientation Window 19","Room Window 1","Room Window 2","Room Window 3","Room Window 4","Room Window 5","Room Window 6","Room Window 7","Room Window 8","Room Window 9","Room Window 10","Room Window 11","Room Window 12","Room Window 13","Room Window 14","Room Window 15","Room Window 16","Room Window 17","Room Window 18","Room Window 19","Height Window 1","Height Window 2","Height Window 3","Height Window 4","Height Window 5","Height Window 6","Height Window 7","Height Window 8","Height Window 9","Height Window 10","Height Window 11","Height Window 12","Height Window 13","Height Window 14","Height Window 15","Height Window 16","Height Window 17","Height Window 18","Height Window 19","Width Window 1","Width Window 2","Width Window 3","Width Window 4","Width Window 5","Width Window 6","Width Window 7","Width Window 8","Width Window 9","Width Window 10","Width Window 11","Width Window 12","Width Window 13","Width Window 14","Width Window 15","Width Window 16","Width Window 17","Width Window 18","Width Window 19","Curtains Window 1","Curtains Window 2","Curtains Window 3","Curtains Window 4","Curtains Window 5","Curtains Window 6","Curtains Window 7","Curtains Window 8","Curtains Window 9","Curtains Window 10","Curtains Window 11","Curtains Window 12","Curtains Window 13","Curtains Window 14","Curtains Window 15","Curtains Window 16","Curtains Window 17","Curtains Window 18","Curtains Window 19","Blinds Window 1","Blinds Window 2","Blinds Window 3","Blinds Window 4","Blinds Window 5","Blinds Window 6","Blinds Window 7","Blinds Window 8","Blinds Window 9","Blinds Window 10","Blinds Window 11","Blinds Window 12","Blinds Window 13","Blinds Window 14","Blinds Window 15","Blinds Window 16","Blinds Window 17","Blinds Window 18","Blinds Window 19","Windowpane Window 1","Windowpane Window 2","Windowpane Window 3","Windowpane Window 4","Windowpane Window 5","Windowpane Window 6","Windowpane Window 7","Windowpane Window 8","Windowpane Window 9","Windowpane Window 10","Windowpane Window 11","Windowpane Window 12","Windowpane Window 13","Windowpane Window 14","Windowpane Window 15","Windowpane Window 16","Windowpane Window 17","Windowpane Window 18","Windowpane Window 19","Window frame Window 1","Window frame Window 2","Window frame Window 3","Window frame Window 4","Window frame Window 5","Window frame Window 6","Window frame Window 7","Window frame Window 8","Window frame Window 9","Window frame Window 10","Window frame Window 11","Window frame Window 12","Window frame Window 13","Window frame Window 14","Window frame Window 15","Window frame Window 16","Window frame Window 17","Window frame Window 18","Window frame Window 19","Awnings Window 1","Awnings Window 2","Awnings Window 3","Awnings Window 4","Awnings Window 5","Awnings Window 6","Awnings Window 7","Awnings Window 8","Awnings Window 9","Awnings Window 10","Awnings Window 11","Awnings Window 12","Awnings Window 13","Awnings Window 14","Awnings Window 15","Awnings Window 16","Awnings Window 17","Awnings Window 18","Awnings Window 19","Air Leaks Window 1","Air Leaks Window 2","Air Leaks Window 3","Air Leaks Window 4","Air Leaks Window 5","Air Leaks Window 6","Air Leaks Window 7","Air Leaks Window 8","Air Leaks Window 9","Air Leaks Window 10","Air Leaks Window 11","Air Leaks Window 12","Air Leaks Window 13","Air Leaks Window 14","Air Leaks Window 15","Air Leaks Window 16","Air Leaks Window 17","Air Leaks Window 18","Air Leaks Window 19","Ventilation type","When? Winter","When? Summer","How long? Winter","How long? Summer","Humidity? Winter","Humidity? Summer","Elevators","Concierge","Communal areas","Number of flats in the building","Monthly bill (€)","Jan electricity TOTAL","Jan Electricity F1","Jan Electricity F2"," Jan Electricity F3","Jan electricity F4","unit Natural Gas","Jan Natural Gas","Jan Butane","Jan Porpane","Jan Diesel","Jan Pellet","Jan Firewood","Jan Cental Boiler","Jan District heating","Jan Distric heating-Sanitary hot water","Jan District cooling","Feb electricity TOTAL","Feb Electricity F1","Feb Electricity F2"," Feb Electricity F3","Feb electricity F4","Feb Natural Gas","Feb Butane","Feb Porpane","Feb Diesel","Feb Pellet","Feb Firewood","Feb Cental Boiler","Feb District heating","Feb Distric heating-Sanitary hot water","Feb District cooling","Mar electricity TOTAL","Mar Electricity F1","Mar Electricity F2"," Mar Electricity F3","Mar electricity F4","Mar Natural Gas","Mar Butane","Mar Porpane","Mar Diesel","Mar Pellet","Mar Firewood","Mar Cental Boiler","Mar District heating","Mar Distric heating-Sanitary hot water","Mar District cooling","Apr electricity TOTAL","Apr Electricity F1","Apr Electricity F2","Apr Electricity F3","Apr electricity F4","Apr Natural Gas","Apr Butane","Apr Porpane","Apr Diesel","Apr Pellet","Apr Firewood","Apr Cental Boiler","Apr District heating","Apr Distric heating-Sanitary hot water","Apr District cooling","May electricity TOTAL","May Electricity F1","May Electricity F2","May Electricity F3","May electricity F4","May Natural Gas","May Butane","May Porpane","May Diesel","May Pellet","May Firewood","May Cental Boiler","May District heating","May Distric heating-Sanitary hot water","May District cooling","Jun electricity TOTAL","Jun Electricity F1","Jun Electricity F2","Jun Electricity F3","Jun electricity F4","Jun Natural Gas","Jun Butane","Jun Porpane","Jun Diesel","Jun Pellet","Jun Firewood","Jun Cental Boiler","Jun District heating","Jun Distric heating-Sanitary hot water","Jun District cooling","Jul electricity TOTAL","Jul Electricity F1","Jul Electricity F2","Jul Electricity F3","Jul electricity F4","Jul Natural Gas","Jul Butane","Jul Porpane","Jul Diesel","Jul Pellet","Jul Firewood","Jul Cental Boiler","Jul District heating","Jul Distric heating-Sanitary hot water","Jul District cooling","Aug electricity TOTAL","Aug Electricity F1","Aug Electricity F2","Aug Electricity F3","Aug electricity F4","Aug Natural Gas","Aug Butane","Aug Porpane","Aug Diesel","Aug Pellet","Aug Firewood","Aug Cental Boiler","Aug District heating","Aug Distric heating-Sanitary hot water","Aug District cooling","Sep electricity TOTAL","Sep Electricity F1","Sep Electricity F2","Sep Electricity F3","Sep electricity F4","Sep Natural Gas","Sep Butane","Sep Porpane","Sep Diesel","Sep Pellet","Sep Firewood","Sep Cental Boiler","Sep District heating","Sep Distric heating-Sanitary hot water","Sep District cooling","Oct electricity TOTAL","Oct Electricity F1","Oct Electricity F2","Oct Electricity F3","Oct electricity F4","Oct Natural Gas","Oct Butane","Oct Porpane","Oct Diesel","Oct Pellet","Oct Firewood","Oct Cental Boiler","Oct District heating","Oct Distric heating-Sanitary hot water","Oct District cooling","Nov electricity TOTAL","Nov Electricity F1","Nov Electricity F2","Nov Electricity F3","Nov electricity F4","Nov Natural Gas","Nov Butane","Nov Porpane","Nov Diesel","Nov Pellet","Nov Firewood","Nov Cental Boiler","Nov District heating","Nov Distric heating-Sanitary hot water","Nov District cooling","Dec electricity TOTAL","Dec Electricity F1","Dec Electricity F2","Dec Electricity F3","Dec electricity F4","Dec Natural Gas","Dec Butane","Dec Porpane","Dec Diesel","Dec Pellet","Dec Firewood","Dec Cental Boiler","Dec District heating","Dec Distric heating-Sanitary hot water","Dec District cooling","TOTAL electricity TOTAL","TOTAL Electricity F1","TOTAL Electricity F2","TOTAL Electricity F3","TOTAL electricity F4","TOTAL Natural Gas","TOTAL Butane","TOTAL Porpane","TOTAL Diesel","TOTAL Pellet","TOTAL Firewood","TOTAL Cental Boiler","TOTAL District heating","TOTAL Distric heating-Sanitary hot water","TOTAL District cooling","Jan electricity TOTAL","Jan Electricity F1","Jan Electricity F2"," Jan Electricity F3","Jan electricity F4","unit Natural Gas","Jan Natural Gas","Jan Butane","Jan Porpane","Jan Diesel","Jan Pellet","Jan Firewood","Jan Cental Boiler","Jan District heating","Jan Distric heating-Sanitary hot water","Jan District cooling","Feb electricity TOTAL","Feb Electricity F1","Feb Electricity F2"," Feb Electricity F3","Feb electricity F4","Feb Natural Gas","Feb Butane","Feb Porpane","Feb Diesel","Feb Pellet","Feb Firewood","Feb Cental Boiler","Feb District heating","Feb Distric heating-Sanitary hot water","Feb District cooling","Mar electricity TOTAL","Mar Electricity F1","Mar Electricity F2"," Mar Electricity F3","Mar electricity F4","Mar Natural Gas","Mar Butane","Mar Porpane","Mar Diesel","Mar Pellet","Mar Firewood","Mar Cental Boiler","Mar District heating","Mar Distric heating-Sanitary hot water","Mar District cooling","Apr electricity TOTAL","Apr Electricity F1","Apr Electricity F2","Apr Electricity F3","Apr electricity F4","Apr Natural Gas","Apr Butane","Apr Porpane","Apr Diesel","Apr Pellet","Apr Firewood","Apr Cental Boiler","Apr District heating","Apr Distric heating-Sanitary hot water","Apr District cooling","May electricity TOTAL","May Electricity F1","May Electricity F2","May Electricity F3","May electricity F4","May Natural Gas","May Butane","May Porpane","May Diesel","May Pellet","May Firewood","May Cental Boiler","May District heating","May Distric heating-Sanitary hot water","May District cooling","Jun electricity TOTAL","Jun Electricity F1","Jun Electricity F2","Jun Electricity F3","Jun electricity F4","Jun Natural Gas","Jun Butane","Jun Porpane","Jun Diesel","Jun Pellet","Jun Firewood","Jun Cental Boiler","Jun District heating","Jun Distric heating-Sanitary hot water","Jun District cooling","Jul electricity TOTAL","Jul Electricity F1","Jul Electricity F2","Jul Electricity F3","Jul electricity F4","Jul Natural Gas","Jul Butane","Jul Porpane","Jul Diesel","Jul Pellet","Jul Firewood","Jul Cental Boiler","Jul District heating","Jul Distric heating-Sanitary hot water","Jul District cooling","Aug electricity TOTAL","Aug Electricity F1","Aug Electricity F2","Aug Electricity F3","Aug electricity F4","Aug Natural Gas","Aug Butane","Aug Porpane","Aug Diesel","Aug Pellet","Aug Firewood","Aug Cental Boiler","Aug District heating","Aug Distric heating-Sanitary hot water","Aug District cooling","Sep electricity TOTAL","Sep Electricity F1","Sep Electricity F2","Sep Electricity F3","Sep electricity F4","Sep Natural Gas","Sep Butane","Sep Porpane","Sep Diesel","Sep Pellet","Sep Firewood","Sep Cental Boiler","Sep District heating","Sep Distric heating-Sanitary hot water","Sep District cooling","Oct electricity TOTAL","Oct Electricity F1","Oct Electricity F2","Oct Electricity F3","Oct electricity F4","Oct Natural Gas","Oct Butane","Oct Porpane","Oct Diesel","Oct Pellet","Oct Firewood","Oct Cental Boiler","Oct District heating","Oct Distric heating-Sanitary hot water","Oct District cooling","Nov electricity TOTAL","Nov Electricity F1","Nov Electricity F2","Nov Electricity F3","Nov electricity F4","Nov Natural Gas","Nov Butane","Nov Porpane","Nov Diesel","Nov Pellet","Nov Firewood","Nov Cental Boiler","Nov District heating","Nov Distric heating-Sanitary hot water","Nov District cooling","Dec electricity TOTAL","Dec Electricity F1","Dec Electricity F2","Dec Electricity F3","Dec electricity F4","Dec Natural Gas","Dec Butane","Dec Porpane","Dec Diesel","Dec Pellet","Dec Firewood","Dec Cental Boiler","Dec District heating","Dec Distric heating-Sanitary hot water","Dec District cooling"," Average electricity TOTAL"," Average Electricity F1"," Average Electricity F2"," Average Electricity F3"," Average electricity F4"," Average Natural Gas"," Average Butane"," Average Porpane"," Average Diesel"," Average Pellet"," Average Firewood"," Average Cental Boiler"," Average District heating"," Average Distric heating-Sanitary hot water"," Average District cooling","Jan Electricity ","Jan Natural Gas","Jan Butane","Jan Porpane","Jan Diesel","Jan Pellet","Jan Firewood","Jan Cental Boiler","Jan District heating","Jan Distric heating-Sanitary hot water","Jan District cooling","Feb Electricity ","Feb Natural Gas","Feb Butane","Feb Porpane","Feb Diesel","Feb Pellet","Feb Firewood","Feb Cental Boiler","Feb District heating","Feb Distric heating-Sanitary hot water","Feb District cooling","Mar Electricity ","Mar Natural Gas","Mar Butane","Mar Porpane","Mar Diesel","Mar Pellet","Mar Firewood","Mar Cental Boiler","Mar District heating","Mar Distric heating-Sanitary hot water","Mar District cooling","Apr Electricity ","Apr Natural Gas","Apr Butane","Apr Porpane","Apr Diesel","Apr Pellet","Apr Firewood","Apr Cental Boiler","Apr District heating","Apr Distric heating-Sanitary hot water","Apr District cooling","May Electricity ","May Natural Gas","May Butane","May Porpane","May Diesel","May Pellet","May Firewood","May Cental Boiler","May District heating","May Distric heating-Sanitary hot water","May District cooling","Jun Electricity ","Jun Natural Gas","Jun Butane","Jun Porpane","Jun Diesel","Jun Pellet","Jun Firewood","Jun Cental Boiler","Jun District heating","Jun Distric heating-Sanitary hot water","Jun District cooling","Jul Electricity ","Jul Natural Gas","Jul Butane","Jul Porpane","Jul Diesel","Jul Pellet","Jul Firewood","Jul Cental Boiler","Jul District heating","Jul Distric heating-Sanitary hot water","Jul District cooling","Aug Electricity ","Aug Natural Gas","Aug Butane","Aug Porpane","Aug Diesel","Aug Pellet","Aug Firewood","Aug Cental Boiler","Aug District heating","Aug Distric heating-Sanitary hot water","Aug District cooling","Sep Electricity ","Sep Natural Gas","Sep Butane","Sep Porpane","Sep Diesel","Sep Pellet","Sep Firewood","Sep Cental Boiler","Sep District heating","Sep Distric heating-Sanitary hot water","Sep District cooling","Oct Electricity ","Oct Natural Gas","Oct Butane","Oct Porpane","Oct Diesel","Oct Pellet","Oct Firewood","Oct Cental Boiler","Oct District heating","Oct Distric heating-Sanitary hot water","Oct District cooling","Nov Electricity ","Nov Natural Gas","Nov Butane","Nov Porpane","Nov Diesel","Nov Pellet","Nov Firewood","Nov Cental Boiler","Nov District heating","Nov Distric heating-Sanitary hot water","Nov District cooling","Dec Electricity ","Dec Natural Gas","Dec Butane","Dec Porpane","Dec Diesel","Dec Pellet","Dec Firewood","Dec Cental Boiler","Dec District heating","Dec Distric heating-Sanitary hot water","Dec District cooling","TOTAL electricity TOTAL","TOTAL Natural Gas","TOTAL Butane","TOTAL Porpane","TOTAL Diesel","TOTAL Pellet","TOTAL Firewood","TOTAL Cental Boiler","TOTAL District heating","TOTAL Distric heating-Sanitary hot water","TOTAL District cooling","TOTAL Jan","TOTAL Feb","TOTAL Mar","TOTAL Apr","TOTAL May","TOTAL Jun","TOTAL Jul","TOTAL Aug","TOTAL Sep","TOTAL Oct","TOTAL Nov","TOTAL Dec","TOTAL TOTAL","I have been reviewed/ changed me contract over the last two year","Have you ever experienced a power disconnection for exceding your contracted demand of electricity?","Carbon emmisions average (kCO2/kWh)","Current Company Name","Previous Company Name","Current Who is the contract holder ?","Previous Who is the contract holder ?","Current Power (kW)","Previous Power (kW)","Current Contract type ","Previous Contract type ","RES total power Power        Solar PV","RES total power Power   Geothermal heat pump","RES total power Power   Wind power","RES total power Power        Co-generation","RES total power    Application    Solar PV","RES total power Application   Geothermal heat pump","RES total power Application   Wind power","RES total power Application     Co-generation","RES total power   Year of installation     Solar PV","RES total power   Year of installation   Geothermal heat pump","RES total power   Year of installation   Wind power","RES total power      Year of installation     Co-generation","Payment frequency","Flat rate","Electronic Meter","Additional Services","NATURAL GAS SUPPLY  Company name   Current","NATURAL GAS SUPPLY  Company name   Previous","Gas method of payment   Payment frequency","Gas method of payment   Flat rate","Gas method of payment   Additional Services ","Jan                   Heating Degree Days","Jan   Cooling Degree Days","Feb                  Heating Degree Days","Feb  Cooling Degree Days","Mar                  Heating Degree Days","Mar  Cooling Degree Days","Apr                  Heating Degree Days","Apr   Cooling Degree Days","May                  Heating Degree Days","May   Cooling Degree Days","Jun                  Heating Degree Days","Jun   Cooling Degree Days","Jul                  Heating Degree Days","Jul      Cooling Degree Days","Aug                 Heating Degree Days","Aug       Cooling Degree Days","Sep                 Heating Degree Days","Sep       Cooling Degree Days","Oct                 Heating Degree Days","Oct       Cooling Degree Days","Nov                Heating Degree Days","Nov       Cooling Degree Days","Dec                Heating Degree Days","Dec      Cooling Degree Days","HEATING SOURCE    Central heating","HEATING SOURCE    Individual meter ","HEATING SOURCE    Individual adjustable thermostat","HEATING SOURCE    Adjustable thermostat in each radiator / room","HEATING SOURCE     Natural Gas boiler","HEATING SOURCE    Propane boiler","HEATING SOURCE     Diesel boiler","HEATING SOURCE     Biomass boiler","HEATING SOURCE    Central Heat Pump","HEATING SOURCE     Electrical boiler without accumulator tank","HEATING SOURCE      Electrical boiler with accumulator tank","HEATING SOURCE     Electrical - Radiant heating","Installation year   Central heating","Installation year    Natural Gas boiler","Installation year   Propane boiler","Installation year    Diesel boiler","Installation year     Biomass boiler","Installation year   Central Heat Pump","Installation year     Electrical boiler without accumulator tank","Installation year      Electrical boiler with accumulator tank","Installation year     Electrical - Radiant heating","  Power (kW)    Central heating","Power (kW)    Natural Gas boiler","Power (kW)   Propane boiler","Power (kW)    Diesel boiler","Power (kW)     Biomass boiler","Power (kW)  Central Heat Pump","Power (kW)   Electrical boiler without accumulator tank","Power (kW)      Electrical boiler with accumulator tank","Power (kW)     Electrical - Radiant heating","Hours/day (when necesary)     Central heating","Hours/day (when necesary)      Natural Gas boiler","Hours/day (when necesary)     Propane boiler","Hours/day (when necesary)    Diesel boiler","Hours/day (when necesary)     Biomass boiler","Hours/day (when necesary)  Central Heat Pump","Hours/day (when necesary)  Electrical boiler without accumulator tank","Hours/day (when necesary)    Electrical boiler with accumulator tank","Hours/day (when necesary)     Electrical - Radiant heating","COP (%)     Central heating","COP (%)     Natural Gas boiler","COP (%)     Propane boiler","COP (%)   Diesel boiler","COP (%)     Biomass boiler","COP (%)  Central Heat Pump","COP (%)  Electrical boiler without accumulator tank","COP (%)    Electrical boiler with accumulator tank","COP (%)    Electrical - Radiant heating","INDIVIDUAL HEATING SOURCE   Individual Electrical stove","INDIVIDUAL HEATING SOURCE   Individual Heat Pump split","INDIVIDUAL HEATING SOURCE   Butane/propane stove","INDIVIDUAL HEATING SOURCE    Wood- burning stove","INDIVIDUAL HEATING SOURCE    Fireplace","INDIVIDUAL HEATING SOURCE   Individual Pellet stove","INDIVIDUAL HEATING SOURCE     Electric baseboard heat","INDIVIDUAL HEATING SOURCE   Geothermal heat pump support","INDIVIDUAL HEATING SOURCE  Fan coil","INDIVIDUAL HEATING SOURCE   Solar thermal support","Installation year   Individual Electrical stove","Installation year  Individual Heat Pump split","Installation year   Butane/propane stove","Installation year    Wood- burning stove","Installation year    Fireplace","Installation yearIndividual Pellet stove","Installation year     Electric baseboard heat","Installation year   Geothermal heat pump support","Installation year  Fan coil","Installation year   Solar thermal support","  Average Power (kW)   Individual Electrical stove","Average Power (kW)  Individual Heat Pump split","Average Power (kW)  Butane/propane stove","Average Power (kW)    Wood- burning stove","Average Power (kW)    Fireplace","Average Power (kW)     Individual Pellet stove","Average Power (kW)    Electric baseboard heat","Average Power (kW)  Geothermal heat pump support","Average Power (kW)  Fan coil","Average Power (kW)   Solar thermal support","Hours/day (when necesary)   Individual Electrical stove","Hours/day (when necesary)  Individual Heat Pump split","Hours/day (when necesary)  Butane/propane stove","Hours/day (when necesary)   Wood- burning stove","Hours/day (when necesary)    Fireplace","Hours/day (when necesary)   Individual Pellet stove","Hours/day (when necesary)    Electric baseboard heat","Hours/day (when necesary)  Geothermal heat pump support","Hours/day (when necesary)  Fan coil","Hours/day (when necesary)  Solar thermal support","COP (%)  Individual Electrical stove","COP (%)  Individual Heat Pump split","COP (%)  Butane/propane stove","COP (%)  Wood- burning stove","COP (%)    Fireplace","COP (%)   Individual Pellet stove","COP (%)    Electric baseboard heat","COP (%)  Geothermal heat pump support","COP (%)  Fan coil","COP (%)  Solar thermal support","Number   Individual Electrical stove"," Number   Individual Heat Pump split","Number  Butane/propane stove","Number  Wood- burning stove","Number    Fireplace","Number   Individual Pellet stove","Number    Electric baseboard heat","Number   Geothermal heat pump support","COP (%)  Fan coil","Number  Solar thermal support","Number of rooms  Kitchen","Number of rooms  Living Room","Number of rooms  Bedroom","Number of rooms  Bathroom","Number of rooms       Hall and corridors","Number of rooms  Home office","Height of the ceiling (cm)    Kitchen","Height of the ceiling (cm)     Living Room","Height of the ceiling (cm)    Bedroom","Height of the ceiling (cm)    Bathroom","Height of the ceiling (cm)          Hall and corridors","Height of the ceiling (cm)  Home office","Squared meters   Kitchen","Squared meters     Living Room","Squared meters    Bedroom","Squared meters    Bathroom","Squared meters          Hall and corridors","Squared meters  Home office","HEATING DEVICES    Do you have temperature time setting plug?","HEATING DEVICES   Do you have a digital heating thermostat? ","HEATING DEVICES  Percentage of thermostatic valves in radiators","COOLING  Central air conditioning","COOLING   Geothermal","COOLING  Solar cooling","COOLING  Individual air conditioning units (splits)","COOLING  Fans","COOLING  Small cooling appliances","COOLING  Evaporative cooling","Installation year   Central air conditioning","Installation year   Geothermal","Installation year      Solar cooling","Installation year    Individual air conditioning units (splits)","Installation year          Fans","Installation year        Small cooling appliances","Installation year      Evaporative cooling","Average Power (kW)   Central air conditioning","Average Power (kW)  Geothermal","Average Power (kW)      Solar cooling","Average Power (kW)    Individual air conditioning units (splits)","    Average Power (kW)         Fans","Average Power (kW)        Small cooling appliances","Average Power (kW)     Evaporative cooling","Hours/day (when necesary)    Central air conditioning","Hours/day (when necesary)  Geothermal","Hours/day (when necesary)     Solar cooling","Hours/day (when necesary)    Individual air conditioning units (splits)"," Hours/day (when necesary)         Fans","Hours/day (when necesary)     Small cooling appliances","Hours/day (when necesary)    Evaporative cooling","   EER (%)      Central air conditioning","EER (%)    Geothermal","EER (%)       Solar cooling","EER (%)      Individual air conditioning units (splits)"," EER (%)          Fans","EER (%)      Small cooling appliances","EER (%)      Evaporative cooling","  Number   Individual air conditioning units (splits)","Number        Fans","Number     Small cooling appliances","Number    Evaporative cooling","COOLING DEVICES    Do you have a temperature time setting plug?","COOLING DEVICES   Do you have a cooling system with digital thermostat? ",null,"Domestic hot water  Centralized system","Domestic hot water  Individual meter per dwelling","Domestic hot water  Electrical heater","Domestic hot water  Natural gas heater","Domestic hot water  Butane/propane heater","Domestic hot water  Diesel heater","Domestic hot water    Biomass heater","Domestic hot water  Solar collectors"," Hours/day     Centralized system","Hours/day    Individual meter per dwelling","Hours/day    Electrical heater","Hours/day   Natural gas heater","Hours/day     Butane/propane heater","Hours/day    Diesel heater","Hours/day      Biomass heater","Hours/day    Solar collectors"," With boiler system   Centralized system","With boiler system    Individual meter per dwelling","With boiler system      Electrical heater","With boiler system     Natural gas heater","With boiler system     Butane/propane heater","With boiler system    Diesel heater","With boiler system     Biomass heater","With boiler system   Solar collectors","Installation Year  Centralized system","Installation Year    Individual meter per dwelling","Installation Year    Electrical heater","Installation Year    Natural gas heater","Installation Year     Butane/propane heater","Installation Year    Diesel heater","Installation Year    Biomass heater","Installation Year   Solar collectors","Power (kW)  Centralized system","Power (kW)  Individual meter per dwelling","Power (kW)    Electrical heater","Power (kW)     Natural gas heater","Power (kW)     Butane/propane heater","Power (kW)    Diesel heater","Power (kW)    Biomass heater","Power (kW)     Solar collectors","COP (%)  Centralized system","COP (%)  Individual meter per dwelling","COP (%)    Electrical heater","COP (%)     Natural gas heater"," COP (%)    Butane/propane heater","COP (%)    Diesel heater","COP (%)   Biomass heater","COP (%)    Solar collectors","Single lever control ","Aerators in taps","HEATING EQUIPMENT MAINTENANCE         Self made","HEATING EQUIPMENT MAINTENANCE   Subcontracted to a specialized company","HEATING EQUIPMENT MAINTENANCE           No maintenance out of corrective is done","Frequency      Self made","Frequency    Subcontracted to a specialized company","Frequency     No maintenance out of corrective is done ","APPLIANCES         Fridge/ Combined refrigerator- freezer","APPLIANCES                        Freezer","APPLIANCES                Oven","APPLIANCES     Microwave","APPLIANCES       Electrical cooker","APPLIANCES       Ceramic hob","APPLIANCES       Induction cooktop","APPLIANCES                 Gas cooker","APPLIANCES      Washing machine","APPLIANCES                Dryer","APPLIANCES       Dishwasher","APPLIANCES       Television","APPLIANCES       Personal Computer","APPLIANCES                 Laptop ","Number        Fridge/ Combined refrigerator- freezer","Number                       Freezer","Number            Oven","Number    Microwave","Number     Electrical cooker","Number       Ceramic hob","Number       Induction cooktop","Number           Gas cooker","Number      Washing machine","Number              Dryer","Number       Dishwasher","Number       Television","Number       Personal Computer","Number                Laptop ","Use (Hours/Week)        Fridge/ Combined refrigerator- freezer","Use (Hours/Week)                      Freezer","Use (Hours/Week)         Oven","Use (Hours/Week)    Microwave","Use (Hours/Week)   Electrical cooker","Use (Hours/Week)       Ceramic hob","Use (Hours/Week)      Induction cooktop","Use (Hours/Week)          Gas cooker","Use (Hours/Week)     Washing machine","Use (Hours/Week)            Dryer","Use (Hours/Week)       Dishwasher","Use (Hours/Week)      Television","Use (Hours/Week)      Personal Computer","Use (Hours/Week)          Laptop ","Total Power (W)      Fridge/ Combined refrigerator- freezer","Total Power (W) Freezer","Total Power (W)         Oven","Total Power (W)        Microwave","Total Power (W)       Electrical cooker","Total Power (W)        Ceramic hob","Total Power (W)        Induction cooktop","Total Power (W)         Gas cooker","Total Power (W)       Washing machine","Total Power (W)           Dryer","Total Power (W)         Dishwasher","Total Power (W)         Television","Total Power (W)           Personal Computer","Total Power (W)            Laptop ","Energy Label    Fridge/ Combined refrigerator- freezer","Energy Label Freezer","Energy Label     Oven","Energy Label     Microwave","Energy Label     Electrical cooker","Energy Label     Ceramic hob","Energy Label     Induction cooktop","Energy Label        Gas cooker","Energy Label    Washing machine","Energy Label     Dryer","Energy Label     Dishwasher","Energy Label    Television","Energy Label        Personal Computer","Energy Label       Laptop ","Television Stand by mode","Personal Computer Stand by mode"," Laptop Stand by mode","Other electronic Stand by mode","Incandescent Light Bulbs ","Low- consumption bulbs","Led light bulbs","Fluorescent bulbs","Halogen light bulbs","Number Incandescent Light Bulbs ","Number Low- consumption bulbs","Number Led light bulbs","Number Fluorescent bulbs","Number Halogen light bulbs","Use Incandescent Light Bulbs ","Use Low- consumption bulbs","Use Led light bulbs","Use Fluorescent bulbs","Use Halogen light bulbs","Total power (W) Incandescent Light Bulbs ","Total power (W) Low- consumption bulbs","Total power (W) Led light bulbs","Total power (W) Fluorescent bulbs","Total power (W) Halogen light bulbs","Energy Label Incandescent Light Bulbs ","Energy Label Low- consumption bulbs","Energy Label Led light bulbs","Energy Label Fluorescent bulbs","Energy Label Halogen light bulbs","In my country, there are many families who can not afford the energy bill.","Energy bills are too expansive for my family.","I am willing to buy \"green\" electricity (even if it is more expansive).","I would be willing to accept power cut off for a tariff reduction","I am willing to invest some money to save energy.","I already implement energy efficiency measures at home","I think my house has a very good insulation (facade, windows, rooftop)","We CHANGED our habits following the tips received by FIESTA guide / EHD / Auditor. ","Was it easy?","Was it easy?","We PURCHASED energy efficient devices (e.g. lights, appliances, thermal regulation,  boilers, solar shading…) following the tips received by FIESTA guide / EHD / Auditor ","We spent (or we will spend soon) [€].","Short description of the devices purchased (or to be purchased soon).","We did NOT purchase because…","We INVESTED some money to improve the energy efficiency of our house (e.g. thermal insulation,windows, solar shadings, heating and cooling systems, solar and photovoltaic systems...).","We spent (or we will spend soon) [€].","Short description of the investments done (or to be done soon).","In my family, the obstacle we find harder to overcome when it comes to invest in renovation",null,"ID Audit","Size of dwelling (m2)","electricity power (kW)","electricity consumption (kWh)","eletricity cost (€/kWh)","fuel","fuel consumption (kWh)","fuel cost (€/kWh)","How many members of the household?","How many children?","Social Housing","date of energy audit","time required for the energy audit","Awareness about energy efficiency and RES technology","POTENTIAL energy saving (behavioural) electricity (kWh)","POTENTIAL energy saving (small purchase) electricity (kWh)","POTENTIAL energy saving (large investments) electricity (kWh)","POTENTIAL C02 savings (kilograms)","POTENTIAL Electricity from Renewable Energy Sources (kWh)","POTENTIAL Heat from Renewable Energy Sources (kWh)","POTENTIAL  investment for energy saving (small purchase) (€)","POTENTIAL investment for energy saving (large investment) (€)","POTENTIAL investment for Renewable Energy Sources (€)","date of the questionnaire","ACTUAL energy saving (behavioural) electricity [kWh]","ACTUAL energy saving (small purchase)electricity [kWh]","ACTUAL energy saving (large investments) electricity [kWh]","ACTUAL C02 savings [kg]","ACTUAL Electricity from Renewable Energy Sources [kWh]","ACTUAL Heat from Renewable Energy Sources [kWh]","ACTUAL investment for energy saving (small purchase) [€]","ACTUAL investment for energy saving (large investment) [€]","ACTUAL investment for Renewable Energy Sources [€]","Fuel central heating ","Fuel central hotwater","POTENTIAL energy saving (behavioural) fuel [kWh]","POTENTIAL energy saving (small purchase) fuel [kWh]","POTENTIAL energy saving (investments) fuel [kWh]","ACTUAL  energy saving (behavioural) fuel [kWh]","ACTUAL energy saving (small purchase) fuel [kWh]","ACTUAL energy saving (large investments) fuel [kWh]","Would you repeat the energy audit? Was it useful? Would you recommend it to your friends?","I am willing to change my habits to save energy"]
[{"$f":"'Savings Indicator'!D7","v":0},{"$f":"Identification!B3","v":0},{"$f":"Identification!B4","v":0},{"$f":"Identification!B5","v":0},{"$f":"Identification!B6","v":0},{"$f":"Identification!B9","v":0},{"$f":"Identification!B10","v":0},{"$f":"Identification!B11","v":0},{"$f":"Identification!B12","v":0},{"$f":"Identification!B13","v":0},{"$f":"Identification!B15","v":"00:00:00"},{"$f":"Identification!B20","v":"00:00:00"},{"$f":"Family!C3","v":0},{"$f":"Family!C4","v":0},{"$f":"Family!C5","v":0},{"$f":"Family!C6","v":0},{"$f":"Family!C7","v":0},{"$f":"Family!C8","v":0},{"$f":"Family!C9","v":0},{"$f":"Family!C10","v":0},{"$f":"Family!C11","v":0},{"$f":"Family!C12","v":0},{"$f":"Family!D3","v":0},{"$f":"Family!D4","v":0},{"$f":"Family!D5","v":0},{"$f":"Family!D6","v":0},{"$f":"Family!D7","v":0},{"$f":"Family!D8","v":0},{"$f":"Family!D9","v":0},{"$f":"Family!D10","v":0},{"$f":"Family!D11","v":0},{"$f":"Family!D12","v":0},{"$f":"Family!E3","v":0},{"$f":"Family!E4","v":0},{"$f":"Family!E5","v":0},{"$f":"Family!E6","v":0},{"$f":"Family!E7","v":0},{"$f":"Family!E8","v":0},{"$f":"Family!E9","v":0},{"$f":"Family!E10","v":0},{"$f":"Family!E11","v":0},{"$f":"Family!E12","v":0},{"$f":"Family!F3","v":0},{"$f":"Family!F4","v":0},{"$f":"Family!F5","v":0},{"$f":"Family!F6","v":0},{"$f":"Family!F7","v":0},{"$f":"Family!F8","v":0},{"$f":"Family!F9","v":0},{"$f":"Family!F10","v":0},{"$f":"Family!F11","v":0},{"$f":"Family!F12","v":0},{"$f":"Family!D14","v":0},{"$f":"Family!C16","v":0},{"$f":"Housing!C6","v":0},{"$f":"Housing!C9","v":0},{"$f":"Housing!C12","v":0},{"$f":"Housing!C13","v":0},{"$f":"Housing!C14","v":0},{"$f":"Housing!C15","v":0},{"$f":"Housing!C17","v":0},{"$f":"Housing!D17","v":0},{"$f":"Housing!C18","v":0},{"$f":"Housing!D18","v":0},{"$f":"Housing!C20","v":0},{"$f":"Housing!C23","v":0},{"$f":"Housing!C24","v":0},{"$f":"Housing!C25","v":0},{"$f":"Housing!C26","v":0},{"$f":"Housing!D23","v":0},{"$f":"Housing!D24","v":0},{"$f":"Housing!D25","v":0},{"$f":"Housing!D26","v":0},{"$f":"Housing!C29","v":0},{"$f":"Housing!D29","v":0},{"$f":"Housing!E29","v":0},{"$f":"Housing!F29","v":0},{"$f":"Housing!G29","v":0},{"$f":"Housing!H29","v":0},{"$f":"Housing!I29","v":0},{"$f":"Housing!J29","v":0},{"$f":"Housing!K29","v":0},{"$f":"Housing!L29","v":0},{"$f":"Housing!M29","v":0},{"$f":"Housing!N29","v":0},{"$f":"Housing!O29","v":0},{"$f":"Housing!P29","v":0},{"$f":"Housing!Q29","v":0},{"$f":"Housing!R29","v":0},{"$f":"Housing!S29","v":0},{"$f":"Housing!T29","v":0},{"$f":"Housing!U29","v":0},{"$f":"Housing!C30","v":0},{"$f":"Housing!D30","v":0},{"$f":"Housing!E30","v":0},{"$f":"Housing!F30","v":0},{"$f":"Housing!G30","v":0},{"$f":"Housing!H30","v":0},{"$f":"Housing!I30","v":0},{"$f":"Housing!J30","v":0},{"$f":"Housing!K30","v":0},{"$f":"Housing!L30","v":0},{"$f":"Housing!M30","v":0},{"$f":"Housing!N30","v":0},{"$f":"Housing!O30","v":0},{"$f":"Housing!P30","v":0},{"$f":"Housing!Q30","v":0},{"$f":"Housing!R30","v":0},{"$f":"Housing!S30","v":0},{"$f":"Housing!T30","v":0},{"$f":"Housing!U30","v":0},{"$f":"Housing!C31","v":0},{"$f":"Housing!D31","v":0},{"$f":"Housing!E31","v":0},{"$f":"Housing!F31","v":0},{"$f":"Housing!G31","v":0},{"$f":"Housing!H31","v":0},{"$f":"Housing!I31","v":0},{"$f":"Housing!J31","v":0},{"$f":"Housing!K31","v":0},{"$f":"Housing!L31","v":0},{"$f":"Housing!M31","v":0},{"$f":"Housing!N31","v":0},{"$f":"Housing!O31","v":0},{"$f":"Housing!P31","v":0},{"$f":"Housing!Q31","v":0},{"$f":"Housing!R31","v":0},{"$f":"Housing!S31","v":0},{"$f":"Housing!T31","v":0},{"$f":"Housing!U31","v":0},{"$f":"Housing!C32","v":0},{"$f":"Housing!D32","v":0},{"$f":"Housing!E32","v":0},{"$f":"Housing!F32","v":0},{"$f":"Housing!G32","v":0},{"$f":"Housing!H32","v":0},{"$f":"Housing!I32","v":0},{"$f":"Housing!J32","v":0},{"$f":"Housing!K32","v":0},{"$f":"Housing!L32","v":0},{"$f":"Housing!M32","v":0},{"$f":"Housing!N32","v":0},{"$f":"Housing!O32","v":0},{"$f":"Housing!P32","v":0},{"$f":"Housing!Q32","v":0},{"$f":"Housing!R32","v":0},{"$f":"Housing!S32","v":0},{"$f":"Housing!T32","v":0},{"$f":"Housing!U32","v":0},{"$f":"Housing!C33","v":0},{"$f":"Housing!D33","v":0},{"$f":"Housing!E33","v":0},{"$f":"Housing!F33","v":0},{"$f":"Housing!G33","v":0},{"$f":"Housing!H33","v":0},{"$f":"Housing!I33","v":0},{"$f":"Housing!J33","v":0},{"$f":"Housing!K33","v":0},{"$f":"Housing!L33","v":0},{"$f":"Housing!M33","v":0},{"$f":"Housing!N33","v":0},{"$f":"Housing!O33","v":0},{"$f":"Housing!P33","v":0},{"$f":"Housing!Q33","v":0},{"$f":"Housing!R33","v":0},{"$f":"Housing!S33","v":0},{"$f":"Housing!T33","v":0},{"$f":"Housing!U33","v":0},{"$f":"Housing!C34","v":0},{"$f":"Housing!D34","v":0},{"$f":"Housing!E34","v":0},{"$f":"Housing!F34","v":0},{"$f":"Housing!G34","v":0},{"$f":"Housing!H34","v":0},{"$f":"Housing!I34","v":0},{"$f":"Housing!J34","v":0},{"$f":"Housing!K34","v":0},{"$f":"Housing!L34","v":0},{"$f":"Housing!M34","v":0},{"$f":"Housing!N34","v":0},{"$f":"Housing!O34","v":0},{"$f":"Housing!P34","v":0},{"$f":"Housing!Q34","v":0},{"$f":"Housing!R34","v":0},{"$f":"Housing!S34","v":0},{"$f":"Housing!T34","v":0},{"$f":"Housing!U34","v":0},{"$f":"Housing!C35","v":0},{"$f":"Housing!D35","v":0},{"$f":"Housing!E35","v":0},{"$f":"Housing!F35","v":0},{"$f":"Housing!G35","v":0},{"$f":"Housing!H35","v":0},{"$f":"Housing!I35","v":0},{"$f":"Housing!J35","v":0},{"$f":"Housing!K35","v":0},{"$f":"Housing!L35","v":0},{"$f":"Housing!M35","v":0},{"$f":"Housing!N35","v":0},{"$f":"Housing!O35","v":0},{"$f":"Housing!P35","v":0},{"$f":"Housing!Q35","v":0},{"$f":"Housing!R35","v":0},{"$f":"Housing!S35","v":0},{"$f":"Housing!T35","v":0},{"$f":"Housing!U35","v":0},{"$f":"Housing!C36","v":0},{"$f":"Housing!D36","v":0},{"$f":"Housing!E36","v":0},{"$f":"Housing!F36","v":0},{"$f":"Housing!G36","v":0},{"$f":"Housing!H36","v":0},{"$f":"Housing!I36","v":0},{"$f":"Housing!J36","v":0},{"$f":"Housing!K36","v":0},{"$f":"Housing!L36","v":0},{"$f":"Housing!M36","v":0},{"$f":"Housing!N36","v":0},{"$f":"Housing!O36","v":0},{"$f":"Housing!P36","v":0},{"$f":"Housing!Q36","v":0},{"$f":"Housing!R36","v":0},{"$f":"Housing!S36","v":0},{"$f":"Housing!T36","v":0},{"$f":"Housing!U36","v":0},{"$f":"Housing!C37","v":0},{"$f":"Housing!D37","v":0},{"$f":"Housing!E37","v":0},{"$f":"Housing!F37","v":0},{"$f":"Housing!G37","v":0},{"$f":"Housing!H37","v":0},{"$f":"Housing!I37","v":0},{"$f":"Housing!J37","v":0},{"$f":"Housing!K37","v":0},{"$f":"Housing!L37","v":0},{"$f":"Housing!M37","v":0},{"$f":"Housing!N37","v":0},{"$f":"Housing!O37","v":0},{"$f":"Housing!P37","v":0},{"$f":"Housing!Q37","v":0},{"$f":"Housing!R37","v":0},{"$f":"Housing!S37","v":0},{"$f":"Housing!T37","v":0},{"$f":"Housing!U37","v":0},{"$f":"Housing!C38","v":0},{"$f":"Housing!D38","v":0},{"$f":"Housing!E38","v":0},{"$f":"Housing!F38","v":0},{"$f":"Housing!G38","v":0},{"$f":"Housing!H38","v":0},{"$f":"Housing!I38","v":0},{"$f":"Housing!J38","v":0},{"$f":"Housing!K38","v":0},{"$f":"Housing!L38","v":0},{"$f":"Housing!M38","v":0},{"$f":"Housing!N38","v":0},{"$f":"Housing!O38","v":0},{"$f":"Housing!P38","v":0},{"$f":"Housing!Q38","v":0},{"$f":"Housing!R38","v":0},{"$f":"Housing!S38","v":0},{"$f":"Housing!T38","v":0},{"$f":"Housing!U38","v":0},{"$f":"Housing!C41","v":0},{"$f":"Housing!C43","v":0},{"$f":"Housing!D43","v":0},{"$f":"Housing!C44","v":0},{"$f":"Housing!D44","v":0},{"$f":"Housing!C45","v":0},{"$f":"Housing!D45","v":0},{"$f":"Housing!C48","v":0},{"$f":"Housing!C49","v":0},{"$f":"Housing!C50","v":0},{"$f":"Housing!C51","v":0},{"$f":"Housing!C52","v":0},{"$f":"Energy!D5","v":0},{"$f":"Energy!D6","v":0},{"$f":"Energy!D7","v":0},{"$f":"Energy!D8","v":0},{"$f":"Energy!D9","v":0},"kWh",{"$f":"Energy!D10","v":0},{"$f":"Energy!D11","v":0},{"$f":"Energy!D12","v":0},{"$f":"Energy!D13","v":0},{"$f":"Energy!D14","v":0},{"$f":"Energy!D15","v":0},{"$f":"Energy!D16","v":0},{"$f":"Energy!D17","v":0},{"$f":"Energy!D18","v":0},{"$f":"Energy!D19","v":0},{"$f":"Energy!E5","v":0},{"$f":"Energy!E6","v":0},{"$f":"Energy!E7","v":0},{"$f":"Energy!E8","v":0},{"$f":"Energy!E9","v":0},{"$f":"Energy!E10","v":0},{"$f":"Energy!E11","v":0},{"$f":"Energy!E12","v":0},{"$f":"Energy!E13","v":0},{"$f":"Energy!E14","v":0},{"$f":"Energy!E15","v":0},{"$f":"Energy!E16","v":0},{"$f":"Energy!E17","v":0},{"$f":"Energy!E18","v":0},{"$f":"Energy!E19","v":0},{"$f":"Energy!F5","v":0},{"$f":"Energy!F6","v":0},{"$f":"Energy!F7","v":0},{"$f":"Energy!F8","v":0},{"$f":"Energy!F9","v":0},{"$f":"Energy!F10","v":0},{"$f":"Energy!F11","v":0},{"$f":"Energy!F12","v":0},{"$f":"Energy!F13","v":0},{"$f":"Energy!F14","v":0},{"$f":"Energy!F15","v":0},{"$f":"Energy!F16","v":0},{"$f":"Energy!F17","v":0},{"$f":"Energy!F18","v":0},{"$f":"Energy!F19","v":0},{"$f":"Energy!G5","v":0},{"$f":"Energy!G6","v":0},{"$f":"Energy!G7","v":0},{"$f":"Energy!G8","v":0},{"$f":"Energy!G9","v":0},{"$f":"Energy!G10","v":0},{"$f":"Energy!G11","v":0},{"$f":"Energy!G12","v":0},{"$f":"Energy!G13","v":0},{"$f":"Energy!G14","v":0},{"$f":"Energy!G15","v":0},{"$f":"Energy!G16","v":0},{"$f":"Energy!G17","v":0},{"$f":"Energy!G18","v":0},{"$f":"Energy!G19","v":0},{"$f":"Energy!H5","v":0},{"$f":"Energy!H6","v":0},{"$f":"Energy!H7","v":0},{"$f":"Energy!H8","v":0},{"$f":"Energy!H9","v":0},{"$f":"Energy!H10","v":0},{"$f":"Energy!H11","v":0},{"$f":"Energy!H12","v":0},{"$f":"Energy!H13","v":0},{"$f":"Energy!H14","v":0},{"$f":"Energy!H15","v":0},{"$f":"Energy!H16","v":0},{"$f":"Energy!H17","v":0},{"$f":"Energy!H18","v":0},{"$f":"Energy!H19","v":0},{"$f":"Energy!I5","v":0},{"$f":"Energy!I6","v":0},{"$f":"Energy!I7","v":0},{"$f":"Energy!I8","v":0},{"$f":"Energy!I9","v":0},{"$f":"Energy!I10","v":0},{"$f":"Energy!I11","v":0},{"$f":"Energy!I12","v":0},{"$f":"Energy!I13","v":0},{"$f":"Energy!I14","v":0},{"$f":"Energy!I15","v":0},{"$f":"Energy!I16","v":0},{"$f":"Energy!I17","v":0},{"$f":"Energy!I18","v":0},{"$f":"Energy!I19","v":0},{"$f":"Energy!J5","v":0},{"$f":"Energy!J6","v":0},{"$f":"Energy!J7","v":0},{"$f":"Energy!J8","v":0},{"$f":"Energy!J9","v":0},{"$f":"Energy!J10","v":0},{"$f":"Energy!J11","v":0},{"$f":"Energy!J12","v":0},{"$f":"Energy!J13","v":0},{"$f":"Energy!J14","v":0},{"$f":"Energy!J15","v":0},{"$f":"Energy!J16","v":0},{"$f":"Energy!J17","v":0},{"$f":"Energy!J18","v":0},{"$f":"Energy!J19","v":0},{"$f":"Energy!K5","v":0},{"$f":"Energy!K6","v":0},{"$f":"Energy!K7","v":0},{"$f":"Energy!K8","v":0},{"$f":"Energy!K9","v":0},{"$f":"Energy!K10","v":0},{"$f":"Energy!K11","v":0},{"$f":"Energy!K12","v":0},{"$f":"Energy!K13","v":0},{"$f":"Energy!K14","v":0},{"$f":"Energy!K15","v":0},{"$f":"Energy!K16","v":0},{"$f":"Energy!K17","v":0},{"$f":"Energy!K18","v":0},{"$f":"Energy!K19","v":0},{"$f":"Energy!L5","v":0},{"$f":"Energy!L6","v":0},{"$f":"Energy!L7","v":0},{"$f":"Energy!L8","v":0},{"$f":"Energy!L9","v":0},{"$f":"Energy!L10","v":0},{"$f":"Energy!L11","v":0},{"$f":"Energy!L12","v":0},{"$f":"Energy!L13","v":0},{"$f":"Energy!L14","v":0},{"$f":"Energy!L15","v":0},{"$f":"Energy!L16","v":0},{"$f":"Energy!L17","v":0},{"$f":"Energy!L18","v":0},{"$f":"Energy!L19","v":0},{"$f":"Energy!M5","v":0},{"$f":"Energy!M6","v":0},{"$f":"Energy!M7","v":0},{"$f":"Energy!M8","v":0},{"$f":"Energy!M9","v":0},{"$f":"Energy!M10","v":0},{"$f":"Energy!M11","v":0},{"$f":"Energy!M12","v":0},{"$f":"Energy!M13","v":0},{"$f":"Energy!M14","v":0},{"$f":"Energy!M15","v":0},{"$f":"Energy!M16","v":0},{"$f":"Energy!M17","v":0},{"$f":"Energy!M18","v":0},{"$f":"Energy!M19","v":0},{"$f":"Energy!N5","v":0},{"$f":"Energy!N6","v":0},{"$f":"Energy!N7","v":0},{"$f":"Energy!N8","v":0},{"$f":"Energy!N9","v":0},{"$f":"Energy!N10","v":0},{"$f":"Energy!N11","v":0},{"$f":"Energy!N12","v":0},{"$f":"Energy!N13","v":0},{"$f":"Energy!N14","v":0},{"$f":"Energy!N15","v":0},{"$f":"Energy!N16","v":0},{"$f":"Energy!N17","v":0},{"$f":"Energy!N18","v":0},{"$f":"Energy!N19","v":0},{"$f":"Energy!O5","v":0},{"$f":"Energy!O6","v":0},{"$f":"Energy!O7","v":0},{"$f":"Energy!O8","v":0},{"$f":"Energy!O9","v":0},{"$f":"Energy!O10","v":0},{"$f":"Energy!O11","v":0},{"$f":"Energy!O12","v":0},{"$f":"Energy!O13","v":0},{"$f":"Energy!O14","v":0},{"$f":"Energy!O15","v":0},{"$f":"Energy!O16","v":0},{"$f":"Energy!O17","v":0},{"$f":"Energy!O18","v":0},{"$f":"Energy!O19","v":0},{"$f":"Energy!P5","v":0},{"$f":"Energy!P6","v":0},{"$f":"Energy!P7","v":0},{"$f":"Energy!P8","v":0},{"$f":"Energy!P9","v":0},{"$f":"Energy!P10","v":0},{"$f":"Energy!P11","v":0},{"$f":"Energy!P12","v":0},{"$f":"Energy!P13","v":0},{"$f":"Energy!P14","v":0},{"$f":"Energy!P15","v":0},{"$f":"Energy!P16","v":0},{"$f":"Energy!P17","v":0},{"$f":"Energy!P18","v":0},{"$f":"Energy!P19","v":0},{"$f":"Energy!T5","v":0},{"$f":"Energy!T6","v":0},{"$f":"Energy!T7","v":0},{"$f":"Energy!T8","v":0},{"$f":"Energy!T9","v":0},"€/ kWh",{"$f":"Energy!T10","v":0},{"$f":"Energy!T11","v":0},{"$f":"Energy!T12","v":0},{"$f":"Energy!T13","v":0},{"$f":"Energy!T14","v":0},{"$f":"Energy!T15","v":0},{"$f":"Energy!T16","v":0},{"$f":"Energy!T17","v":0},{"$f":"Energy!T18","v":0},{"$f":"Energy!U5","v":0},{"$f":"Energy!U5","v":0},{"$f":"Energy!U6","v":0},{"$f":"Energy!U7","v":0},{"$f":"Energy!U8","v":0},{"$f":"Energy!U9","v":0},{"$f":"Energy!U10","v":0},{"$f":"Energy!U11","v":0},{"$f":"Energy!U12","v":0},{"$f":"Energy!U13","v":0},{"$f":"Energy!U14","v":0},{"$f":"Energy!U15","v":0},{"$f":"Energy!U16","v":0},{"$f":"Energy!U17","v":0},{"$f":"Energy!U18","v":0},{"$f":"Energy!U19","v":0},{"$f":"Energy!V5","v":0},{"$f":"Energy!V6","v":0},{"$f":"Energy!V7","v":0},{"$f":"Energy!V8","v":0},{"$f":"Energy!V9","v":0},{"$f":"Energy!V10","v":0},{"$f":"Energy!V11","v":0},{"$f":"Energy!V12","v":0},{"$f":"Energy!V13","v":0},{"$f":"Energy!V14","v":0},{"$f":"Energy!V15","v":0},{"$f":"Energy!V16","v":0},{"$f":"Energy!V17","v":0},{"$f":"Energy!V18","v":0},{"$f":"Energy!V19","v":0},{"$f":"Energy!W5","v":0},{"$f":"Energy!W6","v":0},{"$f":"Energy!W7","v":0},{"$f":"Energy!W8","v":0},{"$f":"Energy!W9","v":0},{"$f":"Energy!W10","v":0},{"$f":"Energy!W11","v":0},{"$f":"Energy!W12","v":0},{"$f":"Energy!W13","v":0},{"$f":"Energy!W14","v":0},{"$f":"Energy!W15","v":0},{"$f":"Energy!W16","v":0},{"$f":"Energy!W17","v":0},{"$f":"Energy!W18","v":0},{"$f":"Energy!W19","v":0},{"$f":"Energy!X5","v":0},{"$f":"Energy!X6","v":0},{"$f":"Energy!X7","v":0},{"$f":"Energy!X8","v":0},{"$f":"Energy!X9","v":0},{"$f":"Energy!X10","v":0},{"$f":"Energy!X11","v":0},{"$f":"Energy!X12","v":0},{"$f":"Energy!X13","v":0},{"$f":"Energy!X14","v":0},{"$f":"Energy!X15","v":0},{"$f":"Energy!X16","v":0},{"$f":"Energy!X17","v":0},{"$f":"Energy!X18","v":0},{"$f":"Energy!X19","v":0},{"$f":"Energy!Y5","v":0},{"$f":"Energy!Y6","v":0},{"$f":"Energy!Y7","v":0},{"$f":"Energy!Y8","v":0},{"$f":"Energy!Y9","v":0},{"$f":"Energy!Y10","v":0},{"$f":"Energy!Y11","v":0},{"$f":"Energy!Y12","v":0},{"$f":"Energy!Y13","v":0},{"$f":"Energy!Y14","v":0},{"$f":"Energy!Y15","v":0},{"$f":"Energy!Y16","v":0},{"$f":"Energy!Y17","v":0},{"$f":"Energy!Y18","v":0},{"$f":"Energy!Y19","v":0},{"$f":"Energy!Z5","v":0},{"$f":"Energy!Z6","v":0},{"$f":"Energy!Z7","v":0},{"$f":"Energy!Z8","v":0},{"$f":"Energy!Z9","v":0},{"$f":"Energy!Z10","v":0},{"$f":"Energy!Z11","v":0},{"$f":"Energy!Z12","v":0},{"$f":"Energy!Z13","v":0},{"$f":"Energy!Z14","v":0},{"$f":"Energy!Z15","v":0},{"$f":"Energy!Z16","v":0},{"$f":"Energy!Z17","v":0},{"$f":"Energy!Z18","v":0},{"$f":"Energy!Z19","v":0},{"$f":"Energy!AA5","v":0},{"$f":"Energy!AA6","v":0},{"$f":"Energy!AA7","v":0},{"$f":"Energy!AA8","v":0},{"$f":"Energy!AA9","v":0},{"$f":"Energy!AA10","v":0},{"$f":"Energy!AA11","v":0},{"$f":"Energy!AA12","v":0},{"$f":"Energy!AA13","v":0},{"$f":"Energy!AA14","v":0},{"$f":"Energy!AA15","v":0},{"$f":"Energy!AA16","v":0},{"$f":"Energy!AA17","v":0},{"$f":"Energy!AA18","v":0},{"$f":"Energy!AA19","v":0},{"$f":"Energy!AB5","v":0},{"$f":"Energy!AB6","v":0},{"$f":"Energy!AB7","v":0},{"$f":"Energy!AB8","v":0},{"$f":"Energy!AB9","v":0},{"$f":"Energy!AB10","v":0},{"$f":"Energy!AB11","v":0},{"$f":"Energy!AB12","v":0},{"$f":"Energy!AB13","v":0},{"$f":"Energy!AB14","v":0},{"$f":"Energy!AB15","v":0},{"$f":"Energy!AB16","v":0},{"$f":"Energy!AB17","v":0},{"$f":"Energy!AB18","v":0},{"$f":"Energy!AB19","v":0},{"$f":"Energy!AC5","v":0},{"$f":"Energy!AC6","v":0},{"$f":"Energy!AC7","v":0},{"$f":"Energy!AC8","v":0},{"$f":"Energy!AC9","v":0},{"$f":"Energy!AC10","v":0},{"$f":"Energy!AC11","v":0},{"$f":"Energy!AC12","v":0},{"$f":"Energy!AC13","v":0},{"$f":"Energy!AC14","v":0},{"$f":"Energy!AC15","v":0},{"$f":"Energy!AC16","v":0},{"$f":"Energy!AC17","v":0},{"$f":"Energy!AC18","v":0},{"$f":"Energy!AC19","v":0},{"$f":"Energy!AD5","v":0},{"$f":"Energy!AD6","v":0},{"$f":"Energy!AD7","v":0},{"$f":"Energy!AD8","v":0},{"$f":"Energy!AD9","v":0},{"$f":"Energy!AD10","v":0},{"$f":"Energy!AD11","v":0},{"$f":"Energy!AD12","v":0},{"$f":"Energy!AD13","v":0},{"$f":"Energy!AD14","v":0},{"$f":"Energy!AD15","v":0},{"$f":"Energy!AD16","v":0},{"$f":"Energy!AD17","v":0},{"$f":"Energy!AD18","v":0},{"$f":"Energy!AD19","v":0},{"$f":"Energy!AE5","v":0},{"$f":"Energy!AE6","v":0},{"$f":"Energy!AE7","v":0},{"$f":"Energy!AE8","v":0},{"$f":"Energy!AE9","v":0},{"$f":"Energy!AE10","v":0},{"$f":"Energy!AE11","v":0},{"$f":"Energy!AE12","v":0},{"$f":"Energy!AE13","v":0},{"$f":"Energy!AE14","v":0},{"$f":"Energy!AE15","v":0},{"$f":"Energy!AE16","v":0},{"$f":"Energy!AE17","v":0},{"$f":"Energy!AE18","v":0},{"$f":"Energy!AE19","v":0},{"$f":"IFERROR(Energy!AF5,0)","v":0},{"$f":"Energy!AF6","v":0},{"$f":"Energy!AF7","v":0},{"$f":"Energy!AF8","v":0},{"$f":"Energy!AF9","v":0},{"$f":"IFERROR(Energy!AF10,0)","v":""},{"$f":"IFERROR(Energy!AF11,\"\")","v":""},{"$f":"IFERROR(Energy!AF12,\"\")","v":""},{"$f":"IFERROR(Energy!AF13,\"\")","v":""},{"$f":"IFERROR(Energy!AF14,\"\")","v":""},{"$f":"IFERROR(Energy!AF15,\"\")","v":""},{"$f":"IFERROR(Energy!AF16,\"\")","v":""},{"$f":"IFERROR(Energy!AF17,\"\")","v":""},{"$f":"IFERROR(Energy!AF18,\"\")","v":""},{"$f":"IFERROR(Energy!AF19,\"\")","v":""},{"$f":"Energy!AI5","v":0},{"$f":"Energy!AI6","v":0},{"$f":"Energy!AI7","v":0},{"$f":"ANK3","v":0},{"$f":"Energy!AI9","v":0},{"$f":"Energy!AI10","v":0},{"$f":"Energy!AI11","v":0},{"$f":"Energy!AI12","v":0},{"$f":"Energy!AI13","v":0},{"$f":"Energy!AI14","v":0},{"$f":"Energy!AI15","v":0},{"$f":"Energy!AJ5","v":0},{"$f":"Energy!AJ6","v":0},{"$f":"Energy!AJ7","v":0},{"$f":"Energy!AJ8","v":0},{"$f":"Energy!AJ9","v":0},{"$f":"Energy!AJ10","v":0},{"$f":"Energy!AJ11","v":0},{"$f":"Energy!AJ12","v":0},{"$f":"Energy!AJ13","v":0},{"$f":"Energy!AJ14","v":0},{"$f":"Energy!AJ15","v":0},{"$f":"Energy!AK5","v":0},{"$f":"Energy!AK6","v":0},{"$f":"Energy!AK7","v":0},{"$f":"Energy!AK8","v":0},{"$f":"Energy!AK9","v":0},{"$f":"Energy!AK10","v":0},{"$f":"Energy!AK11","v":0},{"$f":"Energy!AK12","v":0},{"$f":"Energy!AK13","v":0},{"$f":"Energy!AK14","v":0},{"$f":"Energy!AK15","v":0},{"$f":"Energy!AL5","v":0},{"$f":"Energy!AL6","v":0},{"$f":"Energy!AL7","v":0},{"$f":"Energy!AL8","v":0},{"$f":"Energy!AL9","v":0},{"$f":"Energy!AL10","v":0},{"$f":"Energy!AL11","v":0},{"$f":"Energy!AL12","v":0},{"$f":"Energy!AL13","v":0},{"$f":"Energy!AL14","v":0},{"$f":"Energy!AL15","v":0},{"$f":"Energy!AM5","v":0},{"$f":"Energy!AM6","v":0},{"$f":"Energy!AM7","v":0},{"$f":"Energy!AM8","v":0},{"$f":"Energy!AM9","v":0},{"$f":"Energy!AM10","v":0},{"$f":"Energy!AM11","v":0},{"$f":"Energy!AM12","v":0},{"$f":"Energy!AM13","v":0},{"$f":"Energy!AM14","v":0},{"$f":"Energy!AM15","v":0},{"$f":"Energy!AN5","v":0},{"$f":"Energy!AN6","v":0},{"$f":"Energy!AN7","v":0},{"$f":"Energy!AN8","v":0},{"$f":"Energy!AN9","v":0},{"$f":"Energy!AN10","v":0},{"$f":"Energy!AN11","v":0},{"$f":"Energy!AN12","v":0},{"$f":"Energy!AN13","v":0},{"$f":"Energy!AN14","v":0},{"$f":"Energy!AN15","v":0},{"$f":"Energy!AO5","v":0},{"$f":"Energy!AO6","v":0},{"$f":"Energy!AO7","v":0},{"$f":"Energy!AO8","v":0},{"$f":"Energy!AO9","v":0},{"$f":"Energy!AO10","v":0},{"$f":"Energy!AO11","v":0},{"$f":"Energy!AO12","v":0},{"$f":"Energy!AO13","v":0},{"$f":"Energy!AO14","v":0},{"$f":"Energy!AO15","v":0},{"$f":"Energy!AP5","v":0},{"$f":"Energy!AP6","v":0},{"$f":"Energy!AP7","v":0},{"$f":"Energy!AP8","v":0},{"$f":"Energy!AP9","v":0},{"$f":"Energy!AP10","v":0},{"$f":"Energy!AP11","v":0},{"$f":"Energy!AP12","v":0},{"$f":"Energy!AP13","v":0},{"$f":"Energy!AP14","v":0},{"$f":"Energy!AP15","v":0},{"$f":"Energy!AQ5","v":0},{"$f":"Energy!AQ6","v":0},{"$f":"Energy!AQ7","v":0},{"$f":"Energy!AQ8","v":0},{"$f":"Energy!AQ9","v":0},{"$f":"Energy!AQ10","v":0},{"$f":"Energy!AQ11","v":0},{"$f":"Energy!AQ12","v":0},{"$f":"Energy!AQ13","v":0},{"$f":"Energy!AQ14","v":0},{"$f":"Energy!AQ15","v":0},{"$f":"Energy!AR5","v":0},{"$f":"Energy!AR6","v":0},{"$f":"Energy!AR7","v":0},{"$f":"Energy!AR8","v":0},{"$f":"Energy!AR9","v":0},{"$f":"Energy!AR10","v":0},{"$f":"Energy!AR11","v":0},{"$f":"Energy!AR12","v":0},{"$f":"Energy!AR13","v":0},{"$f":"Energy!AR14","v":0},{"$f":"Energy!AR15","v":0},{"$f":"Energy!AS5","v":0},{"$f":"Energy!AS6","v":0},{"$f":"Energy!AS7","v":0},{"$f":"Energy!AS8","v":0},{"$f":"Energy!AS9","v":0},{"$f":"Energy!AS10","v":0},{"$f":"Energy!AS11","v":0},{"$f":"Energy!AS12","v":0},{"$f":"Energy!AS13","v":0},{"$f":"Energy!AS14","v":0},{"$f":"Energy!AS15","v":0},{"$f":"Energy!AT5","v":0},{"$f":"Energy!AT6","v":0},{"$f":"Energy!AT7","v":0},{"$f":"Energy!AT8","v":0},{"$f":"Energy!AT9","v":0},{"$f":"Energy!AT10","v":0},{"$f":"Energy!AT11","v":0},{"$f":"Energy!AT12","v":0},{"$f":"Energy!AT13","v":0},{"$f":"Energy!AT14","v":0},{"$f":"Energy!AT15","v":0},{"$f":"Energy!AU5","v":0},{"$f":"Energy!AU6","v":0},{"$f":"Energy!AU7","v":0},{"$f":"Energy!AU8","v":0},{"$f":"Energy!AU9","v":0},{"$f":"Energy!AU10","v":0},{"$f":"Energy!AU11","v":0},{"$f":"Energy!AU12","v":0},{"$f":"Energy!AU13","v":0},{"$f":"Energy!AU14","v":0},{"$f":"Energy!AU15","v":0},{"$f":"Energy!AI16","v":0},{"$f":"Energy!AJ16","v":0},{"$f":"Energy!AK16","v":0},{"$f":"Energy!AL16","v":0},{"$f":"Energy!AM16","v":0},{"$f":"Energy!AN16","v":0},{"$f":"Energy!AO16","v":0},{"$f":"Energy!AP16","v":0},{"$f":"Energy!AQ16","v":0},{"$f":"Energy!AR16","v":0},{"$f":"Energy!AS16","v":0},{"$f":"Energy!AT16","v":0},{"$f":"Energy!AU16","v":0},{"$f":"Energy!C22","v":0},{"$f":"Energy!C23","v":0},{"$f":"Energy!C24","v":0},{"$f":"Energy!C27","v":0},{"$f":"Energy!D27","v":0},{"$f":"Energy!C28","v":0},{"$f":"Energy!D28","v":0},{"$f":"Energy!C29","v":0},{"$f":"Energy!D29","v":0},{"$f":"Energy!C30","v":0},{"$f":"Energy!D30","v":0},{"$f":"Energy!G28","v":0},{"$f":"Energy!G29","v":0},{"$f":"Energy!G30","v":0},{"$f":"Energy!G31","v":0},{"$f":"Energy!H28","v":0},{"$f":"Energy!H29","v":0},{"$f":"Energy!H30","v":0},{"$f":"Energy!H31","v":0},{"$f":"Energy!I28","v":0},{"$f":"Energy!I29","v":0},{"$f":"Energy!I30","v":0},{"$f":"Energy!I31","v":0},{"$f":"Energy!C33","v":0},{"$f":"Energy!C34","v":0},{"$f":"Energy!C35","v":0},{"$f":"Energy!C36","v":0},{"$f":"Energy!C40","v":0},{"$f":"Energy!H40","v":0},{"$f":"Energy!C43","v":0},{"$f":"Energy!C44","v":0},{"$f":"Energy!C45","v":0},{"$f":"'Heating and cooling'!C7","v":0},{"$f":"'Heating and cooling'!C8","v":0},{"$f":"'Heating and cooling'!D7","v":0},{"$f":"'Heating and cooling'!D8","v":0},{"$f":"'Heating and cooling'!E7","v":0},{"$f":"'Heating and cooling'!E8","v":0},{"$f":"'Heating and cooling'!F7","v":0},{"$f":"'Heating and cooling'!F8","v":0},{"$f":"'Heating and cooling'!G7","v":0},{"$f":"'Heating and cooling'!G8","v":0},{"$f":"'Heating and cooling'!H7","v":0},{"$f":"'Heating and cooling'!H8","v":0},{"$f":"'Heating and cooling'!I7","v":0},{"$f":"'Heating and cooling'!I8","v":0},{"$f":"'Heating and cooling'!J7","v":0},{"$f":"'Heating and cooling'!J8","v":0},{"$f":"'Heating and cooling'!K7","v":0},{"$f":"'Heating and cooling'!K8","v":0},{"$f":"'Heating and cooling'!L7","v":0},{"$f":"'Heating and cooling'!L8","v":0},{"$f":"'Heating and cooling'!M7","v":0},{"$f":"'Heating and cooling'!M8","v":0},{"$f":"'Heating and cooling'!N7","v":0},{"$f":"'Heating and cooling'!N8","v":0},{"$f":"'Heating and cooling'!C11","v":0},{"$f":"'Heating and cooling'!C12","v":0},{"$f":"'Heating and cooling'!C13","v":0},{"$f":"'Heating and cooling'!C14","v":0},{"$f":"'Heating and cooling'!C15","v":0},{"$f":"'Heating and cooling'!C16","v":0},{"$f":"'Heating and cooling'!C17","v":0},{"$f":"'Heating and cooling'!C18","v":0},{"$f":"'Heating and cooling'!C19","v":0},{"$f":"'Heating and cooling'!C20","v":0},{"$f":"'Heating and cooling'!C21","v":0},{"$f":"'Heating and cooling'!C22","v":0},{"$f":"'Heating and cooling'!D11","v":0},{"$f":"'Heating and cooling'!D15","v":0},{"$f":"'Heating and cooling'!D16","v":0},{"$f":"'Heating and cooling'!D17","v":0},{"$f":"'Heating and cooling'!D18","v":0},{"$f":"'Heating and cooling'!D19","v":0},{"$f":"'Heating and cooling'!D20","v":0},{"$f":"'Heating and cooling'!D21","v":0},{"$f":"'Heating and cooling'!D22","v":0},{"$f":"'Heating and cooling'!E11","v":0},{"$f":"'Heating and cooling'!E15","v":0},{"$f":"'Heating and cooling'!E16","v":0},{"$f":"'Heating and cooling'!E17","v":0},{"$f":"'Heating and cooling'!E18","v":0},{"$f":"'Heating and cooling'!E19","v":0},{"$f":"'Heating and cooling'!E20","v":0},{"$f":"'Heating and cooling'!E21","v":0},{"$f":"'Heating and cooling'!E22","v":0},{"$f":"'Heating and cooling'!F11","v":0},{"$f":"'Heating and cooling'!F15","v":0},{"$f":"'Heating and cooling'!F16","v":0},{"$f":"'Heating and cooling'!F17","v":0},{"$f":"'Heating and cooling'!F18","v":0},{"$f":"'Heating and cooling'!F19","v":0},{"$f":"'Heating and cooling'!F20","v":0},{"$f":"'Heating and cooling'!F21","v":0},{"$f":"'Heating and cooling'!F22","v":0},{"$f":"'Heating and cooling'!G11","v":0},{"$f":"'Heating and cooling'!G15","v":0},{"$f":"'Heating and cooling'!G16","v":0},{"$f":"'Heating and cooling'!G17","v":0},{"$f":"'Heating and cooling'!G18","v":0},{"$f":"'Heating and cooling'!G19","v":0},{"$f":"'Heating and cooling'!G20","v":0},{"$f":"'Heating and cooling'!G21","v":0},{"$f":"'Heating and cooling'!G22","v":0},{"$f":"'Heating and cooling'!C25","v":0},{"$f":"'Heating and cooling'!C26","v":0},{"$f":"'Heating and cooling'!C27","v":0},{"$f":"'Heating and cooling'!C28","v":0},{"$f":"'Heating and cooling'!C29","v":0},{"$f":"'Heating and cooling'!C30","v":0},{"$f":"'Heating and cooling'!C31","v":0},{"$f":"'Heating and cooling'!C32","v":0},{"$f":"'Heating and cooling'!C33","v":0},{"$f":"'Heating and cooling'!C34","v":0},{"$f":"'Heating and cooling'!D25","v":0},{"$f":"'Heating and cooling'!D26","v":0},{"$f":"'Heating and cooling'!D27","v":0},{"$f":"'Heating and cooling'!D28","v":0},{"$f":"'Heating and cooling'!D29","v":0},{"$f":"'Heating and cooling'!D30","v":0},{"$f":"'Heating and cooling'!D31","v":0},{"$f":"'Heating and cooling'!D32","v":0},{"$f":"'Heating and cooling'!D33","v":0},{"$f":"'Heating and cooling'!D34","v":0},{"$f":"'Heating and cooling'!E25","v":0},{"$f":"'Heating and cooling'!E26","v":0},{"$f":"'Heating and cooling'!E27","v":0},{"$f":"'Heating and cooling'!E28","v":0},{"$f":"'Heating and cooling'!E29","v":0},{"$f":"'Heating and cooling'!E30","v":0},{"$f":"'Heating and cooling'!E31","v":0},{"$f":"'Heating and cooling'!E32","v":0},{"$f":"'Heating and cooling'!E33","v":0},{"$f":"'Heating and cooling'!E34","v":0},{"$f":"'Heating and cooling'!F25","v":0},{"$f":"'Heating and cooling'!F26","v":0},{"$f":"'Heating and cooling'!F27","v":0},{"$f":"'Heating and cooling'!F28","v":0},{"$f":"'Heating and cooling'!F29","v":0},{"$f":"'Heating and cooling'!F30","v":0},{"$f":"'Heating and cooling'!F31","v":0},{"$f":"'Heating and cooling'!F32","v":0},{"$f":"'Heating and cooling'!F33","v":0},{"$f":"'Heating and cooling'!F34","v":0},{"$f":"'Heating and cooling'!G25","v":0},{"$f":"'Heating and cooling'!G26","v":0},{"$f":"'Heating and cooling'!G27","v":0},{"$f":"'Heating and cooling'!G28","v":0},{"$f":"'Heating and cooling'!G29","v":0},{"$f":"'Heating and cooling'!G30","v":0},{"$f":"'Heating and cooling'!G31","v":0},{"$f":"'Heating and cooling'!G32","v":0},{"$f":"'Heating and cooling'!G33","v":0},{"$f":"'Heating and cooling'!G34","v":0},{"$f":"'Heating and cooling'!H25","v":0},{"$f":"'Heating and cooling'!H26","v":0},{"$f":"'Heating and cooling'!H27","v":0},{"$f":"'Heating and cooling'!H28","v":0},{"$f":"'Heating and cooling'!H29","v":0},{"$f":"'Heating and cooling'!H30","v":0},{"$f":"'Heating and cooling'!H31","v":0},{"$f":"'Heating and cooling'!H32","v":0},{"$f":"'Heating and cooling'!H33","v":0},{"$f":"'Heating and cooling'!H34","v":0},{"$f":"'Heating and cooling'!C37","v":0},{"$f":"'Heating and cooling'!C38","v":0},{"$f":"'Heating and cooling'!C39","v":0},{"$f":"'Heating and cooling'!C40","v":0},{"$f":"'Heating and cooling'!C41","v":0},{"$f":"'Heating and cooling'!C42","v":0},{"$f":"'Heating and cooling'!D37","v":0},{"$f":"'Heating and cooling'!D38","v":0},{"$f":"'Heating and cooling'!D39","v":0},{"$f":"'Heating and cooling'!D40","v":0},{"$f":"'Heating and cooling'!D41","v":0},{"$f":"'Heating and cooling'!D42","v":0},{"$f":"'Heating and cooling'!E37","v":0},{"$f":"'Heating and cooling'!E38","v":0},{"$f":"'Heating and cooling'!E39","v":0},{"$f":"'Heating and cooling'!E40","v":0},{"$f":"'Heating and cooling'!E41","v":0},{"$f":"'Heating and cooling'!E42","v":0},{"$f":"'Heating and cooling'!C45","v":0},{"$f":"'Heating and cooling'!C46","v":0},{"$f":"'Heating and cooling'!C47","v":0},{"$f":"'Heating and cooling'!C50","v":0},{"$f":"'Heating and cooling'!C51","v":0},{"$f":"'Heating and cooling'!C52","v":0},{"$f":"'Heating and cooling'!C53","v":0},{"$f":"'Heating and cooling'!C54","v":0},{"$f":"'Heating and cooling'!C55","v":0},{"$f":"'Heating and cooling'!C56","v":0},{"$f":"'Heating and cooling'!D50","v":0},{"$f":"'Heating and cooling'!D51","v":0},{"$f":"'Heating and cooling'!D52","v":0},{"$f":"'Heating and cooling'!D53","v":0},{"$f":"'Heating and cooling'!D54","v":0},{"$f":"'Heating and cooling'!D55","v":0},{"$f":"'Heating and cooling'!E50","v":0},{"$f":"'Heating and cooling'!E50","v":0},{"$f":"'Heating and cooling'!E51","v":0},{"$f":"'Heating and cooling'!E52","v":0},{"$f":"'Heating and cooling'!E53","v":0},{"$f":"'Heating and cooling'!E54","v":0},{"$f":"'Heating and cooling'!E55","v":0},{"$f":"'Heating and cooling'!E56","v":0},{"$f":"'Heating and cooling'!F50","v":0},{"$f":"'Heating and cooling'!F51","v":0},{"$f":"'Heating and cooling'!F52","v":0},{"$f":"'Heating and cooling'!F53","v":0},{"$f":"'Heating and cooling'!F54","v":0},{"$f":"'Heating and cooling'!F55","v":0},{"$f":"'Heating and cooling'!F56","v":0},{"$f":"'Heating and cooling'!G50","v":0},{"$f":"'Heating and cooling'!G51","v":0},{"$f":"'Heating and cooling'!G52","v":0},{"$f":"'Heating and cooling'!G53","v":0},{"$f":"'Heating and cooling'!G54","v":0},{"$f":"'Heating and cooling'!G55","v":0},{"$f":"'Heating and cooling'!G56","v":0},{"$f":"'Heating and cooling'!H53","v":0},{"$f":"'Heating and cooling'!H54","v":0},{"$f":"'Heating and cooling'!H55","v":0},{"$f":"'Heating and cooling'!H56","v":0},{"$f":"'Heating and cooling'!C59","v":0},{"$f":"'Heating and cooling'!C60","v":0},null,{"$f":"'Heating and cooling'!C63","v":0},{"$f":"'Heating and cooling'!C64","v":0},{"$f":"'Heating and cooling'!C65","v":0},{"$f":"'Heating and cooling'!C66","v":0},{"$f":"'Heating and cooling'!C67","v":0},{"$f":"'Heating and cooling'!C68","v":0},{"$f":"'Heating and cooling'!C69","v":0},{"$f":"'Heating and cooling'!C70","v":0},{"$f":"'Heating and cooling'!D63","v":0},{"$f":"'Heating and cooling'!D64","v":0},{"$f":"'Heating and cooling'!D65","v":0},{"$f":"'Heating and cooling'!D66","v":0},{"$f":"'Heating and cooling'!D67","v":0},{"$f":"'Heating and cooling'!D68","v":0},{"$f":"'Heating and cooling'!D69","v":0},{"$f":"'Heating and cooling'!D70","v":0},{"$f":"'Heating and cooling'!E63","v":0},{"$f":"'Heating and cooling'!E64","v":0},{"$f":"'Heating and cooling'!E65","v":0},{"$f":"'Heating and cooling'!E66","v":0},{"$f":"'Heating and cooling'!E67","v":0},{"$f":"'Heating and cooling'!E68","v":0},{"$f":"'Heating and cooling'!E69","v":0},{"$f":"'Heating and cooling'!E70","v":0},{"$f":"'Heating and cooling'!F63","v":0},{"$f":"'Heating and cooling'!F64","v":0},{"$f":"'Heating and cooling'!F65","v":0},{"$f":"'Heating and cooling'!F66","v":0},{"$f":"'Heating and cooling'!F67","v":0},{"$f":"'Heating and cooling'!F68","v":0},{"$f":"'Heating and cooling'!F69","v":0},{"$f":"'Heating and cooling'!F70","v":0},{"$f":"'Heating and cooling'!G63","v":0},{"$f":"'Heating and cooling'!G64","v":0},{"$f":"'Heating and cooling'!G65","v":0},{"$f":"'Heating and cooling'!G66","v":0},{"$f":"'Heating and cooling'!G67","v":0},{"$f":"'Heating and cooling'!G68","v":0},{"$f":"'Heating and cooling'!G69","v":0},{"$f":"'Heating and cooling'!G70","v":0},{"$f":"'Heating and cooling'!H63","v":0},{"$f":"'Heating and cooling'!H64","v":0},{"$f":"'Heating and cooling'!H65","v":0},{"$f":"'Heating and cooling'!H66","v":0},{"$f":"'Heating and cooling'!H67","v":0},{"$f":"'Heating and cooling'!H68","v":0},{"$f":"'Heating and cooling'!H69","v":0},{"$f":"'Heating and cooling'!H70","v":0},{"$f":"'Heating and cooling'!C73","v":0},{"$f":"'Heating and cooling'!C74","v":0},{"$f":"'Heating and cooling'!C77","v":0},{"$f":"'Heating and cooling'!C78","v":0},{"$f":"'Heating and cooling'!C79","v":0},{"$f":"'Heating and cooling'!D77","v":0},{"$f":"'Heating and cooling'!D78","v":0},{"$f":"'Heating and cooling'!D79","v":0},{"$f":"'Appliances and Lighting'!C3","v":0},{"$f":"'Appliances and Lighting'!C4","v":0},{"$f":"'Appliances and Lighting'!C5","v":0},{"$f":"'Appliances and Lighting'!C6","v":0},{"$f":"'Appliances and Lighting'!C7","v":0},{"$f":"'Appliances and Lighting'!C8","v":0},{"$f":"'Appliances and Lighting'!C9","v":0},{"$f":"'Appliances and Lighting'!C19","v":0},{"$f":"'Appliances and Lighting'!C10","v":0},{"$f":"'Appliances and Lighting'!C11","v":0},{"$f":"'Appliances and Lighting'!C12","v":0},{"$f":"'Appliances and Lighting'!C13","v":0},{"$f":"'Appliances and Lighting'!C14","v":0},{"$f":"'Appliances and Lighting'!C15","v":0},{"$f":"'Appliances and Lighting'!D3","v":0},{"$f":"'Appliances and Lighting'!D4","v":0},{"$f":"'Appliances and Lighting'!D5","v":0},{"$f":"'Appliances and Lighting'!D6","v":0},{"$f":"'Appliances and Lighting'!D7","v":0},{"$f":"'Appliances and Lighting'!D8","v":0},{"$f":"'Appliances and Lighting'!D9","v":0},{"$f":"'Appliances and Lighting'!D19","v":0},{"$f":"'Appliances and Lighting'!D10","v":0},{"$f":"'Appliances and Lighting'!D11","v":0},{"$f":"'Appliances and Lighting'!D12","v":0},{"$f":"'Appliances and Lighting'!D13","v":0},{"$f":"'Appliances and Lighting'!D14","v":0},{"$f":"'Appliances and Lighting'!D15","v":0},{"$f":"'Appliances and Lighting'!E3","v":0},{"$f":"'Appliances and Lighting'!E4","v":0},{"$f":"'Appliances and Lighting'!E5","v":0},{"$f":"'Appliances and Lighting'!E6","v":0},{"$f":"'Appliances and Lighting'!E7","v":0},{"$f":"'Appliances and Lighting'!E8","v":0},{"$f":"'Appliances and Lighting'!E9","v":0},{"$f":"'Appliances and Lighting'!E19","v":0},{"$f":"'Appliances and Lighting'!E10","v":0},{"$f":"'Appliances and Lighting'!E11","v":0},{"$f":"'Appliances and Lighting'!E12","v":0},{"$f":"'Appliances and Lighting'!E13","v":0},{"$f":"'Appliances and Lighting'!E14","v":0},{"$f":"'Appliances and Lighting'!E15","v":0},{"$f":"'Appliances and Lighting'!F3","v":0},{"$f":"'Appliances and Lighting'!F4","v":0},{"$f":"'Appliances and Lighting'!F5","v":0},{"$f":"'Appliances and Lighting'!F6","v":0},{"$f":"'Appliances and Lighting'!F7","v":0},{"$f":"'Appliances and Lighting'!F8","v":0},{"$f":"'Appliances and Lighting'!F9","v":0},{"$f":"'Appliances and Lighting'!F19","v":0},{"$f":"'Appliances and Lighting'!F10","v":0},{"$f":"'Appliances and Lighting'!F11","v":0},{"$f":"'Appliances and Lighting'!F12","v":0},{"$f":"'Appliances and Lighting'!F13","v":0},{"$f":"'Appliances and Lighting'!F14","v":0},{"$f":"'Appliances and Lighting'!F15","v":0},{"$f":"'Appliances and Lighting'!G3","v":0},{"$f":"'Appliances and Lighting'!G4","v":0},{"$f":"'Appliances and Lighting'!G5","v":0},{"$f":"'Appliances and Lighting'!G6","v":0},{"$f":"'Appliances and Lighting'!G7","v":0},{"$f":"'Appliances and Lighting'!G8","v":0},{"$f":"'Appliances and Lighting'!G9","v":0},{"$f":"'Appliances and Lighting'!G19","v":0},{"$f":"'Appliances and Lighting'!G10","v":0},{"$f":"'Appliances and Lighting'!G11","v":0},{"$f":"'Appliances and Lighting'!G12","v":0},{"$f":"'Appliances and Lighting'!G13","v":0},{"$f":"'Appliances and Lighting'!G14","v":0},{"$f":"'Appliances and Lighting'!G15","v":0},{"$f":"'Appliances and Lighting'!H13","v":0},{"$f":"'Appliances and Lighting'!H14","v":0},{"$f":"'Appliances and Lighting'!H15","v":0},{"$f":"'Appliances and Lighting'!H16","v":0},{"$f":"'Appliances and Lighting'!C22","v":0},{"$f":"'Appliances and Lighting'!C23","v":0},{"$f":"'Appliances and Lighting'!C24","v":0},{"$f":"'Appliances and Lighting'!C25","v":0},{"$f":"'Appliances and Lighting'!C26","v":0},{"$f":"'Appliances and Lighting'!D22","v":0},{"$f":"'Appliances and Lighting'!D23","v":0},{"$f":"'Appliances and Lighting'!D24","v":0},{"$f":"'Appliances and Lighting'!D25","v":0},{"$f":"'Appliances and Lighting'!D26","v":0},{"$f":"'Appliances and Lighting'!E22","v":0},{"$f":"'Appliances and Lighting'!E23","v":0},{"$f":"'Appliances and Lighting'!E24","v":0},{"$f":"'Appliances and Lighting'!E25","v":0},{"$f":"'Appliances and Lighting'!E26","v":0},{"$f":"'Appliances and Lighting'!G22","v":0},{"$f":"'Appliances and Lighting'!G23","v":0},{"$f":"'Appliances and Lighting'!G24","v":0},{"$f":"'Appliances and Lighting'!G25","v":0},{"$f":"'Appliances and Lighting'!G26","v":0},{"$f":"'Appliances and Lighting'!H22","v":0},{"$f":"'Appliances and Lighting'!H23","v":0},{"$f":"'Appliances and Lighting'!H24","v":0},{"$f":"'Appliances and Lighting'!H25","v":0},{"$f":"'Appliances and Lighting'!H26","v":0},{"$f":"Opinion!C4","v":0},{"$f":"Opinion!C3","v":0},{"$f":"Opinion!C5","v":0},null,{"$f":"Opinion!C7","v":0},{"$f":"Opinion!C8","v":0},{"$f":"Opinion!C9","v":0},{"$f":"Opinion!C16","v":0},{"$f":"Opinion!C17","v":0},{"$f":"Opinion!C18","v":0},{"$f":"Opinion!C22","v":0},{"$f":"Opinion!C23","v":0},{"$f":"Opinion!C24","v":0},{"$f":"Opinion!C25","v":0},{"$f":"Opinion!C29","v":0},{"$f":"Opinion!C30","v":0},{"$f":"Opinion!C31","v":0},{"$f":"Opinion!C32","v":0},null,{"$f":"'Savings Indicator'!D7","v":0},{"$f":"'Savings Indicator'!D8","v":0},{"$f":"'Savings Indicator'!D9","v":0},{"$f":"'Savings Indicator'!D10","v":0},{"$f":"'Savings Indicator'!D11","v":""},{"$f":"'Savings Indicator'!D12","v":"-"},{"$f":"'Savings Indicator'!D13","v":0},{"$f":"IFERROR('Savings Indicator'!D14,\"-\")","v":"-"},{"$f":"'Savings Indicator'!D15","v":0},{"$f":"'Savings Indicator'!D16","v":0},{"$f":"'Savings Indicator'!D17","v":"No"},{"$f":"IF('Savings Indicator'!D18=\"\",\"\",'Savings Indicator'!D18)","v":"00:00:00"},{"$f":"IF('Savings Indicator'!D19=\"\",\"\",'Savings Indicator'!D19)","v":"00:00:00"},{"$f":"IFERROR(IF(Statistics!I43>0.5,1,IF(Statistics!I43>0.35,2,IF(Statistics!I43>0.25,3,IF(Statistics!I43>0.1,4,1)))),\"-\")","v":"-"},{"$f":"'Savings Indicator'!D21","v":0},{"$f":"'Savings Indicator'!D22","v":0},{"$f":"'Savings Indicator'!D23","v":0},{"$f":"'Savings Indicator'!D26","v":0},{"$f":"'Savings Indicator'!D25","v":0},{"$f":"'Savings Indicator'!E25","v":0},{"$f":"'Savings Indicator'!D27","v":0},{"$f":"'Savings Indicator'!D28","v":0},{"$f":"'Savings Indicator'!D29","v":0},{"$f":"IFERROR('Savings Indicator'!H7:I7,\"\")","v":""},{"$f":"'Savings Indicator'!H9","v":0},{"$f":"'Savings Indicator'!H10","v":0},{"$f":"'Savings Indicator'!H11","v":0},{"$f":"'Savings Indicator'!H14","v":0},{"$f":"'Savings Indicator'!H13","v":0},{"$f":"'Savings Indicator'!I13","v":0},{"$f":"IFERROR('Savings Indicator'!H15:I15,0)","v":0},{"$f":"'Savings Indicator'!H16","v":0},{"$f":"'Savings Indicator'!H17","v":0},{"$f":"'Heating and cooling'!H11","v":0},{"$f":"'Heating and cooling'!I63","v":0},{"$f":"'Savings Indicator'!E21","v":0},{"$f":"'Savings Indicator'!E22","v":0},{"$f":"'Savings Indicator'!E23","v":0},{"$f":"'Savings Indicator'!I9","v":0},{"$f":"'Savings Indicator'!I10","v":0},{"$f":"'Savings Indicator'!I11","v":0},{"$f":"Opinion!C13","v":0},{"$f":"Opinion!C6","v":0}]

{"sheet":"Summary Results","index":9,"n_rows":0,"n_cols":0,"rows_kept":0,"cut":false,"hidden":false,"merged":[]}

{"sheet":"Optimal Power","index":10,"n_rows":8,"n_cols":12,"rows_kept":8,"cut":false,"hidden":false,"merged":[[7,1,7,5],[6,1,6,5]]}
[]
[]
[]
[null,"Actual Power",{"$f":"Energy!C29","v":0},"kW"]
[null,"Optimal Power",{"$f":"IF((SUM('Heating and cooling'!E19,'Heating and cooling'!E20,'Heating and cooling'!E21,'Heating and cooling'!E22,'Heating and cooling'!E25:E26,'Heating and cooling'!E31,'Heating and cooling'!E32,'Heating and cooling'!E33,'Heating and cooling'!E53:E56)+'Heating and cooling'!G65+(SUM('Appliances and Lighting'!F3:F9,'Appliances and Lighting'!F10:F15,'Appliances and Lighting'!G22:G26)/1000))*(0.2+(0.3*Family!F13))<E5,E5,(SUM('Heating and cooling'!E19,'Heating and cooling'!E20,'Heating and cooling'!E21,'Heating and cooling'!E22,'Heating and cooling'!E25:E26,'Heating and cooling'!E31,'Heating and cooling'!E32,'Heating and cooling'!E33,'Heating and cooling'!E53:E56)+IF('Heating and cooling'!E65=\"Yes\",0,'Heating and cooling'!G65)+(SUM('Appliances and Lighting'!F3:F9,'Appliances and Lighting'!F10:F15,'Appliances and Lighting'!G22:G26)/1000))*(0.2+(0.3*Family!F13)))","v":0},"kW",{"$f":"MAX('Heating and cooling'!E19,'Heating and cooling'!E20,'Heating and cooling'!E21,'Heating and cooling'!E22,'Heating and cooling'!E25,'Heating and cooling'!E26,'Heating and cooling'!E31,'Heating and cooling'!E50,'Heating and cooling'!E53,'Heating and cooling'!E54,'Heating and cooling'!E55,'Heating and cooling'!E56,(IF('Heating and cooling'!E65=\"Yes\",0,'Heating and cooling'!G65)),'Appliances and Lighting'!J3:J9,'Appliances and Lighting'!J10:J15,'Appliances and Lighting'!F22:F26)","v":0}]
[]
[null,"TIPS",null,null,null,null,"Annual Potential savings (€)","Potential investment","Payback","Type of measure","Price"]
[null,{"$f":"IF(C4>C5,\"Change your actual power for the optimal power\",\"\")","v":""},null,null,null,null,{"$f":"IF(B8<>\"\",(C4-C5)*(Energy!AU5/'Optimal Power'!C4),0)","v":0},{"$f":"IF(B8<>\"\",K8,0)","v":0},{"$f":"IFERROR(H8/G8,\"\")","v":""},{"$f":"IF(B8<>\"\",\"Low investment\",\"\")","v":""},10,"per change"]

{"sheet":"Heating","index":11,"n_rows":38,"n_cols":21,"rows_kept":38,"cut":false,"hidden":false,"merged":[[4,1,4,5],[3,1,3,5],[16,1,16,5],[6,1,6,5],[7,1,7,5],[8,1,8,5],[9,1,9,5],[15,1,15,5],[13,1,13,5],[21,1,21,5],[5,1,5,5],[18,1,18,5],[17,1,17,5],[19,1,19,5],[20,1,20,5],[14,1,14,5],[12,1,12,5],[11,1,11,5],[10,1,10,5]]}
[]
[]
[]
[null,"TIPS",null,null,null,null,"Potential savings (kWh)","Potential savings (€)","Potential savings (kCO2)","Potential investment","Payback","Type of measure","Price",null,null,null,"Potential savings (kWh)","Potential savings (€)","Potential savings (kCO2)","Potential investment"]
[null,{"$f":"IFERROR(IF(AND('Heating and cooling'!C15=\"Yes\",C24=\"Si\",OR(AND(C36<>\"Si\",C33<>\"Si\",C26=TRUE,C28=TRUE,C27=TRUE),AND(C36<>\"Si\",C33<>\"Sí\",C26=FALSE,C29=\"Altos\",C27=TRUE,C28=TRUE),AND(C33=\"Si\",OR('Heating and cooling'!G15<0.9,'Heating and cooling'!D15<2000)))),\"New natural gas boiler\",\"\"),\"\")","v":""},null,null,null,null,{"$f":"IFERROR(IF(AND(B5<>\"\",C38<1.1),(1-(C38/1.1))*'Excel de Apoyo'!Q4,0),0)","v":0},{"$f":"IFERROR((G5*IF(Heating!C34=\"Si\",'Excel de Apoyo'!P34,IF(OR(C32=\"Si\",Heating!C33=\"Si\"),Energy!AF5,IF(Heating!C35=\"Si\",'Excel de Apoyo'!P37,IF(Heating!C36=\"Si\",AVERAGE('Excel de Apoyo'!P35:P36),AVERAGE('Excel de Apoyo'!P38:P39))))))+(('Excel de Apoyo'!Q4-G5)*IF(B5<>\"\",(IF(Heating!C34=\"Si\",'Excel de Apoyo'!P34,IF(OR(C32=\"Si\",Heating!C33=\"Si\"),Energy!AF5,IF(Heating!C35=\"Si\",'Excel de Apoyo'!P37,IF(Heating!C36=\"Si\",AVERAGE('Excel de Apoyo'!P35:P36),AVERAGE('Excel de Apoyo'!P38:P39)))))-(IF('Excel de Apoyo'!P34>0,'Excel de Apoyo'!P34,0.08))),0)),0)","v":0},{"$f":"IF(B5<>\"\",IFERROR(G5*IF(Heating!C34=\"Si\",'Excel de Apoyo'!G8,IF(OR(C32=\"Si\",Heating!C33=\"Si\"),Energy!C24,IF(Heating!C35=\"Si\",'Excel de Apoyo'!G11,IF(Heating!C36=\"Si\",AVERAGE('Excel de Apoyo'!G9:G10),0))))+(('Excel de Apoyo'!Q4-Heating!G5)*(IF(Heating!C34=\"Si\",'Excel de Apoyo'!G8,IF(OR(C32=\"Si\",Heating!C33=\"Si\"),Energy!C24,IF(Heating!C35=\"Si\",'Excel de Apoyo'!G11,IF(Heating!C36=\"Si\",AVERAGE('Excel de Apoyo'!G9:G10),0))))-'Excel de Apoyo'!G8)),0),0)","v":0},{"$f":"IF(B5<>\"\",IF(C27=TRUE,M5*Housing!C14,N5*Housing!C14),0)","v":0},{"$f":"IFERROR(J5/H5,\"\")","v":""},{"$f":"IF(B5<>\"\",\"High investment\",\"\")","v":""},14,54,"m2"]
[null,{"$f":"IF(AND('Heating and cooling'!C11=\"Yes\",'Heating and cooling'!D11<1990),\"install a highly efficient centralized system\",\"\")","v":""},null,null,null,null,{"$f":"IF(AND(B6<>\"\",OR('Heating and cooling'!C12=\"\",'Heating and cooling'!C13=\"\")),0.2*'Excel de Apoyo'!Q4,0)","v":0},{"$f":"G6*'Excel de Apoyo'!P40","v":0},null,null,"",{"$f":"IF(B6<>\"\",\"High investment\",\"\")","v":""},0,null,null,"Free",{"$f":"G18+G19+G15+G14","v":0},{"$f":"H18+H19+H15+H14","v":0},{"$f":"I18+I19+I15+I14","v":0},{"$f":"J18+J19+J15+J14","v":0}]
[null,{"$f":"IFERROR(IF(AND(C25=\"Si\",OR(AND(C33=\"Si\",C30=\"Altos\",OR(AND('Heating and cooling'!G19<2.6,'Heating and cooling'!C19=\"Yes\"),AND('Heating and cooling'!G26<2.6,'Heating and cooling'!C26=\"Yes\"))),AND(C32=\"Si\",C27=FALSE,C30=\"Bajos\"),AND(C32=\"Si\",C27=FALSE,C30=\"Altos\",C29=FALSE),AND(C32=\"Si\",C27=TRUE,C28=TRUE,C29=FALSE))),\"New Heat Pump\",\"\"),\"\")","v":""},null,null,null,null,{"$f":"IF(B7<>\"\",IF(C33=\"Si\",(1-((AVERAGE('Heating and cooling'!G26,'Heating and cooling'!G19))/4.6))*'Excel de Apoyo'!Q4,((1-(1/4.6))*'Excel de Apoyo'!Q4)),0)","v":0},{"$f":"G7*'Excel de Apoyo'!P33","v":0},{"$f":"G7*Energy!C24","v":0},{"$f":"IF(B7<>\"\",IF(C30=\"Altos\",N7*Housing!C14,M7*Housing!C14),0)","v":0},"",{"$f":"IF(B7<>\"\",\"High investment\",\"\")","v":""},12,21,"m2","Low",{"$f":"G17+G12+G13+G20+G21+G16","v":0},{"$f":"H17+H12+H13+H20+H21+H16","v":0},{"$f":"I17+I12+I13+I20+I21+I16","v":0},{"$f":"IFERROR(J17+J12+J13+J20+J16+J21,0)","v":0}]
[null,{"$f":"IFERROR(IF(AND(C25=\"Si\",OR(AND(OR(C34=\"\",(YEAR(TODAY())-'Heating and cooling'!D15)>15),C37<>\"Si\",C27=TRUE,C28=FALSE),AND((OR(C34=\"\",(YEAR(TODAY())-'Heating and cooling'!D15)>15)),C37<>\"Si\",C27=FALSE,C30=\"Altos\",C28=FALSE))),\"New biomass boilder\",\"\"),\"\")","v":""},null,null,null,null,0,{"$f":"IFERROR('Excel de Apoyo'!Q4*IF(B8<>\"\",(IF(Heating!C34=\"Si\",'Excel de Apoyo'!P34,IF(OR(C32=\"Si\",Heating!C33=\"Si\"),Energy!AF5,IF(Heating!C35=\"Si\",'Excel de Apoyo'!P37,IF(Heating!C36=\"Si\",AVERAGE('Excel de Apoyo'!P35:P36),AVERAGE('Excel de Apoyo'!P38:P39)))))-0.05),0),0)","v":0},{"$f":"IF(B8<>\"\",'Excel de Apoyo'!Q4*IF(Heating!C34=\"Si\",'Excel de Apoyo'!G8,IF(OR(C32=\"Si\",Heating!C33=\"Si\"),Energy!C24,IF(Heating!C35=\"Si\",'Excel de Apoyo'!G11,IF(Heating!C36=\"Si\",AVERAGE('Excel de Apoyo'!G9:G10),0)))),0)","v":0},{"$f":"IF(B8<>\"\",IF(C27=TRUE,M8*Housing!C14,N8*Housing!C14),0)","v":0},"",{"$f":"IF(B8<>\"\",\"RES invesment\",\"\")","v":""},{"$f":"IF(C27=TRUE,20,20+40)","v":60},60,"m2","High",{"$f":"G11+G10+G9+G5+G7+G6","v":0},{"$f":"H11+H10+H9+H5+H7+H6","v":0},{"$f":"IFERROR(I11+I10+I9+I5+I7+I6,0)","v":0},{"$f":"J11+J10+J9+J5+J7+J6","v":0}]
[null,{"$f":"IFERROR(IF(AND(YEAR(TODAY())-Housing!C13>35,OR(Housing!C25=\"\",Housing!C25=\"0- 25%\",Housing!D25=\"More than 10 years\"),C30=\"Altos\"),\"Insulate the facade\",\"\"),\"\")","v":""},null,null,null,null,{"$f":"IF(B9<>\"\",0.25*('Excel de Apoyo'!Q4-U9),0)","v":0},{"$f":"G9*IF(Heating!C34=\"Si\",'Excel de Apoyo'!P34,IF(OR(C32=\"Si\",Heating!C33=\"Si\"),Energy!AF5,IF(Heating!C35=\"Si\",'Excel de Apoyo'!P37,IF(Heating!C36=\"Si\",AVERAGE('Excel de Apoyo'!P35:P36),IF(C37=\"Si\",AVERAGE('Excel de Apoyo'!P38:P39),AVERAGE('Excel de Apoyo'!P40:P41))))))","v":0},{"$f":"IF($C$26=\"Central\",G9*'Excel de Apoyo'!S27,G9*IF(Heating!$C$34=\"Si\",'Excel de Apoyo'!$G$8,IF(OR($C$32=\"Si\",Heating!$C$33=\"Si\"),Energy!$C$24,IF(Heating!$C$35=\"Si\",'Excel de Apoyo'!$G$11,IF(Heating!$C$36=\"Si\",AVERAGE('Excel de Apoyo'!$G$9:$G$10),0)))))","v":0},{"$f":"IF(B9<>\"\",'Heating and cooling'!F43*M9,0)","v":0},"",{"$f":"IF(B9<>\"\",\"High investment\",\"\")","v":""},80,"m2",null,"RES",{"$f":"G22+G8","v":0},{"$f":"H22+H8","v":0},{"$f":"I22+I8","v":0},{"$f":"J22+J8","v":0},{"$f":"G8+G7+G6+G5","v":0}]
[null,{"$f":"IFERROR(IF(AND(C30=\"Altos\",OR(((Housing!V35/Housing!V28)+(Housing!V36/Housing!V28))/2>0.75,Housing!V35/Housing!V28>0.35)),\"Install high efficiency windowpanes and frames\",\"\"),\"\")","v":""},null,null,null,null,{"$f":"IF(B10<>\"\",0.4*('Excel de Apoyo'!Q4-U10),0)","v":0},{"$f":"G10*IF(Heating!C34=\"Si\",'Excel de Apoyo'!P34,IF(OR(C32=\"Si\",Heating!C33=\"Si\"),Energy!AF5,IF(Heating!C35=\"Si\",'Excel de Apoyo'!P37,IF(Heating!C36=\"Si\",AVERAGE('Excel de Apoyo'!P35:P36),IF(C37=\"Si\",AVERAGE('Excel de Apoyo'!P38:P39),AVERAGE('Excel de Apoyo'!P40:P41))))))","v":0},{"$f":"IF($C$26=\"Central\",G10*'Excel de Apoyo'!S27,G10*IF(Heating!$C$34=\"Si\",'Excel de Apoyo'!$G$8,IF(OR($C$32=\"Si\",Heating!$C$33=\"Si\"),Energy!$C$24,IF(Heating!$C$35=\"Si\",'Excel de Apoyo'!$G$11,IF(Heating!$C$36=\"Si\",AVERAGE('Excel de Apoyo'!$G$9:$G$10),0)))))","v":0},{"$f":"IF(B10<>\"\",M10*Housing!V70,0)","v":0},"",{"$f":"IF(B10<>\"\",\"High investment\",\"\")","v":""},200,"m2",null,null,null,null,null,null,{"$f":"U9+G9","v":0}]
[null,{"$f":"IFERROR(IF(AND(YEAR(TODAY())-Housing!C13>35,OR(Housing!C26=\"0- 25%\",Housing!D26=\"More than 10 years\"),C30=\"Altos\",OR(Housing!C3<>\"Housing block\",Housing!C12=\"Top floor\")),\"Refurbish the ceiling from the inside\",\"\"),\"\")","v":""},null,null,null,null,{"$f":"IF(B11<>\"\",('Excel de Apoyo'!Q4-U11)*0.35*Housing!I26,0)","v":0},{"$f":"G11*IF(Heating!C34=\"Si\",'Excel de Apoyo'!P34,IF(OR(C32=\"Si\",Heating!C33=\"Si\"),Energy!AF5,IF(Heating!C35=\"Si\",'Excel de Apoyo'!P37,IF(Heating!C36=\"Si\",AVERAGE('Excel de Apoyo'!P35:P36),IF(C37=\"Si\",AVERAGE('Excel de Apoyo'!P38:P39),AVERAGE('Excel de Apoyo'!P40:P41))))))","v":0},{"$f":"IF($C$26=\"Central\",G11*'Excel de Apoyo'!S27,G11*IF(Heating!$C$34=\"Si\",'Excel de Apoyo'!$G$8,IF(OR($C$32=\"Si\",Heating!$C$33=\"Si\"),Energy!$C$24,IF(Heating!$C$35=\"Si\",'Excel de Apoyo'!$G$11,IF(Heating!$C$36=\"Si\",AVERAGE('Excel de Apoyo'!$G$9:$G$10),0)))))","v":0},{"$f":"IF(B11<>\"\",IF(Housing!C3=\"Housing block\",Housing!C14*M11*0.9,(Housing!C14/Housing!C12)*M11*0.9),0)","v":0},"",{"$f":"IF(B11<>\"\",\"High investment\",\"\")","v":""},40,"m2",null,null,null,null,null,null,{"$f":"U10+G10","v":0}]
[null,{"$f":"IF(Housing!V64>4,\"Avoid air infiltrations\",\"\")","v":""},null,null,null,null,{"$f":"IF(B12<>\"\",((0.05*(Housing!V73/'Excel de Apoyo'!M10))+0.1*(Housing!V76/'Excel de Apoyo'!M10))*('Excel de Apoyo'!Q4-U12),0)","v":0},{"$f":"G12*IF(Heating!C34=\"Si\",'Excel de Apoyo'!P34,IF(OR(C32=\"Si\",Heating!C33=\"Si\"),Energy!AF5,IF(Heating!C35=\"Si\",'Excel de Apoyo'!P37,IF(Heating!C36=\"Si\",AVERAGE('Excel de Apoyo'!P35:P36),IF(C37=\"Si\",AVERAGE('Excel de Apoyo'!P38:P39),AVERAGE('Excel de Apoyo'!P40:P41))))))","v":0},{"$f":"IF($C$26=\"Central\",G12*'Excel de Apoyo'!S27,G12*IF(Heating!$C$34=\"Si\",'Excel de Apoyo'!$G$8,IF(OR($C$32=\"Si\",Heating!$C$33=\"Si\"),Energy!$C$24,IF(Heating!$C$35=\"Si\",'Excel de Apoyo'!$G$11,IF(Heating!$C$36=\"Si\",AVERAGE('Excel de Apoyo'!$G$9:$G$10),0)))))","v":0},{"$f":"IF(B12<>\"\",M12*Housing!V64,0)","v":0},"",{"$f":"IF(B12<>\"\",\"Low invesment\",\"\")","v":""},2.5,"m",null,null,null,null,null,null,0]
[null,{"$f":"IF(OR(AND('Heating and cooling'!C46=\"Yes\",'Heating and cooling'!C45=\"Yes\"),C27=FALSE),\"\",IF(AND('Heating and cooling'!C45=\"\",'Heating and cooling'!C46=\"\",C27=TRUE),\"Install a digital programmable thermostat\",IF(AND('Heating and cooling'!C45=\"Yes\",C27=TRUE),\"Install a digital programmable thermostat\",\"Install a time setting plug\")))","v":""},null,null,null,null,{"$f":"IFERROR(IF(B13<>\"\",0.2*('Excel de Apoyo'!Q4-U13),0),0)","v":0},{"$f":"IFERROR(G13*IF(Heating!C34=\"Si\",'Excel de Apoyo'!P34,IF(OR(C32=\"Si\",Heating!C33=\"Si\"),Energy!AF5,IF(Heating!C35=\"Si\",'Excel de Apoyo'!P37,IF(Heating!C36=\"Si\",AVERAGE('Excel de Apoyo'!P35:P36),IF(C37=\"Si\",AVERAGE('Excel de Apoyo'!P38:P39),AVERAGE('Excel de Apoyo'!P40:P41)))))),0)","v":0},{"$f":"IF($C$26=\"Central\",G13*'Excel de Apoyo'!S27,G13*IF(Heating!$C$34=\"Si\",'Excel de Apoyo'!$G$8,IF(OR($C$32=\"Si\",Heating!$C$33=\"Si\"),Energy!$C$24,IF(Heating!$C$35=\"Si\",'Excel de Apoyo'!$G$11,IF(Heating!$C$36=\"Si\",AVERAGE('Excel de Apoyo'!$G$9:$G$10),0)))))","v":0},{"$f":"IF(B13<>\"\",M13,0)","v":0},"",{"$f":"IF(B13<>\"\",\"Low invesment\",\"\")","v":""},100,"per thermostat",null,null,null,null,null,null,0]
[null,{"$f":"IF(AND(Housing!C17>21,C27=TRUE),\"Set indoor temperature at 21ºC\",\"\")","v":""},null,null,null,null,{"$f":"IF(B14<>\"\",(Housing!C17-21)*0.07*('Excel de Apoyo'!Q4-U14),0)","v":0},{"$f":"G14*IF(Heating!C34=\"Si\",'Excel de Apoyo'!P34,IF(OR(C32=\"Si\",Heating!C33=\"Si\"),Energy!AF5,IF(Heating!C35=\"Si\",'Excel de Apoyo'!P37,IF(Heating!C36=\"Si\",AVERAGE('Excel de Apoyo'!P35:P36),IF(C37=\"Si\",AVERAGE('Excel de Apoyo'!P38:P39),AVERAGE('Excel de Apoyo'!P40:P41))))))","v":0},{"$f":"IF($C$26=\"Central\",G14*'Excel de Apoyo'!S27,G14*IF(Heating!$C$34=\"Si\",'Excel de Apoyo'!$G$8,IF(OR($C$32=\"Si\",Heating!$C$33=\"Si\"),Energy!$C$24,IF(Heating!$C$35=\"Si\",'Excel de Apoyo'!$G$11,IF(Heating!$C$36=\"Si\",AVERAGE('Excel de Apoyo'!$G$9:$G$10),0)))))","v":0},0,"",{"$f":"IF(B14<>\"\",\"Free\",\"\")","v":""},0,null,null,null,null,null,null,null,0]
[null,{"$f":"IF(AND(C27=TRUE,OR('Heating and cooling'!C77<>\"\",'Heating and cooling'!C78<>\"\")),IF(OR(AND('Heating and cooling'!C77=\"Yes\",OR('Heating and cooling'!D77=\"Once a year\",'Heating and cooling'!D77=\"Less than once a year\")),AND('Heating and cooling'!C78=\"Yes\",OR('Heating and cooling'!D78=\"Once a year\",'Heating and cooling'!D78=\"Less than once a year\"))),\"\",\"Properly mantain your radiators at least once a year\"),\"\")","v":""},null,null,null,null,{"$f":"IF(B15<>\"\",('Excel de Apoyo'!Q4-U15)*'Heating and cooling'!G78,0)","v":0},{"$f":"G15*IF(Heating!C34=\"Si\",'Excel de Apoyo'!P34,IF(OR(C32=\"Si\",Heating!C33=\"Si\"),Energy!AF5,IF(Heating!C35=\"Si\",'Excel de Apoyo'!P37,IF(Heating!C36=\"Si\",AVERAGE('Excel de Apoyo'!P35:P36),IF(C37=\"Si\",AVERAGE('Excel de Apoyo'!P38:P39),AVERAGE('Excel de Apoyo'!P40:P41))))))","v":0},{"$f":"IF($C$26=\"Central\",G15*'Excel de Apoyo'!S27,G15*IF(Heating!$C$34=\"Si\",'Excel de Apoyo'!$G$8,IF(OR($C$32=\"Si\",Heating!$C$33=\"Si\"),Energy!$C$24,IF(Heating!$C$35=\"Si\",'Excel de Apoyo'!$G$11,IF(Heating!$C$36=\"Si\",AVERAGE('Excel de Apoyo'!$G$9:$G$10),0)))))","v":0},0,"",{"$f":"IF(B15<>\"\",\"Free\",\"\")","v":""},0,null,null,null,null,null,null,null,0]
[null,{"$f":"IF(AND('Heating and cooling'!C47<0.75,Heating!C27=TRUE),\"Install thermostatic valves in radiators\",\"\")","v":""},null,null,null,null,{"$f":"IF(B16<>\"\",(1-'Heating and cooling'!C47)*0.2*('Excel de Apoyo'!Q4-U16),0)","v":0},{"$f":"IFERROR(G16*IF(Heating!C34=\"Si\",'Excel de Apoyo'!P34,IF(OR(C32=\"Si\",Heating!C33=\"Si\"),Energy!AF5,IF(Heating!C35=\"Si\",'Excel de Apoyo'!P37,IF(Heating!C36=\"Si\",AVERAGE('Excel de Apoyo'!P35:P36),IF(C37=\"Si\",AVERAGE('Excel de Apoyo'!P38:P39),AVERAGE('Excel de Apoyo'!P40:P41)))))),\"\")","v":0},{"$f":"IF($C$26=\"Central\",G16*'Excel de Apoyo'!S27,G16*IF(Heating!$C$34=\"Si\",'Excel de Apoyo'!$G$8,IF(OR($C$32=\"Si\",Heating!$C$33=\"Si\"),Energy!$C$24,IF(Heating!$C$35=\"Si\",'Excel de Apoyo'!$G$11,IF(Heating!$C$36=\"Si\",AVERAGE('Excel de Apoyo'!$G$9:$G$10),0)))))","v":0},{"$f":"IF(B16<>\"\",(1-'Heating and cooling'!C47)*M16*SUM('Heating and cooling'!C37,'Heating and cooling'!C38,'Heating and cooling'!C39,'Heating and cooling'!C40,'Heating and cooling'!C42),0)","v":0},"",{"$f":"IF(B16<>\"\",\"Low invesment\",\"\")","v":""},40,"per radiator",null,null,null,null,null,null,0]
[null,{"$f":"IFERROR(IF((Housing!V79/'Excel de Apoyo'!M10)>0.25,\"Install curtains\",\"\"),\"\")","v":""},null,null,null,null,{"$f":"IF(B17<>\"\",0.01*(1-(Housing!V33/Housing!V28))*('Excel de Apoyo'!Q4-U17),0)","v":0},{"$f":"G17*IF(Heating!C34=\"Si\",'Excel de Apoyo'!P34,IF(OR(C32=\"Si\",Heating!C33=\"Si\"),Energy!AF5,IF(Heating!C35=\"Si\",'Excel de Apoyo'!P37,IF(Heating!C36=\"Si\",AVERAGE('Excel de Apoyo'!P35:P36),IF(C37=\"Si\",AVERAGE('Excel de Apoyo'!P38:P39),AVERAGE('Excel de Apoyo'!P40:P41))))))","v":0},{"$f":"IF($C$26=\"Central\",G17*'Excel de Apoyo'!S27,G17*IF(Heating!$C$34=\"Si\",'Excel de Apoyo'!$G$8,IF(OR($C$32=\"Si\",Heating!$C$33=\"Si\"),Energy!$C$24,IF(Heating!$C$35=\"Si\",'Excel de Apoyo'!$G$11,IF(Heating!$C$36=\"Si\",AVERAGE('Excel de Apoyo'!$G$9:$G$10),0)))))","v":0},{"$f":"IFERROR(IF(B17<>\"\",(M17*Housing!V79),0),0)","v":0},"",{"$f":"IF(B17<>\"\",\"Low invesment\",\"\")","v":""},10,"m2",null,null,null,null,null,null,0]
[null,{"$f":"IF(Housing!C44>10,\"10 minutes are enough to ventilate in excessive cold weather\",\"\")","v":""},null,null,null,null,{"$f":"IF(B18<>\"\",(0.005+(0.0000694*(Housing!C44-10)))*('Excel de Apoyo'!Q4-U18),0)","v":0},{"$f":"G18*IF(Heating!C34=\"Si\",'Excel de Apoyo'!P34,IF(OR(C32=\"Si\",Heating!C33=\"Si\"),Energy!AF5,IF(Heating!C35=\"Si\",'Excel de Apoyo'!P37,IF(Heating!C36=\"Si\",AVERAGE('Excel de Apoyo'!P35:P36),IF(C37=\"Si\",AVERAGE('Excel de Apoyo'!P38:P39),AVERAGE('Excel de Apoyo'!P40:P41))))))","v":0},{"$f":"IF($C$26=\"Central\",G18*'Excel de Apoyo'!S27,G18*IF(Heating!$C$34=\"Si\",'Excel de Apoyo'!$G$8,IF(OR($C$32=\"Si\",Heating!$C$33=\"Si\"),Energy!$C$24,IF(Heating!$C$35=\"Si\",'Excel de Apoyo'!$G$11,IF(Heating!$C$36=\"Si\",AVERAGE('Excel de Apoyo'!$G$9:$G$10),0)))))","v":0},0,{"$f":"IFERROR(J18/H18,\"\")","v":""},{"$f":"IF(B18<>\"\",\"Free\",\"\")","v":""},0,null,null,null,null,null,null,null,0]
[null,{"$f":"IF(OR(Housing!C43=\"\",OR(Housing!C43=\"Afternoon\",Housing!C43=\"Noon\")),\"\",\"Ventilate in warmer hours (close to noon)\")","v":""},null,null,null,null,{"$f":"IF(B19<>\"\",IF(B18<>\"\",G18,10*0.0000694),0)","v":0},{"$f":"G19*IF(Heating!C34=\"Si\",'Excel de Apoyo'!P34,IF(OR(C32=\"Si\",Heating!C33=\"Si\"),Energy!AF5,IF(Heating!C35=\"Si\",'Excel de Apoyo'!P37,IF(Heating!C36=\"Si\",AVERAGE('Excel de Apoyo'!P35:P36),IF(C37=\"Si\",AVERAGE('Excel de Apoyo'!P38:P39),AVERAGE('Excel de Apoyo'!P40:P41))))))","v":0},{"$f":"IF($C$26=\"Central\",G19*'Excel de Apoyo'!S27,G19*IF(Heating!$C$34=\"Si\",'Excel de Apoyo'!$G$8,IF(OR($C$32=\"Si\",Heating!$C$33=\"Si\"),Energy!$C$24,IF(Heating!$C$35=\"Si\",'Excel de Apoyo'!$G$11,IF(Heating!$C$36=\"Si\",AVERAGE('Excel de Apoyo'!$G$9:$G$10),0)))))","v":0},0,"",{"$f":"IF(B19<>\"\",\"Free\",\"\")","v":""},0,null,null,null,null,null,null,null,0]
[null,{"$f":"IF(AND('Heating and cooling'!C74<1,'Heating and cooling'!C74<>\"\"),\"Install aerators on taps\",\"\")","v":""},null,null,null,null,{"$f":"IF(B20<>\"\",(1-'Heating and cooling'!C74)*0.5*'Excel de Apoyo'!Q6,0)","v":0},{"$f":"G20*(IF('Heating and cooling'!C63=\"Yes\",AVERAGE('Excel de Apoyo'!P40:P42),IF('Heating and cooling'!C65=\"Yes\",'Excel de Apoyo'!P33,IF('Heating and cooling'!C66=\"Yes\",'Excel de Apoyo'!P34,IF('Heating and cooling'!C67=\"Yes\",AVERAGE('Excel de Apoyo'!P35:P36),IF('Heating and cooling'!C68=\"Yes\",'Excel de Apoyo'!P37,AVERAGE('Excel de Apoyo'!P38:P39)))))))","v":0},{"$f":"IF('Heating and cooling'!C63=\"Yes\",G20*'Excel de Apoyo'!S27,G20*(IF('Heating and cooling'!C65=\"Yes\",Energy!C24,IF('Heating and cooling'!C66=\"Yes\",'Excel de Apoyo'!G8,IF('Heating and cooling'!C67=\"Yes\",AVERAGE('Excel de Apoyo'!G9:G10),IF('Heating and cooling'!C68=\"Yes\",'Excel de Apoyo'!G11,0))))))","v":0},{"$f":"IF(B20<>\"\",M20*(1-'Heating and cooling'!C74)*(2+(Family!B13/2.5)),0)","v":0},"",{"$f":"IF(B20<>\"\",\"Low invesment\",\"\")","v":""},4,"per tap"]
[null,{"$f":"IF(AND('Heating and cooling'!C73<1,'Heating and cooling'!C73<>\"\"),\"Install thermostatic taps\",\"\")","v":""},null,null,null,null,{"$f":"IF(B21<>\"\",0.15*(1-'Heating and cooling'!C73)*'Excel de Apoyo'!Q6,0)","v":0},{"$f":"G21*(IF('Heating and cooling'!C63=\"Yes\",AVERAGE('Excel de Apoyo'!P40:P42),IF('Heating and cooling'!C65=\"Yes\",'Excel de Apoyo'!P33,IF('Heating and cooling'!C66=\"Yes\",'Excel de Apoyo'!P34,IF('Heating and cooling'!C67=\"Yes\",AVERAGE('Excel de Apoyo'!P35:P36),IF('Heating and cooling'!C68=\"Yes\",'Excel de Apoyo'!P37,AVERAGE('Excel de Apoyo'!P38:P39)))))))","v":0},{"$f":"IF('Heating and cooling'!C63=\"Yes\",G21*'Excel de Apoyo'!T27,G21*(IF('Heating and cooling'!B65=\"Yes\",Energy!C24,IF('Heating and cooling'!C66=\"Yes\",'Excel de Apoyo'!G8,IF('Heating and cooling'!C67=\"Yes\",AVERAGE('Excel de Apoyo'!G9:G10),IF('Heating and cooling'!C68=\"Yes\",'Excel de Apoyo'!G11,0))))))","v":0},{"$f":"IF(B21<>\"\",M21*(1-'Heating and cooling'!C73)*(2+(Family!B13/2.5)),0)","v":0},"",{"$f":"IF(B21<>\"\",\"Low invesment\",\"\")","v":""},40,"per tap"]
[null,{"$f":"IF(OR('Heating and cooling'!C70=\"Yes\",'Heating and cooling'!C34=\"Yes\",OR(Housing!C3=\"Housing Block\",Housing!C3=\"\")),\"\",\"Reduce to a large extent your energy consumption in domestic hot water by installing solar thermal energy\")","v":""},null,null,null,null,0,{"$f":"IFERROR(IF(B22<>\"\",'DHW-ST'!N80*1.16222222222*(IF('Heating and cooling'!C66=\"Yes\",'Excel de Apoyo'!Q47,IF('Heating and cooling'!C63=\"Yes\",'Excel de Apoyo'!P40,IF('Heating and cooling'!C65=\"Yes\",'Excel de Apoyo'!P33,IF('Heating and cooling'!C722=\"Yes\",'Excel de Apoyo'!P34,IF('Heating and cooling'!C67=\"Yes\",AVERAGE('Excel de Apoyo'!P35:P36),IF('Heating and cooling'!C68=\"Yes\",'Excel de Apoyo'!P37,AVERAGE('Excel de Apoyo'!P38:P39)))))))),0),0)","v":0},{"$f":"IFERROR(IF(B22<>\"\",'DHW-ST'!H75,0),\"\")","v":0},{"$f":"IF(B22<>\"\",M22*'DHW-ST'!I52,0)","v":0},"",{"$f":"IF(B22<>\"\",\"RES invesment\",\"\")","v":""},1300,"per collector"]
[null,null,null,null,null,null,{"$f":"SUM(G5:G22)","v":0},{"$f":"SUM(H5:H22)","v":0},{"$f":"SUM(I5:I22)","v":0},{"$f":"SUM(J5:J22)","v":0}]
[]
[null,"¿Heating?",{"$f":"IF(OR(C32=\"Si\",C33=\"Si\",C34=\"Si\",C35=\"Si\",C36=\"Si\",C37=\"Si\",),\"Si\",\"\")","v":""}]
[null,"Tipo de sistema",{"$f":"IF('Heating and cooling'!C11=\"Yes\",\"Central\",\"Individual\")","v":"Individual"}]
[null,"Caldera",{"$f":"OR('Heating and cooling'!C15=\"Yes\",'Heating and cooling'!C16=\"Yes\",'Heating and cooling'!C17=\"Yes\",'Heating and cooling'!C18=\"Yes\",'Heating and cooling'!C20=\"Yes\",'Heating and cooling'!C21=\"Yes\",AND('Heating and cooling'!C11=\"Yes\",'Heating and cooling'!C12,'Heating and cooling'!C12=\"Yes\"))","v":false}]
[null,"Bloque de pisos",{"$f":"AND(Housing!C3=\"Housing block\")","v":false}]
[null,"Acceso a GN",{"$f":"AND('Heating and cooling'!C81=\"Yes\")","v":false}]
[null,"HDD",{"$f":"IF('Heating and cooling'!Q7>75,\"Altos\",\"Bajos\")","v":{"$error":"#DIV/0!"}}]
[null,"Edad caldera",{"$f":"IF(C27=TRUE,YEAR(TODAY())-AVERAGE('Heating and cooling'!D11,'Heating and cooling'!D15:D22),\"\")","v":""}]
[null,"Joule",{"$f":"IF(OR('Heating and cooling'!C20=\"Yes\",'Heating and cooling'!C21=\"Yes\",'Heating and cooling'!C22=\"Yes\",'Heating and cooling'!C25=\"Yes\",'Heating and cooling'!C31=\"Yes\"),\"Si\",\"\")","v":""},null,null,null,null,null,null,{"$f":"ROUND(\"\",2)","v":{"$error":"#VALUE!"}}]
[null,"Bomba de calor",{"$f":"IF(OR('Heating and cooling'!C19=\"Yes\",'Heating and cooling'!C26=\"Yes\"),\"Si\",\"\")","v":""}]
[null,"Gas Natural",{"$f":"IF(OR('Heating and cooling'!C15=\"Yes\",AND('Heating and cooling'!C11=\"Yes\",'Heating and cooling'!H11=\"Natural Gas\")),\"Si\",\"\")","v":""}]
[null,"Diesel ",{"$f":"IF('Heating and cooling'!C17=\"Yes\",\"Si\",\"\")","v":""}]
[null,"Propano",{"$f":"IF(OR('Heating and cooling'!C27=\"Yes\",'Heating and cooling'!C16=\"Yes\"),\"Si\",\"\")","v":""}]
[null,"Biomasa",{"$f":"IF(OR('Heating and cooling'!C18=\"Yes\",'Heating and cooling'!C28=\"Yes\",'Heating and cooling'!C29=\"Yes\",'Heating and cooling'!C30=\"Yes\"),\"Si\",\"\")","v":""}]
[null,"COP",{"$f":"AVERAGE('Heating and cooling'!G15:G22,'Heating and cooling'!G25:G34)","v":{"$error":"#DIV/0!"}}]

{"sheet":"DHW-ST","index":12,"n_rows":89,"n_cols":24,"rows_kept":89,"cut":false,"hidden":false,"merged":[[0,0,0,13],[4,7,4,8],[7,7,7,8]]}
["DOMESTIC HOT WATER PRODUCTION WITH ENERGY SOLAR THERMAL",null,null,null,null,null,null,null,null,null,null,null,null,null,null,null,null,null,null,null,null,1,2,3]
[null,null,null,null,null,null,null,null,null,null,null,null,null,null,null,null,null,null,null,null,null,"Viv.unifamiliar",30,"por persona"]
["CLIMATODOLOGHY DATA",null,null,null,null,null,null,null,null,null,null,null,null,null,null,null,null,null,null,null,null,"Viv.multifamiliar",22,"por persona"]
[null,null,null,null,null,null,null,null,null,null,null,null,null,null,null,null,null,null,null,"Álava",null,"Hospital/Clínica",55,"por cama"]
[null,null,"Provincia:",null,null,null,null,"Soria",null,null,null,null,null,null,null,null,null,null,null,"Albacete",null,"Hotel****",70,"por cama"]
[null,null,"Latitud de la capital [º]:",null,null,null,null,null,{"$f":"VLOOKUP($H$5,RADIACION!$A$3:$BA$54,16)","v":41.8},null,null,null,null,null,null,null,null,null,null,"Alicante",null,"Hotel***",55,"por cama"]
[]
[null,null,"Angulo de instalación de los captadores",null,null,null,null,50]
[null,null,"Zona climática de la capital (CTE)",null,null,null,null,null,{"$f":"VLOOKUP($H$5,RADIACION!$A$3:$BA$54,41)","v":"III"},null,null,null,null,null,null,null,null,null,null,"Almería",null,"Hotel/Hostal**",40,"por cama"]
[null,null,"Altitud de la capital [m]:",null,null,null,null,null,{"$f":"VLOOKUP($H$5,RADIACION!$A$3:$BA$54,14)","v":1063},null,null,null,null,null,null,null,null,null,null,"Asturias",null,"Camping",40,"por emplazamiento"]
[null,null,"Humedad relativa media [%]:",null,null,null,null,null,{"$f":"VLOOKUP($H$5,RADIACION!$A$3:$BA$54,18)","v":45},null,null,null,null,null,null,null,null,null,null,"Ávila",null,"Hostal/Pension*",35,"por cama"]
[null,null,"Velocidad media del viento [Km/h]:",null,null,null,null,null,{"$f":"VLOOKUP($H$5,RADIACION!$A$3:$BA$54,36)","v":15},null,null,null,null,null,null,null,null,null,null,"Badajoz",null,"Residenc Est/3Edad",55,"por cama"]
[null,null,"Temperatura máxima en verano [ºC]:",null,null,null,null,null,{"$f":"VLOOKUP($H$5,RADIACION!$A$3:$BA$54,19)","v":29},null,null,null,null,null,null,null,null,null,null,"Baleares",null,"Vestuario/Duchas",15,"por servicio"]
[null,null,"Temperatura mínima en invierno [ºC]:",null,null,null,null,null,{"$f":"VLOOKUP($H$5,RADIACION!$A$3:$BA$54,20)","v":-7},null,null,null,null,null,null,null,null,null,null,"Barcelona",null,"Escuela",3,"por alumno"]
[null,null,"Variación diurna:",null,null,null,null,null,{"$f":"VLOOKUP($H$5,RADIACION!$A$3:$BA$54,17)","v":18},null,null,null,null,null,null,null,null,null,null,"Burgos",null,"Cuartel",20,"por persona"]
[null,null,"Grados-día. Temperatura base 15/15 (UNE 24046):",null,null,null,null,null,{"$f":"VLOOKUP($H$5,RADIACION!$A$3:$BA$54,33)","v":1609.1},"(Periodo Noviembre/Marzo)",null,null,null,null,null,null,null,null,null,"Cáceres",null,"Fábrica/Taller",15,"por persona"]
[null,null,"Grados-día. Temperatura base 15/15 (UNE 24046):",null,null,null,null,null,{"$f":"VLOOKUP($H$5,RADIACION!$A$3:$BA$54,34)","v":1977.6},"(Todo el año)",null,null,null,null,null,null,null,null,null,"Cádiz",null,"Administrativo",3,"por persona"]
[null,null,null,null,null,null,null,null,null,null,null,null,null,null,null,null,null,null,null,"Cantabria",null,"Gimnasio",25,"por usuario"]
["Months","January","February","March","April","May","June","July","August","Sept.","Oct.","Nov.","Dec.","Annual",null,null,null,null,null,"Castellon",null,"Lavandería",5,"por kilo de ropa"]
["Average Temperature [ºC]:",6.9,7.9,11.2,14,18.5,23.4,25.6,25.3,21.1,16.899999999999999,10.7,7.1,{"$f":"AVERAGE(B20:M20)","v":15.716666666666667},null,null,null,null,null,"Ceuta",null,"Restaurante",10,"por comida"]
["Water network temperature [ºC]:",8,9,10,12,15,17,20,19,17,14,10,8,{"$f":"AVERAGE(B21:M21)","v":13.25},null,null,null,null,null,"Ciudad Real",null,"Cafetería",1,"por almuerzo"]
["Radiation [W/m2/day]:",3640,5080,6090,5740,5790,5970,6440,6480,6240,5330,4160,3440,5366.666666666667,null,null,null,null,null,"Córdoba"]
[null,3.6,3.6,3.6,3.6,3.6,3.6,3.6,3.6,3.6,3.6,3.6,3.6]
["Rad. [kJ/m2/día]:",{"$f":"B22*B23","v":13104},18288,21924,20664,20844,21492,23184,23328,22464,19188,14976,12384,{"$f":"AVERAGE(B24:M24)","v":19320},null,null,null,null,null,"Cuenca"]
[null,null,null,null,null,null,null,null,null,null,null,null,null,null,null,null,null,null,null,"Gerona"]
["ENERGY DEMAND DATA",null,null,null,null,null,null,null,null,null,null,null,null,null,null,null,null,null,null,"Huesca"]
[null,null,null,null,null,null,null,null,null,null,null,null,null,null,null,null,null,null,null,"Jaén"]
[null,null,"Number of occupants",null,null,null,null,null,{"$f":"Family!B13","v":0},null,null,null,null,null,null,null,null,null,null,"La Coruña"]
[null,null,"Consumption by resident 60ºC [L/pers/day]:",null,null,null,null,null,{"$f":"IF(Housing!C3=\"Housing block\",22,30)","v":30},{"$f":"\"         … average  \"&I31&\"ºC [L/pers/day]:\"","v":"         … average  45ºC [L/pers/day]:"},null,null,null,{"$f":"N30/I28","v":{"$error":"#DIV/0!"}},null,null,null,null,null,"La Rioja"]
[null,null,"Sanitary hot water consumption max. ocuppation 60ºC [L/day]:",null,null,null,null,null,{"$f":"+$I$28*$I$29","v":0},{"$f":"\"         … average \"&I31&\"ºC [L/day]:\"","v":"         … average 45ºC [L/day]:"},null,null,null,{"$f":"1000*SUM(RADIACION!B66:M66)/365","v":0},null,null,null,null,null,"Las Palmas"]
[null,null,"Temperature HSW [ºC]: ",null,null,null,null,null,45,null,null,null,null,null,null,null,null,null,null,"León"]
[null,null,null,null,null,null,null,null,null,null,null,null,null,null,null,null,null,null,null,"Lérida"]
["Months","January","February","March","April","May","June","July","August","Sept.","Oct.","Nov.","Dec.","Annual",null,null,null,null,null,"Lugo"]
["% occupation:",100,100,100,100,100,100,100,90,100,100,100,100,{"$f":"AVERAGE(B34:M34)","v":99.166666666666671},null,null,null,null,null,"Madrid"]
[null,null,null,null,null,null,null,null,null,null,null,null,null,null,null,null,null,null,null,"Málaga"]
[null,null,null,null,null,null,null,null,null,null,null,null,null,null,null,null,null,null,null,"Palencia"]
["SYSTEM DATA",null,null,null,null,null,null,null,null,null,null,null,null,null,null,null,null,null,null,"Pontevedra"]
[null,null,null,null,null,null,null,null,null,null,null,null,null,null,null,null,null,null,null,"Salamanca"]
[null,null,{"$f":"\"Collector efficiency curve:  Eff. = \"&I46&\" - \"&I48&\" · (tm - ta) / I\"","v":"Collector efficiency curve:  Eff. = 0,75 - 3,7 · (tm - ta) / I"},null,null,null,null,null,null,null,null,null,null,null,null,null,null,null,null,"Santa Cruz de Tenerife"]
[null,null,null,"tm: ","Fluid average temperature",null,null,null,null,null,null,null,null,null,null,null,null,null,null,"Segovia"]
[null,null,null,"ta: ","Temperature",null,null,null,null,null,null,null,null,null,null,null,null,null,null,"Sevilla"]
[null,null,null,"It : ","Irradiance [W/m2]",null,null,null,null,null,null,null,null,null,null,null,null,null,null,"Soria"]
[null,null,null,null,null,null,null,null,null,null,null,null,null,null,null,null,null,null,null,"Tarragona"]
[null,"Useful collector surface [m2]:",null,null,null,null,null,null,2.3199999999999998,null,null,null,null,null,null,null,null,null,null,"Teruel"]
[]
[null,"Maximun collector efficiency:",null,null,null,null,null,null,0.75,null,null,null,null,null,null,null,null,null,null,"Toledo"]
[]
[null,"Loses [W/(m2·ºC)]:",null,null,null,null,null,null,3.7,null,null,null,null,null,null,null,null,null,null,"Valencia"]
[]
[null,"Accumulation volume [L/m2]:",null,null,null,null,null,null,70,{"$f":"IF(I50<50,\"No Cumple CTE\",IF(I50>180,\"No Cumple CTE\",\" \"))","v":" "},null,null,null,null,null,null,null,null,null,"Valladolid"]
[]
[null,"Number of collectors",null,null,null,null,null,null,3]
[]
[null,"Caudal en circuito primario [(L/h)/m2] - [(Kg/h)/m2]:",null,null,null,null,null,null,{"$f":"95/1.886","v":50.3711558854719},null,null,null,null,null,null,null,null,null,null,"Vizcaya"]
[null,"Caudal en circuito secundario [(L/h)/m2] - [(Kg/h)/m2]:",null,null,null,null,null,null,{"$f":"86/1.886","v":45.599151643690355},null,null,null,null,null,null,null,null,null,null,"Zamora"]
[null,"Calor específico en circuito primario [Kcal/(Kg·ºC)]:",null,null,null,null,null,null,0.9,null,null,null,null,null,null,null,null,null,null,"Zaragoza"]
[null,"Calor específico en circuito secundario [Kcal/(Kg·ºC)]:",null,null,null,null,null,null,1]
[null,"Eficiencia del intercambiador:",null,null,null,null,null,null,0.8]
[null,"Energy Support:",null,null,null,null,null,null,{"$f":"'Savings Indicator'!D12","v":"-"},null,null,null,null,null,null,null,null,null,null,"Gas Natural"]
[null,null,null,null,null,null,null,null,null,null,null,null,null,null,null,null,null,null,null,"Gasóleo"]
["ENERGY CALCULATION",null,null,null,null,null,null,null,null,null,null,null,null,null,null,null,null,null,null,"GLP"]
[null,null,null,null,null,null,null,null,null,null,null,null,null,null,null,null,null,null,null,"Carbón domést."]
["Months","January","February","March","April","May","June","July","August","Sept.","Oct.","Nov.","Dec.","Annual",null,null,null,null,null,"Electricidad"]
["Water consumption 60ºC [m3]:",{"$f":"RADIACION!B63","v":0},{"$f":"RADIACION!C63","v":0},{"$f":"RADIACION!D63","v":0},{"$f":"RADIACION!E63","v":0},{"$f":"RADIACION!F63","v":0},{"$f":"RADIACION!G63","v":0},{"$f":"RADIACION!H63","v":0},{"$f":"RADIACION!I63","v":0},{"$f":"RADIACION!J63","v":0},{"$f":"RADIACION!K63","v":0},{"$f":"RADIACION!L63","v":0},{"$f":"RADIACION!M63","v":0},{"$f":"SUM(B64:M64)","v":0}]
["Temperature increase. [ºC]:",{"$f":"RADIACION!B64","v":52},{"$f":"RADIACION!C64","v":51},{"$f":"RADIACION!D64","v":50},{"$f":"RADIACION!E64","v":48},{"$f":"RADIACION!F64","v":45},{"$f":"RADIACION!G64","v":43},{"$f":"RADIACION!H64","v":40},{"$f":"RADIACION!I64","v":41},{"$f":"RADIACION!J64","v":43},{"$f":"RADIACION!K64","v":46},{"$f":"RADIACION!L64","v":50},{"$f":"RADIACION!M64","v":52}]
["Energy needs. [Mcal]:",{"$f":"RADIACION!B65","v":0},{"$f":"RADIACION!C65","v":0},{"$f":"RADIACION!D65","v":0},{"$f":"RADIACION!E65","v":0},{"$f":"RADIACION!F65","v":0},{"$f":"RADIACION!G65","v":0},{"$f":"RADIACION!H65","v":0},{"$f":"RADIACION!I65","v":0},{"$f":"RADIACION!J65","v":0},{"$f":"RADIACION!K65","v":0},{"$f":"RADIACION!L65","v":0},{"$f":"RADIACION!M65","v":0},{"$f":"SUM(B66:M66)","v":0}]
["Water consumption 45ºC [m3]:",{"$f":"RADIACION!B66","v":0},{"$f":"RADIACION!C66","v":0},{"$f":"RADIACION!D66","v":0},{"$f":"RADIACION!E66","v":0},{"$f":"RADIACION!F66","v":0},{"$f":"RADIACION!G66","v":0},{"$f":"RADIACION!H66","v":0},{"$f":"RADIACION!I66","v":0},{"$f":"RADIACION!J66","v":0},{"$f":"RADIACION!K66","v":0},{"$f":"RADIACION!L66","v":0},{"$f":"RADIACION!M66","v":0},{"$f":"SUM(B67:M67)","v":0}]
[]
["OUTPUT DATA"]
[]
[null,null,null,"Número de colectores:   ",null,null,null,{"$f":"I52","v":3}]
[null,null,null,"Total collector surface [m2]: ",null,null,null,{"$f":"H71*I44","v":6.9599999999999991}]
[null,null,null,null,null,null,null,{"$f":"H8","v":50}]
[null,null,null,"Accumulation volume [L]:",null,null,null,{"$f":"H72*I50","v":487.19999999999993}]
[null,null,null,"CO2 avoided emissions [kg CO2]:",null,null,null,{"$f":"IF(I59=\"Gas Natural\",$N$80*1000*RADIACION!$AF$68*RADIACION!$AF$60/RADIACION!$AF$69,IF(I59=\"Gasóleo\",$N$80*1000*RADIACION!$AF$68*RADIACION!$AF$61/RADIACION!$AF$69,IF(I59=\"GLP\",$N$80*1000*RADIACION!$AF$68*RADIACION!$AF$62/RADIACION!$AF$69,IF(I59=\"Carbón domést.\",$N$80*1000*RADIACION!$AF$68*RADIACION!$AF$63/RADIACION!$AF$69,$N$80*1000*RADIACION!$AF$68*RADIACION!$AF$64/RADIACION!$AF$69))))","v":{"$error":"#DIV/0!"}}]
[null,null,null,"Economic saving [€/year]",null,null,null,{"$f":"VLOOKUP($I$59,RADIACION!P59:T63,5,FALSE)","v":{"$error":"#N/A"}}]
[]
["Months","January","February","March","April","May","June","July","August","Sept.","Oct.","Nov.","Dec.","Annual"]
["HSW Total Energy [Mcal]:",{"$f":"RADIACION!B65","v":0},{"$f":"RADIACION!C65","v":0},{"$f":"RADIACION!D65","v":0},{"$f":"RADIACION!E65","v":0},{"$f":"RADIACION!F65","v":0},{"$f":"RADIACION!G65","v":0},{"$f":"RADIACION!H65","v":0},{"$f":"RADIACION!I65","v":0},{"$f":"RADIACION!J65","v":0},{"$f":"RADIACION!K65","v":0},{"$f":"RADIACION!L65","v":0},{"$f":"RADIACION!M65","v":0},{"$f":"SUM(B79:M79)","v":0}]
["Savings [Mcal]:",{"$f":"B79*(B81)","v":{"$error":"#DIV/0!"}},{"$error":"#DIV/0!"},{"$error":"#DIV/0!"},{"$error":"#DIV/0!"},{"$error":"#DIV/0!"},{"$error":"#DIV/0!"},{"$error":"#DIV/0!"},{"$error":"#DIV/0!"},{"$error":"#DIV/0!"},{"$error":"#DIV/0!"},{"$error":"#DIV/0!"},{"$error":"#DIV/0!"},{"$f":"SUM(B80:M80)","v":{"$error":"#DIV/0!"}}]
["Savings [%]:",{"$f":"RADIACION!B71","v":{"$error":"#DIV/0!"}},{"$f":"RADIACION!C71","v":{"$error":"#DIV/0!"}},{"$f":"RADIACION!D71","v":{"$error":"#DIV/0!"}},{"$f":"RADIACION!E71","v":{"$error":"#DIV/0!"}},{"$f":"RADIACION!F71","v":{"$error":"#DIV/0!"}},{"$f":"RADIACION!G71","v":{"$error":"#DIV/0!"}},{"$f":"RADIACION!H71","v":{"$error":"#DIV/0!"}},{"$f":"RADIACION!I71","v":{"$error":"#DIV/0!"}},{"$f":"RADIACION!J71","v":{"$error":"#DIV/0!"}},{"$f":"RADIACION!K71","v":{"$error":"#DIV/0!"}},{"$f":"RADIACION!L71","v":{"$error":"#DIV/0!"}},{"$f":"RADIACION!M71","v":{"$error":"#DIV/0!"}},{"$f":"+N80/N79","v":{"$error":"#DIV/0!"}}]
["Excess [kcal]:",{"$f":"(B83/100)*B79","v":{"$error":"#DIV/0!"}},{"$error":"#DIV/0!"},{"$error":"#DIV/0!"},{"$error":"#DIV/0!"},{"$error":"#DIV/0!"},{"$error":"#DIV/0!"},{"$error":"#DIV/0!"},{"$error":"#DIV/0!"},{"$error":"#DIV/0!"},{"$error":"#DIV/0!"},{"$error":"#DIV/0!"},{"$error":"#DIV/0!"},{"$f":"SUM(B82:M82)","v":{"$error":"#DIV/0!"}}]
["Excess [%]:",{"$f":"IF(RADIACION!B71>1,-100+RADIACION!B71*100,0)","v":{"$error":"#DIV/0!"}},{"$f":"IF(RADIACION!C71>1,-100+RADIACION!C71*100,0)","v":{"$error":"#DIV/0!"}},{"$f":"IF(RADIACION!D71>1,-100+RADIACION!D71*100,0)","v":{"$error":"#DIV/0!"}},{"$f":"IF(RADIACION!E71>1,-100+RADIACION!E71*100,0)","v":{"$error":"#DIV/0!"}},{"$f":"IF(RADIACION!F71>1,-100+RADIACION!F71*100,0)","v":{"$error":"#DIV/0!"}},{"$f":"IF(RADIACION!G71>1,-100+RADIACION!G71*100,0)","v":{"$error":"#DIV/0!"}},{"$f":"IF(RADIACION!H71>1,-100+RADIACION!H71*100,0)","v":{"$error":"#DIV/0!"}},{"$f":"IF(RADIACION!I71>1,-100+RADIACION!I71*100,0)","v":{"$error":"#DIV/0!"}},{"$f":"IF(RADIACION!J71>1,-100+RADIACION!J71*100,0)","v":{"$error":"#DIV/0!"}},{"$f":"IF(RADIACION!K71>1,-100+RADIACION!K71*100,0)","v":{"$error":"#DIV/0!"}},{"$f":"IF(RADIACION!L71>1,-100+RADIACION!L71*100,0)","v":{"$error":"#DIV/0!"}},{"$f":"IF(RADIACION!M71>1,-100+RADIACION!M71*100,0)","v":{"$error":"#DIV/0!"}}]
[]
["HSW Total Energy [kWh]:",{"$f":"RADIACION!B65*$B$89","v":0},{"$f":"RADIACION!C65*$B$89","v":0},{"$f":"RADIACION!D65*$B$89","v":0},{"$f":"RADIACION!E65*$B$89","v":0},{"$f":"RADIACION!F65*$B$89","v":0},{"$f":"RADIACION!G65*$B$89","v":0},{"$f":"RADIACION!H65*$B$89","v":0},{"$f":"RADIACION!I65*$B$89","v":0},{"$f":"RADIACION!J65*$B$89","v":0},{"$f":"RADIACION!K65*$B$89","v":0},{"$f":"RADIACION!L65*$B$89","v":0},{"$f":"RADIACION!M65*$B$89","v":0},{"$f":"SUM(B85:M85)","v":0}]
["Savings [kWh]:",{"$f":"B85*(B81)","v":{"$error":"#DIV/0!"}},{"$f":"C85*(C81)","v":{"$error":"#DIV/0!"}},{"$error":"#DIV/0!"},{"$error":"#DIV/0!"},{"$error":"#DIV/0!"},{"$error":"#DIV/0!"},{"$error":"#DIV/0!"},{"$error":"#DIV/0!"},{"$error":"#DIV/0!"},{"$error":"#DIV/0!"},{"$error":"#DIV/0!"},{"$error":"#DIV/0!"},{"$f":"SUM(B86:M86)","v":{"$error":"#DIV/0!"}}]
["Excess [kWh]:",{"$f":"(B88/100)*B85","v":{"$error":"#DIV/0!"}},{"$error":"#DIV/0!"},{"$error":"#DIV/0!"},{"$error":"#DIV/0!"},{"$error":"#DIV/0!"},{"$error":"#DIV/0!"},{"$error":"#DIV/0!"},{"$error":"#DIV/0!"},{"$error":"#DIV/0!"},{"$error":"#DIV/0!"},{"$error":"#DIV/0!"},{"$error":"#DIV/0!"},{"$f":"SUM(B87:M87)","v":{"$error":"#DIV/0!"}}]
["Excess [%]:",{"$f":"IF(RADIACION!B71>1,-100+RADIACION!B71*100,0)","v":{"$error":"#DIV/0!"}},{"$f":"IF(RADIACION!C71>1,-100+RADIACION!C71*100,0)","v":{"$error":"#DIV/0!"}},{"$f":"IF(RADIACION!D71>1,-100+RADIACION!D71*100,0)","v":{"$error":"#DIV/0!"}},{"$f":"IF(RADIACION!E71>1,-100+RADIACION!E71*100,0)","v":{"$error":"#DIV/0!"}},{"$f":"IF(RADIACION!F71>1,-100+RADIACION!F71*100,0)","v":{"$error":"#DIV/0!"}},{"$f":"IF(RADIACION!G71>1,-100+RADIACION!G71*100,0)","v":{"$error":"#DIV/0!"}},{"$f":"IF(RADIACION!H71>1,-100+RADIACION!H71*100,0)","v":{"$error":"#DIV/0!"}},{"$f":"IF(RADIACION!I71>1,-100+RADIACION!I71*100,0)","v":{"$error":"#DIV/0!"}},{"$f":"IF(RADIACION!J71>1,-100+RADIACION!J71*100,0)","v":{"$error":"#DIV/0!"}},{"$f":"IF(RADIACION!K71>1,-100+RADIACION!K71*100,0)","v":{"$error":"#DIV/0!"}},{"$f":"IF(RADIACION!L71>1,-100+RADIACION!L71*100,0)","v":{"$error":"#DIV/0!"}},{"$f":"IF(RADIACION!M71>1,-100+RADIACION!M71*100,0)","v":{"$error":"#DIV/0!"}}]
["[Mcal] to [kWh]",1.1599999999999999]

{"sheet":"PV","index":13,"n_rows":82,"n_cols":24,"rows_kept":82,"cut":false,"hidden":false,"merged":[[0,0,0,13],[5,7,5,8],[71,9,71,10]]}
["DOMESTIC ENERGY PRODUCTION WITH SOLAR PHOTOVOLTAIC",null,null,null,null,null,null,null,null,null,null,null,null,null,null,null,null,null,null,null,null,1,2,3]
[null,null,null,null,null,null,null,null,null,null,null,null,null,null,null,null,null,null,null,null,null,"Viv.unifamiliar",30,"por persona"]
["CLIMATODOLOGHY DATA",null,null,null,null,null,null,null,null,null,null,null,null,null,null,null,null,null,null,null,null,"Viv.multifamiliar",22,"por persona"]
[null,null,null,null,null,null,null,null,null,null,null,null,null,null,null,null,null,null,null,"Álava",null,"Hospital/Clínica",55,"por cama"]
[]
[null,null,"Angulo de instalación de los captadores",null,null,null,null,50]
[null,null,"Zona climática de la capital (CTE)",null,null,null,null,null,{"$f":"VLOOKUP(#REF!,RADIACION!$A$3:$BA$54,41)","v":{"$error":"#REF!"}},null,null,null,null,null,null,null,null,null,null,"Almería",null,"Hotel/Hostal**",40,"por cama"]
[null,null,"Altitud de la capital [m]:",null,null,null,null,null,{"$f":"VLOOKUP(#REF!,RADIACION!$A$3:$BA$54,14)","v":{"$error":"#REF!"}},null,null,null,null,null,null,null,null,null,null,"Asturias",null,"Camping",40,"por emplazamiento"]
[null,null,"Humedad relativa media [%]:",null,null,null,null,null,{"$f":"VLOOKUP(#REF!,RADIACION!$A$3:$BA$54,18)","v":{"$error":"#REF!"}},null,null,null,null,null,null,null,null,null,null,"Ávila",null,"Hostal/Pension*",35,"por cama"]
[null,null,"Velocidad media del viento [Km/h]:",null,null,null,null,null,{"$f":"VLOOKUP(#REF!,RADIACION!$A$3:$BA$54,36)","v":{"$error":"#REF!"}},null,null,null,null,null,null,null,null,null,null,"Badajoz",null,"Residenc Est/3Edad",55,"por cama"]
[null,null,"Temperatura máxima en verano [ºC]:",null,null,null,null,null,{"$f":"VLOOKUP(#REF!,RADIACION!$A$3:$BA$54,19)","v":{"$error":"#REF!"}},null,null,null,null,null,null,null,null,null,null,"Baleares",null,"Vestuario/Duchas",15,"por servicio"]
[null,null,"Temperatura mínima en invierno [ºC]:",null,null,null,null,null,{"$f":"VLOOKUP(#REF!,RADIACION!$A$3:$BA$54,20)","v":{"$error":"#REF!"}},null,null,null,null,null,null,null,null,null,null,"Barcelona",null,"Escuela",3,"por alumno"]
[null,null,"Variación diurna:",null,null,null,null,null,{"$f":"VLOOKUP(#REF!,RADIACION!$A$3:$BA$54,17)","v":{"$error":"#REF!"}},null,null,null,null,null,null,null,null,null,null,"Burgos",null,"Cuartel",20,"por persona"]
[null,null,"Grados-día. Temperatura base 15/15 (UNE 24046):",null,null,null,null,null,{"$f":"VLOOKUP(#REF!,RADIACION!$A$3:$BA$54,33)","v":{"$error":"#REF!"}},"(Periodo Noviembre/Marzo)",null,null,null,null,null,null,null,null,null,"Cáceres",null,"Fábrica/Taller",15,"por persona"]
[null,null,"Grados-día. Temperatura base 15/15 (UNE 24046):",null,null,null,null,null,{"$f":"VLOOKUP(#REF!,RADIACION!$A$3:$BA$54,34)","v":{"$error":"#REF!"}},"(Todo el año)",null,null,null,null,null,null,null,null,null,"Cádiz",null,"Administrativo",3,"por persona"]
["Days / month",31,28,31,30,31,30,31,31,30,31,30,31,{"$f":"+SUM(B16:M16)","v":365},null,null,null,null,null,"Cantabria",null,"Gimnasio",25,"por usuario"]
["Months","January","February","March","April","May","June","July","August","Sept.","Oct.","Nov.","Dec.","Annual",null,null,null,null,null,"Castellon",null,"Lavandería",5,"por kilo de ropa"]
["Radiation [W/m2/day]:",3230,4670,6000,6090,6530,6960,7440,7060,6300,5030,3720,3010,{"$f":"AVERAGE(B18:M18)","v":5503.333333333333},null,null,null,null,null,"Córdoba"]
["Radiation [W/m2/month]:",{"$f":"+B18*B16","v":100130},130760,186000,182700,202430,208800,230640,218860,189000,155930,111600,93310,{"$f":"SUM(B19:M19)","v":2010160}]
["Equivalent hours",{"$f":"+(B19*$I$31*$I$32)/($I$27)","v":80.103999999999999},104.608,148.80000000000001,146.16,161.94400000000002,167.04,184.51200000000003,175.08799999999999,151.19999999999999,124.74400000000001,89.28,74.64800000000001,{"$f":"SUM(B20:M20)","v":1608.1279999999999},null,null,null,null,null,"Cuenca"]
["Consumption vs eq h",{"$f":"+B60/B20","v":0},0,0,0,0,0,0,0,0,0,0,0,{"$f":"+AVERAGE(B21:M21)","v":0},null,null,null,null,null,"Gerona"]
[]
["ENERGY DEMAND DATA",null,null,null,null,null,null,null,null,null,null,null,null,null,null,null,null,null,null,"Huesca"]
[]
[null,null,"Annual Electricity [kWh/year]",null,null,null,null,null,{"$f":"+Energy!P5","v":0},null,null,null,null,null,null,null,null,null,null,"Jaén"]
[null,null,"Electricity coverage ratio",null,null,null,null,null,1]
[null,null,"Modules peak power [W7m2]",null,null,null,null,null,{"$f":"+I46/I40","v":150}]
[null,null,"Net Balance system? ",null,null,null,null,null,"yes"]
[null,null,"Recommended coverage ratio if no accumulation and no net balance",null,null,null,null,null,{"$f":"+MIN(B21:M21)","v":0}]
[null,null,"Approx Peak Power [kW]",null,null,null,null,null,{"$f":"+I25*I26/N20","v":0},null,null,null,null,null,null,null,null,null,null,"La Coruña"]
[null,null,"Module Yield",null,null,null,null,null,{"$f":"+I42","v":0.15},null,null,null,null,null,null,null,null,null,null,"La Rioja"]
[null,null,"Performance Ratio",null,null,null,null,null,{"$f":"+I44","v":0.8},null,null,null,null,null,null,null,null,null,null,"Las Palmas"]
[null,null,"number of m2",null,null,null,null,null,{"$f":"+ROUND(I30/(I27/1000),0)","v":0},null,null,null,null,null,null,null,null,null,null,"León"]
[]
[null,null,null,null,null,null,null,null,null,null,null,null,null,null,null,null,null,null,null,"Málaga"]
[null,null,null,null,null,null,null,null,null,null,null,null,null,null,null,null,null,null,null,"Palencia"]
["SYSTEM DATA",null,null,null,null,null,null,null,null,null,null,null,null,null,null,null,null,null,null,"Pontevedra"]
[null,null,null,null,null,null,null,null,null,null,null,null,null,null,null,null,null,null,null,"Salamanca"]
[null,null,null,null,null,null,null,null,null,null,null,null,null,null,null,null,null,null,null,"Tarragona"]
[null,"Useful collector surface [m2]:",null,null,null,null,null,null,1.3,null,null,null,null,null,null,null,null,null,null,"Teruel"]
[]
[null,"Maximun collector efficiency:",null,null,null,null,null,null,0.15,null,null,null,null,null,null,null,null,null,null,"Toledo"]
[]
[null,"PH facility performance ratio",null,null,null,null,null,null,0.8,null,null,null,null,null,null,null,null,null,null,"Valencia"]
[]
[null,"Module peak power W",null,null,null,null,null,null,{"$f":"150*1.3","v":195},null,null,null,null,null,null,null,null,null,null,"Valladolid"]
[]
[null,"Number of modules",null,null,null,null,null,null,{"$f":"+ROUND(I30/(I46/1000),0)","v":0}]
[]
[null,"Caudal en circuito primario [(L/h)/m2] - [(Kg/h)/m2]:",null,null,null,null,null,null,{"$f":"95/1.886","v":50.3711558854719},null,null,null,null,null,null,null,null,null,null,"Vizcaya"]
[null,"Caudal en circuito secundario [(L/h)/m2] - [(Kg/h)/m2]:",null,null,null,null,null,null,{"$f":"86/1.886","v":45.599151643690355},null,null,null,null,null,null,null,null,null,null,"Zamora"]
[null,"Calor específico en circuito primario [Kcal/(Kg·ºC)]:",null,null,null,null,null,null,0.9,null,null,null,null,null,null,null,null,null,null,"Zaragoza"]
[null,"Calor específico en circuito secundario [Kcal/(Kg·ºC)]:",null,null,null,null,null,null,1]
[null,"Eficiencia del intercambiador:",null,null,null,null,null,null,0.8]
[null,"Facility Peak power kW",null,null,null,null,null,null,{"$f":"+I48*I46/1000","v":0},null,null,null,null,null,null,null,null,null,null,"Gas Natural"]
[null,null,null,null,null,null,null,null,null,null,null,null,null,null,null,null,null,null,null,"Gasóleo"]
["ENERGY CALCULATION",null,null,null,null,null,null,null,null,null,null,null,null,null,null,null,null,null,null,"GLP"]
[null,null,null,null,null,null,null,null,null,null,null,null,null,null,null,null,null,null,null,"Carbón domést."]
["Months","January","February","March","April","May","June","July","August","Sept.","Oct.","Nov.","Dec.","Annual",null,null,null,null,null,"Electricidad"]
["Monthly consumption",{"$f":"+Energy!D5","v":0},{"$f":"+Energy!E5","v":0},{"$f":"+Energy!F5","v":0},{"$f":"+Energy!G5","v":0},{"$f":"+Energy!H5","v":0},{"$f":"+Energy!I5","v":0},{"$f":"+Energy!J5","v":0},{"$f":"+Energy!K5","v":0},{"$f":"+Energy!L5","v":0},{"$f":"+Energy!M5","v":0},{"$f":"+Energy!N5","v":0},{"$f":"+Energy!O5","v":0},{"$f":"SUM(B60:M60)","v":0}]
["Monthly generation",{"$f":"+$I$55*B20","v":0},0,0,0,0,0,0,0,0,0,0,0,{"$f":"SUM(B61:M61)","v":0}]
["Difference",{"$f":"RADIACION!B65","v":0},{"$f":"RADIACION!C65","v":0},{"$f":"RADIACION!D65","v":0},{"$f":"RADIACION!E65","v":0},{"$f":"RADIACION!F65","v":0},{"$f":"RADIACION!G65","v":0},{"$f":"RADIACION!H65","v":0},{"$f":"RADIACION!I65","v":0},{"$f":"RADIACION!J65","v":0},{"$f":"RADIACION!K65","v":0},{"$f":"RADIACION!L65","v":0},{"$f":"RADIACION!M65","v":0},{"$f":"SUM(B62:M62)","v":0}]
["% coverage",{"$f":"+B61/B60","v":{"$error":"#DIV/0!"}},{"$f":"+C61/C60","v":{"$error":"#DIV/0!"}},{"$error":"#DIV/0!"},{"$error":"#DIV/0!"},{"$error":"#DIV/0!"},{"$error":"#DIV/0!"},{"$error":"#DIV/0!"},{"$error":"#DIV/0!"},{"$error":"#DIV/0!"},{"$error":"#DIV/0!"},{"$error":"#DIV/0!"},{"$error":"#DIV/0!"},{"$f":"AVERAGE(B63:M63)","v":{"$error":"#DIV/0!"}}]
[]
["ECONOMIC ASSESSMENT"]
[]
[null,null,null,"Número de colectores:   ",null,null,null,{"$f":"I48","v":0}]
[null,null,null,"Price per Wp in €",null,null,null,2.5,null,"Average selling price",null,null,"€/kWh/year"]
[null,null,null,null,null,null,null,{"$f":"H6","v":50},null,null,null,null,"€/MWh"]
[null,null,null,"Price instalation",null,null,null,{"$f":"+H68*I55*1000","v":0},null,"Average buying price",null,{"$f":"Energy!AF5","v":0},"€/kWh/year"]
[null,null,null,"Price accumulation system",null,null,null,0,null,"network costs for power",null,null,"€/kWp/year"]
[null,null,null,"Total investment costs",null,null,null,{"$f":"+H70+H71","v":0},null,"network costs for energy",null,null,"€/kWh/year"]
[null,null,null,"Project life time",null,null,null,20,null,"Maintenance cost",null,null,"€/kWp/year"]
[null,null,null,null,null,null,null,{"$f":"+(H61-H60)*$L$68","v":0}]
["Months","January","February","March","April","May","June","July","August","Sept.","Oct.","Nov.","Dec.","Annual"]
["Sales",{"$f":"+IF($I$28=\"yes\",IF((B61-B60)>0,(B61-B60)*$L$68,0),0)","v":0},0,0,0,0,0,0,0,0,0,0,0,{"$f":"SUM(B76:M76)","v":0}]
["Savings",{"$f":"+IF((B61-B60)<0,B61*$L$70,B60*$L$70)","v":0},{"$f":"+IF((C61-C60)<0,C61*$L$70,C60*$L$70)","v":0},0,{"$f":"+IF((E61-E60)<0,E61*$L$70,E60*$L$70)","v":0},0,0,0,0,0,0,0,0,{"$f":"SUM(B77:M77)","v":0}]
["Network Costs",{"$f":"+$I$55/12*$L$71+$L$72*B61","v":0},{"$f":"+$I$55/12*$L$71+$L$72*C61","v":0},0,0,0,0,0,0,0,0,0,0,{"$f":"SUM(B78:M78)","v":0}]
["Maintenance cost",{"$f":"+$L$73/12*$I$55","v":0},0,0,0,0,0,0,0,0,0,0,0,{"$f":"SUM(B79:M79)","v":0}]
["Total incomes",{"$f":"+B76+B77-B78-B79","v":0},{"$f":"+C76+C77-C78-C79","v":0},0,0,0,0,0,0,0,0,0,0,{"$f":"SUM(B80:M80)","v":0}]
[]
["Payback",{"$f":"+H72/N80","v":{"$error":"#DIV/0!"}},"years"]

{"sheet":"Cooling","index":14,"n_rows":25,"n_cols":22,"rows_kept":25,"cut":false,"hidden":false,"merged":[[11,1,11,6],[10,1,10,6],[4,1,4,6],[3,1,3,6],[5,1,5,6],[6,1,6,6],[7,1,7,6],[8,1,8,6],[9,1,9,6]]}
[]
[]
[]
[null,"TIPS",null,null,null,null,null,"Potential savings (kWh)","Potential Savings (€)","Potential savings (kCO2)","Potential Investment","Payback","Type of measure","Price",null,null,null,"Potential savings (kWh)","Potential savings (€)","Potential savings (kCO2)","Potential investment"]
[null,{"$f":"IF(OR(AND('Heating and cooling'!C50=\"Yes\",'Heating and cooling'!G50<2.1,'Heating and cooling'!F50>4),AND('Heating and cooling'!C53=\"Yes\",'Heating and cooling'!G53<2.1,'Heating and cooling'!F53>4)),\"Purchase a new high efficient system\",\"\")","v":""},null,null,null,null,null,{"$f":"IF(B5<>\"\",(1-(AVERAGE('Heating and cooling'!G53,'Heating and cooling'!G50)/4.6))*'Excel de Apoyo'!Q3,0)","v":0},{"$f":"H5*'Excel de Apoyo'!P33","v":0},{"$f":"H5*Energy!$C$24","v":0},{"$f":"IF(AND('Heating and cooling'!C50=\"Yes\",Cooling!B5<>\"\"),'Heating and cooling'!E50*300,IF(AND('Heating and cooling'!C53=\"Yes\",Cooling!B5<>\"\"),600*'Heating and cooling'!H53,0))","v":0},{"$f":"IFERROR(K5/I5,\"\")","v":""},{"$f":"IF(B5<>\"\",\"High investment\",\"\")","v":""},300,600,"per machine","Free",{"$f":"H11+H12+H8","v":0},{"$f":"I11+I12+I8","v":0},{"$f":"J11+J12+J8","v":0},{"$f":"K11+K12+K8","v":0}]
[null,{"$f":"IFERROR(IF('Excel de Apoyo'!N2<1,\"\",IF(AND(Housing!V67>4,C19=\"Altos\",Housing!C20<>\"North\",OR('Heating and cooling'!C50=\"Yes\",'Heating and cooling'!C53=\"Yes\")),\"Install Low e-glass with solar control\",\"\")),\"\")","v":""},null,null,null,null,null,{"$f":"IF(B6<>\"\",0.3*('Excel de Apoyo'!Q3-V6),0)","v":0},{"$f":"H6*'Excel de Apoyo'!P33","v":0},{"$f":"H6*Energy!$C$24","v":0},{"$f":"IFERROR(IF(AND(B6<>\"\",C19=\"Altos\",OR('Heating and cooling'!C50=\"Yes\",'Heating and cooling'!C53=\"Yes\")),IF(AND(YEAR(TODAY())-Housing!C13>39,Housing!C25=\"0- 25%\"),O6*Housing!V67,N6*Housing!V67),0),0)","v":0},"",{"$f":"IF(B6<>\"\",\"High investment\",\"\")","v":""},85,250,"m2","Low",{"$f":"H9+H10","v":0},{"$f":"I9+I10","v":0},{"$f":"J9+J10","v":0},{"$f":"K9+K10","v":0},{"$f":"H5","v":0}]
[null,{"$f":"IFERROR(IF('Excel de Apoyo'!N3<1,\"\",IF(AND(Housing!V33/Housing!V28<0.45,Housing!V60>2.5,Housing!C20<>\"North\",C19=\"Altos\",C20=\"Si\"),\"Install courtains and Awnings\",IF(Housing!V33/Housing!V28<0.45,\"Install courtains\",IF(AND(Housing!V60>2.5,C19=\"Altos\",C20=\"Si\"),\"Install Awnings\",\"\")))),\"\")","v":""},null,null,null,null,null,{"$f":"IF(B7<>\"\",(0.45*Housing!W61*('Excel de Apoyo'!Q3-V7))+(0.1*Housing!W81*('Excel de Apoyo'!Q3-V7)),0)","v":0},{"$f":"H7*'Excel de Apoyo'!$P$33","v":0},{"$f":"H7*Energy!$C$24","v":0},{"$f":"IF(B7<>\"\",(Housing!V60*N7)+(Housing!V82*Cooling!O7*1.33),0)","v":0},"",{"$f":"IF(B7<>\"\",\"High investment\",\"\")","v":""},100,32,"m2","High",{"$f":"H7+H6+H5","v":0},{"$f":"I7+I6+I5","v":0},{"$f":"J7+J6+J5","v":0},{"$f":"K7+K6+K5","v":0},{"$f":"V6+H6","v":0}]
[null,{"$f":"IF(AND(Housing!D17<26,OR(AND('Heating and cooling'!C50=\"Yes\",'Heating and cooling'!F50>0),AND('Heating and cooling'!C53=\"Yes\",'Heating and cooling'!F53>0))),\"Set the ideal energy efficiency temperature: at 26ºC\",\"\")","v":""},null,null,null,null,null,{"$f":"IF(B8<>\"\",((26-Housing!D17)*0.07)*('Excel de Apoyo'!Q3-V8),0)","v":0},{"$f":"H8*'Excel de Apoyo'!$P$33","v":0},{"$f":"H8*Energy!$C$24","v":0},0,"",{"$f":"IF(B8<>\"\",\"Free\",\"\")","v":""},0,null,null,null,null,null,null,null,0]
[null,{"$f":"IF(AND('Heating and cooling'!C59=\"\",'Heating and cooling'!C60=\"\",OR('Heating and cooling'!C50=\"Yes\",'Heating and cooling'!C53=\"Yes\")),\"Install a digital programmable thermostat\",\"\")","v":""},null,null,null,null,null,{"$f":"IF(B9<>\"\",0.2*('Excel de Apoyo'!Q3-V9),0)","v":0},{"$f":"H9*'Excel de Apoyo'!$P$33","v":0},{"$f":"H9*Energy!$C$24","v":0},{"$f":"IF(B9<>\"\",N9,0)","v":0},"",{"$f":"IF(B9<>\"\",\"Low investment\",\"\")","v":""},100,"per thermostat",null,null,null,null,null,null,0]
[null,{"$f":"IFERROR(IF(AND(C19=\"Bajos\",OR('Heating and cooling'!C50=\"Yes\",'Heating and cooling'!C53=\"Yes\"),AND('Heating and cooling'!C56=\"\",'Heating and cooling'!C54=\"\")),\"Use only evaporative cooling and fans\",IF(AND(C19=\"Altos\",OR('Heating and cooling'!C50=\"Yes\",'Heating and cooling'!C53=\"Yes\"),AND('Heating and cooling'!C56=\"\",'Heating and cooling'!C54=\"\")),\"Make the most of evaporative cooling and fans\",\"\")),\"\")","v":""},null,null,null,null,null,{"$f":"IF(B10=\"Use only evaporative cooling and fans\",0.8*('Excel de Apoyo'!Q3-V10),IF(Cooling!B10=\"Make the most of evaporative cooling and fans\",0.4*('Excel de Apoyo'!Q3-V10),0))","v":0},{"$f":"H10*'Excel de Apoyo'!P33","v":0},{"$f":"H10*Energy!$C$24","v":0},{"$f":"IF(B10<>\"\",N10*Family!B13/2,0)","v":0},"",{"$f":"IF(B10<>\"\",\"Low investment\",\"\")","v":""},110,"per evaporative system",null,null,null,null,null,null,0]
[null,{"$f":"IF(Housing!D44<6,\"\",\"5 minutes are enough in excessive warm weather\")","v":""},null,null,null,null,null,{"$f":"IF(B11<>\"\",(0.005+(0.0000694*(Housing!D44-5)))*('Excel de Apoyo'!Q3-V10),0)","v":0},{"$f":"H11*'Excel de Apoyo'!$P$33","v":0},{"$f":"H11*Energy!$C$24","v":0},0,"",{"$f":"IF(B11<>\"\",\"Free\",\"\")","v":""},0,null,null,null,null,null,null,null,{"$f":"V12+H12","v":0}]
[null,{"$f":"IF(Housing!D43<>\"\",IF(OR(Housing!D43=\"Morning\",Housing!D43=\"Night\"),\"\",\"Ventilate when the weather is less warm\"),\"\")","v":""},null,null,null,null,null,{"$f":"IF(B12<>\"\",IF(H11<>\"\",H11,10*0.0000694),0)","v":0},{"$f":"H12*'Excel de Apoyo'!$P$33","v":0},{"$f":"H12*Energy!$C$24","v":0},0,{"$f":"IFERROR(K12/I12,\"\")","v":""},{"$f":"IF(B12<>\"\",\"Free\",\"\")","v":""},0,null,null,null,null,null,null,null,{"$f":"V10+H10","v":0}]
[null,null,null,null,null,null,null,{"$f":"SUM(H5:H11)","v":0},{"$f":"SUM(I5:I11)","v":0},{"$f":"SUM(J5:J11)","v":0},{"$f":"SUM(K5:K11)","v":0}]
[]
[]
[]
[]
[]
[null,"CDD",{"$f":"IF('Heating and cooling'!Q8>10,\"Altos\",\"Bajos\")","v":{"$error":"#DIV/0!"}}]
[null,"AC",{"$f":"IF(OR(AND('Heating and cooling'!C50=\"Yes\",'Heating and cooling'!F50>0),AND('Heating and cooling'!C53=\"Yes\",'Heating and cooling'!F53>0)),\"Si\",\"\")","v":""}]
[]
[]
[]
[]
[null,null,null,""]

{"sheet":"EE Appliances and Lighting","index":15,"n_rows":11,"n_cols":25,"rows_kept":11,"cut":false,"hidden":false,"merged":[[3,17,3,18],[5,15,6,15],[9,1,9,6],[4,1,4,6],[8,1,8,6],[5,1,5,6],[6,1,6,6],[7,1,7,6]]}
[]
[]
[]
[null,null,null,null,null,null,null,null,null,null,null,null,null,null,null,null,null,"Old System"]
[null,"TIPS",null,null,null,null,null,"Potential savings (kWh)","Potential savings (€)","Potential savings (kCO2)","Potential investment","Payback","Type of measure","Price",null,null,"Price per W","Incadescent or Halogen","Low consumption light bulbs",null,null,"Potential savings (kWh)","Potential savings (€)","Potential savings (kCO2)","Potential investment"]
[null,{"$f":"IF(OR('Appliances and Lighting'!H13=\"Stand by mode\",'Appliances and Lighting'!H14=\"Stand by mode\",'Appliances and Lighting'!H15=\"Stand by mode\",'Appliances and Lighting'!H16=\"Stand by mode\"),\"Switch off completely appliances with stand-by \",\"\")","v":""},null,null,null,null,null,{"$f":"IF(B6=\"\",0,0.1*'Excel de Apoyo'!Q5*(COUNTIF('Appliances and Lighting'!H13:H16,\"Stand by mode\")/4))","v":0},{"$f":"IFERROR(H6*Energy!$AF$5,0)","v":0},{"$f":"H6*Energy!$C$24","v":0},0,{"$f":"IFERROR(K6/I6,\"\")","v":""},{"$f":"IF(B6<>\"\",\"Free\",\"\")","v":""},0,null,"New System","LED light bulbs",0.28999999999999998,0.94,null,"Free",{"$f":"H6+H10","v":0},{"$f":"I6+I10","v":0},0,0]
[null,{"$f":"IF(OR(AND(OR('Appliances and Lighting'!C22=\"Yes\",'Appliances and Lighting'!C26=\"Yes\"),(('Appliances and Lighting'!E23+'Appliances and Lighting'!E26)*50)>1000),AND(OR('Appliances and Lighting'!C25=\"Yes\",'Appliances and Lighting'!C23=\"Yes\"),(('Appliances and Lighting'!E25+'Appliances and Lighting'!E22)*50)>2000)),\"Changes light bulbs for LED technology\",IF(AND(OR('Appliances and Lighting'!C22=\"Yes\",'Appliances and Lighting'!C26=\"Yes\"),(('Appliances and Lighting'!E23+'Appliances and Lighting'!E26)*50)>100),\"Change the light bulbs for low consumption ones\",IF((('Appliances and Lighting'!E22+'Appliances and Lighting'!E26)*50)>50,\"Change progressively to a low consumption lighting system\",\"\")))","v":""},null,null,null,null,null,{"$f":"IFERROR('Appliances and Lighting'!L27,0)","v":0},{"$f":"'Appliances and Lighting'!M27+H7*'Excel de Apoyo'!P33","v":0},{"$f":"H7*Energy!$C$24","v":0},{"$f":"'Appliances and Lighting'!J27","v":0},{"$f":"IFERROR(K7/I7,\"\")","v":""},{"$f":"IF(B7<>\"\",\"Low investment\",\"\")","v":""},null,null,null,"Low consumption light bulbs",0.09,"-",null,"Low",{"$f":"H7+H8","v":0},{"$f":"I7+I8","v":0},0,0]
[null,{"$f":"IF(OR('Appliances and Lighting'!C34>0,'Appliances and Lighting'!C35>0,'Appliances and Lighting'!C36>0,'Appliances and Lighting'!C37>0,'Appliances and Lighting'!C38>0,'Appliances and Lighting'!C39>0),\"Always check the Energy Label when purchasing new appliances \",\"\")","v":""},null,null,null,null,null,{"$f":"IF(B8<>\"\",('Appliances and Lighting'!E3*VLOOKUP('Appliances and Lighting'!G3,'Etiqueta Energética'!B3:C13,2,FALSE))+('Appliances and Lighting'!E4*VLOOKUP('Appliances and Lighting'!G4,'Etiqueta Energética'!D3:E13,2,FALSE))+('Appliances and Lighting'!E5*VLOOKUP('Appliances and Lighting'!G5,'Etiqueta Energética'!L3:M13,2,FALSE))+('Appliances and Lighting'!E10*VLOOKUP('Appliances and Lighting'!G10,'Etiqueta Energética'!F3:G13,2,FALSE))+('Appliances and Lighting'!E11*VLOOKUP('Appliances and Lighting'!G11,'Etiqueta Energética'!J3:K13,2,FALSE))+('Appliances and Lighting'!E12*VLOOKUP('Appliances and Lighting'!G12,'Etiqueta Energética'!H3:I13,2,FALSE))+('Appliances and Lighting'!I13*VLOOKUP('Appliances and Lighting'!G13,'Etiqueta Energética'!B16:C26,2,FALSE)),0)","v":0},{"$f":"H8*'Excel de Apoyo'!P33","v":0},{"$f":"H8*Energy!$C$24","v":0},0,"",{"$f":"IF(B8<>\"\",\"Low investment\",\"\")","v":""},null,null,null,null,null,null,null,"High",{"$f":"H9","v":0},{"$f":"I9","v":0},0,0]
[null,{"$f":"IF(AND('Appliances and Lighting'!C7=\"Yes\",'Appliances and Lighting'!E7>2),\"Install induction cooking system\",\"\")","v":""},null,null,null,null,null,{"$f":"IF(B9<>\"\",0.5*'Appliances and Lighting'!I7,0)","v":0},{"$f":"H9*'Excel de Apoyo'!P33","v":0},{"$f":"H9*Energy!$C$24","v":0},{"$f":"IF(B9<>\"\",N9,0)","v":0},"",{"$f":"IF(B9<>\"\",\"High investment\",\"\")","v":""},740,"per induction system"]
[null,"Check the FEE Guide and you will find new ways to save money",null,null,null,null,null,null,null,null,{"$f":"IF(B10<>\"\",0,\"\")","v":0},"",{"$f":"IF(B10<>\"\",\"Free\",\"\")","v":"Free"},0]
[null,null,null,null,null,null,null,{"$f":"SUM(H6:H10)","v":0},{"$f":"SUM(I6:I10)","v":0},0,0]

{"sheet":"Statistics","index":16,"n_rows":46,"n_cols":13,"rows_kept":46,"cut":false,"hidden":false,"merged":[[1,4,1,5],[42,8,45,8],[41,1,41,2],[42,1,42,2],[45,1,45,2],[44,1,44,2],[43,1,43,2]]}
[]
[null,null,null,null,"Estimated Consumption (kWh)",null,"%"]
[null,null,null,null,"Lighting",{"$f":"'Excel de Apoyo'!N2","v":0},{"$f":"F3/$F$10","v":{"$error":"#DIV/0!"}}]
[null,null,null,null,"Cooling",{"$f":"'Excel de Apoyo'!N3","v":0},{"$f":"F4/$F$10","v":{"$error":"#DIV/0!"}},null,"Fuel : real consumption ","Electricity: real consumption (kWh)","Electricity: estimated consumption (kWh)","error %","Quality of the estimate"]
[null,null,null,null,"Appliances",{"$f":"'Excel de Apoyo'!N5","v":0},{"$f":"F5/$F$10","v":{"$error":"#DIV/0!"}},null,{"$f":"'Excel de Apoyo'!P21","v":0},{"$f":"'Excel de Apoyo'!P20","v":0},{"$f":"SUM(F3:F5)+'Excel de Apoyo'!N4","v":0},{"$f":"(J5-K5)/J5","v":{"$error":"#DIV/0!"}},{"$f":"IF(ABS(L5)<0.05,\"Good\",\"Bad\")","v":{"$error":"#DIV/0!"}}]
[]
[null,null,null,null,"Heating ",{"$f":"'Excel de Apoyo'!N4+'Excel de Apoyo'!D2-IF(Energy!P18>0.01,0,'Excel de Apoyo'!Q6)","v":0},{"$f":"F7/$F$10","v":{"$error":"#DIV/0!"}}]
[null,null,null,null,"DHW",{"$f":"IF(Energy!P18>0.01,Energy!P18,'Excel de Apoyo'!Q6)","v":0},{"$f":"F8/$F$10","v":{"$error":"#DIV/0!"}}]
[]
[null,null,null,null,"TOTAL",{"$f":"SUM(F3:F8)","v":0},{"$f":"SUM(G3:G8)","v":{"$error":"#DIV/0!"}}]
[]
[]
[]
[]
[]
[]
[]
[]
[]
[]
[]
[]
[]
[]
[]
[]
[]
[]
[]
[]
[]
[]
[]
[]
[]
[]
[]
[]
[]
[]
[]
[null,"Performance",null,"kWh/m2","kCO2/m2","euro/m2","kWh/occupant","kWh/occupant-hour","Improvement"]
[null,"Initial",null,{"$f":"'Excel de Apoyo'!Q7/Housing!C14","v":{"$error":"#DIV/0!"}},{"$f":"'Excel de Apoyo'!Q31/Housing!C14","v":{"$error":"#DIV/0!"}},{"$f":"'Excel de Apoyo'!R31/Housing!C14","v":{"$error":"#DIV/0!"}},{"$f":"'Excel de Apoyo'!Q7/Family!B13","v":{"$error":"#DIV/0!"}},{"$f":"'Excel de Apoyo'!Q7/(SUM(Family!F3:F12)*50)","v":{"$error":"#DIV/0!"}},{"$f":"((D43*0.2+E43*0.2+F43*0.2+G43*0.2+H43*0.2)-(D46*0.2+E46*0.2+F46*0.2+G46*0.2+H46*0.2))/(D43*0.2+E43*0.2+F43*0.2+G43*0.2+H43*0.2)","v":{"$error":"#DIV/0!"}}]
[null,"Optimal"]
[null,"Difference with optimal",null,{"$f":"IF(D406=\"\",\"\",(D43-D44)/D43)","v":""},{"$f":"IF(E406=\"\",\"\",(E43-E44)/E43)","v":""},"","",""]
[null,"Potential",null,{"$f":"('Excel de Apoyo'!Q7-SUM('Savings Indicator'!D21:E23))/Housing!C14","v":{"$error":"#DIV/0!"}},{"$f":"('Excel de Apoyo'!Q31-'Savings Indicator'!D26)/Housing!C14","v":{"$error":"#DIV/0!"}},{"$f":"('Excel de Apoyo'!R31-'Optimal Power'!G8-Heating!H23-Cooling!I13-'EE Appliances and Lighting'!J11)/Housing!C14","v":{"$error":"#DIV/0!"}},{"$f":"('Excel de Apoyo'!Q7-SUM('Savings Indicator'!D21:E23))/Family!B13","v":{"$error":"#DIV/0!"}},{"$f":"('Excel de Apoyo'!Q7-SUM('Savings Indicator'!D21:E23))/(SUM(Family!F3:F12)*50)","v":{"$error":"#DIV/0!"}}]

{"sheet":"Savings Indicator","index":17,"n_rows":29,"n_cols":9,"rows_kept":29,"cut":false,"hidden":false,"merged":[[17,1,28,1],[6,7,6,8],[25,3,25,4],[26,3,26,4],[27,3,27,4],[28,3,28,4],[14,3,14,4],[15,3,15,4],[16,3,16,4],[17,3,17,4],[18,3,18,4],[9,3,9,4],[13,7,13,8],[14,7,14,8],[26,6,26,8],[27,6,27,8],[4,6,5,8],[6,1,6,2],[10,3,10,4],[4,1,5,4],[6,3,6,4],[7,3,7,4],[8,3,8,4],[14,1,16,1],[7,1,13,1],[15,7,15,8],[16,7,16,8],[11,3,11,4],[12,3,12,4],[13,3,13,4]]}
[]
[]
[]
[]
[null,"AUDIT",null,null,null,null,"QUESTIONNAIRE"]
[]
[null,"ID Audit",null,{"$f":"Identification!B2","v":0},null,null,"Date of the questionnaire"]
[null,"Data about the dwelling and energy consumption","Size of dwelling (m2)",{"$f":"Housing!C14","v":0},null,null,null,"Electricity","Fuel"]
[null,null,"Electricity power (kW)",{"$f":"Energy!C29","v":0},null,null,"ACTUAL energy saving (behavioural) [kWh]"]
[null,null,"Electricity consumption (kWh)",{"$f":"'Excel de Apoyo'!P20","v":0},null,null,"ACTUAL energy saving (small purchase) [kWh]"]
[null,null,"Eletricity cost (€/kWh)",{"$f":"IFERROR('Excel de Apoyo'!Q46,0)","v":""},null,null,"ACTUAL energy saving (large investments) [kWh]"]
[null,null,"Fuel",{"$f":"IFERROR(IF(AND(AVERAGE('Excel de Apoyo'!A21:A30)=0,'Excel de Apoyo'!P20>0.5),'Excel de Apoyo'!B20,VLOOKUP(1,'Excel de Apoyo'!A21:B26,2,FALSE)),\"-\")","v":"-"},null,null,null,"Electricity","Heat"]
[null,null,"Fuel consumption (kWh)",{"$f":"SUM('Excel de Apoyo'!P21:P30)","v":0},null,null,"ACTUAL Energy from Renewable Energy Sources [kWh]"]
[null,null,"Fuel cost (€/kWh)",{"$f":"IFERROR(AVERAGE('Excel de Apoyo'!Q47:Q56),\"-\")","v":"-"},null,null,"ACTUAL C02 savings [kg]"]
[null,null,"Members living in the household",{"$f":"Family!B13","v":0},null,null,"ACTUAL investment for energy saving (small purchase) [€]"]
[null,null,"How many of them are children?",{"$f":"SUM(Family!G3:G12)","v":0},null,null,"ACTUAL investment for energy saving (large investment) [€]"]
[null,null,"Is it Social Housing?",{"$f":"IF(Family!C16<>\"\",\"Yes\",\"No\")","v":"No"},null,null,"ACTUAL investment for Renewable Energy Sources [€]"]
[null,"Data about the AUDIT and POTENTIAL  energy saving","Date of the energy audit",{"$f":"Identification!B15","v":"00:00:00"}]
[null,null,"Time required for the energy audit",{"$f":"Identification!B20","v":"00:00:00"}]
[null,null,null,"Electricity","Fuel",null,"Report Language:","English"]
[null,null,"POTENTIAL energy saving (behavioural) (kWh)",{"$f":"IFERROR(Cooling!R5+'EE Appliances and Lighting'!V6+(Heating!Q6*(IF(('Excel de Apoyo'!N4/'Excel de Apoyo'!Q4)>1,1,'Excel de Apoyo'!N4/'Excel de Apoyo'!Q4))),0)","v":0},{"$f":"IFERROR(Heating!Q6*(1-IF(('Excel de Apoyo'!N4/'Excel de Apoyo'!Q4)>1,1,'Excel de Apoyo'!N4/'Excel de Apoyo'!Q4)),0)","v":0}]
[null,null,"POTENTIAL energy saving (small purchase) (kWh)",{"$f":"IFERROR('Optimal Power'!G8+Cooling!R6+'EE Appliances and Lighting'!V7+(Heating!Q7*(IF(('Excel de Apoyo'!N4/'Excel de Apoyo'!Q4)>1,1,'Excel de Apoyo'!N4/'Excel de Apoyo'!Q4))),0)","v":0},{"$f":"IF(OR(Heating!C32=\"Si\",Heating!C33=\"Si\"),0,Heating!Q7)","v":0}]
[null,null,"POTENTIAL energy saving (large investments) (kWh)",{"$f":"IFERROR(Cooling!R7+'EE Appliances and Lighting'!V8+(Heating!Q8*(IF(('Excel de Apoyo'!N4/'Excel de Apoyo'!Q4)>1,1,'Excel de Apoyo'!N4/'Excel de Apoyo'!Q4))),0)","v":0},{"$f":"IF(OR(Heating!C32=\"Si\",Heating!C33=\"Si\"),0,Heating!Q8)","v":0}]
[null,null,null,"Electricity","Heat"]
[null,null,"POTENTIAL energy generation from RES (kWh electricity / kWh heat)",{"$f":"PV!N61","v":0},{"$f":"IFERROR(('DHW-ST'!N80*1.162222222)+(IF(Heating!B8<>\"\",'Excel de Apoyo'!Q4,0)),0)","v":0}]
[null,null,"POTENTIAL C02 savings (kilograms)",{"$f":"Heating!I23+Cooling!J13+'EE Appliances and Lighting'!J11","v":0}]
[null,null,"POTENTIAL  investment for energy saving (small purchase) (€)",{"$f":"'Optimal Power'!H8+Heating!T7+Cooling!U6+'EE Appliances and Lighting'!Y7","v":0},null,null,{"$f":"IF(SUM(D21:D23)>(0.9*Energy!P5),\"The estimated electricity savings are higher than 90% of the actual consumption. Please check the audit.\",\"\")","v":""}]
[null,null,"POTENTIAL investment for energy saving (large investment) (€)",{"$f":"Heating!T8+Cooling!U7+'EE Appliances and Lighting'!Y8","v":0},null,null,{"$f":"IF(SUM(E21:E23)>(0.9*SUM('Excel de Apoyo'!P21:P28)),\"The estimated fuel savings are higher than 90% of actual consumption. Please check the audit.\",\"\")","v":""}]
[null,null,"POTENTIAL investment for Renewable Energy Sources (€)",{"$f":"Heating!T9+PV!H72","v":0}]

{"sheet":"Etiqueta Energética","index":18,"n_rows":26,"n_cols":13,"rows_kept":26,"cut":false,"hidden":true,"merged":[]}
[]
[null,null,"Frigorificos o combi",null,"Congeladores",null,"Lavadoras",null,"Lavavajillas",null,"Secadoras",null,"Horno"]
["Ahorro por hora de uso",0,0,0,0,0,0,0,0,0,0,0,0]
[null,"A+++",0,"A+++",0,"A+++",0,"A+++",0,"A+++",0,"A+++",0]
[null,"A++",0,"A++",0,"A++",0,"A++",0,"A++",0,"A++",0]
[null,"A+",0,"A+",0,"A+",0,"A+",0,"A+",0,"A+",0]
[null,"A",0,"A",0,"A",0,"A",0,"A",0,"A",30.666666666666668]
[null,"B",1.1785714285714286,"B",2.1130952380952381,"B",20.8,"B",22.126530612244895,"B",0,"B",43]
[null,"C",1.625,"C",2.9166666666666665,"C",27.575757575757578,"C",29.448979591836732,"C",69.55,"C",56]
[null,"D",1.9583333333333333,"D",3.5119047619047619,"D",35.454545454545453,"D",37.248979591836729,"D",74.099999999999994,"D",{"$f":"(($M$13-$M$9)/4)+M9","v":66.416666666666671}]
[null,"E",{"$f":"((C$13-C$10)/3)+C10","v":2.2916666666666665},"E",{"$f":"((E$13-E$10)/3)+E10","v":4.1111111111111107},"E",{"$f":"((G$13-G$10)/3)+G10","v":41.074747474747475},"E",{"$f":"((I$13-I$10)/3)+I10","v":42.979591836734691},"E",84.012499999999989,"E",{"$f":"(($M$13-$M$9)/4)+M10","v":76.833333333333343}]
[null,"F",{"$f":"(($C$13-$C$10)/3)+C11","v":2.625},"F",{"$f":"(($C$13-$C$10)/3)+E11","v":4.4444444444444438},"F",{"$f":"(($C$13-$C$10)/3)+G11","v":41.408080808080811},"F",{"$f":"(($C$13-$C$10)/3)+I11","v":43.312925170068027},"F",{"$f":"((K13-K11)/2+K11)","v":100.1},"F",{"$f":"(($M$13-$M$9)/4)+M11","v":87.250000000000014}]
[null,"G",2.9583333333333335,"G",5.3095238095238093,"G",52.31515151515152,"G",54.440816326530609,"G",116.1875,"G",97.666666666666671]
[]
[null,null,"TV"]
["ahorros respecto a A+++",0,0]
[null,"A+++",0]
[null,"A++",0]
[null,"A+",0.375]
[null,"A",0.56521739130434778]
[null,"B",0.66666666666666663]
[null,"C",0.76190476190476186]
[null,"D",0.83333333333333337]
[null,"E",0.875]
[null,"F",0.88888888888888895]
[null,"G",0.9]

{"sheet":"Excel de Apoyo","index":19,"n_rows":129,"n_cols":22,"rows_kept":129,"cut":false,"hidden":true,"merged":[]}
[null,null,"%","kWh ",null,null,null,null,null,null,null,null,"%","kWh teoricos","kWh",null,"KWh Total","% TOTAL"]
[null,"Heating & Hot Water",{"$f":"D2/$N$7","v":{"$error":"#DIV/0!"}},{"$f":"(P21+P22+P23-'Appliances and Lighting'!H19)+'Excel de Apoyo'!P24+'Excel de Apoyo'!P25+'Excel de Apoyo'!P26+'Excel de Apoyo'!P27+'Excel de Apoyo'!P28+'Excel de Apoyo'!P29+'Excel de Apoyo'!P30","v":0},"Combustible",null,null,null,null,null,null,"Lighting",{"$f":"N2/$N$7","v":{"$error":"#DIV/0!"}},{"$f":"SUM('Appliances and Lighting'!I22:I26)","v":0},{"$f":"M2*$O$7","v":{"$error":"#DIV/0!"}},"Electricidad",{"$f":"O2","v":{"$error":"#DIV/0!"}},{"$f":"Q2/$Q$7","v":{"$error":"#DIV/0!"}},null,{"$f":"Q2/N2","v":{"$error":"#DIV/0!"}}]
[null,null,null,null,null,null,null,null,null,null,null,"Cooling",{"$f":"N3/$N$7","v":{"$error":"#DIV/0!"}},{"$f":"SUM('Heating and cooling'!I50:I56)+Energy!P19","v":0},{"$f":"M3*$O$7","v":{"$error":"#DIV/0!"}},"Electricidad",{"$f":"O3","v":{"$error":"#DIV/0!"}},{"$f":"Q3/$Q$7","v":{"$error":"#DIV/0!"}}]
[null,null,null,null,null,null,null,null,null,{"$f":"D2/(D2+N4)","v":{"$error":"#DIV/0!"}},{"$f":"N4/(N4+D2)","v":{"$error":"#DIV/0!"}},"Heating",{"$f":"N4/$N$7","v":{"$error":"#DIV/0!"}},{"$f":"SUM('Heating and cooling'!I19:I22,'Heating and cooling'!I25:I26,'Heating and cooling'!I31,'Heating and cooling'!I33,'Heating and cooling'!J65)","v":0},{"$f":"M4*$O$7","v":{"$error":"#DIV/0!"}},"Electricidad",{"$f":"IFERROR(O4+D2-Q6,D2)","v":0},{"$f":"Q4/$Q$7","v":{"$error":"#DIV/0!"}}]
[null,null,null,null,null,null,null,null,null,null,null,"Appliances",{"$f":"N5/$N$7","v":{"$error":"#DIV/0!"}},{"$f":"SUM('Appliances and Lighting'!I3:I15)","v":0},{"$f":"M5*$O$7","v":{"$error":"#DIV/0!"}},"Electricidad",{"$f":"O5","v":{"$error":"#DIV/0!"}},{"$f":"Q5/$Q$7","v":{"$error":"#DIV/0!"}},null,{"$f":"Q5/N5","v":{"$error":"#DIV/0!"}}]
[null,null,null,null,null,null,null,null,null,null,null,"Domestic hot water",null,null,null,null,{"$f":"IF(OR(,'Heating and cooling'!C63=\"Yes\",'Heating and cooling'!C65=\"Yes\",'Heating and cooling'!C66=\"Yes\",'Heating and cooling'!C67=\"Yes\",'Heating and cooling'!C68=\"Yes\",'Heating and cooling'!C69=\"Yes\"),1.162*'DHW-ST'!N79,0)","v":0},{"$f":"Q6/Q7","v":{"$error":"#DIV/0!"}}]
[null,null,null,null,null,"Factores emisión","kCO2/kWh",null,null,null,null,null,null,{"$f":"SUM(N2:N5)","v":0},{"$f":"Energy!P5","v":0},null,{"$f":"SUM(Q2:Q5)+Q6","v":{"$error":"#DIV/0!"}}]
[null,null,"ERR","COP",null,"Natural Gas",0.20200000000000001]
[null,"A+++",4.0999999999999996,4.5999999999999996,null,"Butane",0.223,null,null,null,null,null,null,null,null,null,null,null,"Leyenda del grafico 'Savings by type'"]
[null,"A++",3.6,4.0999999999999996,null,"Propane",0.219,null,null,null,null,"Total m2 ventanas",{"$f":"SUM(Housing!C56:U56)/(100*100)","v":0},null,null,null,null,null,"Potential energy saving behavioural (kWh)",null,null,{"$f":"'Savings Indicator'!D21+'Savings Indicator'!E21","v":0}]
[null,"A+",3.1,3.6,null,"Diesel",0.26700000000000002,null,null,null,null,"Total perimetro ventanas",{"$f":"(SUM(Housing!C57:U57)/100)","v":0},null,null,null,null,null,"Potential energy saving with small purchase tip (kWh)",null,null,{"$f":"'Savings Indicator'!D22+'Savings Indicator'!E22","v":0}]
[null,"A",2.6,3.1,null,null,null,null,null,null,null,null,"total","co2",null,null,null,null,"Potential energy saving with large investment  (kWh)",null,null,{"$f":"'Savings Indicator'!D23+'Savings Indicator'!E23","v":0}]
[null,"B",2.4,2.6,null,"Conversion factor","kWh/m3",null,null,null,null,"Total savings ",{"$f":"SUM('Savings Indicator'!D21:E23)","v":0},null,"Potential carbon savings",{"$f":"'Savings Indicator'!D26","v":0}]
[null,"C",2.1,2.4,null,"Natural Gas",{"$f":"11.146*0.9051724","v":10.089051570400001},null,null,null,null,"Potential consumption",{"$f":"M15-M13","v":0},null,"Estimated carbon emissions",{"$f":"P15-P13","v":0}]
[null,"Malisimo",1.5,1.5,null,null,null,null,null,null,null,"Total Comsumptions kWh",{"$f":"SUM(P20:P30)","v":0},null,null,{"$f":"Q31","v":0}]
[]
[]
[]
[null,"ENERGY SUPPLY","unit","Jan","Feb","Mar","Apr","May","Jun","Jul","Aug","Sep","Oct","Nov","Dec","TOTAL","kCO2/año","euros"]
[null,"Electricity","kWh",{"$f":"Energy!D5","v":0},{"$f":"Energy!E5","v":0},{"$f":"Energy!F5","v":0},{"$f":"Energy!G5","v":0},{"$f":"Energy!H5","v":0},{"$f":"Energy!I5","v":0},{"$f":"Energy!J5","v":0},{"$f":"Energy!K5","v":0},{"$f":"Energy!L5","v":0},{"$f":"Energy!M5","v":0},{"$f":"Energy!N5","v":0},{"$f":"Energy!O5","v":0},{"$f":"SUM(D20:O20)","v":0},{"$f":"P20*Energy!C24","v":0},{"$f":"P20*P33+Energy!AU5","v":0}]
[{"$f":"IF(P21>0,1,0)","v":0},"Natural gas","kWh",{"$f":"Energy!D10*IF(Energy!$C$10=\"kWh\",1, $G$14)","v":0},{"$f":"Energy!E10*IF(Energy!$C$10=\"kWh\",1, $G$14)","v":0},{"$f":"Energy!F10*IF(Energy!$C$10=\"kWh\",1, $G$14)","v":0},{"$f":"Energy!G10*IF(Energy!$C$10=\"kWh\",1, $G$14)","v":0},{"$f":"Energy!H10*IF(Energy!$C$10=\"kWh\",1, $G$14)","v":0},{"$f":"Energy!I10*IF(Energy!$C$10=\"kWh\",1, $G$14)","v":0},{"$f":"Energy!J10*IF(Energy!$C$10=\"kWh\",1, $G$14)","v":0},{"$f":"Energy!K10*IF(Energy!$C$10=\"kWh\",1, $G$14)","v":0},{"$f":"Energy!L10*IF(Energy!$C$10=\"kWh\",1, $G$14)","v":0},{"$f":"Energy!M10*IF(Energy!$C$10=\"kWh\",1, $G$14)","v":0},{"$f":"Energy!N10*IF(Energy!$C$10=\"kWh\",1, $G$14)","v":0},{"$f":"Energy!O10*IF(Energy!$C$10=\"kWh\",1, $G$14)","v":0},{"$f":"SUM(D21:O21)","v":0},{"$f":"P21*G8","v":0},{"$f":"P21*P34+Energy!AU6","v":0}]
[0,"Propane","kWh",{"$f":"Energy!D11*12.72","v":0},{"$f":"Energy!E11*12.72","v":0},{"$f":"Energy!F11*12.72","v":0},{"$f":"Energy!G11*12.72","v":0},{"$f":"Energy!H11*12.72","v":0},{"$f":"Energy!I11*12.72","v":0},{"$f":"Energy!J11*12.72","v":0},{"$f":"Energy!K11*12.72","v":0},{"$f":"Energy!L11*12.72","v":0},{"$f":"Energy!M11*12.72","v":0},{"$f":"Energy!N11*12.72","v":0},{"$f":"Energy!O11*12.72","v":0},0,{"$f":"P22*G9","v":0},{"$f":"P22*P35+Energy!AU7","v":0}]
[0,"Butane","kWh",{"$f":"Energy!D12*12.888","v":0},{"$f":"Energy!E12*12.888","v":0},{"$f":"Energy!F12*12.888","v":0},{"$f":"Energy!G12*12.888","v":0},{"$f":"Energy!H12*12.888","v":0},{"$f":"Energy!I12*12.888","v":0},{"$f":"Energy!J12*12.888","v":0},{"$f":"Energy!K12*12.888","v":0},{"$f":"Energy!L12*12.888","v":0},{"$f":"Energy!M12*12.888","v":0},{"$f":"Energy!N12*12.888","v":0},{"$f":"Energy!O12*12.888","v":0},0,{"$f":"P23*G10","v":0},{"$f":"P23*P36+Energy!AU8","v":0}]
[0,"Diesel","kWh",{"$f":"Energy!D13*9.97","v":0},{"$f":"Energy!E13*9.97","v":0},{"$f":"Energy!F13*9.97","v":0},{"$f":"Energy!G13*9.97","v":0},{"$f":"Energy!H13*9.97","v":0},{"$f":"Energy!I13*9.97","v":0},{"$f":"Energy!J13*9.97","v":0},{"$f":"Energy!K13*9.97","v":0},{"$f":"Energy!L13*9.97","v":0},{"$f":"Energy!M13*9.97","v":0},{"$f":"Energy!N13*9.97","v":0},{"$f":"Energy!O13*9.97","v":0},0,{"$f":"P24*G11","v":0},{"$f":"P24*P37+Energy!AU9","v":0}]
[0,"Pellet","kWh",{"$f":"Energy!D14*4.72","v":0},{"$f":"Energy!E14*4.72","v":0},{"$f":"Energy!F14*4.72","v":0},{"$f":"Energy!G14*4.72","v":0},{"$f":"Energy!H14*4.72","v":0},{"$f":"Energy!I14*4.72","v":0},{"$f":"Energy!J14*4.72","v":0},{"$f":"Energy!K14*4.72","v":0},{"$f":"Energy!L14*4.72","v":0},{"$f":"Energy!M14*4.72","v":0},{"$f":"Energy!N14*4.72","v":0},{"$f":"Energy!O14*4.72","v":0},0,null,{"$f":"P25*P38+Energy!AU10","v":0}]
[0,"Firewood","kWh",{"$f":"4.1*Energy!D15","v":0},{"$f":"4.1*Energy!E15","v":0},{"$f":"4.1*Energy!F15","v":0},{"$f":"4.1*Energy!G15","v":0},{"$f":"4.1*Energy!H15","v":0},{"$f":"4.1*Energy!I15","v":0},{"$f":"4.1*Energy!J15","v":0},{"$f":"4.1*Energy!K15","v":0},{"$f":"4.1*Energy!L15","v":0},{"$f":"4.1*Energy!M15","v":0},{"$f":"4.1*Energy!N15","v":0},{"$f":"4.1*Energy!O15","v":0},0,null,{"$f":"P26*P39+Energy!AU11","v":0}]
[null,"Central boiler","kWh",{"$f":"Energy!D16","v":0},{"$f":"Energy!E16","v":0},{"$f":"Energy!F16","v":0},{"$f":"Energy!G16","v":0},{"$f":"Energy!H16","v":0},{"$f":"Energy!I16","v":0},{"$f":"Energy!J16","v":0},{"$f":"Energy!K16","v":0},{"$f":"Energy!L16","v":0},{"$f":"Energy!M16","v":0},{"$f":"Energy!N16","v":0},{"$f":"Energy!O16","v":0},0,{"$f":"IFERROR(S27*P27,\"\")","v":""},{"$f":"P27*P40+Energy!AU12","v":0},{"$f":"IFERROR(VLOOKUP('Heating and cooling'!H11,'Excel de Apoyo'!F8:G11,2,FALSE),\"\")","v":""},{"$f":"IF(AND('Heating and cooling'!C63=\"Yes\",'Heating and cooling'!E63=\"\"),VLOOKUP('Heating and cooling'!I63,'Excel de Apoyo'!F8:G11,2,FALSE),'Excel de Apoyo'!S27)","v":""}]
[null,"District heating","kWh",{"$f":"Energy!D17","v":0},{"$f":"Energy!E17","v":0},{"$f":"Energy!F17","v":0},{"$f":"Energy!G17","v":0},{"$f":"Energy!H17","v":0},{"$f":"Energy!I17","v":0},{"$f":"Energy!J17","v":0},{"$f":"Energy!K17","v":0},{"$f":"Energy!L17","v":0},{"$f":"Energy!M17","v":0},{"$f":"Energy!N17","v":0},{"$f":"Energy!O17","v":0},0,null,{"$f":"P28*P41+Energy!AU13","v":0}]
[null,"District heating- Sanitary hot water","kWh",{"$f":"Energy!D18","v":0},{"$f":"Energy!E18","v":0},{"$f":"Energy!F18","v":0},{"$f":"Energy!G18","v":0},{"$f":"Energy!H18","v":0},{"$f":"Energy!I18","v":0},{"$f":"Energy!J18","v":0},{"$f":"Energy!K18","v":0},{"$f":"Energy!L18","v":0},{"$f":"Energy!M18","v":0},{"$f":"Energy!N18","v":0},{"$f":"Energy!O18","v":0},0,null,{"$f":"P29*P42+Energy!AU14","v":0}]
[null,"District cooling","kWh",{"$f":"Energy!D19","v":0},{"$f":"Energy!E19","v":0},{"$f":"Energy!F19","v":0},{"$f":"Energy!G19","v":0},{"$f":"Energy!H19","v":0},{"$f":"Energy!I19","v":0},{"$f":"Energy!J19","v":0},{"$f":"Energy!K19","v":0},{"$f":"Energy!L19","v":0},{"$f":"Energy!M19","v":0},{"$f":"Energy!N19","v":0},{"$f":"Energy!O19","v":0},0,null,{"$f":"P30*P43+Energy!AU15","v":0}]
[null,null,null,null,null,null,null,null,null,null,null,null,null,null,null,null,{"$f":"SUM(Q20:Q30)","v":0},{"$f":"SUM(R20:R30)","v":0}]
[null,"Cost of energy","unit","Jan","Feb","Mar","Apr","May","Jun","Jul","Aug","Sep","Oct","Nov","Dec","Average"]
[null,"Electricity","€/kWh",{"$f":"Energy!T5","v":0},{"$f":"Energy!U5","v":0},{"$f":"Energy!V5","v":0},{"$f":"Energy!W5","v":0},{"$f":"Energy!X5","v":0},{"$f":"Energy!Y5","v":0},{"$f":"Energy!Z5","v":0},{"$f":"Energy!AA5","v":0},{"$f":"Energy!AB5","v":0},{"$f":"Energy!AC5","v":0},{"$f":"Energy!AD5","v":0},{"$f":"Energy!AE5","v":0},{"$f":"IFERROR(AVERAGE(D33:O33),0)","v":0}]
[null,"Natural gas","€/kWh",{"$f":"Energy!T10/(IF(Energy!$S$10=\"€/kWh\",1,11.146)*0.9051724)","v":0},{"$f":"Energy!U10/(IF(Energy!$S$10=\"€/kWh\",1,11.146)*0.9051724)","v":0},{"$f":"Energy!V10/(IF(Energy!$S$10=\"€/kWh\",1,11.146)*0.9051724)","v":0},{"$f":"Energy!W10/(IF(Energy!$S$10=\"€/kWh\",1,11.146)*0.9051724)","v":0},{"$f":"Energy!X10/(IF(Energy!$S$10=\"€/kWh\",1,11.146)*0.9051724)","v":0},{"$f":"Energy!Y10/(IF(Energy!$S$10=\"€/kWh\",1,11.146)*0.9051724)","v":0},{"$f":"Energy!Z10/(IF(Energy!$S$10=\"€/kWh\",1,11.146)*0.9051724)","v":0},{"$f":"Energy!AA10/(IF(Energy!$S$10=\"€/kWh\",1,11.146)*0.9051724)","v":0},{"$f":"Energy!AB10/(IF(Energy!$S$10=\"€/kWh\",1,11.146)*0.9051724)","v":0},{"$f":"Energy!AC10/(IF(Energy!$S$10=\"€/kWh\",1,11.146)*0.9051724)","v":0},{"$f":"Energy!AD10/(IF(Energy!$S$10=\"€/kWh\",1,11.146)*0.9051724)","v":0},{"$f":"Energy!AE10/(IF(Energy!$S$10=\"€/kWh\",1,11.146)*0.9051724)","v":0},{"$f":"IF(AND(SUM(D34:O34)=0,Heating!C25=\"Central\",Heating!C33=\"Si\"),'Excel de Apoyo'!P40,AVERAGE(D34:O34))","v":0}]
[null,"Propane","€/kWh",{"$f":"Energy!T11/12.72","v":0},{"$f":"Energy!U11/12.72","v":0},{"$f":"Energy!V11/12.72","v":0},{"$f":"Energy!W11/12.72","v":0},{"$f":"Energy!X11/12.72","v":0},{"$f":"Energy!Y11/12.72","v":0},{"$f":"Energy!Z11/12.72","v":0},{"$f":"Energy!AA11/12.72","v":0},{"$f":"Energy!AB11/12.72","v":0},{"$f":"Energy!AC11/12.72","v":0},{"$f":"Energy!AD11/12.72","v":0},{"$f":"Energy!AE11/12.72","v":0},{"$f":"AVERAGE(D35:O35)","v":0}]
[null,"Butane","€/kWh",{"$f":"Energy!T12/12.888","v":0},{"$f":"Energy!U12/12.888","v":0},{"$f":"Energy!V12/12.888","v":0},{"$f":"Energy!W12/12.888","v":0},{"$f":"Energy!X12/12.888","v":0},{"$f":"Energy!Y12/12.888","v":0},{"$f":"Energy!Z12/12.888","v":0},{"$f":"Energy!AA12/12.888","v":0},{"$f":"Energy!AB12/12.888","v":0},{"$f":"Energy!AC12/12.888","v":0},{"$f":"Energy!AD12/12.888","v":0},{"$f":"Energy!AE12/12.888","v":0},0]
[null,"Diesel","€/kWh",{"$f":"Energy!T13/9.97","v":0},{"$f":"Energy!U13/9.97","v":0},{"$f":"Energy!V13/9.97","v":0},{"$f":"Energy!W13/9.97","v":0},{"$f":"Energy!X13/9.97","v":0},{"$f":"Energy!Y13/9.97","v":0},{"$f":"Energy!Z13/9.97","v":0},{"$f":"Energy!AA13/9.97","v":0},{"$f":"Energy!AB13/9.97","v":0},{"$f":"Energy!AC13/9.97","v":0},{"$f":"Energy!AD13/9.97","v":0},{"$f":"Energy!AE13/9.97","v":0},{"$f":"IF(AND(SUM(D37:O37)=0,Heating!C25=\"Central\",Heating!C34=\"Si\"),'Excel de Apoyo'!P40,AVERAGE(D37:O37))","v":0}]
[null,"Pellet","€/kWh",{"$f":"Energy!T14/4.72","v":0},{"$f":"Energy!U14/4.72","v":0},{"$f":"Energy!V14/4.72","v":0},{"$f":"Energy!W14/4.72","v":0},{"$f":"Energy!X14/4.72","v":0},{"$f":"Energy!Y14/4.72","v":0},{"$f":"Energy!Z14/4.72","v":0},{"$f":"Energy!AA14/4.72","v":0},{"$f":"Energy!AB14/4.72","v":0},{"$f":"Energy!AC14/4.72","v":0},{"$f":"Energy!AD14/4.72","v":0},{"$f":"Energy!AE14/4.72","v":0},0]
[null,"Firewood","€/kWh",{"$f":"Energy!T15/4.1","v":0},{"$f":"Energy!U15/4.1","v":0},{"$f":"Energy!V15/4.1","v":0},{"$f":"Energy!W15/4.1","v":0},{"$f":"Energy!X15/4.1","v":0},{"$f":"Energy!Y15/4.1","v":0},{"$f":"Energy!Z15/4.1","v":0},{"$f":"Energy!AA15/4.1","v":0},{"$f":"Energy!AB15/4.1","v":0},{"$f":"Energy!AC15/4.1","v":0},{"$f":"Energy!AD15/4.1","v":0},{"$f":"Energy!AE15/4.1","v":0},0]
[null,"Central boiler","€/kWh",{"$f":"Energy!T16","v":0},{"$f":"Energy!U16","v":0},{"$f":"Energy!V16","v":0},{"$f":"Energy!W16","v":0},{"$f":"Energy!X16","v":0},{"$f":"Energy!Y16","v":0},{"$f":"Energy!Z16","v":0},{"$f":"Energy!AA16","v":0},{"$f":"Energy!AB16","v":0},{"$f":"Energy!AC16","v":0},{"$f":"Energy!AD16","v":0},{"$f":"Energy!AE16","v":0},0]
[null,"District heating","€/kWh",{"$f":"Energy!T17","v":0},{"$f":"Energy!U17","v":0},{"$f":"Energy!V17","v":0},{"$f":"Energy!W17","v":0},{"$f":"Energy!X17","v":0},{"$f":"Energy!Y17","v":0},{"$f":"Energy!Z17","v":0},{"$f":"Energy!AA17","v":0},{"$f":"Energy!AB17","v":0},{"$f":"Energy!AC17","v":0},{"$f":"Energy!AD17","v":0},{"$f":"Energy!AE17","v":0},0]
[null,"District heating- Sanitary hot water","€/kWh",{"$f":"Energy!T18","v":0},{"$f":"Energy!U18","v":0},{"$f":"Energy!V18","v":0},{"$f":"Energy!W18","v":0},{"$f":"Energy!X18","v":0},{"$f":"Energy!Y18","v":0},{"$f":"Energy!Z18","v":0},{"$f":"Energy!AA18","v":0},{"$f":"Energy!AB18","v":0},{"$f":"Energy!AC18","v":0},{"$f":"Energy!AD18","v":0},{"$f":"Energy!AE18","v":0},0]
[null,"District cooling","€/kWh",{"$f":"Energy!T19","v":0},{"$f":"Energy!U19","v":0},{"$f":"Energy!V19","v":0},{"$f":"Energy!W19","v":0},{"$f":"Energy!X19","v":0},{"$f":"Energy!Y19","v":0},{"$f":"Energy!Z19","v":0},{"$f":"Energy!AA19","v":0},{"$f":"Energy!AB19","v":0},{"$f":"Energy!AC19","v":0},{"$f":"Energy!AD19","v":0},{"$f":"Energy!AE19","v":0},0]
[]
[null,"TOTAL Cost of energy","unit","Jan","Feb","Mar","Apr","May","Jun","Jul","Aug","Sep","Oct","Nov","Dec","TOTAL"]
[null,"Electricity","€",{"$f":"D20*D33+Energy!AI5","v":0},{"$f":"E20*E33+Energy!AJ5","v":0},{"$f":"F20*F33+Energy!AK5","v":0},{"$f":"G20*G33+Energy!AL5","v":0},{"$f":"H20*H33+Energy!AM5","v":0},{"$f":"I20*I33+Energy!AN5","v":0},{"$f":"J20*J33+Energy!AO5","v":0},{"$f":"K20*K33+Energy!AP5","v":0},{"$f":"L20*L33+Energy!AQ5","v":0},{"$f":"M20*M33+Energy!AR5","v":0},{"$f":"N20*N33+Energy!AS5","v":0},{"$f":"O20*O33+Energy!AT5","v":0},{"$f":"SUM(D46:O46)","v":0},{"$f":"IF(P46=0,\"\",P46/P20)","v":""}]
[null,"Natural gas","€",{"$f":"D21*D34+Energy!AI6","v":0},{"$f":"E21*E34+Energy!AJ6","v":0},{"$f":"F21*F34+Energy!AK6","v":0},{"$f":"G21*G34+Energy!AL6","v":0},{"$f":"H21*H34+Energy!AM6","v":0},{"$f":"I21*I34+Energy!AN6","v":0},{"$f":"J21*J34+Energy!AO6","v":0},{"$f":"K21*K34+Energy!AP6","v":0},{"$f":"L21*L34+Energy!AQ6","v":0},{"$f":"M21*M34+Energy!AR6","v":0},{"$f":"N21*N34+Energy!AS6","v":0},{"$f":"O21*O34+Energy!AT6","v":0},{"$f":"SUM(D47:O47)","v":0},{"$f":"IF(P47=0,\"\",P47/P21)","v":""}]
[null,"Propane","€",{"$f":"D22*D35+Energy!AI7","v":0},{"$f":"E22*E35+Energy!AJ7","v":0},{"$f":"F22*F35+Energy!AK7","v":0},{"$f":"G22*G35+Energy!AL7","v":0},{"$f":"H22*H35+Energy!AM7","v":0},{"$f":"I22*I35+Energy!AN7","v":0},{"$f":"J22*J35+Energy!AO7","v":0},{"$f":"K22*K35+Energy!AP7","v":0},{"$f":"L22*L35+Energy!AQ7","v":0},{"$f":"M22*M35+Energy!AR7","v":0},{"$f":"N22*N35+Energy!AS7","v":0},{"$f":"O22*O35+Energy!AT7","v":0},0,""]
[null,"Butane","€",{"$f":"D23*D36+Energy!AI8","v":0},{"$f":"E23*E36+Energy!AJ8","v":0},{"$f":"F23*F36+Energy!AK8","v":0},{"$f":"G23*G36+Energy!AL8","v":0},{"$f":"H23*H36+Energy!AM8","v":0},{"$f":"I23*I36+Energy!AN8","v":0},{"$f":"J23*J36+Energy!AO8","v":0},{"$f":"K23*K36+Energy!AP8","v":0},{"$f":"L23*L36+Energy!AQ8","v":0},{"$f":"M23*M36+Energy!AR8","v":0},{"$f":"N23*N36+Energy!AS8","v":0},{"$f":"O23*O36+Energy!AT8","v":0},0,""]
[null,"Diesel","€",{"$f":"D24*D37+Energy!AI9","v":0},{"$f":"E24*E37+Energy!AJ9","v":0},{"$f":"F24*F37+Energy!AK9","v":0},{"$f":"G24*G37+Energy!AL9","v":0},{"$f":"H24*H37+Energy!AM9","v":0},{"$f":"I24*I37+Energy!AN9","v":0},{"$f":"J24*J37+Energy!AO9","v":0},{"$f":"K24*K37+Energy!AP9","v":0},{"$f":"L24*L37+Energy!AQ9","v":0},{"$f":"M24*M37+Energy!AR9","v":0},{"$f":"N24*N37+Energy!AS9","v":0},{"$f":"O24*O37+Energy!AT9","v":0},0,""]
[null,"Pellet","€",{"$f":"D25*D38+Energy!AI10","v":0},{"$f":"E25*E38+Energy!AJ10","v":0},{"$f":"F25*F38+Energy!AK10","v":0},{"$f":"G25*G38+Energy!AL10","v":0},{"$f":"H25*H38+Energy!AM10","v":0},{"$f":"I25*I38+Energy!AN10","v":0},{"$f":"J25*J38+Energy!AO10","v":0},{"$f":"K25*K38+Energy!AP10","v":0},{"$f":"L25*L38+Energy!AQ10","v":0},{"$f":"M25*M38+Energy!AR10","v":0},{"$f":"N25*N38+Energy!AS10","v":0},{"$f":"O25*O38+Energy!AT10","v":0},0,""]
[null,"Firewood","€",{"$f":"D26*D39+Energy!AI11","v":0},{"$f":"E26*E39+Energy!AJ11","v":0},{"$f":"F26*F39+Energy!AK11","v":0},{"$f":"G26*G39+Energy!AL11","v":0},{"$f":"H26*H39+Energy!AM11","v":0},{"$f":"I26*I39+Energy!AN11","v":0},{"$f":"J26*J39+Energy!AO11","v":0},{"$f":"K26*K39+Energy!AP11","v":0},{"$f":"L26*L39+Energy!AQ11","v":0},{"$f":"M26*M39+Energy!AR11","v":0},{"$f":"N26*N39+Energy!AS11","v":0},{"$f":"O26*O39+Energy!AT11","v":0},0,""]
[null,"Central boiler","€",{"$f":"D27*D40+Energy!AI12","v":0},{"$f":"E27*E40+Energy!AJ12","v":0},{"$f":"F27*F40+Energy!AK12","v":0},{"$f":"G27*G40+Energy!AL12","v":0},{"$f":"H27*H40+Energy!AM12","v":0},{"$f":"I27*I40+Energy!AN12","v":0},{"$f":"J27*J40+Energy!AO12","v":0},{"$f":"K27*K40+Energy!AP12","v":0},{"$f":"L27*L40+Energy!AQ12","v":0},{"$f":"M27*M40+Energy!AR12","v":0},{"$f":"N27*N40+Energy!AS12","v":0},{"$f":"O27*O40+Energy!AT12","v":0},0,""]
[null,"District heating","€",{"$f":"D28*D41+Energy!AI13","v":0},{"$f":"E28*E41+Energy!AJ13","v":0},{"$f":"F28*F41+Energy!AK13","v":0},{"$f":"G28*G41+Energy!AL13","v":0},{"$f":"H28*H41+Energy!AM13","v":0},{"$f":"I28*I41+Energy!AN13","v":0},{"$f":"J28*J41+Energy!AO13","v":0},{"$f":"K28*K41+Energy!AP13","v":0},{"$f":"L28*L41+Energy!AQ13","v":0},{"$f":"M28*M41+Energy!AR13","v":0},{"$f":"N28*N41+Energy!AS13","v":0},{"$f":"O28*O41+Energy!AT13","v":0},0,""]
[null,"District heating- Sanitary hot water","€",{"$f":"D29*D42+Energy!AI14","v":0},{"$f":"E29*E42+Energy!AJ14","v":0},{"$f":"F29*F42+Energy!AK14","v":0},{"$f":"G29*G42+Energy!AL14","v":0},{"$f":"H29*H42+Energy!AM14","v":0},{"$f":"I29*I42+Energy!AN14","v":0},{"$f":"J29*J42+Energy!AO14","v":0},{"$f":"K29*K42+Energy!AP14","v":0},{"$f":"L29*L42+Energy!AQ14","v":0},{"$f":"M29*M42+Energy!AR14","v":0},{"$f":"N29*N42+Energy!AS14","v":0},{"$f":"O29*O42+Energy!AT14","v":0},0,""]
[null,"District cooling","€",{"$f":"D30*D43+Energy!AI15","v":0},{"$f":"E30*E43+Energy!AJ15","v":0},{"$f":"F30*F43+Energy!AK15","v":0},{"$f":"G30*G43+Energy!AL15","v":0},{"$f":"H30*H43+Energy!AM15","v":0},{"$f":"I30*I43+Energy!AN15","v":0},{"$f":"J30*J43+Energy!AO15","v":0},{"$f":"K30*K43+Energy!AP15","v":0},{"$f":"L30*L43+Energy!AQ15","v":0},{"$f":"M30*M43+Energy!AR15","v":0},{"$f":"N30*N43+Energy!AS15","v":0},{"$f":"O30*O43+Energy!AT15","v":0},0,""]
[]
[]
[null,"Tip","Tip","Tips English","Impact English","Tips Spanish","Impact Spanish","Tips Cyprus","Impact Cyprus","Tips Italy","Impact Italy","Tips Croatia","Impact Croatia","Tips Bulgaria","Impact Bulgaria"]
[null,"Tip 1","Change your actual power for the optimal power.","Change your actual power for the optimal power. Sometimes it will be enough if you just don't use  some appliances at the same time. ",{"$f":"\"You will save about \" & ROUND('Optimal Power'!G8,2) & \" €) per year. The price of reducing your power is around \" & ROUND('Optimal Power'!H8,2) & \" € (please request information to find out the exact cost for your case). The payback is \" & ROUND('Optimal Power'!I8,0) & \" years. \"","v":{"$error":"#VALUE!"}},"Revisad  y reducid la potencia eléctrica contratada. En ocasiones, bastará con no utilizar algunos electrodomésticos al mismo tiempo. ",{"$f":"\"Ahorraréis  \" & ROUND('Optimal Power'!G8,2) & \" €) al año. El precio de reducir la potencia eléctrica es aproximadamente de \" & ROUND('Optimal Power'!H8,2) & \" € (vuestra compañía os informará del coste para vuestro caso concreto). Recuperarás la inversión aproximadamente en \" & ROUND('Optimal Power'!I8,0) & \" años. \"","v":{"$error":"#VALUE!"}},"Αλλάξτε την πραγματική ισχύ σας για τη βέλτιστη ισχύ. Μερικές φορές είναι αρκετό απλά το να μην χρησιμοποιείτε κάποιες συσκευές ταυτόχρονα.",{"$f":"\"Θα εξοικονομήσετε  \" & ROUND('Optimal Power'!G8,2) & \" € τον χρόνο. Το κόστος για να μειώσετε της ισχύς σας είναι περίπου € \" & ROUND('Optimal Power'!H8,2) & \" (παρακαλούμε να ζητήσετε προσφορές για να μάθετε το ακριβές κόστος για την περίπτωσή σας). Η απόσβεση της επένδυσης σας είναι \" & ROUND('Optimal Power'!I8,0) & \" χρόνια. \"","v":{"$error":"#VALUE!"}},"Abbassa la potenza contrattuale adattandola ai tuoi bisogni. \nPer evitare interruzioni sarà sufficiente non utilizzare tutti gli elettrodomestici contemporaneamente.",{"$f":"\"Risparmierai \" & ROUND('Optimal Power'!G8,2) & \" € all'anno. Il costo del cambio di potenza ammonta a circa  \" & ROUND('Optimal Power'!H8,2) & \" €. Il ritorno dell'investimento è pari a \" & ROUND('Optimal Power'!I8,0) & \" anni.\"","v":{"$error":"#VALUE!"}},"Promijenite svoju trenutnu potrošnju energije za optimalnu. Ponekad će biti dovoljno samo pripaziti da ne koristite neke aparate u isto vrijeme.  ",{"$f":"\"Uštedjet ćete \" & ROUND('Optimal Power'!G8,2) & \" € godišnje. Vaš trošak pritom iznosi oko \" & ROUND('Optimal Power'!H8,2) & \" € (molimo vas da zatražite informacije kako bi saznali točan iznos za vaš slučaj). Jednostavan period povrata (JPP) ulaganja je \" & ROUND('Optimal Power'!I8,0) & \" godina. \"","v":{"$error":"#VALUE!"}},"Оптимизирайте мощността си. Понякога е добре да не ползвате всички уреди по едно и също време. ",{"$f":"\"Ще спестите \" & ROUND('Optimal Power'!G8,2) & \" € на година. Цената на тази мярка е около \" & ROUND('Optimal Power'!H8,2) & \" € (потърсете по-подробна информация за точната цена във вашия случай). Срокът на изплащане е \" & ROUND('Optimal Power'!I8,0) & \" години.\"","v":{"$error":"#VALUE!"}}]
[null,"Tip 2","10 minutes are enough to ventilate in excessive cold weather.","10 minutes are enough to ventilate in excessive cold weather. Ventilation is needed to get fresh air in and let moisture and smell out. Open the windows daily. Please remember that the shorter, the better.",{"$f":"\"You will save \" & ROUND(Heating!G18,0) & \" kWh (that’s worth about \" & ROUND(Heating!H18,2) & \"  €) per year.  You will help the environment by reducing your emissions in \" & ROUND(Heating!I18,2) & \" kgCO2 .\"","v":"You will save 0 kWh (that’s worth about 0  €) per year.  You will help the environment by reducing your emissions in 0 kgCO2 ."},"Cuando hace frío, ventilar durante 10 minutos es suficiente. Ventilar es necesario para que se renueve el aire y para evitar los malos olores y la humedad.",{"$f":"\"Ahorraréis \" & ROUND(Heating!G18,0) & \"  kWh (lo que supone un ahorro de \" & ROUND(Heating!H18,2) & \"  €) al año. Estaréis ayudando al medioambiente al reducir vuestras emisiones en \" & ROUND(Heating!I18,0) & \" kgCO2.\"","v":"Ahorraréis 0  kWh (lo que supone un ahorro de 0  €) al año. Estaréis ayudando al medioambiente al reducir vuestras emisiones en 0 kgCO2."},"10 λεπτά είναι αρκετά για εξαερισμό σε μια αρκετά χαμηλή θερμοκρασία. Ο εξαερισμός χρειάζεται για να αναναιωθεί ο αέρας και να βγεί έξω η σκόνη. Ανοίγεται τα παράθυρα καθημερινά, αλλά όχι για μεγάλη διάρκεια.  ",{"$f":"\"Θα εξοικονομήσετε \" & ROUND(Heating!G18,0) & \"  kWh (Aυτό αντιστοιχεί σε περίπου  \" & ROUND(Heating!H18,2) & \"  €) τον χρόνο.  Θα βοηθήσετε το περιβάλλον μειώνοντας τις εκπομπές σας κατά  \" & ROUND(Heating!I18,0) & \"  kgCO2.\"","v":"Θα εξοικονομήσετε 0  kWh (Aυτό αντιστοιχεί σε περίπου  0  €) τον χρόνο.  Θα βοηθήσετε το περιβάλλον μειώνοντας τις εκπομπές σας κατά  0  kgCO2."},"Arieggia i locali di casa tua  \nArieggiare l’ambiente permette  di diminuire i cattivi odori e soprattutto l’umidità.  Apri le finestre ogni giorno e ricorda che d'inverno 10 minuti di solito sono sufficienti! \n",{"$f":"\"Risparmierai fino a \" & ROUND(Heating!G18,0) & \" kWh , equivalenti a circa \" & ROUND(Heating!H18,2) & \"  € all'anno. Aiuterai l'ambiente riducendo le tue emissioni di circa \" & ROUND(Heating!I18,0) & \" kgCO2.\"","v":"Risparmierai fino a 0 kWh , equivalenti a circa 0  € all'anno. Aiuterai l'ambiente riducendo le tue emissioni di circa 0 kgCO2."},"10 minuta dovoljno je za provjetravanje u izuzetno hladnom vremenu. Provjetravanje je potrebno kako bi svjež zrak ušao, a vlaga i loši mirisi izašli iz prostorije. Svakodnevno otvarajte prozore. I podsjetite se, što kraće, to bolje.  ",{"$f":"\"Uštedjet ćete  \" & ROUND(Heating!G18,0) & \"  kWh (što vrijedi oko  \" & ROUND(Heating!H18,2) & \"  €) godišnje.  Pomoći ćete okolišu smanjenjem emisija   \" & ROUND(Heating!I18,0) & \"  kgCO2.\"","v":"Uštedjet ćete  0  kWh (što vrijedi oko  0  €) godišnje.  Pomoći ćete okolišu smanjenjem emisija   0  kgCO2."},"10 минути са достатъчни за проветряване в студени зимни дни. Проветряването е необходимо за да влезе свеж въздух и излязат влагата и миризмите. Отваряйте прозорците всеки ден. На кратки интервали е най-добре.",{"$f":"\"Ще спестите \" & ROUND(Heating!G18,0) & \" кВтч (на стойност от \" & ROUND(Heating!H18,2) & \" €) на година.  Ще намалите вредните емисии с \" & ROUND(Heating!I18,0) & \" kgCO2.\"","v":"Ще спестите 0 кВтч (на стойност от 0 €) на година.  Ще намалите вредните емисии с 0 kgCO2."}]
[null,"Tip 3","Ventilate in warmer hours (close to noon). ","Ventilate in warmer hours (close to noon). 10 minutes are generally enough! In winter do that during the last cold hours and turn the heating on only when ventilation is finished.",{"$f":"\"You will save  \" & ROUND(Heating!G19,0) & \" kWh (that’s worth about \" & ROUND(Heating!H19,2) & \" €) per year.  You will help the environment by reducing your emissions in \" & ROUND(Heating!I19,0) & \" kgCO2.\"","v":"You will save  0 kWh (that’s worth about 0 €) per year.  You will help the environment by reducing your emissions in 0 kgCO2."},"Cuando hace frío, ventilad en las horas menos frías (al mediodía). En invierno, recordad ventilar en las horas menos frías y esperar a encender la calefacción una vez hayáis terminado de hacerlo. ",{"$f":"\"Ahorraréis \" & ROUND(Heating!G19,0) & \" kWh (lo que supone un ahorro de \" & ROUND(Heating!H19,2) & \" €) al año. Estaréis ayudando al medioambiente al reducir vuestras emisiones en \" & ROUND(Heating!I19,0) & \" kgCO2.\"","v":"Ahorraréis 0 kWh (lo que supone un ahorro de 0 €) al año. Estaréis ayudando al medioambiente al reducir vuestras emisiones en 0 kgCO2."},"Εξαερίστε περισσότερο τις ώρες που η θερμοκρασία είναι ψηλότερη (γύρω στο μεσημέρι). Γενικά 5 λεπτά είναι υπέρ αρκετά! Το Χειμώνα να το κάνετε τις ώρες που δεν κάνει και τόσο πολύ κρύο, και να περιμένετε να ανοίξετε την θέρμανση μετά που θα ολοκληρώσετε την διαδικασία του εξαερισμού. ",{"$f":"\"Θα εξοικονομήσετε \" & ROUND(Heating!G19,2) & \" kWh (Aυτό αντιστοιχεί σε περίπου \" & ROUND(Heating!H19,2) & \" €) τον χρόνο.  Θα βοηθήσετε το περιβάλλον μειώνοντας τις εκπομπές σας κατά \" & ROUND(Heating!I19,0) & \" kgCO2.\"","v":"Θα εξοικονομήσετε 0 kWh (Aυτό αντιστοιχεί σε περίπου 0 €) τον χρόνο.  Θα βοηθήσετε το περιβάλλον μειώνοντας τις εκπομπές σας κατά 0 kgCO2."},"Arieggiare d'inverno.\nIn inverno arieggia la casa durante le ore meno fredde ed accendi il riscaldamento solamente quando hai terminato l’aerazione.",{"$f":"\"Risparmierai  \" & ROUND(Heating!G19,2) & \"  kWh, equivalenti a  circa \" & ROUND(Heating!H19,2) & \" € all'anno. Aiuterai l'ambiente riducendo le tue emissioni di  circa \" & ROUND(Heating!I19,0) & \" kgCO2.\"","v":"Risparmierai  0  kWh, equivalenti a  circa 0 € all'anno. Aiuterai l'ambiente riducendo le tue emissioni di  circa 0 kgCO2."},"Provjetravajte u toplijem dijelu dana (bliže podnevu). 5 minuta je obično dovoljno! Zimi to učinite u najmanje hladnom dijelu dana i uključite grijanje nakon provjetravanja. ",{"$f":"\"Uštedjet ćete \" & ROUND(Heating!G19,0) & \" kWh (što vrijedi oko \" & ROUND(Heating!H19,2) & \" €) godišnje.  Pomoći ćete okolišu smanjenjem emisija  \" & ROUND(Heating!I19,0) & \" kgCO2.\"","v":"Uštedjet ćete 0 kWh (što vrijedi oko 0 €) godišnje.  Pomoći ćete okolišu smanjenjem emisija  0 kgCO2."},"Проветрявайте в по-топло време (по обяд). 5 минути са напълно достатъчни! Зимно време проветрявайте през последните студени часове и включете отоплението, след като приключите.",{"$f":"\"Ще спестите  \" & ROUND(Heating!G19,0) & \" кВтч (което е около \" & ROUND(Heating!H19,2) & \" €) годишно.  Ще намалите вредните емисии с \" & ROUND(Heating!I19,0) & \" kgCO2.\"","v":"Ще спестите  0 кВтч (което е около 0 €) годишно.  Ще намалите вредните емисии с 0 kgCO2."}]
[null,"Tip 4","Install curtains.","Install curtains. In winter, they will keep the heat inside. Close courtains and shutters  at night, and try switching off the heating. In summer, close courtains and shutters during the day and use awnings to protect windows from the sun. ",{"$f":"IF(Heating!K17<>\"\",\"You will save  \" & ROUND(Heating!G17,0) & \" kWh (that’s worth about \" & ROUND(Heating!H17,2) & \" €) per year. \" & \"The price of installing courtains is around \" & ROUND(Heating!J17,2) & \" € (please request quotations to find out the exact cost for your case). \" & \"The payback is \" & ROUND(Heating!K17,2) & \" years.  You will help the environment by reducing your emissions in \" & ROUND(Heating!I17,0) & \" kgCO2.\",\"You will save  \" & ROUND(Heating!G17,0) & \" kWh (that’s worth about \" & ROUND(Heating!H17,2) & \" €) per year. \" & \"The price of installing courtains is around \" & ROUND(Heating!J17,2) & \" € (please request quotations to find out the exact cost for your case). You will help the environment by reducing your emissions in \" & ROUND(Heating!I17,0) & \" kgCO2.\")","v":"You will save  0 kWh (that’s worth about 0 €) per year. The price of installing courtains is around 0 € (please request quotations to find out the exact cost for your case). You will help the environment by reducing your emissions in 0 kgCO2."},"Instalad cortinas en las ventanas. En invierno, mantendrán el calor dentro de la casa. Cerrad cortinas y persianas por la noche y tratad de apagar la calefacción. En verano, cerradlas durante el día y utilizad, si tenéis, los toldos. ",{"$f":"IF(Heating!K17<>\"\",\"Ahorraréis \" & ROUND(Heating!G17,0) & \" kWh (lo que supone un ahorro de \" & ROUND(Heating!H17,2) & \" €) al año. \" & \"El precio de instalar cortinas es aproximadamente de \" & ROUND(Heating!J17,2) & \" € (os recomendamos que solicitéis presupuesto para vuestro caso concreto). \" & \"Recuperaréis la inversión aproximadamente en \" & ROUND(Heating!K17,2) & \" años. Estaréis ayudando al medioambiente al reducir vuestras emisiones en \" & ROUND(Heating!I17,0) & \" kgCO2.\",\"Ahorraréis \" & ROUND(Heating!G17,0) & \" kWh (lo que supone un ahorro de \" & ROUND(Heating!H17,2) & \" €) al año. \" & \"El precio de instalar cortinas es aproximadamente de \" & ROUND(Heating!J17,2) & \" € (os recomendamos que solicitéis presupuesto para vuestro caso concreto). Estaréis ayudando al medioambiente al reducir vuestras emisiones en \" & ROUND(Heating!I17,0) & \" kgCO2.\")","v":"Ahorraréis 0 kWh (lo que supone un ahorro de 0 €) al año. El precio de instalar cortinas es aproximadamente de 0 € (os recomendamos que solicitéis presupuesto para vuestro caso concreto). Estaréis ayudando al medioambiente al reducir vuestras emisiones en 0 kgCO2."},"Εγκαταστείστε Κουρτίνες. Το χειμώνα θα κρατήσουν την ζέστη μέσα στο σπίτι. Κλείστε τις κουρτίνες και τα παντζούρια το βράδυ και δοκιμάστε να κλείσετε την θέρμανση. Το καλοκαίρι κλείστε τις κουρτίνες και τα παντζούρια κατά την διάρκεια της μέρας και χρησιμοποιήστε τέντες για να προστατέψετε τα παράθυρα από τον ήλιο.",{"$f":"IF(Heating!K17<>\"\",\"Θα εξοικονομήσετε \" & ROUND(Heating!G17,0) & \" kWh (Aυτό αντιστοιχεί σε περίπου \" & ROUND(Heating!H17,2) & \" €) τον χρόνο.\" & \" Το κόστος για να βάλετε κουρτίνες είναι περίπου € \" & ROUND(Heating!J17,2) & \" (παρακαλούμε να ζητήσετε προσφορές για να μάθετε το ακριβές κόστος για την περίπτωσή σας). \" & \"Η απόσβεση της επένδυσης σας είναι \" & ROUND(Heating!K17,2) & \" χρόνια.  Θα βοηθήσετε το περιβάλλον μειώνοντας τις εκπομπές σας κατά \" & ROUND(Heating!I17,0) & \" kgCO2.\",\"Θα εξοικονομήσετε \" & ROUND(Heating!G17,0) & \" kWh (Aυτό αντιστοιχεί σε περίπου \" & ROUND(Heating!H17,2) & \" €) τον χρόνο.\" & \" Το κόστος για να βάλετε κουρτίνες είναι περίπου € \" & ROUND(Heating!J17,2) & \" (παρακαλούμε να ζητήσετε προσφορές για να μάθετε το ακριβές κόστος για την περίπτωσή σας). Θα βοηθήσετε το περιβάλλον μειώνοντας τις εκπομπές σας κατά \" & ROUND(Heating!I17,0) & \" kgCO2.\")","v":"Θα εξοικονομήσετε 0 kWh (Aυτό αντιστοιχεί σε περίπου 0 €) τον χρόνο. Το κόστος για να βάλετε κουρτίνες είναι περίπου € 0 (παρακαλούμε να ζητήσετε προσφορές για να μάθετε το ακριβές κόστος για την περίπτωσή σας). Θα βοηθήσετε το περιβάλλον μειώνοντας τις εκπομπές σας κατά 0 kgCO2."},"Usa le tende per risparmiare energia. \n Di inverno mantienile chiuse durante la notte: ti aiuteranno a mantenere il calore all'interno. \nIn estate, chiudendo le tende e le persiane durante il giorno, protteggerai le finestre dal sole  e impedirai al calore di entrare in casa.",{"$f":"IF(Heating!K17<>\"\",\"Risparmierai fino a \" & ROUND(Heating!G17,0) & \" kWh , equivalenti a \" & ROUND(Heating!H17,2) & \" € all'anno.\" & \" Il costo dell'installazione delle tende  ammonta a circa \" & ROUND(Heating!J17,2) & \" €Il ritorno dell'investimento è pari a  \" & ROUND(Heating!K17,2) & \" anni.\" & \" Aiuterai l'ambiente riducendo le tue emissioni di \" & ROUND(Heating!I17,0) & \" kgCO2.\",\"Risparmierai  \" & ROUND(Heating!G17,0) & \"  kWh , equivalenti a \" & ROUND(Heating!H17,2) & \" € all'anno.\" & \" Il costo dell'installazione delle tende  ammonta a circa \" & ROUND(Heating!J17,2) & \" €. Aiuterai l'ambiente riducendo le tue emissioni di  circa\" & ROUND(Heating!I17,0) & \" kgCO2.\")","v":"Risparmierai  0  kWh , equivalenti a 0 € all'anno. Il costo dell'installazione delle tende  ammonta a circa 0 €. Aiuterai l'ambiente riducendo le tue emissioni di  circa0 kgCO2."},"Postavite zavjese. Zimi one će zadržavati toplinu u prostoriji. Noću navucite zavjese i zatvorite grilje te pokušajte isključiti grijanje. Ljeti, navucite zavjese i zatvorite grilje danju te koristite tende kao zaštitu od sunca. ",{"$f":"IF(Heating!K17<>\"\",\"Uštedjet ćete \" & ROUND(Heating!G17,0) & \" kWh (što vrijedi oko \" & ROUND(Heating!H17,2) & \" €) godišnje.\" & \" Cijena postavljanja zavjesa je oko \" & ROUND(Heating!J17,2) & \" € (molimo vas da zatražite informacije kako biste saznali točan iznos za vaš slučaj). \" & \"Jednostavan period povrata (JPP) ulaganja je \" & ROUND(Heating!K17,2) & \" god. Pomoći ćete okolišu smanjenjem emisija  \" & ROUND(Heating!I17,0) & \" kgCO2.\",\"Uštedjet ćete \" & ROUND(Heating!G17,0) & \" kWh (što vrijedi oko \" & ROUND(Heating!H17,2) & \" €) godišnje.\" & \" Cijena postavljanja zavjesa je oko \" & ROUND(Heating!J17,2) & \" € (molimo vas da zatražite informacije kako biste saznali točan iznos za vaš slučaj). Pomoći ćete okolišu smanjenjem emisija  \" & ROUND(Heating!I17,0) & \" kgCO2.\")","v":"Uštedjet ćete 0 kWh (što vrijedi oko 0 €) godišnje. Cijena postavljanja zavjesa je oko 0 € (molimo vas da zatražite informacije kako biste saznali točan iznos za vaš slučaj). Pomoći ćete okolišu smanjenjem emisija  0 kgCO2."},"Поставете завеси. През зимата те ще запазят топлината. Спуснете завесите и навесите през нощта и се опитайте да изключите отоплението. През лятото, спуснете завесите и пердетата през деня и ползвайте капаци, за да предпазите прозорците от слънцето. ",{"$f":"IF(Heating!K17<>\"\",\"Ще спестите  \" & ROUND(Heating!G17,0) & \" кВтч (което е около \" & ROUND(Heating!H17,0) & \" €) годишно. \" & \"Цената за завесите с монтаж е около \" & ROUND(Heating!J17,0) & \" € (проверете за по-точна цена във вашия случай). \" & \"Срокът на изплащане е \" & ROUND(Heating!K17,0) & \" години.  Ще намалите вредните емисии с \" & ROUND(Heating!I17,0) & \" kgCO2.\",\"Ще спестите  \" & ROUND(Heating!G17,0) & \" кВтч (което е около \" & ROUND(Heating!H17,0) & \" €) годишно. \" & \"Цената за завесите с монтаж е около \" & ROUND(Heating!J17,0) & \" € (проверете за по-точна цена във вашия случай). Ще намалите вредните емисии с \" & ROUND(Heating!I17,0) & \" kgCO2.\")","v":"Ще спестите  0 кВтч (което е около 0 €) годишно. Цената за завесите с монтаж е около 0 € (проверете за по-точна цена във вашия случай). Ще намалите вредните емисии с 0 kgCO2."}]
[null,"Tip 5","Properly mantain your radiators at least once a year.","Properly mantain your radiators at least once a year. Open the valve with a radiator key. As soon as air is out and water starts dripping, the radiator will be ready. Don’t cover radiators with curtains and don’t place objects under. ",{"$f":"\"You will save  \" & ROUND(Heating!G15,0) & \" kWh (that’s worth about \" & ROUND(Heating!H15,0) & \" €) per year. You will help the environment by reducing your emissions in \" & ROUND(Heating!I15,0) & \" kgCO2.\"","v":"You will save  0 kWh (that’s worth about 0 €) per year. You will help the environment by reducing your emissions in 0 kgCO2."},"Realizad un mantenimiento adecuado de los radiadores por lo menos una vez al año. Abrid la válvula con un destornillador. Tan pronto como el aire salga y el agua comience a gotear, el radiador estará listo. No cubráis los radiadores con cortinas ni coloquéis objetos debajo de ellos. ",{"$f":"\"Ahorraréis \" & ROUND(Heating!G15,0) & \" kWh (lo que supone un ahorro de \" & ROUND(Heating!H15,0) & \" €) al año. Estaréis ayudando al medioambiente al reducir vuestras emisiones en \" & ROUND(Heating!I15,0) & \" kgCO2.\"","v":"Ahorraréis 0 kWh (lo que supone un ahorro de 0 €) al año. Estaréis ayudando al medioambiente al reducir vuestras emisiones en 0 kgCO2."},"Συντηρήστε σωστά τα συστήματα θέρμασης σας τουλάχιστον μια φορά τον χρόνο. Ανοίξτε την βαλβίδα με το κλειδί του καλοριφέρ. Μόλις βγει ο αέρας και αρχίσει να στάζει νερό, σημαίνει πως το καλοριφέρ είναι έτοιμο. Μην καλύπτετε τα θερμαντικά σώματα με κουρτίνες και μην τοποθετείτε αντικείμενα από κάτω. ",{"$f":"\"Θα εξοικονομήσετε \" & ROUND(Heating!G15,0) & \" kWh (Aυτό αντιστοιχεί σε περίπου \" & ROUND(Heating!H15,0) & \" €) τον χρόνο. Θα βοηθήσετε το περιβάλλον μειώνοντας τις εκπομπές σας κατά \" & ROUND(Heating!I15,0) & \" kgCO2.\"","v":"Θα εξοικονομήσετε 0 kWh (Aυτό αντιστοιχεί σε περίπου 0 €) τον χρόνο. Θα βοηθήσετε το περιβάλλον μειώνοντας τις εκπομπές σας κατά 0 kgCO2."},"Sfiata i radiatori almeno una volta all’anno per eliminare le bolle d’aria che ne impediscono il buon funzionamento. \nL’operazione è semplice: apri la valvola che si trova nella parte alta del radiatore. All’inizio può uscire un po’ d’aria.  Non appena l’aria è uscita e l’acqua inizia a stillare, il radiatore è pronto. \nRicordati di lasciare spazio libero sotto, sopra e davanti ai riadiatori per consentire la buona corcolazione dell’aria calda.  ",{"$f":"\"Risparmierai fino a \" & ROUND(Heating!G15,0) & \"  kWh, equivalenti a  circa\" & ROUND(Heating!H15,0) & \" € all'anno. Aiuterai l'ambiente riducendo le tue emissioni di circa\" & ROUND(Heating!I15,0) & \" kgCO2.\"","v":"Risparmierai fino a 0  kWh, equivalenti a  circa0 € all'anno. Aiuterai l'ambiente riducendo le tue emissioni di circa0 kgCO2."},"Pravilno održavajte svoje radijatore najmanje jednom godišnje. Otvorite ventil kliještima za radijator. Čim zrak izađe i voda počne kapati, radijator je spreman. Nemojte radijatore prekrivati zavjesama i ne postavljajte predmete ispod njih ",{"$f":"\"Uštedjet ćete \" & ROUND(Heating!G15,0) & \" kWh (što vrijedi oko \" & ROUND(Heating!H15,0) & \" €) godišnje.  Pomoći ćete okolišu smanjenjem emisija  \" & ROUND(Heating!I15,0) & \" kgCO2.\"","v":"Uštedjet ćete 0 kWh (što vrijedi oko 0 €) godišnje.  Pomoći ćete okolišu smanjenjem emisija  0 kgCO2."},"Извършете профилактика на радиаторите си поне един път годишно. Отворете вентила с ключ за радиатора. След като излезе въздухът, трябва да прокапе вода - радиаторът е готов. Не ги покривайте със завеси и не поставяйте предмети под тях. ",{"$f":"\"Ще спестите \" & ROUND(Heating!G15,0) & \" кВтч (това е около \" & ROUND(Heating!H15,2) & \" €) годишно. Ще намалите вредните емисии с \" & ROUND(Heating!I15,0) & \" kgCO2.\"","v":"Ще спестите 0 кВтч (това е около 0 €) годишно. Ще намалите вредните емисии с 0 kgCO2."}]
[null,"Tip 6","Avoid air infiltrations. ","Avoid air infiltrations. Cover cracks with cheap material as silicone, filler or draught excluders.",{"$f":"IF(Heating!K12<>\"\",\"You will save  \" & ROUND(Heating!G12,0) & \" kWh (that’s worth about \" & ROUND(Heating!H12,0) & \" €) per year. \" & \"The price of avoiding air infiltrations may range between \" & ROUND(Heating!J12,2) & \" € (please request quotations to find out the exact cost for your case). The payback is \" & ROUND(Heating!K12,2) & \" years.  \" & \"You will help the environment by reducing your emissions in \" & ROUND(Heating!I12,0) & \" kgCO2.\",\"You will save  \" & ROUND(Heating!G12,0) & \" kWh (that’s worth about \" & ROUND(Heating!H12,0) & \" €) per year. \" & \"The price of avoiding air infiltrations may range between \" & ROUND(Heating!J12,2) & \" € (please request quotations to find out the exact cost for your case). You will help the environment by reducing your emissions in \" & ROUND(Heating!I12,0) & \" kgCO2.\")","v":"You will save  0 kWh (that’s worth about 0 €) per year. The price of avoiding air infiltrations may range between 0 € (please request quotations to find out the exact cost for your case). You will help the environment by reducing your emissions in 0 kgCO2."},"Evitad las infiltraciones de aire en tu hogar. Cubrid las grietas con material barato como silicona o con burletes.",{"$f":"IF(Heating!K12<>\"\",\"Ahorraréis \" & ROUND(Heating!G12,0) & \" kWh (lo que supone un ahorro de \" & ROUND(Heating!H12,0) & \" €) al año. \" & \"El precio de evitar las infiltraciones es aproximadamente de \" & ROUND(Heating!J12,2) & \" € (os recomendamos que utilicéis presupuesto para vuestro caso concreto). \" & \"Recuperaréis la inversión aproximadamente en \" & ROUND(Heating!K12,2) & \" años. Estaréis ayudando al medioambiente al reducir vuestras emisiones en \" & ROUND(Heating!I12,0) & \" kgCO2.\",\"Ahorraréis \" & ROUND(Heating!G12,0) & \" kWh (lo que supone un ahorro de \" & ROUND(Heating!H12,0) & \" €) al año. \" & \"El precio de evitar las infiltraciones es aproximadamente de \" & ROUND(Heating!J12,2) & \" € (os recomendamos que utilicéis presupuesto para vuestro caso concreto). Estaréis ayudando al medioambiente al reducir vuestras emisiones en \" & ROUND(Heating!I12,0) & \" kgCO2.\")","v":"Ahorraréis 0 kWh (lo que supone un ahorro de 0 €) al año. El precio de evitar las infiltraciones es aproximadamente de 0 € (os recomendamos que utilicéis presupuesto para vuestro caso concreto). Estaréis ayudando al medioambiente al reducir vuestras emisiones en 0 kgCO2."},"Αποφύγετε διαρροές αέρα. Καλύψτε τις σχισμές και τα κενά με φθηνά υλικά (όπως σιλικόνη,αφρό, αεροστόπ ή άλλο μονωτικό υλικό)  ",{"$f":"IF(Heating!K12<>\"\",\"Θα εξοικονομήσετε \" & ROUND(Heating!G12,0) & \" kWh (Aυτό αντιστοιχεί σε περίπου \" & ROUND(Heating!H12,0) & \" €) τον χρόνο. \" & \"Το κόστος για να αποφύγετε τις διαρροές αέρα, κυμαίνεται στα € \" & ROUND(Heating!J12,2) & \" (παρακαλούμε να ζητήσετε προσφορές για να μάθετε το ακριβές κόστος για την περίπτωσή σας). \" & \"Η απόσβεση της επένδυσης σας είναι \" & ROUND(Heating!K12,2) & \" χρόνια.  Θα βοηθήσετε το περιβάλλον μειώνοντας τις εκπομπές σας κατά \" & ROUND(Heating!I12,0) & \" kgCO2.\",\"Θα εξοικονομήσετε \" & ROUND(Heating!G12,0) & \" kWh (Aυτό αντιστοιχεί σε περίπου \" & ROUND(Heating!H12,0) & \" €) τον χρόνο. \" & \"Το κόστος για να αποφύγετε τις διαρροές αέρα, κυμαίνεται στα € \" & ROUND(Heating!J12,2) & \" (παρακαλούμε να ζητήσετε προσφορές για να μάθετε το ακριβές κόστος για την περίπτωσή σας). Θα βοηθήσετε το περιβάλλον μειώνοντας τις εκπομπές σας κατά \" & ROUND(Heating!I12,0) & \" kgCO2.\")","v":"Θα εξοικονομήσετε 0 kWh (Aυτό αντιστοιχεί σε περίπου 0 €) τον χρόνο. Το κόστος για να αποφύγετε τις διαρροές αέρα, κυμαίνεται στα € 0 (παρακαλούμε να ζητήσετε προσφορές για να μάθετε το ακριβές κόστος για την περίπτωσή σας). Θα βοηθήσετε το περιβάλλον μειώνοντας τις εκπομπές σας κατά 0 kgCO2."},"Blocca gli spifferi \ncontrolla regolarmente le guarnizioni delle tue finestre e sostituiscile quando necessario. Le fessure tra finestre e muro vanno sigillate con il silicone.",{"$f":"IF(Heating!K12<>\"\",\"Risparmierai  fino a \" & ROUND(Heating!G12,0) & \"  kWh , equivalenti a  circa\" & ROUND(Heating!H12,0) & \" € all'anno.\" & \" Il costo necessario per evitare gli spifferi  è circa di \" & ROUND(Heating!J12,2) & \" €Il ritorno dell'investimento è pari a  \" & ROUND(Heating!K12,2) & \" anni.\" & \" Aiuterai l'ambiente riducendo le tue emissioni di  circa \" & ROUND(Heating!I12,0) & \" kgCO2.\",\"Risparmierai fino a \" & ROUND(Heating!G12,0) & \"  kWh , equivalenti a  circa \" & ROUND(Heating!H12,0) & \" € all'anno.\" & \" Il costo necessario per evitare gli spifferi  è circa di \" & ROUND(Heating!J12,2) & \" €. Aiuterai l'ambiente riducendo le tue emissioni di  circa\" & ROUND(Heating!I12,0) & \" kgCO2.\")","v":"Risparmierai fino a 0  kWh , equivalenti a  circa 0 € all'anno. Il costo necessario per evitare gli spifferi  è circa di 0 €. Aiuterai l'ambiente riducendo le tue emissioni di  circa0 kgCO2."},"Izbjegavajte prodore zraka. Prekrijte pukotine jeftinim materijalom poput silikona, nekog punila ili štitnicima od propuha. ",{"$f":"IF(Heating!K12<>\"\",\"Uštedjet ćete \" & ROUND(Heating!G12,0) & \" kWh (što vrijedi oko \" & ROUND(Heating!H12,0) & \" €) godišnje. \" & \"Cijena izbjegavanja prodora zraka je oko \" & ROUND(Heating!J12,2) & \" € (molimo vas da zatražite informacije kako bi saznali točan iznos za vaš slučaj).  \" & \"Jednostavan period povrata (JPP) ulaganja je \" & ROUND(Heating!K12,2) & \" god. Pomoći ćete okolišu smanjenjem emisija  \" & ROUND(Heating!I12,0) & \" kgCO2.\",\"Uštedjet ćete \" & ROUND(Heating!G12,0) & \" kWh (što vrijedi oko \" & ROUND(Heating!H12,0) & \" €) godišnje. \" & \"Cijena izbjegavanja prodora zraka je oko \" & ROUND(Heating!J12,2) & \" € (molimo vas da zatražite informacije kako bi saznali točan iznos za vaš slučaj).  Pomoći ćete okolišu smanjenjem emisija  \" & ROUND(Heating!I12,0) & \" kgCO2.\")","v":"Uštedjet ćete 0 kWh (što vrijedi oko 0 €) godišnje. Cijena izbjegavanja prodora zraka je oko 0 € (molimo vas da zatražite informacije kako bi saznali točan iznos za vaš slučaj).  Pomoći ćete okolišu smanjenjem emisija  0 kgCO2."},"Спрете инфилтрацията. Запълнете отворите с някакъв материал, силикон или полиуретанова пяна например. ",{"$f":"IF(Heating!K12<>\"\",\"Ще спестите \" & ROUND(Heating!G12,0) & \" кВтч (това е около\" & ROUND(Heating!H12,2) & \" €) годишно. \" & \"Цената за премахване на въздушната инфилтрация варира около \" & ROUND(Heating!J12,2) & \" € (потърсете по-точна цена за вашия случай). \" & \"Срокът на изплащане е \" & ROUND(Heating!K12,2) & \" години.  Ще намалите вредните емисии с \" & ROUND(Heating!I12,0) & \" kgCO2.\",\"Ще спестите \" & ROUND(Heating!G12,0) & \" кВтч (това е около\" & ROUND(Heating!H12,2) & \" €) годишно. \" & \"Цената за премахване на въздушната инфилтрация варира около \" & ROUND(Heating!J12,2) & \" € (потърсете по-точна цена за вашия случай). Ще намалите вредните емисии с \" & ROUND(Heating!I12,0) & \" kgCO2.\")","v":"Ще спестите 0 кВтч (това е около0 €) годишно. Цената за премахване на въздушната инфилтрация варира около 0 € (потърсете по-точна цена за вашия случай). Ще намалите вредните емисии с 0 kgCO2."}]
[null,"Tip 7","Install thermostatic valves in radiators.","Install thermostatic valves in radiators. Install thermostatic valves on radiators to achieve the right comfort combined with low energy consumption. This way you will only use the exact amount of energy needed to keep the room at the expected temperature. ",{"$f":"IF(Heating!K16<>\"\",\"You will save  \" & ROUND(Heating!G16,0) & \" kWh (that’s worth about \" & ROUND(Heating!H16,0) & \" €) per year. \" & \"The price ofinstalling thermostatic valves may range between \" & ROUND(Heating!J16,2) & \" € (please request quotations to find out the exact cost for your case). \" & \"The payback is \" & ROUND(Heating!K16,2) & \" years.  You will help the environment by reducing your emissions in \" & ROUND(Heating!I16,0) & \" kgCO2.\",\"You will save  \" & ROUND(Heating!G16,0) & \" kWh (that’s worth about \" & ROUND(Heating!H16,0) & \" €) per year. \" & \"The price ofinstalling thermostatic valves may range between \" & ROUND(Heating!J16,2) & \" € (please request quotations to find out the exact cost for your case). \" & \"  You will help the environment by reducing your emissions in \" & ROUND(Heating!I16,0) & \" kgCO2.\")","v":"You will save  0 kWh (that’s worth about 0 €) per year. The price ofinstalling thermostatic valves may range between 0 € (please request quotations to find out the exact cost for your case).   You will help the environment by reducing your emissions in 0 kgCO2."},"Instalad válvulas termostáticas en los radiadores. Instalad válvulas termostáticas en los radiadores para alcanzar una temperatura agradable con un consumo energético bajo. De esta manera, sólo utilizaréis la cantidad exacta de energía necesaria para mantener la habitación a la temperatura deseada.",{"$f":"IF(Heating!K16<>\"\",\"Ahorraréis \" & ROUND(Heating!G16,0) & \" kWh (lo que supone un ahorro de \" & ROUND(Heating!H16,0) & \" €) al año. \" & \"El precio de instalar válvulas termostáticas es aproximadamente de \" & ROUND(Heating!J16,2) & \" € (os recomendamos que utilicéis presupuesto para vuestro caso concreto). \" & \"Recuperaréis la inversión aproximadamente en \" & ROUND(Heating!K16,2) & \" años. Estaréis ayudando al medioambiente al reducir vuestras emisiones en \" & ROUND(Heating!I16,0) & \" kgCO2.\",\"Ahorraréis \" & ROUND(Heating!G16,0) & \" kWh (lo que supone un ahorro de \" & ROUND(Heating!H16,0) & \" €) al año. \" & \"El precio de instalar válvulas termostáticas es aproximadamente de \" & ROUND(Heating!J16,2) & \" € (os recomendamos que utilicéis presupuesto para vuestro caso concreto). \" & \" Estaréis ayudando al medioambiente al reducir vuestras emisiones en \" & ROUND(Heating!I16,0) & \" kgCO2.\")","v":"Ahorraréis 0 kWh (lo que supone un ahorro de 0 €) al año. El precio de instalar válvulas termostáticas es aproximadamente de 0 € (os recomendamos que utilicéis presupuesto para vuestro caso concreto).  Estaréis ayudando al medioambiente al reducir vuestras emisiones en 0 kgCO2."},"Εγκαταστήστε θερμοστατικές βαλβίδες στα  σώματα θέρμανσης. Εγκαταστήστε  θερμοστατικές βαλβίδες για να επιτύχετε την κατάλληλη άνεση σε συνδυασμό με χαμηλή κατανάλωση ενέργειας. Με αυτό τον τρόπο θα χρησιμοποιήσετε μόνο το ακριβές ποσό της ενέργειας το οποίο απαιτείται για να κρατήσει το δωμάτιο στην αναμενόμενη θερμοκρασία.",{"$f":"IF(Heating!K16<>\"\",\"Θα εξοικονομήσετε \" & ROUND(Heating!G16,0) & \" kWh (Aυτό αντιστοιχεί σε περίπου \" & ROUND(Heating!H16,0) & \" €) τον χρόνο. \" & \"Το κόστος εγκατάστασης θερμοστατικών βαλβίδων, κυμαίνεται στα € \" & ROUND(Heating!J16,2) & \" (παρακαλούμε να ζητήσετε προσφορές για να μάθετε το ακριβές κόστος για την περίπτωσή σας). \" & \"Η απόσβεση της επένδυσης σας είναι \" & ROUND(Heating!K16,2) & \" χρόνια.  Θα βοηθήσετε το περιβάλλον μειώνοντας τις εκπομπές σας κατά \" & ROUND(Heating!I16,0) & \" kgCO2.\",\"Θα εξοικονομήσετε \" & ROUND(Heating!G16,0) & \" kWh (Aυτό αντιστοιχεί σε περίπου \" & ROUND(Heating!H16,0) & \" €) τον χρόνο. \" & \"Το κόστος εγκατάστασης θερμοστατικών βαλβίδων, κυμαίνεται στα € \" & ROUND(Heating!J16,2) & \" (παρακαλούμε να ζητήσετε προσφορές για να μάθετε το ακριβές κόστος για την περίπτωσή σας). Θα βοηθήσετε το περιβάλλον μειώνοντας τις εκπομπές σας κατά \" & ROUND(Heating!I16,0) & \" kgCO2.\")","v":"Θα εξοικονομήσετε 0 kWh (Aυτό αντιστοιχεί σε περίπου 0 €) τον χρόνο. Το κόστος εγκατάστασης θερμοστατικών βαλβίδων, κυμαίνεται στα € 0 (παρακαλούμε να ζητήσετε προσφορές για να μάθετε το ακριβές κόστος για την περίπτωσή σας). Θα βοηθήσετε το περιβάλλον μειώνοντας τις εκπομπές σας κατά 0 kgCO2."},"Installa le valvole termostatiche sui radiatori.  \nLa valvola termostatica regola la temperatura in ogni stanza garantendo il giusto comfort e riducendo il tuo consumo energetico.  ",{"$f":"IF(Heating!K16<>\"\",\"Risparmierai fino a \" & ROUND(Heating!G16,0) & \"  kWh , equivalenti a  circa\" & ROUND(Heating!H16,2) & \" € all'anno.\" & \" Il costo relativo all'installazione delle valvole termostatiche sui radiatori  ammonta a circa \" & ROUND(Heating!J16,2) & \" €. Il ritorno dell'investimento è pari a \" & ROUND(Heating!K16,2) & \" anni.\" & \" Aiuterai l'ambiente riducendo le tue emissioni di \" & ROUND(Heating!I16,0) & \" kgCO2.\",\"Risparmierai fino a \" & ROUND(Heating!G16,0) & \"  kWh , equivalenti a circa \" & ROUND(Heating!H16,2) & \" € all'anno.\" & \" Il costo relativo all'installazione delle valvole termostatiche sui radiatori  ammonta a circa \" & ROUND(Heating!J16,2) & \" €. Aiuterai l'ambiente riducendo le tue emissioni di  circa\" & ROUND(Heating!I16,0) & \" kgCO2.\")","v":"Risparmierai fino a 0  kWh , equivalenti a circa 0 € all'anno. Il costo relativo all'installazione delle valvole termostatiche sui radiatori  ammonta a circa 0 €. Aiuterai l'ambiente riducendo le tue emissioni di  circa0 kgCO2."},"Postavite termostatske ventile na radijatore. Postavite termostatske ventile na radijatore kako bi postigli ugodu niskom potrošnjom energije. Koristit će se tako samo onoliko energije koliko je potrebno da se dosegne odabrana sobna temperatura. ",{"$f":"IF(Heating!K16<>\"\",\"Uštedjet ćete \" & ROUND(Heating!G16,0) & \" kWh (što vrijedi oko \" & ROUND(Heating!H16,0) & \" €) godišnje. \" & \"Cijena ugradnje termostatskih ventila je oko \" & ROUND(Heating!J16,2) & \" € (molimo vas da zatražite informacije kako bi saznali točan iznos za vaš slučaj). \" & \"Jednostavan period povrata (JPP) ulaganja je \" & ROUND(Heating!K16,2) & \" god. Pomoći ćete okolišu smanjenjem emisija  \" & ROUND(Heating!I16,0) & \".\",\"Uštedjet ćete \" & ROUND(Heating!G16,0) & \" kWh (što vrijedi oko \" & ROUND(Heating!H16,0) & \" €) godišnje. \" & \"Cijena ugradnje termostatskih ventila je oko \" & ROUND(Heating!J16,2) & \" € (molimo vas da zatražite informacije kako bi saznali točan iznos za vaš slučaj). Pomoći ćete okolišu smanjenjem emisija  \" & ROUND(Heating!I16,0) & \".\")","v":"Uštedjet ćete 0 kWh (što vrijedi oko 0 €) godišnje. Cijena ugradnje termostatskih ventila je oko 0 € (molimo vas da zatražite informacije kako bi saznali točan iznos za vaš slučaj). Pomoći ćete okolišu smanjenjem emisija  0."},"Монтирайте термостатни винтили на радиаторите. С тях ще постигнете комфорт и ниско потребление на енергия едновременно. По този начин, ще ползвате точно необходимото количество енергия за поддържане температурата на определени нива.  ",{"$f":"IF(Heating!K16<>\"\",\"Ще спестите  \" & ROUND(Heating!G16,0) & \" кВтч (това е около \" & ROUND(Heating!H16,2) & \" €) годишно. \" & \"Цената на термостатни винтили е около \" & ROUND(Heating!J16,0) & \" € (потърсете по-точна оферта за вашия случай). \" & \"Срокът на изплащане е \" & ROUND(Heating!K16,0) & \" години.  Ще намалите вредните емисии с \" & ROUND(Heating!I16,0) & \" kgCO2.\",\"Ще спестите  \" & ROUND(Heating!G16,0) & \" кВтч (това е около \" & ROUND(Heating!H16,2) & \" €) годишно. \" & \"Цената на термостатни винтили е около \" & ROUND(Heating!J16,0) & \" € (потърсете по-точна оферта за вашия случай). Ще намалите вредните емисии с \" & ROUND(Heating!I16,0) & \" kgCO2.\")","v":"Ще спестите  0 кВтч (това е около 0 €) годишно. Цената на термостатни винтили е около 0 € (потърсете по-точна оферта за вашия случай). Ще намалите вредните емисии с 0 kgCO2."}]
[null,"Tip 8","Install a digital programmable thermostat.","Install a digital programmable thermostat. Programmers will make things easier for you, since you will be able to set “on” and “off” time periods.",{"$f":"IF(Heating!K13<>\"\",\"You will save  \" & IFERROR(ROUND(Heating!G13,0),0) + IFERROR(ROUND(Cooling!H9,0),0) & \" kWh (that’s worth about \" & IFERROR(ROUND(Heating!H13,0),0) + IFERROR(ROUND(Cooling!I9,0),0) & \" €) per year. \" & \"The price of installing a digital programmable thermostat is around \" & IFERROR(ROUND(Heating!J13,0),0) + IFERROR(ROUND(Cooling!K9,0),0) & \" € (please request quotations to find out the exact cost for your case). \" & \"The payback is \" & IFERROR(ROUND(Heating!K13,0),0) + IFERROR(ROUND(Cooling!L9,0),0) & \" years.  You will help the environment by reducing your emissions in \" & IFERROR(ROUND(Heating!I13,0),0) + IFERROR(ROUND(Cooling!J9,0),0) & \" kgCO2.\",\"You will save  \" & IFERROR(ROUND(Heating!G13,0),0) + IFERROR(ROUND(Cooling!H9,0),0) & \" kWh (that’s worth about \" & IFERROR(ROUND(Heating!H13,0),0) + IFERROR(ROUND(Cooling!I9,0),0) & \" €) per year. \" & \"The price of installing a digital programmable thermostat is around \" & IFERROR(ROUND(Heating!J13,0),0) + IFERROR(ROUND(Cooling!K9,0),0) & \" € (please request quotations to find out the exact cost for your case). You will help the environment by reducing your emissions in \" & IFERROR(ROUND(Heating!I13,0),0) + IFERROR(ROUND(Cooling!J9,0),0) & \" kgCO2.\")","v":"You will save  0 kWh (that’s worth about 0 €) per year. The price of installing a digital programmable thermostat is around 0 € (please request quotations to find out the exact cost for your case). You will help the environment by reducing your emissions in 0 kgCO2."},"Instalad un termostato digital programable. Los termostatos programables os facilitarán el ahorro energético, ya que podréis establecer periodos de encendido y apagado automáticos. ",{"$f":"IF(Heating!K13<>\"\",\"Ahorraréis \" & IFERROR(ROUND(Heating!G13,0),0) + IFERROR(ROUND(Cooling!H9,0),0) & \" kWh (lo que supone un ahorro de \" & IFERROR(ROUND(Heating!H13,0),0) + IFERROR(ROUND(Cooling!I9,0),0) & \" €) al año. \" & \"El precio de instalar un termostato digital programable es aproximadamente de \" & IFERROR(ROUND(Heating!J13,0),0) + IFERROR(ROUND(Cooling!K9,0),0) & \" € (os recomendamos que solicitéis presupuesto para vuestro caso concreto). \" & \"Recuperaréis la inversión aproximadamente en \" & IFERROR(ROUND(Heating!K13,0),0) + IFERROR(ROUND(Cooling!L9,0),0) & \" años. Estaréis ayudando al medioambiente al reducir tus emisiones en \" & IFERROR(ROUND(Heating!I13,0),0) + IFERROR(ROUND(Cooling!J9,0),0) & \" kgCO2.\",\"Ahorraréis \" & IFERROR(ROUND(Heating!G13,0),0) + IFERROR(ROUND(Cooling!H9,0),0) & \" kWh (lo que supone un ahorro de \" & IFERROR(ROUND(Heating!H13,0),0) + IFERROR(ROUND(Cooling!I9,0),0) & \" €) al año. \" & \"El precio de instalar un termostato digital programable es aproximadamente de \" & IFERROR(ROUND(Heating!J13,0),0) + IFERROR(ROUND(Cooling!K9,0),0) & \" € (os recomendamos que solicitéis presupuesto para vuestro caso concreto). Estaréis ayudando al medioambiente al reducir tus emisiones en \" & IFERROR(ROUND(Heating!I13,0),0) + IFERROR(ROUND(Cooling!J9,0),0) & \" kgCO2.\")","v":"Ahorraréis 0 kWh (lo que supone un ahorro de 0 €) al año. El precio de instalar un termostato digital programable es aproximadamente de 0 € (os recomendamos que solicitéis presupuesto para vuestro caso concreto). Estaréis ayudando al medioambiente al reducir tus emisiones en 0 kgCO2."},"Εγκαταστήστε ένα ψηφιακό προγραμματιζόμενο θερμοστάτη. Οι προγραμματιστές θα κάνουν τα πράγματα  ευκολότερα για σας, μιας και μπορείτε να ρυθμίσετε αυτόματα τον χρόνο ενεργοποίησης και απενεργοποίησης.",{"$f":"IF(Heating!K13<>\"\",\"Θα εξοικονομήσετε  \" & IFERROR(ROUND(Heating!G13,0),0) + IFERROR(ROUND(Cooling!H9,0),0) & \" kWh (Aυτό αντιστοιχεί σε περίπου \" & IFERROR(ROUND(Heating!H13,0),0) + IFERROR(ROUND(Cooling!I9,0),0) & \" €) τον χρόνο. \" & \"Το κόστος εγκατάστασης ψηφιακού προγραμματιζόμενου θερμοστάτη είναι περίπου € \" & IFERROR(ROUND(Heating!J13,0),0) + IFERROR(ROUND(Cooling!K9,0),0) & \" (παρακαλούμε να ζητήσετε προσφορές για να μάθετε το ακριβές κόστος για την περίπτωσή σας). \" & \"Η απόσβεση της επένδυσης σας είναι \" & IFERROR(ROUND(Heating!K13,0),0) + IFERROR(ROUND(Cooling!L9,0),0) & \" χρόνια.  Θα βοηθήσετε το περιβάλλον μειώνοντας τις εκπομπές σας κατά \" & IFERROR(ROUND(Heating!I13,0),0) + IFERROR(ROUND(Cooling!J9,0),0) & \" kgCO2.\",\"Θα εξοικονομήσετε  \" & IFERROR(ROUND(Heating!G13,0),0) + IFERROR(ROUND(Cooling!H9,0),0) & \" kWh (Aυτό αντιστοιχεί σε περίπου \" & IFERROR(ROUND(Heating!H13,0),0) + IFERROR(ROUND(Cooling!I9,0),0) & \" €) τον χρόνο. \" & \"Το κόστος εγκατάστασης ψηφιακού προγραμματιζόμενου θερμοστάτη είναι περίπου € \" & IFERROR(ROUND(Heating!J13,0),0) + IFERROR(ROUND(Cooling!K9,0),0) & \" (παρακαλούμε να ζητήσετε προσφορές για να μάθετε το ακριβές κόστος για την περίπτωσή σας). Θα βοηθήσετε το περιβάλλον μειώνοντας τις εκπομπές σας κατά \" & IFERROR(ROUND(Heating!I13,0),0) + IFERROR(ROUND(Cooling!J9,0),0) & \" kgCO2.\")","v":"Θα εξοικονομήσετε  0 kWh (Aυτό αντιστοιχεί σε περίπου 0 €) τον χρόνο. Το κόστος εγκατάστασης ψηφιακού προγραμματιζόμενου θερμοστάτη είναι περίπου € 0 (παρακαλούμε να ζητήσετε προσφορές για να μάθετε το ακριβές κόστος για την περίπτωσή σας). Θα βοηθήσετε το περιβάλλον μειώνοντας τις εκπομπές σας κατά 0 kgCO2."},"Utilizza un cronotermostato.\nIl termostato ti renderà le cose più facili, consentendoti di impostare i periodi di funzionamento: potrai svegliarti la mattina nella casa già calda ed andare a dormire senza doverti ogni giorno ricordare di spegnere il riscaldamento. Se la casa resta vuota per lunghi periodi durante il giorno, imposta il termostato in modo da evitare sprechi.\n",{"$f":"IF(Heating!K13<>\"\",\"Risparmierai fino a \" & IFERROR(ROUND(Heating!G13,0),0) + IFERROR(ROUND(Cooling!H9,0),0) & \"  kWh , equivalenti a \" & IFERROR(ROUND(Heating!H13,0),0) + IFERROR(ROUND(Cooling!I9,0),0) & \" € all'anno.\" & \" Il costo relativo all'installazione dei cronotermostati ammonta a circa \" & IFERROR(ROUND(Heating!J13,0),0) + IFERROR(ROUND(Cooling!K9,0),0) & \" €.Il ritorno dell'investimento è pari a  \" & IFERROR(ROUND(Heating!K13,0),0) + IFERROR(ROUND(Cooling!L9,0),0) & \" anni.\" & \" Aiuterai l'ambiente riducendo le tue emissioni di \" & IFERROR(ROUND(Heating!I13,0),0) + IFERROR(ROUND(Cooling!J9,0),0) & \" kgCO2.\",\"Risparmierai  \" & IFERROR(ROUND(Heating!G13,0),0) + IFERROR(ROUND(Cooling!H9,0),0) & \"  kWh , equivalenti a \" & IFERROR(ROUND(Heating!H13,0),0) + IFERROR(ROUND(Cooling!I9,0),0) & \" € all'anno.\" & \" Il costo relativo all'installazione dei cronotermostati ammonta a circa \" & IFERROR(ROUND(Heating!J13,0),0) + IFERROR(ROUND(Cooling!K9,0),0) & \" €. Aiuterai l'ambiente riducendo le tue emissioni di \" & IFERROR(ROUND(Heating!I13,0),0) + IFERROR(ROUND(Cooling!J9,0),0) & \" kgCO2.\")","v":"Risparmierai  0  kWh , equivalenti a 0 € all'anno. Il costo relativo all'installazione dei cronotermostati ammonta a circa 0 €. Aiuterai l'ambiente riducendo le tue emissioni di 0 kgCO2."},"Postavite digitalni termostat s podešavanjem. Programatori će vam olakšati stvari jer ćete moći uključiti i isključiti grijanje u određenom vremenskom razdoblju. ",{"$f":"IF(Heating!K13<>\"\",\"Uštedjet ćete  \" & IFERROR(ROUND(Heating!G13,0),0) + IFERROR(ROUND(Cooling!H9,0),0) & \" kWh (što vrijedi oko \" & IFERROR(ROUND(Heating!H13,0),0) + IFERROR(ROUND(Cooling!I9,0),0) & \" €) godišnje. \" & \"Cijena postavljanja digitalnog termsotata kojeg je moguće programirati je oko \" & IFERROR(ROUND(Heating!J13,0),0) + IFERROR(ROUND(Cooling!K9,0),0) & \" € (molimo vas da zatražite informacije kako bi saznali točan iznos za vaš slučaj). \" & \"Jednostavan period povrata (JPP) ulaganja je \" & IFERROR(ROUND(Heating!K13,0),0) + IFERROR(ROUND(Cooling!L9,0),0) & \" godina. Pomoći ćete okolišu smanjenjem emisija \" & IFERROR(ROUND(Heating!I13,0),0) + IFERROR(ROUND(Cooling!J9,0),0) & \" kgCO2.\",\"Uštedjet ćete  \" & IFERROR(ROUND(Heating!G13,0),0) + IFERROR(ROUND(Cooling!H9,0),0) & \" kWh (što vrijedi oko \" & IFERROR(ROUND(Heating!H13,0),0) + IFERROR(ROUND(Cooling!I9,0),0) & \" €) godišnje. \" & \"Cijena postavljanja digitalnog termsotata kojeg je moguće programirati je oko \" & IFERROR(ROUND(Heating!J13,0),0) + IFERROR(ROUND(Cooling!K9,0),0) & \" € (molimo vas da zatražite informacije kako bi saznali točan iznos za vaš slučaj). Pomoći ćete okolišu smanjenjem emisija \" & IFERROR(ROUND(Heating!I13,0),0) + IFERROR(ROUND(Cooling!J9,0),0) & \" kgCO2.\")","v":"Uštedjet ćete  0 kWh (što vrijedi oko 0 €) godišnje. Cijena postavljanja digitalnog termsotata kojeg je moguće programirati je oko 0 € (molimo vas da zatražite informacije kako bi saznali točan iznos za vaš slučaj). Pomoći ćete okolišu smanjenjem emisija 0 kgCO2."},"Монтирайте цифров програмируем термостат. Програмирането ще ви улесни, понеже ще може да задавате периоди на \"вкл\" и \"изкл\".  ",{"$f":"IF(Heating!K13<>\"\",\"Ще спестите   \" & IFERROR(ROUND(Heating!G13,0),0) + IFERROR(ROUND(Cooling!H9,0),0) & \" кВтч (това е около \" & IFERROR(ROUND(Heating!H13,0),0) + IFERROR(ROUND(Cooling!I9,0),0) & \" €) годишно. \" & \"Цената на цифровия програмируем термостат е около \" & IFERROR(ROUND(Heating!J13,0),0) + IFERROR(ROUND(Cooling!K9,0),0) & \" € (проверете за по-точна цена във вашия случай). \" & \"Срокът на изплащане е \" & IFERROR(ROUND(Heating!K13,0),0) + IFERROR(ROUND(Cooling!L9,0),0) & \" години. Ще намалите вредните емисии с \" & IFERROR(ROUND(Heating!I13,0),0) + IFERROR(ROUND(Cooling!J9,0),0) & \" kgCO2.\",\"Ще спестите   \" & IFERROR(ROUND(Heating!G13,0),0) + IFERROR(ROUND(Cooling!H9,0),0) & \" кВтч (това е около \" & IFERROR(ROUND(Heating!H13,0),0) + IFERROR(ROUND(Cooling!I9,0),0) & \" €) годишно. \" & \"Цената на цифровия програмируем термостат е около \" & IFERROR(ROUND(Heating!J13,0),0) + IFERROR(ROUND(Cooling!K9,0),0) & \" € (проверете за по-точна цена във вашия случай). Ще намалите вредните емисии с \" & IFERROR(ROUND(Heating!I13,0),0) + IFERROR(ROUND(Cooling!J9,0),0) & \" kgCO2.\")","v":"Ще спестите   0 кВтч (това е около 0 €) годишно. Цената на цифровия програмируем термостат е около 0 € (проверете за по-точна цена във вашия случай). Ще намалите вредните емисии с 0 kgCO2."}]
[null,"Tip 9","Set indoor temperature at 21ºC.","Set indoor temperature at 21ºC. In winter 21ºC during the day and 15- 18 ºC at night should be enough to make you feel comfortable.",{"$f":"\"You will save  \" & ROUND(Heating!G14,0) & \" kWh (that’s worth about \" & ROUND(Heating!H14,0) & \" €) per year.  You will help the environment by reducing your emissions in \" & ROUND(Heating!I14,0) & \" kgCO2.\"","v":"You will save  0 kWh (that’s worth about 0 €) per year.  You will help the environment by reducing your emissions in 0 kgCO2."},"En invierno, estableced la temperatura de tu casa en 21ºC. En invierno, 21ºC durante el día y 15-18ºC durante la noche deberían ser suficientes para vuestro confort. Podríais instalar también válvulas termostáticas en los radiadores para establecer la temperatura de los radiadores.",{"$f":"\"Ahorraréis \" & ROUND(Heating!G14,0) & \" kWh (lo que supone un ahorro de \" & ROUND(Heating!H14,0) & \" €) al año. \" & \"Estaréis ayudando al medioambiente al reducir tus emisiones en \" & ROUND(Heating!I14,0) & \" kgCO2. Si deseáis información sobre las válvulas termostáticas, os recomendamos que solicitéis presupuesto.\"","v":"Ahorraréis 0 kWh (lo que supone un ahorro de 0 €) al año. Estaréis ayudando al medioambiente al reducir tus emisiones en 0 kgCO2. Si deseáis información sobre las válvulas termostáticas, os recomendamos que solicitéis presupuesto."},"Ρυθμίστε την εσωτερική θερμοκρασία στους 21°C. Το χειμώνα μια θερμοκρασία των 21ºC κατά τη διάρκεια της ημέρας πρέπει να είναι αρκετή για να σας κάνει να νιώσετε άνετα.",{"$f":"\"Θα εξοικονομήσετε \" & ROUND(Heating!G14,0) & \" kWh (Aυτό αντιστοιχεί σε περίπου \" & ROUND(Heating!H14,0) & \" €) τον χρόνο.  Θα βοηθήσετε το περιβάλλον μειώνοντας τις εκπομπές σας κατά \" & ROUND(Heating!I14,0) & \" kgCO2.\"","v":"Θα εξοικονομήσετε 0 kWh (Aυτό αντιστοιχεί σε περίπου 0 €) τον χρόνο.  Θα βοηθήσετε το περιβάλλον μειώνοντας τις εκπομπές σας κατά 0 kgCO2."},"In inverno imposta la temperatura interna a 20ºC.\n  20ºC durante il giorno e qualche grado in meno di notte dovrebbero essere sufficiente per farti sentire a tuo agio in casa.",{"$f":"\"Risparmierai  \" & ROUND(Heating!G14,0) & \"  kWh , equivalenti a \" & ROUND(Heating!H14,2) & \" € all'anno. Aiuterai l'ambiente riducendo le tue emissioni di \" & ROUND(Heating!I14,0) & \" kgCO2.\"","v":"Risparmierai  0  kWh , equivalenti a 0 € all'anno. Aiuterai l'ambiente riducendo le tue emissioni di 0 kgCO2."},"Postavite sobnu temperaturu na 21°C. Zimi je temperatura od 21°C danju i 15 do 18°C noću dovoljna da bi se osjećali ugodno. ",{"$f":"\"Uštedjet ćete \" & ROUND(Heating!G14,0) & \" kWh (što vrijedi oko \" & ROUND(Heating!H14,0) & \" €) godišnje.  Pomoći ćete okolišu smanjenjem emisija  \" & ROUND(Heating!I14,0) & \" kgCO2.\"","v":"Uštedjet ćete 0 kWh (što vrijedi oko 0 €) godišnje.  Pomoći ćete okolišu smanjenjem emisija  0 kgCO2."},"Настройте вътрешната температура на 21ºC. През зимата 21ºC през деня и 15-18 ºC през нощта са достатъчни температури за да се чувствате уютно. ",{"$f":"\"Ще спестите \" & ROUND(Heating!G14,0) & \" кВтч (това е около \" & ROUND(Heating!H14,0) & \" €) годишно. Ще намалите вредните емисии с \" & ROUND(Heating!I14,0) & \" kgCO2.\"","v":"Ще спестите 0 кВтч (това е около 0 €) годишно. Ще намалите вредните емисии с 0 kgCO2."}]
[null,"Tip 10","Install aerators on taps.","Install aerators on taps. If you save hot water you will also be saving energy. ",{"$f":"IF(Heating!K20<>\"\",\"You will save  \" & ROUND(Heating!G20,0) & \" kWh (that’s worth about \" & ROUND(Heating!H20,0) & \" €) per year. \" & \"The cost of installing an aerator on taps may range between \" & ROUND(Heating!J14,2) & \" € (please request quotations to find out the exact cost for your case). \" & \"The payback is \" & ROUND(Heating!K20,2) & \" years.  You will help the environment by reducing your emissions in \" & ROUND(Heating!I20,0) & \" kgCO2.\",\"You will save  \" & ROUND(Heating!G20,0) & \" kWh (that’s worth about \" & ROUND(Heating!H20,0) & \" €) per year. \" & \"The cost of installing an aerator on taps may range between \" & ROUND(Heating!J14,2) & \" € (please request quotations to find out the exact cost for your case). You will help the environment by reducing your emissions in \" & ROUND(Heating!I20,0) & \" kgCO2.\")","v":"You will save  0 kWh (that’s worth about 0 €) per year. The cost of installing an aerator on taps may range between 0 € (please request quotations to find out the exact cost for your case). You will help the environment by reducing your emissions in 0 kgCO2."},"Instalad perlizadores en los grifos.  Si ahorráis agua caliente estaréis ahorrando agua y energía. ",{"$f":"IF(Heating!K20<>\"\",\"Ahorraréis \" & ROUND(Heating!G20,0) & \" kWh (lo que supone un ahorro de \" & ROUND(Heating!H20,0) & \" €) al año. \" & \"El precio de instalar un perlizador es aproximadamente de \" & ROUND(Heating!J20,2) & \" € (os recomendamos que solicitéis presupuesto para vuestro caso concreto). \" & \"Recuperaréis la inversión aproximadamente en \" & ROUND(Heating!K20,2) & \" años. Estaréis ayudando al medioambiente al reducir vuestras emisiones en \" & ROUND(Heating!I20,0) & \" kgCO2.\",\"Ahorraréis \" & ROUND(Heating!G20,0) & \" kWh (lo que supone un ahorro de \" & ROUND(Heating!H20,0) & \" €) al año. \" & \"El precio de instalar un perlizador es aproximadamente de \" & ROUND(Heating!J20,2) & \" € (os recomendamos que solicitéis presupuesto para vuestro caso concreto). Estaréis ayudando al medioambiente al reducir vuestras emisiones en \" & ROUND(Heating!I20,0) & \" kgCO2.\")","v":"Ahorraréis 0 kWh (lo que supone un ahorro de 0 €) al año. El precio de instalar un perlizador es aproximadamente de 0 € (os recomendamos que solicitéis presupuesto para vuestro caso concreto). Estaréis ayudando al medioambiente al reducir vuestras emisiones en 0 kgCO2."},"Εγκαταστείστε αεριστές στις βρύσες. Εάν εξοικονομείτε ζεστό νερό, θα εξοικονομείτε επίσης και ενέργεια.",{"$f":"IF(Heating!K20<>\"\",\"Θα εξοικονομήσετε \" & ROUND(Heating!G20,0) & \" kWh (Aυτό αντιστοιχεί σε περίπου \" & ROUND(Heating!H20,0) & \" €) τον χρόνο. \" & \"Το κόστος εγκατάστασης αεριστή, κυμαίνεται στα \" & ROUND(Heating!J14,2) & \" € (παρακαλούμε να ζητήσετε προσφορές για να μάθετε το ακριβές κόστος για την περίπτωσή σας). \" & \"Η απόσβεση της επένδυσης σας είναι \" & ROUND(Heating!K20,2) & \" χρόνια.  Θα βοηθήσετε το περιβάλλον μειώνοντας τις εκπομπές σας κατά \" & ROUND(Heating!I20,0) & \" kgCO2.\",\"Θα εξοικονομήσετε \" & ROUND(Heating!G20,0) & \" kWh (Aυτό αντιστοιχεί σε περίπου \" & ROUND(Heating!H20,0) & \" €) τον χρόνο. \" & \"Το κόστος εγκατάστασης αεριστή, κυμαίνεται στα \" & ROUND(Heating!J14,2) & \" € (παρακαλούμε να ζητήσετε προσφορές για να μάθετε το ακριβές κόστος για την περίπτωσή σας). Θα βοηθήσετε το περιβάλλον μειώνοντας τις εκπομπές σας κατά \" & ROUND(Heating!I20,0) & \" kgCO2.\")","v":"Θα εξοικονομήσετε 0 kWh (Aυτό αντιστοιχεί σε περίπου 0 €) τον χρόνο. Το κόστος εγκατάστασης αεριστή, κυμαίνεται στα 0 € (παρακαλούμε να ζητήσετε προσφορές για να μάθετε το ακριβές κόστος για την περίπτωσή σας). Θα βοηθήσετε το περιβάλλον μειώνοντας τις εκπομπές σας κατά 0 kgCO2."},"Installa gli aeratori sui rubinetti. \nSe risparmi acqua calda risparimerai anche l'energia necessaria per riscaldarla.",{"$f":"IF(Heating!K20<>\"\",\"Risparmierai fino a\" & ROUND(Heating!G20,0) & \"  kWh , equivalenti a \" & ROUND(Heating!H20,2) & \" € all'anno.\" & \" Il costo relativo all'installazione dei aeratori sui rubinetti ammonta a circa \" & ROUND(Heating!J20,2) & \" €.Il ritorno dell'investimento è pari a \" & ROUND(Heating!K20,2) & \" anni.\" & \" Aiuterai l'ambiente riducendo le tue emissioni di \" & ROUND(Heating!I20,0) & \" kgCO2.\",\"Risparmierai \" & ROUND(Heating!G20,0) & \"  kWh , equivalenti a \" & ROUND(Heating!H20,2) & \" € all'anno.\" & \" Il costo relativo all'installazione dei aeratori sui rubinetti ammonta a circa \" & ROUND(Heating!J20,2) & \" €. Aiuterai l'ambiente riducendo le tue emissioni di \" & ROUND(Heating!I20,0) & \" kgCO2.\")","v":"Risparmierai 0  kWh , equivalenti a 0 € all'anno. Il costo relativo all'installazione dei aeratori sui rubinetti ammonta a circa 0 €. Aiuterai l'ambiente riducendo le tue emissioni di 0 kgCO2."},"Postavite perlatore na slavine. Ako budete štedjeli toplu vodu, štedjet ćete i energiju. ",{"$f":"IF(Heating!K20<>\"\",\"Uštedjet ćete \" & ROUND(Heating!G20,0) & \" kWh (što vrijedi oko \" & ROUND(Heating!H20,0) & \" €) godišnje. \" & \"Cijena postavljanja perlatora na izljevnim mjestima je oko \" & ROUND(Heating!J14,2) & \" € (molimo vas da zatražite informacije kako bi saznali točan iznos za vaš slučaj). \" & \"Jednostavan period povrata (JPP) ulaganja je \" & ROUND(Heating!K20,2) & \" god. Pomoći ćete okolišu smanjenjem emisija  \" & ROUND(Heating!I20,0) & \" kgCO2.\",\"Uštedjet ćete \" & ROUND(Heating!G20,0) & \" kWh (što vrijedi oko \" & ROUND(Heating!H20,0) & \" €) godišnje. \" & \"Cijena postavljanja perlatora na izljevnim mjestima je oko \" & ROUND(Heating!J14,2) & \" € (molimo vas da zatražite informacije kako bi saznali točan iznos za vaš slučaj). Pomoći ćete okolišu smanjenjem emisija  \" & ROUND(Heating!I20,0) & \" kgCO2.\")","v":"Uštedjet ćete 0 kWh (što vrijedi oko 0 €) godišnje. Cijena postavljanja perlatora na izljevnim mjestima je oko 0 € (molimo vas da zatražite informacije kako bi saznali točan iznos za vaš slučaj). Pomoći ćete okolišu smanjenjem emisija  0 kgCO2."},"Монтирайте редуцир-вентил. Пестейки топла вода, вие спестявате и енергия. ",{"$f":"IF(Heating!K20<>\"\",\"Ще спестите \" & ROUND(Heating!G20,0) & \" кВтч (това е около  \" & ROUND(Heating!H20,2) & \" €) годишно. \" & \"Цената на редуцир-вентил е около  \" & ROUND(Heating!J20,2) & \" € (проверете за по-точна цена във вашия случай). \" & \"Срокът на изплащане е  \" & ROUND(Heating!K20,2) & \" години. Ще намалите вредните емисии с  \" & ROUND(Heating!I20,0) & \" kgCO2.\",\"Ще спестите \" & ROUND(Heating!G20,0) & \" кВтч (това е около  \" & ROUND(Heating!H20,2) & \" €) годишно. \" & \"Цената на редуцир-вентил е около  \" & ROUND(Heating!J20,2) & \" € (проверете за по-точна цена във вашия случай). Ще намалите вредните емисии с  \" & ROUND(Heating!I20,0) & \" kgCO2.\")","v":"Ще спестите 0 кВтч (това е около  0 €) годишно. Цената на редуцир-вентил е около  0 € (проверете за по-точна цена във вашия случай). Ще намалите вредните емисии с  0 kgCO2."}]
[null,"Tip 11","Install thermostatic taps. ","Install thermostatic taps. Use thermostatic taps in sinks and showers to set the right temperature quickly.  ",{"$f":"IF(Heating!K21<>\"\",\"You will save  \" & ROUND(Heating!G21,0) & \" kWh (that’s worth about \" & ROUND(Heating!H21,0) & \" €) per year. \" & \"The cost of installing a thermostatic taps may range between \" & ROUND(Heating!J21,2) & \" euros (please request quotations to find out the exact cost for your case). \" & \"The payback is \" & ROUND(Heating!K21,2) & \" years.  You will help the environment by reducing your emissions in \" & ROUND(Heating!I21,0) & \" kgCO2.\",\"You will save  \" & ROUND(Heating!G21,0) & \" kWh (that’s worth about \" & ROUND(Heating!H21,0) & \" €) per year. \" & \"The cost of installing a thermostatic taps may range between \" & ROUND(Heating!J21,2) & \" euros (please request quotations to find out the exact cost for your case). You will help the environment by reducing your emissions in \" & ROUND(Heating!I21,0) & \" kgCO2.\")","v":"You will save  0 kWh (that’s worth about 0 €) per year. The cost of installing a thermostatic taps may range between 0 euros (please request quotations to find out the exact cost for your case). You will help the environment by reducing your emissions in 0 kgCO2."},"Instalad grifos termostáticos. Os permitirán alcanzar el nivel ideal de temperatura sin desperdiciar tanta agua. ",{"$f":"IF(Heating!K21<>\"\",\"Ahorraréis \" & ROUND(Heating!G21,0) & \" kWh (lo que supone un ahorro de \" & ROUND(Heating!H21,0) & \" €) al año. \" & \"El precio de instalar un grifo termostático es aproximadamente de \" & ROUND(Heating!J21,2) & \" € (os recomendamos que solicitéis presupuesto para vuestro caso concreto). \" & \"Recuperaréis la inversión aproximadamente en \" & ROUND(Heating!K21,2) & \" años. Estaréis ayudando al medioambiente al reducir vuestras emisiones en \" & ROUND(Heating!I21,0) & \" kgCO2.\",\"Ahorraréis \" & ROUND(Heating!G21,0) & \" kWh (lo que supone un ahorro de \" & ROUND(Heating!H21,0) & \" €) al año. \" & \"El precio de instalar un grifo termostático es aproximadamente de \" & ROUND(Heating!J21,2) & \" € (os recomendamos que solicitéis presupuesto para vuestro caso concreto). Estaréis ayudando al medioambiente al reducir vuestras emisiones en \" & ROUND(Heating!I21,0) & \" kgCO2.\")","v":"Ahorraréis 0 kWh (lo que supone un ahorro de 0 €) al año. El precio de instalar un grifo termostático es aproximadamente de 0 € (os recomendamos que solicitéis presupuesto para vuestro caso concreto). Estaréis ayudando al medioambiente al reducir vuestras emisiones en 0 kgCO2."},"Εγκατάσταση θερμοστάτη στις βρύσες. Χρησιμοποιήστε θερμοστατικές βρύσες σε νεροχύτες και ντους για να μπορείτε να ρυθμίσετε γρήγορα την σωστή θερμοκρασία.",{"$f":"IF(Heating!K21<>\"\",\"Θα εξοικονομήσετε \" & ROUND(Heating!G21,0) & \" kWh (Aυτό αντιστοιχεί σε περίπου \" & ROUND(Heating!H21,0) & \" €) τον χρόνο. \" & \"Το κόστος εγκατάστασης θερμοστάτη στις βρύσες κυμαίνεται στα € \" & ROUND(Heating!J21,2) & \" (παρακαλούμε να ζητήσετε προσφορές για να μάθετε το ακριβές κόστος για την περίπτωσή σας). \" & \"Η απόσβεση της επένδυσης σας είναι \" & ROUND(Heating!K21,2) & \" χρόνια.  Θα βοηθήσετε το περιβάλλον μειώνοντας τις εκπομπές σας κατά \" & ROUND(Heating!I21,0) & \" kgCO2.\",\"Θα εξοικονομήσετε \" & ROUND(Heating!G21,0) & \" kWh (Aυτό αντιστοιχεί σε περίπου \" & ROUND(Heating!H21,0) & \" €) τον χρόνο. \" & \"Το κόστος εγκατάστασης θερμοστάτη στις βρύσες κυμαίνεται στα € \" & ROUND(Heating!J21,2) & \" (παρακαλούμε να ζητήσετε προσφορές για να μάθετε το ακριβές κόστος για την περίπτωσή σας). Θα βοηθήσετε το περιβάλλον μειώνοντας τις εκπομπές σας κατά \" & ROUND(Heating!I21,0) & \" kgCO2.\")","v":"Θα εξοικονομήσετε 0 kWh (Aυτό αντιστοιχεί σε περίπου 0 €) τον χρόνο. Το κόστος εγκατάστασης θερμοστάτη στις βρύσες κυμαίνεται στα € 0 (παρακαλούμε να ζητήσετε προσφορές για να μάθετε το ακριβές κόστος για την περίπτωσή σας). Θα βοηθήσετε το περιβάλλον μειώνοντας τις εκπομπές σας κατά 0 kgCO2."},"Installa i rubinetti termostatici in lavandini e docce per impostare rapidamente la giusta temperatura.",{"$f":"IF(Heating!K21<>\"\",\"Risparmierai fino a \" & ROUND(Heating!G21,0) & \"  kWh , equivalenti a \" & ROUND(Heating!H21,2) & \" € all'anno.\" & \" Il costo relativo all'installazione dei  rubinetti termostatici ammonta a circa \" & ROUND(Heating!J21,2) & \" €.Il ritorno dell'investimento è pari a \" & ROUND(Heating!K21,2) & \" anni.\" & \" Aiuterai l'ambiente riducendo le tue emissioni di \" & ROUND(Heating!I21,0) & \" kgCO2.\",\"Risparmierai  \" & ROUND(Heating!G21,0) & \"  kWh , equivalenti a \" & ROUND(Heating!H21,2) & \" € all'anno.\" & \" Il costo relativo all'installazione dei  rubinetti termostatici ammonta a circa \" & ROUND(Heating!J21,2) & \" €. Aiuterai l'ambiente riducendo le tue emissioni di \" & ROUND(Heating!I21,0) & \" kgCO2.\")","v":"Risparmierai  0  kWh , equivalenti a 0 € all'anno. Il costo relativo all'installazione dei  rubinetti termostatici ammonta a circa 0 €. Aiuterai l'ambiente riducendo le tue emissioni di 0 kgCO2."},"Postavite termostatske slavine. Koristite termostatske slavine na umivaonicama i tuševima kako bi brzo podesili željenu temperaturu vode. ",{"$f":"IF(Heating!K21<>\"\",\"Uštedjet ćete \" & ROUND(Heating!G21,0) & \" kWh (što vrijedi oko \" & ROUND(Heating!H21,0) & \" €) godišnje. \" & \"Cijena postavljanja termostatskih slavina je oko \" & ROUND(Heating!J21,2) & \" € (molimo vas da zatražite informacije kako bi saznali točan iznos za vaš slučaj). \" & \"Jednostavan period povrata (JPP) ulaganja je \" & ROUND(Heating!K21,2) & \" god. Pomoći ćete okolišu smanjenjem emisija  \" & ROUND(Heating!I21,0) & \".\",\"Uštedjet ćete \" & ROUND(Heating!G21,0) & \" kWh (što vrijedi oko \" & ROUND(Heating!H21,0) & \" €) godišnje. \" & \"Cijena postavljanja termostatskih slavina je oko \" & ROUND(Heating!J21,2) & \" € (molimo vas da zatražite informacije kako bi saznali točan iznos za vaš slučaj). Pomoći ćete okolišu smanjenjem emisija  \" & ROUND(Heating!I21,0) & \".\")","v":"Uštedjet ćete 0 kWh (što vrijedi oko 0 €) godišnje. Cijena postavljanja termostatskih slavina je oko 0 € (molimo vas da zatražite informacije kako bi saznali točan iznos za vaš slučaj). Pomoći ćete okolišu smanjenjem emisija  0."},"Монтирайте термостатни смесители. Използвайте ги за мивки и душове за да регулирате температурата на водата бързо.  ",{"$f":"IF(Heating!K21<>\"\",\"Ще спестите \" & ROUND(Heating!G21,0) & \" кВтч (това е около \" & ROUND(Heating!H21,2) & \" €) годишно. \" & \"Цената на термостатните смесители е около \" & ROUND(Heating!J21,2) & \" euros (проверете за по-точна цена във вашия случай). \" & \"Срокът на изплащане е \" & ROUND(Heating!K21,2) & \" години. Ще намалите врените емисии с \" & ROUND(Heating!I21,0) & \" kgCO2.\",\"Ще спестите \" & ROUND(Heating!G21,0) & \" кВтч (това е около \" & ROUND(Heating!H21,2) & \" €) годишно. \" & \"Цената на термостатните смесители е около \" & ROUND(Heating!J21,2) & \" euros (проверете за по-точна цена във вашия случай). Ще намалите врените емисии с \" & ROUND(Heating!I21,0) & \" kgCO2.\")","v":"Ще спестите 0 кВтч (това е около 0 €) годишно. Цената на термостатните смесители е около 0 euros (проверете за по-точна цена във вашия случай). Ще намалите врените емисии с 0 kgCO2."}]
[null,"Tip 12","Refurbish the ceiling from the inside.","Refurbish the ceiling from the inside. Insulate your ceiling with systems that allow to do it from the inside. ",{"$f":"IF(Heating!K11<>\"\",\"You will save  \" & ROUND(Heating!G11,0) & \" kWh (that’s worth about \" & ROUND(Heating!H11,2) & \" €) per year. \" & \"The cost of refurbish the ceiling from the inside may range between \" & ROUND(Heating!J11,2) & \" € (please request quotations to find out the exact cost for your case). \" & \"The payback is \" & ROUND(Heating!K11,2) & \" years.  You will help the environment by reducing your emissions in \" & ROUND(Heating!I11,0) & \" kgCO2.\",\"You will save  \" & ROUND(Heating!G11,0) & \" kWh (that’s worth about \" & ROUND(Heating!H11,2) & \" €) per year. \" & \"The cost of refurbish the ceiling from the inside may range between \" & ROUND(Heating!J11,2) & \" € (please request quotations to find out the exact cost for your case). You will help the environment by reducing your emissions in \" & ROUND(Heating!I11,0) & \" kgCO2.\")","v":"You will save  0 kWh (that’s worth about 0 €) per year. The cost of refurbish the ceiling from the inside may range between 0 € (please request quotations to find out the exact cost for your case). You will help the environment by reducing your emissions in 0 kgCO2."},"Rehabilitad el techo desde el interior de la vivienda. Aislad vuestro techo con técnicas que permiten hacerlo desde el interior de la vivienda. ",{"$f":"IF(Heating!K11<>\"\",\"Ahorraréis \" & ROUND(Heating!G11,0) & \" kWh (lo que supone un ahorro de \" & ROUND(Heating!H11,0) & \" €) al año. \" & \"El precio de rehabilitar el techo desde dentro es aproximadamente de \" & ROUND(Heating!J11,2) & \" (os recomendamos que solicitéis presupuesto para vuestro caso concreto).  \" & \"Recuperaréis la inversión aproximadamente en \" & ROUND(Heating!K11,2) & \" años. Estaréis ayudando al medioambiente al reducir vuestras emisiones en \" & ROUND(Heating!I11,0) & \" kgCO2.\",\"Ahorraréis \" & ROUND(Heating!G11,0) & \" kWh (lo que supone un ahorro de \" & ROUND(Heating!H11,0) & \" €) al año. \" & \"El precio de rehabilitar el techo desde dentro es aproximadamente de \" & ROUND(Heating!J11,2) & \" (os recomendamos que solicitéis presupuesto para vuestro caso concreto). Estaréis ayudando al medioambiente al reducir vuestras emisiones en \" & ROUND(Heating!I11,0) & \" kgCO2.\")","v":"Ahorraréis 0 kWh (lo que supone un ahorro de 0 €) al año. El precio de rehabilitar el techo desde dentro es aproximadamente de 0 (os recomendamos que solicitéis presupuesto para vuestro caso concreto). Estaréis ayudando al medioambiente al reducir vuestras emisiones en 0 kgCO2."},"Ανακαινίστε εσωτερικά την οροφή σας. Μονώστε την οροφή σας με συστήματα που επιτρέπουν να το κάνετε από το εσωτερικό.",{"$f":"IF(Heating!K11<>\"\",\"Θα εξοικονομήσετε \" & ROUND(Heating!G11,0) & \" kWh (Aυτό αντιστοιχεί σε περίπου \" & ROUND(Heating!H11,2) & \" €) τον χρόνο. \" & \"Το κόστος για να ανακαινίσετε εσωτερικά την οροφή σας μπορεί να κυμαίνεται στα \" & ROUND(Heating!J11,2) & \" € (παρακαλούμε να ζητήσετε προσφορές για να μάθετε το ακριβές κόστος για την περίπτωσή σας). \" & \"Η απόσβεση της επένδυσης σας είναι \" & ROUND(Heating!K11,2) & \" χρόνια.  Θα βοηθήσετε το περιβάλλον μειώνοντας τις εκπομπές σας κατά \" & ROUND(Heating!I11,0) & \" kgCO2.\",\"Θα εξοικονομήσετε \" & ROUND(Heating!G11,0) & \" kWh (Aυτό αντιστοιχεί σε περίπου \" & ROUND(Heating!H11,2) & \" €) τον χρόνο. \" & \"Το κόστος για να ανακαινίσετε εσωτερικά την οροφή σας μπορεί να κυμαίνεται στα \" & ROUND(Heating!J11,2) & \" € (παρακαλούμε να ζητήσετε προσφορές για να μάθετε το ακριβές κόστος για την περίπτωσή σας). Θα βοηθήσετε το περιβάλλον μειώνοντας τις εκπομπές σας κατά \" & ROUND(Heating!I11,0) & \" kgCO2.\")","v":"Θα εξοικονομήσετε 0 kWh (Aυτό αντιστοιχεί σε περίπου 0 €) τον χρόνο. Το κόστος για να ανακαινίσετε εσωτερικά την οροφή σας μπορεί να κυμαίνεται στα 0 € (παρακαλούμε να ζητήσετε προσφορές για να μάθετε το ακριβές κόστος για την περίπτωσή σας). Θα βοηθήσετε το περιβάλλον μειώνοντας τις εκπομπές σας κατά 0 kgCO2."},"Coibenta il tetto. \nIl tetto si può isolare sia dall'esterno che dall'interno. La soluzione migliore è un'isolamento dall'estreno. In alternativa valuta anche soluzioni di isolamento dall'interno.",{"$f":"IF(Heating!K11<>\"\",\"Risparmierai fino a\" & ROUND(Heating!G11,0) & \"  kWh , equivalenti a \" & ROUND(Heating!H11,2) & \" € all'anno. Il costo relativo alla coibentazione del tetto  ammonta a circa \" & ROUND(Heating!J11,2) & \" €.\" & \"Il ritorno dell'investimento è pari a \" & ROUND(Heating!K11,2) & \" anni.\" & \" Aiuterai l'ambiente riducendo le tue emissioni di \" & ROUND(Heating!I11,0) & \" kgCO2.\",\"Risparmierai  \" & ROUND(Heating!G11,0) & \"  kWh , equivalenti a \" & ROUND(Heating!H11,2) & \" € all'anno. Il costo relativo alla coibentazione del tetto  ammonta a circa \" & ROUND(Heating!J11,2) & \" €. Aiuterai l'ambiente riducendo le tue emissioni di \" & ROUND(Heating!I11,0) & \" kgCO2.\")","v":"Risparmierai  0  kWh , equivalenti a 0 € all'anno. Il costo relativo alla coibentazione del tetto  ammonta a circa 0 €. Aiuterai l'ambiente riducendo le tue emissioni di 0 kgCO2."},"Preuredite strop iznutra. Izolirajte strop sustavima koji dopuštaju da se to učini iznutra. ",{"$f":"IF(Heating!K11<>\"\",\"Uštedjet ćete \" & ROUND(Heating!G11,0) & \" kWh (što vrijedi oko \" & ROUND(Heating!H11,0) & \" €) godišnje. \" & \"Cijena preuređenja stropa iznutra je oko \" & ROUND(Heating!J11,2) & \" € (molimo vas da zatražite informacije kako bi saznali točan iznos za vaš slučaj). \" & \"Jednostavan period povrata (JPP) ulaganja je \" & ROUND(Heating!K11,2) & \" god. Pomoći ćete okolišu smanjenjem emisija  \" & ROUND(Heating!I11,0) & \" kgCO2.\",\"Uštedjet ćete \" & ROUND(Heating!G11,0) & \" kWh (što vrijedi oko \" & ROUND(Heating!H11,0) & \" €) godišnje. \" & \"Cijena preuređenja stropa iznutra je oko \" & ROUND(Heating!J11,2) & \" € (molimo vas da zatražite informacije kako bi saznali točan iznos za vaš slučaj). Pomoći ćete okolišu smanjenjem emisija  \" & ROUND(Heating!I11,0) & \" kgCO2.\")","v":"Uštedjet ćete 0 kWh (što vrijedi oko 0 €) godišnje. Cijena preuređenja stropa iznutra je oko 0 € (molimo vas da zatražite informacije kako bi saznali točan iznos za vaš slučaj). Pomoći ćete okolišu smanjenjem emisija  0 kgCO2."},"Изолирайте тавана от вътре. Направете го с материали, позволяващи това да стане от вътрешната страна.",{"$f":"IF(Heating!K11<>\"\",\"Ще спестите \" & ROUND(Heating!G11,0) & \" кВтч (това е около \" & ROUND(Heating!H11,2) & \" €) годишно. \" & \"Цената на изолация на тавана от вътре може да бъде около  \" & ROUND(Heating!J11,2) & \" € (проверете за по-точна цена във вашия случай). \" & \"Срокът на изплащане е  \" & ROUND(Heating!K11,2) & \" години. Ще намалите вредните емисии с  \" & ROUND(Heating!I11,0) & \" kgCO2.\",\"Ще спестите \" & ROUND(Heating!G11,0) & \" кВтч (това е около \" & ROUND(Heating!H11,2) & \" €) годишно. \" & \"Цената на изолация на тавана от вътре може да бъде около  \" & ROUND(Heating!J11,2) & \" € (проверете за по-точна цена във вашия случай). Ще намалите вредните емисии с  \" & ROUND(Heating!I11,0) & \" kgCO2.\")","v":"Ще спестите 0 кВтч (това е около 0 €) годишно. Цената на изолация на тавана от вътре може да бъде около  0 € (проверете за по-точна цена във вашия случай). Ще намалите вредните емисии с  0 kgCO2."}]
[null,"Tip 13","Install high efficiency windowpanes and frames. ","Install high efficiency windowpanes and frames. Install double glazing windows and thermal break.",{"$f":"IF(Heating!K10<>\"\",\"You will save  \" & ROUND(Heating!G10,0) & \" kWh (that’s worth about \" & ROUND(Heating!H10,0) & \" €) per year. \" & \"The price of installing high efficiency windowpanes and frames is around \" & ROUND(Heating!J10,2) & \" € (please request quotations to find out the exact cost for your case). \" & \"The payback is \" & ROUND(Heating!K10,2) & \" years.  You will help the environment by reducing your emissions in \" & ROUND(Heating!I10,0) & \" kgCO2.\",\"You will save  \" & ROUND(Heating!G10,0) & \" kWh (that’s worth about \" & ROUND(Heating!H10,0) & \" €) per year. \" & \"The price of installing high efficiency windowpanes and frames is around \" & ROUND(Heating!J10,2) & \" € (please request quotations to find out the exact cost for your case). You will help the environment by reducing your emissions in \" & ROUND(Heating!I10,0) & \" kgCO2.\")","v":"You will save  0 kWh (that’s worth about 0 €) per year. The price of installing high efficiency windowpanes and frames is around 0 € (please request quotations to find out the exact cost for your case). You will help the environment by reducing your emissions in 0 kgCO2."},"Instalad cristales y carpintería de alta eficiencia en tus ventanas. Si instaláis ventanas con rotura de puente térmico, evitaréis en gran medida que el frío y el calor de fuera penetre en vuestras casas.",{"$f":"IF(Heating!K10<>\"\",\"Ahorraréis \" & ROUND(Heating!G10,0) & \" kWh (lo que supone un ahorro de \" & ROUND(Heating!H10,0) & \" €) al año. \" & \"El precio de instalar cristales y carpintería de alta eficiencia es aproximadamente de \" & ROUND(Heating!J10,2) & \" € (os recomendaos que solicitéis presupuesto para vuestro caso concreto). \" & \"Recuperaréis la inversión aproximadamente en \" & ROUND(Heating!K10,2) & \" años. Estaréis ayudando al medioambiente al reducir tus emisiones en \" & ROUND(Heating!I10,0) & \" kgCO2.\",\"Ahorraréis \" & ROUND(Heating!G10,0) & \" kWh (lo que supone un ahorro de \" & ROUND(Heating!H10,0) & \" €) al año. \" & \"El precio de instalar cristales y carpintería de alta eficiencia es aproximadamente de \" & ROUND(Heating!J10,2) & \" € (os recomendaos que solicitéis presupuesto para vuestro caso concreto). Estaréis ayudando al medioambiente al reducir tus emisiones en \" & ROUND(Heating!I10,0) & \" kgCO2.\")","v":"Ahorraréis 0 kWh (lo que supone un ahorro de 0 €) al año. El precio de instalar cristales y carpintería de alta eficiencia es aproximadamente de 0 € (os recomendaos que solicitéis presupuesto para vuestro caso concreto). Estaréis ayudando al medioambiente al reducir tus emisiones en 0 kgCO2."},"Εγκαταστήστε υψηλής απόδοσης παράθυρα. Τοποθετήστε διπλά τζάμια και θερμικό κενό.",{"$f":"IF(Heating!K10<>\"\",\"Θα εξοικονομήσετε \" & ROUND(Heating!G10,0) & \" kWh (Aυτό αντιστοιχεί σε περίπου \" & ROUND(Heating!H10,0) & \" €) τον χρόνο. \" & \"Το κόστος εγκατάστασης παραθύρων υψηλής απόδοσης είναι περίπου € \" & ROUND(Heating!J10,2) & \" (παρακαλούμε να ζητήσετε προσφορές για να μάθετε το ακριβές κόστος για την περίπτωσή σας). \" & \"Η απόσβεση της επένδυσης σας είναι \" & ROUND(Heating!K10,2) & \" χρόνια.  Θα βοηθήσετε το περιβάλλον μειώνοντας τις εκπομπές σας κατά \" & ROUND(Heating!I10,0) & \" kgCO2.\",\"Θα εξοικονομήσετε \" & ROUND(Heating!G10,0) & \" kWh (Aυτό αντιστοιχεί σε περίπου \" & ROUND(Heating!H10,0) & \" €) τον χρόνο. \" & \"Το κόστος εγκατάστασης παραθύρων υψηλής απόδοσης είναι περίπου € \" & ROUND(Heating!J10,2) & \" (παρακαλούμε να ζητήσετε προσφορές για να μάθετε το ακριβές κόστος για την περίπτωσή σας). Θα βοηθήσετε το περιβάλλον μειώνοντας τις εκπομπές σας κατά \" & ROUND(Heating!I10,0) & \" kgCO2.\")","v":"Θα εξοικονομήσετε 0 kWh (Aυτό αντιστοιχεί σε περίπου 0 €) τον χρόνο. Το κόστος εγκατάστασης παραθύρων υψηλής απόδοσης είναι περίπου € 0 (παρακαλούμε να ζητήσετε προσφορές για να μάθετε το ακριβές κόστος για την περίπτωσή σας). Θα βοηθήσετε το περιβάλλον μειώνοντας τις εκπομπές σας κατά 0 kgCO2."},"Installa serramenti ad alta efficienza energetica. \nScegli serramenti con transmittanza a norma di legge.",{"$f":"IF(Heating!K10<>\"\",\"Risparmierai fino a\" & ROUND(Heating!G10,0) & \"  kWh , equivalenti a \" & ROUND(Heating!H10,2) & \" € all'anno.\" & \" Il costo relativo all'installazione di serramenti ad alta efficienza energetica ammonta a circa \" & ROUND(Heating!J10,2) & \" €.Il ritorno dell'investimento è pari a \" & ROUND(Heating!K10,2) & \" anni.\" & \" Aiuterai l'ambiente riducendo le tue emissioni di \" & ROUND(Heating!I10,0) & \" kgCO2.\",\"Risparmierai  \" & ROUND(Heating!G10,0) & \"  kWh , equivalenti a \" & ROUND(Heating!H10,2) & \" € all'anno.\" & \" Il costo relativo all'installazione di serramenti ad alta efficienza energetica ammonta a circa \" & ROUND(Heating!J10,2) & \" €. Aiuterai l'ambiente riducendo le tue emissioni di \" & ROUND(Heating!I10,0) & \" kgCO2.\")","v":"Risparmierai  0  kWh , equivalenti a 0 € all'anno. Il costo relativo all'installazione di serramenti ad alta efficienza energetica ammonta a circa 0 €. Aiuterai l'ambiente riducendo le tue emissioni di 0 kgCO2."},"Postavite prozorska stakla i okvire visoke učinkovitosti. Postavite dvostruko ostakljene prozore s termičkim slojem. ",{"$f":"IF(Heating!K10<>\"\",\"Uštedjet ćete \" & ROUND(Heating!G10,0) & \" kWh (što vrijedi oko \" & ROUND(Heating!H17,2) & \" €) godišnje. \"  & \"Cijena postavljanja energetski visoko učinkovitih stakala i okvira je oko \" & ROUND(Heating!J10,2) & \" € (molimo vas da zatražite informacije kako bi saznali točan iznos za vaš slučaj). \" & \"Jednostavan period povrata (JPP) ulaganja je \" & ROUND(Heating!K10,2) & \" god. Pomoći ćete okolišu smanjenjem emisija  \" & ROUND(Heating!I10,0) & \" kgCO2.\",\"Uštedjet ćete \" & ROUND(Heating!G10,0) & \" kWh (što vrijedi oko \" & ROUND(Heating!H17,2) & \" €) godišnje. \"  & \"Cijena postavljanja energetski visoko učinkovitih stakala i okvira je oko \" & ROUND(Heating!J10,2) & \" € (molimo vas da zatražite informacije kako bi saznali točan iznos za vaš slučaj). Pomoći ćete okolišu smanjenjem emisija  \" & ROUND(Heating!I10,0) & \" kgCO2.\")","v":"Uštedjet ćete 0 kWh (što vrijedi oko 0 €) godišnje. Cijena postavljanja energetski visoko učinkovitih stakala i okvira je oko 0 € (molimo vas da zatražite informacije kako bi saznali točan iznos za vaš slučaj). Pomoći ćete okolišu smanjenjem emisija  0 kgCO2."},"Монтирайте високо ефективни прозорци и дограми. Поне двоен стъклопакет и с прекъснат термомост.  ",{"$f":"IF(Heating!K10<>\"\",\"Ще спестите \" & ROUND(Heating!G10,0) & \" кВтч (това е около \" & ROUND(Heating!H10,2) & \" €) годишно. \" & \"Цената на високоефективни прозорци и дограми може да бъде около \" & ROUND(Heating!J10,2) & \" € (проверете за по-точна цена във вашия случай). \" & \"Срокът на изплащане е \" & ROUND(Heating!K10,2) & \" години. Ще намалите вредните емисии с  \" & ROUND(Heating!I10,0) & \" kgCO2.\",\"Ще спестите \" & ROUND(Heating!G10,0) & \" кВтч (това е около \" & ROUND(Heating!H10,2) & \" €) годишно. \" & \"Цената на високоефективни прозорци и дограми може да бъде около \" & ROUND(Heating!J10,2) & \" € (проверете за по-точна цена във вашия случай). Ще намалите вредните емисии с  \" & ROUND(Heating!I10,0) & \" kgCO2.\")","v":"Ще спестите 0 кВтч (това е около 0 €) годишно. Цената на високоефективни прозорци и дограми може да бъде около 0 € (проверете за по-точна цена във вашия случай). Ще намалите вредните емисии с  0 kgCO2."}]
[null,"Tip 14","Insulate your facade.","Insulate your facade. Insulate your house through several systems available on the market: from the outside or from the inside (through injection, if there are walls with air chamber).",{"$f":"IF(Heating!K9<>\"\",\"You will save  \" & ROUND(Heating!G9,0) & \" kWh (that’s worth about \" & ROUND(Heating!H9,0) & \" €) per year. \" & \"The price of renewing the building envelope is around \" & ROUND(Heating!J9,2) & \" € (please request quotations to find out the exact cost for your case). \" & \"The payback is \" & ROUND(Heating!K9,2) & \" years.  You will help the environment by reducing your emissions in \" & ROUND(Heating!I9,0) & \" kgCO2.\",\"You will save  \" & ROUND(Heating!G9,0) & \" kWh (that’s worth about \" & ROUND(Heating!H9,0) & \" €) per year. \" & \"The price of renewing the building envelope is around \" & ROUND(Heating!J9,2) & \" € (please request quotations to find out the exact cost for your case). You will help the environment by reducing your emissions in \" & ROUND(Heating!I9,0) & \" kgCO2.\")","v":"You will save  0 kWh (that’s worth about 0 €) per year. The price of renewing the building envelope is around 0 € (please request quotations to find out the exact cost for your case). You will help the environment by reducing your emissions in 0 kgCO2."},"Aislad la fachada. Aislad vuestra casa a través de los distintos sistemas existentes en el mercado: desde afuera o desde dentro (a través de inyección si en las paredes existe cámara de aire). ",{"$f":"IF(Heating!K9<>\"\",\"Ahorraréis \" & ROUND(Heating!G9,0) & \" kWh (lo que supone un ahorro de \" & ROUND(Heating!H9,0) & \" €) al año. \" & \"El precio de aislar la fachada es aproximadamente de \" & ROUND(Heating!J9,2) & \" € (os recomendamos que solicitéis presupuesto para vuestro caso concreto). \" & \"Recuperaréis la inversión aproximadamente en \" & ROUND(Heating!K9,2) & \" años. Estaréis ayudando al medioambiente al reducir vuestras emisiones en \" & ROUND(Heating!I9,0) & \" kgCO2.\",\"Ahorraréis \" & ROUND(Heating!G9,0) & \" kWh (lo que supone un ahorro de \" & ROUND(Heating!H9,0) & \" €) al año. \" & \"El precio de aislar la fachada es aproximadamente de \" & ROUND(Heating!J9,2) & \" € (os recomendamos que solicitéis presupuesto para vuestro caso concreto). Estaréis ayudando al medioambiente al reducir vuestras emisiones en \" & ROUND(Heating!I9,0) & \" kgCO2.\")","v":"Ahorraréis 0 kWh (lo que supone un ahorro de 0 €) al año. El precio de aislar la fachada es aproximadamente de 0 € (os recomendamos que solicitéis presupuesto para vuestro caso concreto). Estaréis ayudando al medioambiente al reducir vuestras emisiones en 0 kgCO2."},"Μονώστε την πρόσοψη σας. Μονώστε το σπίτι σας μέσω διαφόρων συστημάτων που διατίθενται στην αγορά: από έξω ή από μέσα.",{"$f":"IF(Heating!K9<>\"\",\"Θα εξοικονομήσετε \" & ROUND(Heating!G9,0) & \" kWh (Aυτό αντιστοιχεί σε περίπου \" & ROUND(Heating!H9,0) & \" €) τον χρόνο. \" & \"Το κόστος ανανέωσης του εξωτερικού μέρους του σπιτιού, είναι περίπου € \" & ROUND(Heating!J9,2) & \" (παρακαλούμε να ζητήσετε προσφορές για να μάθετε το ακριβές κόστος για την περίπτωσή σας). \" & \"The payback is \" & ROUND(Heating!K9,2) & \" years.  Θα βοηθήσετε το περιβάλλον μειώνοντας τις εκπομπές σας κατά \" & ROUND(Heating!I9,0) & \" kgCO2.\",\"Θα εξοικονομήσετε \" & ROUND(Heating!G9,0) & \" kWh (Aυτό αντιστοιχεί σε περίπου \" & ROUND(Heating!H9,0) & \" €) τον χρόνο. \" & \"Το κόστος ανανέωσης του εξωτερικού μέρους του σπιτιού, είναι περίπου € \" & ROUND(Heating!J9,2) & \" (παρακαλούμε να ζητήσετε προσφορές για να μάθετε το ακριβές κόστος για την περίπτωσή σας). Θα βοηθήσετε το περιβάλλον μειώνοντας τις εκπομπές σας κατά \" & ROUND(Heating!I9,0) & \" kgCO2.\")","v":"Θα εξοικονομήσετε 0 kWh (Aυτό αντιστοιχεί σε περίπου 0 €) τον χρόνο. Το κόστος ανανέωσης του εξωτερικού μέρους του σπιτιού, είναι περίπου € 0 (παρακαλούμε να ζητήσετε προσφορές για να μάθετε το ακριβές κόστος για την περίπτωσή σας). Θα βοηθήσετε το περιβάλλον μειώνοντας τις εκπομπές σας κατά 0 kgCO2."},"Coibenta la tua abitazione.\nIsola la tua casa con uno dei vari sistemi reperibili sul mercato. Il cappotto esterno consente di ottenere risultati migliori.  In alternativa valuta anche il cappotto interno o altre tecnologie di isolamento. ",{"$f":"IF(Heating!K9<>\"\",\"Risparmierai fino a\" & ROUND(Heating!G9,0) & \"  kWh , equivalenti a \" & ROUND(Heating!H9,2) & \" € all'anno.\" & \" Il costo relativo alla coibentazioend ella tua abitazione ammonta a circa \" & ROUND(Heating!J9,2) & \" €.Il ritorno dell'investimento è pari a \" & ROUND(Heating!K9,2) & \" anni.\" & \" Aiuterai l'ambiente riducendo le tue emissioni di \" & ROUND(Heating!I9,0) & \" kgCO2.\",\"Risparmierai \" & ROUND(Heating!G9,0) & \"  kWh , equivalenti a \" & ROUND(Heating!H9,2) & \" € all'anno.\" & \" Il costo relativo alla coibentazioend ella tua abitazione ammonta a circa \" & ROUND(Heating!J9,2) & \" €. Aiuterai l'ambiente riducendo le tue emissioni di \" & ROUND(Heating!I9,0) & \" kgCO2.\")","v":"Risparmierai 0  kWh , equivalenti a 0 € all'anno. Il costo relativo alla coibentazioend ella tua abitazione ammonta a circa 0 €. Aiuterai l'ambiente riducendo le tue emissioni di 0 kgCO2."},"Toplinski izolirajte svoju fasadu. Izolirajte svoju kuću pomoću nekoliko sustava koji su na raspolaganju na tržištu: izvana  ili iznutra (injekcijama ako zidovi imaju komore).",{"$f":"IF(Heating!K9<>\"\",\"Uštedjet ćete \" & ROUND(Heating!G9,0) & \" kWh (što vrijedi oko \" & ROUND(Heating!H9,2) & \" €) godišnje. \" & \"Cijena toplinske izolacije vanjskih zidova je oko \" & ROUND(Heating!J9,2) & \" € (molimo vas da zatražite informacije kako bi saznali točan iznos za vaš slučaj). \" & \"Jednostavan period povrata (JPP) ulaganja je \" & ROUND(Heating!K9,2) & \" god. Pomoći ćete okolišu smanjenjem emisija  \" & ROUND(Heating!I9,0) & \" kgCO2.\",\"Uštedjet ćete \" & ROUND(Heating!G9,0) & \" kWh (što vrijedi oko \" & ROUND(Heating!H9,2) & \" €) godišnje. \" & \"Cijena toplinske izolacije vanjskih zidova je oko \" & ROUND(Heating!J9,2) & \" € (molimo vas da zatražite informacije kako bi saznali točan iznos za vaš slučaj). Pomoći ćete okolišu smanjenjem emisija  \" & ROUND(Heating!I9,0) & \" kgCO2.\")","v":"Uštedjet ćete 0 kWh (što vrijedi oko 0 €) godišnje. Cijena toplinske izolacije vanjskih zidova je oko 0 € (molimo vas da zatražite informacije kako bi saznali točan iznos za vaš slučaj). Pomoći ćete okolišu smanjenjem emisija  0 kgCO2."},"Изолирайте фасадата. Излолирайте домът си с наличните продукти на пазара: от вън или от вътре (чрез впръскване, ако има стени с въздушна камера).",{"$f":"IF(Heating!K9<>\"\",\"Ще спестите \" & ROUND(Heating!G9,0) & \" кВтч (това е около \" & ROUND(Heating!H9,2) & \" €) годишно. \" & \"Цената на тази мярка може да бъде около \" & ROUND(Heating!J9,2) & \" € (проверете за по-точна цена във вашия случай). \" & \"Срокът на изплащане е \" & ROUND(Heating!K9,0) & \" години. Ще намалите вредните емисии с \" & ROUND(Heating!I9,0) & \" kgCO2.\",\"Ще спестите \" & ROUND(Heating!G9,0) & \" кВтч (това е около \" & ROUND(Heating!H9,2) & \" €) годишно. \" & \"Цената на тази мярка може да бъде около \" & ROUND(Heating!J9,2) & \" € (проверете за по-точна цена във вашия случай). Ще намалите вредните емисии с \" & ROUND(Heating!I9,0) & \" kgCO2.\")","v":"Ще спестите 0 кВтч (това е около 0 €) годишно. Цената на тази мярка може да бъде около 0 € (проверете за по-точна цена във вашия случай). Ще намалите вредните емисии с 0 kgCO2."}]
[null,"Tip 15","Install new biomass boiler.","Install new biomass boiler. It's clean and cheap. It’s a 100% renewable fuel, derived from plants remains with no carbon emissions.",{"$f":"IF(Heating!K8<>\"\",\"You will save  \" & ROUND(Heating!G8,0) & \" kWh (that’s worth about \" & ROUND(Heating!H8,0) & \" €) per year. \" & \"The price of installing a new biomass boiler is around \" & ROUND(Heating!J8,2) & \" € (please request quotations to find out the exact cost for your case). The payback is \" & ROUND(Heating!K8,2) & \" years.  \" & \"You will help the environment by reducing your emissions in \" & ROUND(Heating!I8,0) & \" kgCO2.\",\"You will save  \" & ROUND(Heating!G8,0) & \" kWh (that’s worth about \" & ROUND(Heating!H8,0) & \" €) per year. \" & \"The price of installing a new biomass boiler is around \" & ROUND(Heating!J8,2) & \" € (please request quotations to find out the exact cost for your case). You will help the environment by reducing your emissions in \" & ROUND(Heating!I8,0) & \" kgCO2.\")","v":"You will save  0 kWh (that’s worth about 0 €) per year. The price of installing a new biomass boiler is around 0 € (please request quotations to find out the exact cost for your case). You will help the environment by reducing your emissions in 0 kgCO2."},"Instalad un nuevo sistema de caldera biomasa. Es no contaminante y barata. El combustible es 100% renovable, derivado de material orgánica y no tiene emisiones de carbono. ",{"$f":"IF(Heating!K8<>\"\",\"Ahorraréis \" & ROUND(Heating!G8,0) & \" kWh (lo que supone un ahorro de \" & ROUND(Heating!H8,0) & \" €) al año. \" & \"El precio de instalar una nueva caldera de biomasa es aproximadamente de \" & ROUND(Heating!J8,2) & \" € (os recomendamos que solicitéis presupuesto para vuestro caso concreto). \" & \"Recuperaréis la inversión aproximadamente en \" & ROUND(Heating!K8,2) & \" años. Estaréis ayudando al medioambiente al reducir vuestras emisiones en \" & ROUND(Heating!I8,0) & \" kgCO2.\",\"Ahorraréis \" & ROUND(Heating!G8,0) & \" kWh (lo que supone un ahorro de \" & ROUND(Heating!H8,0) & \" €) al año. \" & \"El precio de instalar una nueva caldera de biomasa es aproximadamente de \" & ROUND(Heating!J8,2) & \" € (os recomendamos que solicitéis presupuesto para vuestro caso concreto). Estaréis ayudando al medioambiente al reducir vuestras emisiones en \" & ROUND(Heating!I8,0) & \" kgCO2.\")","v":"Ahorraréis 0 kWh (lo que supone un ahorro de 0 €) al año. El precio de instalar una nueva caldera de biomasa es aproximadamente de 0 € (os recomendamos que solicitéis presupuesto para vuestro caso concreto). Estaréis ayudando al medioambiente al reducir vuestras emisiones en 0 kgCO2."},"Εγκατάσταση νέου λέβητα βιομάζας. Είναι καθαρός και φθηνός. Είναι 100% ανανεώσιμο καύσιμο το οποίο προέρχεται από φυτά και δεν εκπέμπει διοξείδιο.",{"$f":"IF(Heating!K8<>\"\",\"Θα εξοικονομήσετε \" & ROUND(Heating!G8,0) & \" kWh (Aυτό αντιστοιχεί σε περίπου \" & ROUND(Heating!H8,0) & \" €) τον χρόνο. \" & \"Το κόστος εγκατάστασης καινούργιου λέβητα βιομάζας είναι περίπου €  \" & ROUND(Heating!J8,2) & \" € (παρακαλούμε να ζητήσετε προσφορές για να μάθετε το ακριβές κόστος για την περίπτωσή σας). \" & \"Η απόσβεση της επένδυσης σας είναι \" & ROUND(Heating!K8,2) & \" χρόνια.  Θα βοηθήσετε το περιβάλλον μειώνοντας τις εκπομπές σας κατά \" & ROUND(Heating!I8,0) & \" kgCO2.\",\"Θα εξοικονομήσετε \" & ROUND(Heating!G8,0) & \" kWh (Aυτό αντιστοιχεί σε περίπου \" & ROUND(Heating!H8,0) & \" €) τον χρόνο. \" & \"Το κόστος εγκατάστασης καινούργιου λέβητα βιομάζας είναι περίπου €  \" & ROUND(Heating!J8,2) & \" € (παρακαλούμε να ζητήσετε προσφορές για να μάθετε το ακριβές κόστος για την περίπτωσή σας). Θα βοηθήσετε το περιβάλλον μειώνοντας τις εκπομπές σας κατά \" & ROUND(Heating!I8,0) & \" kgCO2.\")","v":"Θα εξοικονομήσετε 0 kWh (Aυτό αντιστοιχεί σε περίπου 0 €) τον χρόνο. Το κόστος εγκατάστασης καινούργιου λέβητα βιομάζας είναι περίπου €  0 € (παρακαλούμε να ζητήσετε προσφορές για να μάθετε το ακριβές κόστος για την περίπτωσή σας). Θα βοηθήσετε το περιβάλλον μειώνοντας τις εκπομπές σας κατά 0 kgCO2."},"Installa una caldaia a biomassa. \nPuoi installare una caldaia o stufa a legna, cippato o pellet. Tiene presente che la combustione di biomasse genera emissioni inquinanti (polveri sottili PM10) e sono soggette a limitazioni per garantire la qualità dell’aria. Il nostro auditor FIESTA locale potrà fornirti informazioni riguardo ad eventuali limitazione previste dal tuo Comune.",{"$f":"IF(Heating!K8<>\"\",\"Risparmierai  fino a\" & ROUND(Heating!G8,0) & \"  kWh , equivalenti a \" & ROUND(Heating!H8,2) & \" € all'anno.\" & \" Il costo relativo all'installazione di una caldaia a biomassa  ammonta a circa \" & ROUND(Heating!J8,2) & \" €.Il ritorno dell'investimento è pari a \" & ROUND(Heating!K8,2) & \" anni.\" & \" Aiuterai l'ambiente riducendo le tue emissioni di \" & ROUND(Heating!I8,0) & \" kgCO2.\",\"Risparmierai  fino a \" & ROUND(Heating!G8,0) & \"  kWh, equivalenti a \" & ROUND(Heating!H8,2) & \" € all'anno.\" & \" Il costo relativo all'installazione di una caldaia a biomassa  ammonta a circa \" & ROUND(Heating!J8,2) & \" €. Aiuterai l'ambiente riducendo le tue emissioni di \" & ROUND(Heating!I8,0) & \" kgCO2.\")","v":"Risparmierai  fino a 0  kWh, equivalenti a 0 € all'anno. Il costo relativo all'installazione di una caldaia a biomassa  ammonta a circa 0 €. Aiuterai l'ambiente riducendo le tue emissioni di 0 kgCO2."},"Postavite bojler na biomasu. Čista je i jeftina. To je 100% obnovljivo gorivo, dobiva se od ostataka biljki bez emisije ugljičnog dioksida. ",{"$f":"IF(Heating!K9<>\"\",\"Uštedjet ćete \" & ROUND(Heating!G9,0) & \" kWh (što vrijedi oko \" & ROUND(Heating!H9,0) & \" €) godišnje. \" & \"Cijena postavljanja novog bojlera na biomasu je oko \" & ROUND(Heating!J9,2) & \" € (molimo vas da zatražite informacije kako bi saznali točan iznos za vaš slučaj). \" & \"Jednostavan period povrata (JPP) ulaganja je \" & ROUND(Heating!K9,2) & \" god. Pomoći ćete okolišu smanjenjem emisija  \" & ROUND(Heating!I9,0) & \" kgCO2.\",\"Uštedjet ćete \" & ROUND(Heating!G9,0) & \" kWh (što vrijedi oko \" & ROUND(Heating!H9,0) & \" €) godišnje. \" & \"Cijena postavljanja novog bojlera na biomasu je oko \" & ROUND(Heating!J9,2) & \" € (molimo vas da zatražite informacije kako bi saznali točan iznos za vaš slučaj). Pomoći ćete okolišu smanjenjem emisija  \" & ROUND(Heating!I9,0) & \" kgCO2.\")","v":"Uštedjet ćete 0 kWh (što vrijedi oko 0 €) godišnje. Cijena postavljanja novog bojlera na biomasu je oko 0 € (molimo vas da zatražite informacije kako bi saznali točan iznos za vaš slučaj). Pomoći ćete okolišu smanjenjem emisija  0 kgCO2."},"Монтирайте котел на биомаса. Той е чист и евтин. 100% възобновяемо гориво, добивано от остатъчна дървесина, и никакви въглеродни емисии.",{"$f":"IF(Heating!K8<>\"\",\"Ще спестите \" & ROUND(Heating!G8,0) & \" кВтч (това е около \" & ROUND(Heating!H8,0) & \" €) годишно. \" & \"Цената на нов котел на биомаса може да бъде около \" & ROUND(Heating!J8,2) & \" € (проверете за по-точна цена във вашия случай). \" & \"Срокът на изплащане е\" & ROUND(Heating!K8,2) & \" години. Ще намалите вредните емисии с \" & ROUND(Heating!I8,2) & \" kgCO2.\",\"Ще спестите \" & ROUND(Heating!G8,0) & \" кВтч (това е около \" & ROUND(Heating!H8,0) & \" €) годишно. \" & \"Цената на нов котел на биомаса може да бъде около \" & ROUND(Heating!J8,2) & \" € (проверете за по-точна цена във вашия случай). Ще намалите вредните емисии с \" & ROUND(Heating!I8,2) & \" kgCO2.\")","v":"Ще спестите 0 кВтч (това е около 0 €) годишно. Цената на нов котел на биомаса може да бъде около 0 € (проверете за по-точна цена във вашия случай). Ще намалите вредните емисии с 0 kgCO2."}]
[null,"Tip 16","Install new natural gas boiler.","Install new natural gas boiler. Upgrade your natural gas boiler or install a new one to replace your diesel system.",{"$f":"IF(Heating!K5<>\"\",\"You will save  \" & ROUND(Heating!G5,0) & \" kWh (that’s worth about \" & ROUND(Heating!H5,0) & \" €) per year. \" & \"The price of installing a new natural gas boiler is around \" & ROUND(Heating!J5,2) & \" € (please request quotations to find out the exact cost for your case). \" & \"The payback is \" & ROUND(Heating!K5,2) & \" years.  You will help the environment by reducing your emissions in \" & ROUND(Heating!I5,0) & \" kgCO2.\",\"You will save  \" & ROUND(Heating!G5,0) & \" kWh (that’s worth about \" & ROUND(Heating!H5,0) & \" €) per year. \" & \"The price of installing a new natural gas boiler is around \" & ROUND(Heating!J5,2) & \" € (please request quotations to find out the exact cost for your case). You will help the environment by reducing your emissions in \" & ROUND(Heating!I5,0) & \" kgCO2.\")","v":"You will save  0 kWh (that’s worth about 0 €) per year. The price of installing a new natural gas boiler is around 0 € (please request quotations to find out the exact cost for your case). You will help the environment by reducing your emissions in 0 kgCO2."},"Instalad una nueva caldera de gas natural. Renueva tu caldera de gas natural o sustituye por este tipo de caldera tu sistema de calefacción por gasóleo. ",{"$f":"IF(Heating!K5<>\"\",\"Ahorraréis \" & ROUND(Heating!G5,0) & \" kWh (lo que supone un ahorro de \" & ROUND(Heating!H5,0) & \" €) al año. \" & \"El precio de instalar una nueva caldera de gas natural es aproximadamente de \" & ROUND(Heating!J5,2) & \" € (os recomendamos que solicitéis presupuesto para vuestro caso concreto). \" & \"Recuperaréis la inversión aproximadamente en \" & ROUND(Heating!K5,2) & \" años. Estaréis ayudando al medioambiente al reducir vuestras emisiones en \" & ROUND(Heating!I5,0) & \" kgCO2.\",\"Ahorraréis \" & ROUND(Heating!G5,0) & \" kWh (lo que supone un ahorro de \" & ROUND(Heating!H5,0) & \" €) al año. \" & \"El precio de instalar una nueva caldera de gas natural es aproximadamente de \" & ROUND(Heating!J5,2) & \" € (os recomendamos que solicitéis presupuesto para vuestro caso concreto). Estaréis ayudando al medioambiente al reducir vuestras emisiones en \" & ROUND(Heating!I5,0) & \" kgCO2.\")","v":"Ahorraréis 0 kWh (lo que supone un ahorro de 0 €) al año. El precio de instalar una nueva caldera de gas natural es aproximadamente de 0 € (os recomendamos que solicitéis presupuesto para vuestro caso concreto). Estaréis ayudando al medioambiente al reducir vuestras emisiones en 0 kgCO2."},"Εγκαταστήστε νέο λέβητα φυσικού αερίου. Αναβαθμήστε το λέβητα φυσικού αερίου σας ή εγκαταστήστε ένα νέο σύστημα για να αντικαταστήσει το ντίζελ σας.",{"$f":"IF(Heating!K5<>\"\",\"Θα εξοικονομήσετε \" & ROUND(Heating!G5,0) & \" kWh (Aυτό αντιστοιχεί σε περίπου \" & ROUND(Heating!H5,0) & \" €) τον χρόνο. \" & \"Το κόστος εγκατάστασης καινούργιου λέβητα φυσικού αερίου είναι περίπου € \" & ROUND(Heating!J5,2) & \"  (παρακαλούμε να ζητήσετε προσφορές για να μάθετε το ακριβές κόστος για την περίπτωσή σας). \" & \"Η απόσβεση της επένδυσης σας είναι \" & ROUND(Heating!K5,2) & \" χρόνια.  Θα βοηθήσετε το περιβάλλον μειώνοντας τις εκπομπές σας κατά \" & ROUND(Heating!I5,0) & \" kgCO2.\",\"Θα εξοικονομήσετε \" & ROUND(Heating!G5,0) & \" kWh (Aυτό αντιστοιχεί σε περίπου \" & ROUND(Heating!H5,0) & \" €) τον χρόνο. \" & \"Το κόστος εγκατάστασης καινούργιου λέβητα φυσικού αερίου είναι περίπου € \" & ROUND(Heating!J5,2) & \"  (παρακαλούμε να ζητήσετε προσφορές για να μάθετε το ακριβές κόστος για την περίπτωσή σας). Θα βοηθήσετε το περιβάλλον μειώνοντας τις εκπομπές σας κατά \" & ROUND(Heating!I5,0) & \" kgCO2.\")","v":"Θα εξοικονομήσετε 0 kWh (Aυτό αντιστοιχεί σε περίπου 0 €) τον χρόνο. Το κόστος εγκατάστασης καινούργιου λέβητα φυσικού αερίου είναι περίπου € 0  (παρακαλούμε να ζητήσετε προσφορές για να μάθετε το ακριβές κόστος για την περίπτωσή σας). Θα βοηθήσετε το περιβάλλον μειώνοντας τις εκπομπές σας κατά 0 kgCO2."},"Installa  una caldaia a gas metano \nSostituisci la tua vecchia caldaia con una nuova caldaia a gas.  ",{"$f":"IF(Heating!K5<>\"\",\"Risparmierai  fino a \" & ROUND(Heating!G5,0) & \"  kWh , equivalenti a \" & ROUND(Heating!H5,2) & \" € all'anno.\" & \" Il costo relativo all'installazione di una caldaia a gas metano ammonta a circa \" & ROUND(Heating!J5,2) & \" €. Il ritorno dell'investimento è pari a \" & ROUND(Heating!K5,2) & \" anni.\" & \" Aiuterai l'ambiente riducendo le tue emissioni di \" & ROUND(Heating!I5,0) & \" kgCO2.\",\"Risparmierai  \" & ROUND(Heating!G5,0) & \"  kWh , equivalenti a \" & ROUND(Heating!H5,2) & \" € all'anno.\" & \" Il costo relativo all'installazione di una caldaia a gas metano ammonta a circa \" & ROUND(Heating!J5,2) & \" €. Aiuterai l'ambiente riducendo le tue emissioni di \" & ROUND(Heating!I5,0) & \" kgCO2.\")","v":"Risparmierai  0  kWh , equivalenti a 0 € all'anno. Il costo relativo all'installazione di una caldaia a gas metano ammonta a circa 0 €. Aiuterai l'ambiente riducendo le tue emissioni di 0 kgCO2."},"Postavite novi plinski bojler. Obnovite svoj plinski bojler ili postavite novi kako biste zamijenili dizelski sustav. ",{"$f":"IF(Heating!K5<>\"\",\"Uštedjet ćete \" & ROUND(Heating!G5,0) & \" kWh (što vrijedi oko \" & ROUND(Heating!H5,0) & \" €) godišnje. \" & \"Cijena postavljanja novog bojlera na prirodni plin je oko \" & ROUND(Heating!J5,2) & \" € (molimo vas da zatražite informacije kako bi saznali točan iznos za vaš slučaj). \" & \"Jednostavan period povrata (JPP) ulaganja je \" & ROUND(Heating!K5,2) & \" god. Pomoći ćete okolišu smanjenjem emisija  \" & ROUND(Heating!I8,0) & \" kgCO2.\",\"Uštedjet ćete \" & ROUND(Heating!G5,0) & \" kWh (što vrijedi oko \" & ROUND(Heating!H5,0) & \" €) godišnje. \" & \"Cijena postavljanja novog bojlera na prirodni plin je oko \" & ROUND(Heating!J5,2) & \" € (molimo vas da zatražite informacije kako bi saznali točan iznos za vaš slučaj). Pomoći ćete okolišu smanjenjem emisija  \" & ROUND(Heating!I8,0) & \" kgCO2.\")","v":"Uštedjet ćete 0 kWh (što vrijedi oko 0 €) godišnje. Cijena postavljanja novog bojlera na prirodni plin je oko 0 € (molimo vas da zatražite informacije kako bi saznali točan iznos za vaš slučaj). Pomoći ćete okolišu smanjenjem emisija  0 kgCO2."},"Монтирайте котел на природен газ. Подобрете вашият наличен котел или монтирайте нов, който да подмени дизеловият ви котел.",{"$f":"IF(Heating!K5<>\"\",\"Ще спестите \" & ROUND(Heating!G5,0) & \" кВтч (това е около \" & ROUND(Heating!H5,2) & \" €) годишно. \" & \"Цената на нов котел на природен газ може да бъде около \" & ROUND(Heating!J5,2) & \" € (проверете за по-точна цена във вашия случай). \" & \"Срокът на изплащане е \" & ROUND(Heating!K5,2) & \" години. Ще намалите вредните емисии с \" & ROUND(Heating!I5,0) & \" kgCO2.\",\"Ще спестите \" & ROUND(Heating!G5,0) & \" кВтч (това е около \" & ROUND(Heating!H5,2) & \" €) годишно. \" & \"Цената на нов котел на природен газ може да бъде около \" & ROUND(Heating!J5,2) & \" € (проверете за по-точна цена във вашия случай). Ще намалите вредните емисии с \" & ROUND(Heating!I5,0) & \" kgCO2.\")","v":"Ще спестите 0 кВтч (това е около 0 €) годишно. Цената на нов котел на природен газ може да бъде около 0 € (проверете за по-точна цена във вашия случай). Ще намалите вредните емисии с 0 kgCO2."}]
[null,"Tip 17","Install new heat pump. ","Install new heat pump. Install a high efficiency heat pump (A+ or higher) to replace conventional electric heating systems",{"$f":"IF(Heating!K7<>\"\",\"You will save  \" & ROUND(Heating!G7,0) & \" kWh (that’s worth about \" & ROUND(Heating!H7,0) & \" €) per year. \" & \"The price of installing a new heat pump is around \" & ROUND(Heating!J7,2) & \" € (please request quotations to find out the exact cost for your case). \" & \"The payback is \" & ROUND(Heating!K7,2) & \" years.  You will help the environment by reducing your emissions in \" & ROUND(Heating!I7,0) & \" kgCO2.\",\"You will save  \" & ROUND(Heating!G7,0) & \" kWh (that’s worth about \" & ROUND(Heating!H7,0) & \" €) per year. \" & \"The price of installing a new heat pump is around \" & ROUND(Heating!J7,2) & \" € (please request quotations to find out the exact cost for your case). You will help the environment by reducing your emissions in \" & ROUND(Heating!I7,0) & \" kgCO2.\")","v":"You will save  0 kWh (that’s worth about 0 €) per year. The price of installing a new heat pump is around 0 € (please request quotations to find out the exact cost for your case). You will help the environment by reducing your emissions in 0 kgCO2."},"Instalad una nueva bomba de calor. Instalad una bomba de calor (A+ o superior) para sustituir tus sistemas eléctricos convencionales. ",{"$f":"IF(Heating!K7<>\"\",\"Ahorraréis \" & ROUND(Heating!G7,0) & \" kWh (lo que supone un ahorro de \" & ROUND(Heating!H7,0) & \" €) al año. \" & \"El precio de una nueva bomba de calor es aproximadamente de \" & ROUND(Heating!J7,2) & \" € (os recomendamos que solicitéis presupuesto para vuestro caso concreto). \" & \"Recuperaréis la inversión aproximadamente en \" & ROUND(Heating!K7,2) & \" años. Estaréis ayudando al medioambiente al reducir vuestras emisiones en \" & ROUND(Heating!I7,0) & \" kgCO2.\",\"Ahorraréis \" & ROUND(Heating!G7,0) & \" kWh (lo que supone un ahorro de \" & ROUND(Heating!H7,0) & \" €) al año. \" & \"El precio de una nueva bomba de calor es aproximadamente de \" & ROUND(Heating!J7,2) & \" € (os recomendamos que solicitéis presupuesto para vuestro caso concreto). Estaréis ayudando al medioambiente al reducir vuestras emisiones en \" & ROUND(Heating!I7,0) & \" kgCO2.\")","v":"Ahorraréis 0 kWh (lo que supone un ahorro de 0 €) al año. El precio de una nueva bomba de calor es aproximadamente de 0 € (os recomendamos que solicitéis presupuesto para vuestro caso concreto). Estaréis ayudando al medioambiente al reducir vuestras emisiones en 0 kgCO2."},"Εγκαταστήστε καινούργια αντλία θερμότητας. Εγκαταστείστε μια υψηλής απόδοσης αντλία θερμότητας (Α+ ή ψηλότερης) για να αντικαταστήσετε τα συμβατικά ηλεκτρικά συστήματα θέρμανσης",{"$f":"IF(Heating!K7<>\"\",\"Θα εξοικονομήσετε \" & ROUND(Heating!G7,0) & \" kWh (Aυτό αντιστοιχεί σε περίπου \" & ROUND(Heating!H7,0) & \" €) τον χρόνο. \" & \"Το κόστος εγκατάστασης καινούργιας αντλίας θερμότητας είναι περίπου €  \" & ROUND(Heating!J7,2) & \" (παρακαλούμε να ζητήσετε προσφορές για να μάθετε το ακριβές κόστος για την περίπτωσή σας). \" & \"Η απόσβεση της επένδυσης σας είναι \" & ROUND(Heating!K7,2) & \" χρόνια.  Θα βοηθήσετε το περιβάλλον μειώνοντας τις εκπομπές σας κατά \" & ROUND(Heating!I7,0) & \" kgCO2.\",\"Θα εξοικονομήσετε \" & ROUND(Heating!G7,0) & \" kWh (Aυτό αντιστοιχεί σε περίπου \" & ROUND(Heating!H7,0) & \" €) τον χρόνο. \" & \"Το κόστος εγκατάστασης καινούργιας αντλίας θερμότητας είναι περίπου €  \" & ROUND(Heating!J7,2) & \" (παρακαλούμε να ζητήσετε προσφορές για να μάθετε το ακριβές κόστος για την περίπτωσή σας). Θα βοηθήσετε το περιβάλλον μειώνοντας τις εκπομπές σας κατά \" & ROUND(Heating!I7,0) & \" kgCO2.\")","v":"Θα εξοικονομήσετε 0 kWh (Aυτό αντιστοιχεί σε περίπου 0 €) τον χρόνο. Το κόστος εγκατάστασης καινούργιας αντλίας θερμότητας είναι περίπου €  0 (παρακαλούμε να ζητήσετε προσφορές για να μάθετε το ακριβές κόστος για την περίπτωσή σας). Θα βοηθήσετε το περιβάλλον μειώνοντας τις εκπομπές σας κατά 0 kgCO2."},"Installa una pompa di calore.\nSostituisci i sistemi convenzionali di riscaldamento elettrico con pompe di calore ad alta efficienza energetica (A + o superiore)",{"$f":"IF(Heating!K7<>\"\",\"Risparmierai fino a \" & ROUND(Heating!G7,0) & \"  kWh , equivalenti a \" & ROUND(Heating!H7,2) & \" € all'anno.\" & \" Il costo relativo all'installazione di una pompa di calore ammonta a circa \" & ROUND(Heating!J7,2) & \" €.Il ritorno dell'investimento è pari a \" & ROUND(Heating!K7,2) & \" anni.\" & \" Aiuterai l'ambiente riducendo le tue emissioni di \" & ROUND(Heating!I7,0) & \" kgCO2.\",\"Risparmierai  \" & ROUND(Heating!G7,0) & \"  kWh , equivalenti a \" & ROUND(Heating!H7,2) & \" € all'anno.\" & \" Il costo relativo all'installazione di una pompa di calore ammonta a circa \" & ROUND(Heating!J7,2) & \" €. Aiuterai l'ambiente riducendo le tue emissioni di \" & ROUND(Heating!I7,0) & \" kgCO2.\")","v":"Risparmierai  0  kWh , equivalenti a 0 € all'anno. Il costo relativo all'installazione di una pompa di calore ammonta a circa 0 €. Aiuterai l'ambiente riducendo le tue emissioni di 0 kgCO2."},"Postavite novu toplinsku pumpu. Postavite visoko učinkovitu toplinsku pumpu (klase A+ ili više) kako bi zamijenili konvencionalne električne sustave grijanja. ",{"$f":"IF(Heating!K7<>\"\",\"Uštedjet ćete \" & ROUND(Heating!G7,0) & \" kWh (što vrijedi oko \" & ROUND(Heating!H7,0) & \" €) godišnje. \" & \"Cijena postavljanja nove toplinske pumpe je oko \" & ROUND(Heating!J7,2) & \" € (molimo vas da zatražite informacije kako bi saznali točan iznos za vaš slučaj). \" & \"Jednostavan period povrata (JPP) ulaganja je \" & ROUND(Heating!K7,2) & \" god. Pomoći ćete okolišu smanjenjem emisija  \" & ROUND(Heating!I7,0) & \" kgCO2.\",\"Uštedjet ćete \" & ROUND(Heating!G7,0) & \" kWh (što vrijedi oko \" & ROUND(Heating!H7,0) & \" €) godišnje. \" & \"Cijena postavljanja nove toplinske pumpe je oko \" & ROUND(Heating!J7,2) & \" € (molimo vas da zatražite informacije kako bi saznali točan iznos za vaš slučaj). Pomoći ćete okolišu smanjenjem emisija  \" & ROUND(Heating!I7,0) & \" kgCO2.\")","v":"Uštedjet ćete 0 kWh (što vrijedi oko 0 €) godišnje. Cijena postavljanja nove toplinske pumpe je oko 0 € (molimo vas da zatražite informacije kako bi saznali točan iznos za vaš slučaj). Pomoći ćete okolišu smanjenjem emisija  0 kgCO2."},"Монтирайте нова термопомпа. Нова, високо-ефективна термопомпа (А+ или по-голям клас), която да подмени конвенционалната електричекса отоплителна система. ",{"$f":"IF(Heating!K7<>\"\",\"Ще спестите \" & ROUND(Heating!G7,0) & \" кВтч (това е около \" & ROUND(Heating!G7,2) & \" €) годишно. \" & \"Цената на нова термопомпа може да бъде около \" & ROUND(Heating!J7,2) & \" € (проверете за по-точна цена във вашия случай). \" & \"Срокът на изплащане е \" & ROUND(Heating!K7,2) & \" години. Ще намалите вредните емисии с \" & ROUND(Heating!I7,0) & \" kgCO2.\",\"Ще спестите \" & ROUND(Heating!G7,0) & \" кВтч (това е около \" & ROUND(Heating!G7,2) & \" €) годишно. \" & \"Цената на нова термопомпа може да бъде около \" & ROUND(Heating!J7,2) & \" € (проверете за по-точна цена във вашия случай). Ще намалите вредните емисии с \" & ROUND(Heating!I7,0) & \" kgCO2.\")","v":"Ще спестите 0 кВтч (това е около 0 €) годишно. Цената на нова термопомпа може да бъде около 0 € (проверете за по-точна цена във вашия случай). Ще намалите вредните емисии с 0 kgCO2."}]
[null,"Tip 18","Reduce to a large extent your energy consumption in domestic hot water by installing solar thermal energy. ","Reduce to a large extent your energy consumption in domestic hot water by installing solar thermal energy. Use the solar radiation to generate heat for domestic hot water and cooling.",{"$f":"IF(Heating!K22<>\"\",\"You will save  \" & ROUND(Heating!G22,0) & \" kWh (that’s worth about \" & ROUND(Heating!H22,0) & \" €) per year. \" & \"The price of installing solar thermal energy is around \" & ROUND(Heating!J22,2) & \" € (please request quotations to find out the exact cost for your case). \" & \"The payback is \" & ROUND(Heating!K22,2) & \" years.  You will help the environment by reducing your emissions in \" & ROUND(Heating!I22,0) & \" kgCO2.\",\"You will save  \" & ROUND(Heating!G22,0) & \" kWh (that’s worth about \" & ROUND(Heating!H22,0) & \" €) per year. \" & \"The price of installing solar thermal energy is around \" & ROUND(Heating!J22,2) & \" € (please request quotations to find out the exact cost for your case). You will help the environment by reducing your emissions in \" & ROUND(Heating!I22,0) & \" kgCO2.\")","v":"You will save  0 kWh (that’s worth about 0 €) per year. The price of installing solar thermal energy is around 0 € (please request quotations to find out the exact cost for your case). You will help the environment by reducing your emissions in 0 kgCO2."},"Reducid en gran medida vuestro consumo de agua caliente sanitaria con una instalación de energía solar térmica. Usa la radiación solar para generar agua caliente sanitaria y refrigeración. ",{"$f":"IF(Heating!K22<>\"\",\"Ahorraréis \"  & ROUND(Heating!H22,0) & \" € al año. \" & \"El precio de una instalación de energía solar térmica es aproximadamente de \" & ROUND(Heating!J22,2) & \" € (os recomendamos que solicitéis presupuesto para vuestro caso concreto). \" & \"Recuperaréis la inversión aproximadamente en \" & ROUND(Heating!K22,2) & \" años. Estaréis ayudando al medioambiente al reducir vuestras emisiones en \" & ROUND(Heating!I22,0) & \" kgCO2.\",\"Ahorraréis \"  & ROUND(Heating!H22,0) & \" € al año. \" & \"El precio de una instalación de energía solar térmica es aproximadamente de \" & ROUND(Heating!J22,2) & \" € (os recomendamos que solicitéis presupuesto para vuestro caso concreto). Estaréis ayudando al medioambiente al reducir vuestras emisiones en \" & ROUND(Heating!I22,0) & \" kgCO2.\")","v":"Ahorraréis 0 € al año. El precio de una instalación de energía solar térmica es aproximadamente de 0 € (os recomendamos que solicitéis presupuesto para vuestro caso concreto). Estaréis ayudando al medioambiente al reducir vuestras emisiones en 0 kgCO2."},"Μειώστε σε μεγάλο βαθμό την ενεργειακή σας κατανάλωση στο ζεστό νερό, με την εγκατάσταση ηλιακής θερμικής ενέργειας. Χρησιμοποιήστε την ηλιακή ακτινοβολία για να θερμάνετε τον χώρο.",{"$f":"IF(Heating!K22<>\"\",\"Θα εξοικονομήσετε \" & ROUND(Heating!G22,0) & \" kWh (Aυτό αντιστοιχεί σε περίπου \" & ROUND(Heating!H22,0) & \" €) τον χρόνο. \" & \"Το κόστος εγκατάστασης ηλιακής θερμικής ενέργειας είναι περίπου € \" & ROUND(Heating!J22,2) & \" (παρακαλούμε να ζητήσετε προσφορές για να μάθετε το ακριβές κόστος για την περίπτωσή σας). \" & \"Η απόσβεση της επένδυσης σας είναι \" & ROUND(Heating!K22,2) & \" χρόνια.  Θα βοηθήσετε το περιβάλλον μειώνοντας τις εκπομπές σας κατά \" & ROUND(Heating!I22,0) & \" kgCO2.\",\"Θα εξοικονομήσετε \" & ROUND(Heating!G22,0) & \" kWh (Aυτό αντιστοιχεί σε περίπου \" & ROUND(Heating!H22,0) & \" €) τον χρόνο. \" & \"Το κόστος εγκατάστασης ηλιακής θερμικής ενέργειας είναι περίπου € \" & ROUND(Heating!J22,2) & \" (παρακαλούμε να ζητήσετε προσφορές για να μάθετε το ακριβές κόστος για την περίπτωσή σας). Θα βοηθήσετε το περιβάλλον μειώνοντας τις εκπομπές σας κατά \" & ROUND(Heating!I22,0) & \" kgCO2.\")","v":"Θα εξοικονομήσετε 0 kWh (Aυτό αντιστοιχεί σε περίπου 0 €) τον χρόνο. Το κόστος εγκατάστασης ηλιακής θερμικής ενέργειας είναι περίπου € 0 (παρακαλούμε να ζητήσετε προσφορές για να μάθετε το ακριβές κόστος για την περίπτωσή σας). Θα βοηθήσετε το περιβάλλον μειώνοντας τις εκπομπές σας κατά 0 kgCO2."},"Installa un impianto solare termico. \nRisparmia sulla produzione dell'acqua calda sanitaria e sul riscaldamento.",{"$f":"IF(Heating!K22<>\"\",\"Risparmierai fino a \" & ROUND(Heating!G22,0) & \"  kWh , equivalenti a \" & ROUND(Heating!H22,0) & \" € all'anno.\" & \" Il costo relativo all'installazione ammonta a circa \" & ROUND(Heating!J22,0) & \" €. Il ritorno dell'investimento è pari a  \" & ROUND(Heating!K22,0) & \" anni.\" & \" Aiuterai l'ambiente riducendo le tue emissioni di \" & ROUND(Heating!I22,0) & \" kg CO2.\",\"Risparmierai  \" & ROUND(Heating!G22,0) & \"  kWh , equivalenti a \" & ROUND(Heating!H22,0) & \" € all'anno.\" & \" Il costo relativo all'installazione ammonta a circa \" & ROUND(Heating!J22,0) & \" €. Aiuterai l'ambiente riducendo le tue emissioni di \" & ROUND(Heating!I22,0) & \" kg CO2.\")","v":"Risparmierai  0  kWh , equivalenti a 0 € all'anno. Il costo relativo all'installazione ammonta a circa 0 €. Aiuterai l'ambiente riducendo le tue emissioni di 0 kg CO2."},"Znatno smanjite energiju potrebnu za pripremu potrošne tople vode (PTV) postavljanjem solarnih sustava. Iskoristite besplatno sunčevo zračenje.",{"$f":"IF(Heating!K22<>\"\",\"Uštedjet ćete \" & ROUND(Heating!G22,0) & \" kWh (što vrijedi oko \" & ROUND(Heating!H22,0) & \" €) godišnje. \" & \"Cijena postavljanja (ugradnje) solarnog sustava za pripremu potrošne tople vode je oko \" & ROUND(Heating!J22,2) & \" € (molimo vas da zatražite informacije kako bi saznali točan iznos za vaš slučaj). \" & \"Jednostavan period povrata (JPP) ulaganja je \" & ROUND(Heating!K22,2) & \" god. Pomoći ćete okolišu smanjenjem emisija  \" & ROUND(Heating!I22,0) & \" kgCO2.\",\"Uštedjet ćete \" & ROUND(Heating!G22,0) & \" kWh (što vrijedi oko \" & ROUND(Heating!H22,0) & \" €) godišnje. \" & \"Cijena postavljanja (ugradnje) solarnog sustava za pripremu potrošne tople vode je oko \" & ROUND(Heating!J22,2) & \" € (molimo vas da zatražite informacije kako bi saznali točan iznos za vaš slučaj). Pomoći ćete okolišu smanjenjem emisija  \" & ROUND(Heating!I22,0) & \" kgCO2.\")","v":"Uštedjet ćete 0 kWh (što vrijedi oko 0 €) godišnje. Cijena postavljanja (ugradnje) solarnog sustava za pripremu potrošne tople vode je oko 0 € (molimo vas da zatražite informacije kako bi saznali točan iznos za vaš slučaj). Pomoći ćete okolišu smanjenjem emisija  0 kgCO2."},"Намалете значително разхода си на енергия, като монтирате слънчеви панели за БГВ. Използвайте слънцето за производство на топлинна енергия за БГВ и охлаждане.  ",{"$f":"IF(Heating!K22<>\"\",\"Ще спестите \" & ROUND(Heating!G22,0) & \" кВтч (това е около \" & ROUND(Heating!H22,2) & \" €) годишно. \" & \"Цената на слънчеви пнели за БГВ може да бъде \" & ROUND(Heating!J22,2) & \" € (проверете за по-точна цена във вашия случай). \" & \"Срокът на изплащане е \" & ROUND(Heating!K22,0) & \" години. Ще намалите вредните емисии с \" & ROUND(Heating!I22,0) & \" kgCO2.\",\"Ще спестите \" & ROUND(Heating!G22,0) & \" кВтч (това е около \" & ROUND(Heating!H22,2) & \" €) годишно. \" & \"Цената на слънчеви пнели за БГВ може да бъде \" & ROUND(Heating!J22,2) & \" € (проверете за по-точна цена във вашия случай). Ще намалите вредните емисии с \" & ROUND(Heating!I22,0) & \" kgCO2.\")","v":"Ще спестите 0 кВтч (това е около 0 €) годишно. Цената на слънчеви пнели за БГВ може да бъде 0 € (проверете за по-точна цена във вашия случай). Ще намалите вредните емисии с 0 kgCO2."}]
[null,"Tip 19","Use photovoltaic energy. ","Use photovoltaic energy. Your roof can become a renewable power station by installing photovoltaic panels with batteries to store electricity"," If you are interested in learning more about photovoltaic energy, the auditor will  help you to decide if this is a suitable source for your house.  . ","Reducid vuestro consumo de electricidad con energía fotovoltaica. Vuestro tejado puede convertirse en productor de energía renovable instalando paneles con baterías para almacenar la electricidad. ",{"$f":"\"Ahorraréis [Savings kWh Tip 19] kWh (lo que supone un ahorro de [Savings euros Tip 19] €) al año.\" & \" El precio de una instalación de energía solar térmica es aproximadamente de [Cost range Tip 19] € (os recomendamos que solicitéis presupuesto para vuestro caso concreto). \" & \"Recuperaréis la inversión aproximadamente en [Payback range Tip 19] años. Estaréis ayudando al medioambiente al reducir vuestras emisiones en [Potential savings kCO2 Tip 19] kgCO2.\"","v":"Ahorraréis [Savings kWh Tip 19] kWh (lo que supone un ahorro de [Savings euros Tip 19] €) al año. El precio de una instalación de energía solar térmica es aproximadamente de [Cost range Tip 19] € (os recomendamos que solicitéis presupuesto para vuestro caso concreto). Recuperaréis la inversión aproximadamente en [Payback range Tip 19] años. Estaréis ayudando al medioambiente al reducir vuestras emisiones en [Potential savings kCO2 Tip 19] kgCO2."},"Χρησιμοποιήστε φωτοβολταϊκή ενέργεια. Η στέγη σας μπορεί να μεταμορφωθεί σε σταθμός ανανεώσιμων πηγών ενέργειας με την εγκατάσταση φωτοβολταϊκών πάνελ με μπαταρίες για την αποθήκευση ηλεκτρικής ενέργειας","Αν σας ενδιαφέρει να μάθετε περισσότερα για την  φωτοβολταϊκή ενέργεια, ο ελεγκτής θα σας βοηθήσει να αποφασίσετε εάν αυτό είναι μια κατάλληλη πηγή για το σπίτι σας","Utilizza l'energia fotovoltaica.\nUn impianto fotovoltaico installato sul tetto di casa produce energia elettrica che può essere utilizzata direttamente, ceduta alla rete (quando non  utilizzata) oppure accumulata in batteria. ",{"$f":"\"Risparmierai  fino a [Savings kWh Tip 19]  kWh , equivalenti a [Savings euros Tip 19] € all'anno.\" & \" Il costo relativo all'installazione di un impianto fotovoltaico ammonta a circa [Cost range Tip  19] €.Il ritorno dell'investimento è pari a  [Payback range Tip  19] anni.\" & \" Aiuterai l'ambiente riducendo le tue emissioni di [Potential savings kCO2 Tip 19] kgCO2.\"","v":"Risparmierai  fino a [Savings kWh Tip 19]  kWh , equivalenti a [Savings euros Tip 19] € all'anno. Il costo relativo all'installazione di un impianto fotovoltaico ammonta a circa [Cost range Tip  19] €.Il ritorno dell'investimento è pari a  [Payback range Tip  19] anni. Aiuterai l'ambiente riducendo le tue emissioni di [Potential savings kCO2 Tip 19] kgCO2."},"Koristite solarnu fotonaponsku energiju. Ugradite fotonaponske module (panele) za proizvodnju električne energije.","Ako želite saznati više o fotonaponskim modulima (panelima), savjetnik će vam pomoći da se odlučite je li to prikladan izvor za vašu kuću. ","Ползвайте фотоволтаична енергия. Покривът ви може да се превърне в мини ВЕИ електрическа централа, монтирайки PV-панели и акумулаторни батерии за съхранение на електричество. ","Ако желаете да научите повече за енергията от фотоволтаици, одиторът ще ви помогне да решите дали този източник на енергия е подходящ за домът ви. "]
[null,"Tip 20","Look for a highly efficient centralized system. ","Look for a highly efficient centralized system. If your system is older, even if it works properly, the modern higher efficiency systems could help you save a lot. ",{"$f":"IF(Heating!K6<>\"\",\"You will save  \" & ROUND(Heating!G6,0) & \" kWh (that’s worth about \" & ROUND(Heating!H6,0) & \" €) per year. \" & \"The price of a highly efficienct centralized system is around \" & ROUND(Heating!J6,2) & \" € (please request quotations to find out the exact cost for your case). \" & \"The payback is \" & ROUND(Heating!K6,2) & \" years.  You will help the environment by reducing your emissions in \" & ROUND(Heating!I6,0) & \" kgCO2.\",\"You will save  \" & ROUND(Heating!G6,0) & \" kWh (that’s worth about \" & ROUND(Heating!H6,0) & \" €) per year. \" & \"The price of a highly efficienct centralized system is around \" & ROUND(Heating!J6,2) & \" € (please request quotations to find out the exact cost for your case). You will help the environment by reducing your emissions in \" & ROUND(Heating!I6,0) & \" kgCO2.\")","v":"You will save  0 kWh (that’s worth about 0 €) per year. The price of a highly efficienct centralized system is around 0 € (please request quotations to find out the exact cost for your case). You will help the environment by reducing your emissions in 0 kgCO2."},"Buscad un sistema centralizado de alta eficiencia. Si vuestro sistema es antiguo, aunque funcione correctamente, uno más moderno, más eficiente podría ayudaros a ahorrar. ",{"$f":"IF(Heating!K6<>\"\",\"Ahorraréis \" & ROUND(Heating!G6,0) & \" kWh (lo que supone un ahorro de \" & ROUND(Heating!H6,0) & \" €) al año. \" & \"El precio de sistema centralizado de alta eficiencia es aproximadamente de \" & ROUND(Heating!J6,2) & \" € (os recomendamos que solicitéis presupuesto para vuestro caso concreto). \" & \"Recuperaréis la inversión aproximadamente en \" & ROUND(Heating!K6,2) & \" años. Estaréis ayudando al medioambiente al reducir vuestras emisiones en \" & ROUND(Heating!I6,0) & \" kgCO2.\",\"Ahorraréis \" & ROUND(Heating!G6,0) & \" kWh (lo que supone un ahorro de \" & ROUND(Heating!H6,0) & \" €) al año. \" & \"El precio de sistema centralizado de alta eficiencia es aproximadamente de \" & ROUND(Heating!J6,2) & \" € (os recomendamos que solicitéis presupuesto para vuestro caso concreto). Estaréis ayudando al medioambiente al reducir vuestras emisiones en \" & ROUND(Heating!I6,0) & \" kgCO2.\")","v":"Ahorraréis 0 kWh (lo que supone un ahorro de 0 €) al año. El precio de sistema centralizado de alta eficiencia es aproximadamente de 0 € (os recomendamos que solicitéis presupuesto para vuestro caso concreto). Estaréis ayudando al medioambiente al reducir vuestras emisiones en 0 kgCO2."},"Ψάξτε για ένα αποτελεσματικότερο κεντρικό σύστημα. Αν το σύστημά σας είναι πιο παλιό, μην σκεφτείτε πως λειτουργεί μια χαρά. Τα σύγχρονα συστήματα υψηλότερης απόδοσης μπορούν να σας βοηθήσουν να εξοικονομήσετε πολλά.",{"$f":"IF(Heating!K6<>\"\",\"Θα εξοικονομήσετε \" & ROUND(Heating!G6,0) & \" kWh (Aυτό αντιστοιχεί σε περίπου \" & ROUND(Heating!H6,0) & \" €) τον χρόνο. \" & \"Το κόστος ενός υψηλής απόδοσης κεντρικού συστήματος είναι περίπου € \" & ROUND(Heating!J6,2) & \" (παρακαλούμε να ζητήσετε προσφορές για να μάθετε το ακριβές κόστος για την περίπτωσή σας). \" & \"Η απόσβεση της επένδυσης σας είναι \" & ROUND(Heating!K6,2) & \" χρόνια.  Θα βοηθήσετε το περιβάλλον μειώνοντας τις εκπομπές σας κατά \" & ROUND(Heating!I6,0) & \" kgCO2.\",\"Θα εξοικονομήσετε \" & ROUND(Heating!G6,0) & \" kWh (Aυτό αντιστοιχεί σε περίπου \" & ROUND(Heating!H6,0) & \" €) τον χρόνο. \" & \"Το κόστος ενός υψηλής απόδοσης κεντρικού συστήματος είναι περίπου € \" & ROUND(Heating!J6,2) & \" (παρακαλούμε να ζητήσετε προσφορές για να μάθετε το ακριβές κόστος για την περίπτωσή σας). Θα βοηθήσετε το περιβάλλον μειώνοντας τις εκπομπές σας κατά \" & ROUND(Heating!I6,0) & \" kgCO2.\")","v":"Θα εξοικονομήσετε 0 kWh (Aυτό αντιστοιχεί σε περίπου 0 €) τον χρόνο. Το κόστος ενός υψηλής απόδοσης κεντρικού συστήματος είναι περίπου € 0 (παρακαλούμε να ζητήσετε προσφορές για να μάθετε το ακριβές κόστος για την περίπτωσή σας). Θα βοηθήσετε το περιβάλλον μειώνοντας τις εκπομπές σας κατά 0 kgCO2."},"Riqualifica il sistema di riscaldamento centralizzato.",{"$f":"IF(Heating!K6<>\"\",\"Risparmierai  fino a \" & ROUND(Heating!G6,0) & \"  kWh , equivalenti a \" & ROUND(Heating!H6,0) & \" € all'anno.\" & \" Il costo relativo all'installazione di un sistema di riscaldamento centralizzato ad alta efficienza energetica ammonta a circa \" & ROUND(Heating!J6,0) & \" €.Il ritorno dell'investimento è pari a \" & ROUND(Heating!K6,0) & \" anni.\" & \" Aiuterai l'ambiente riducendo le tue emissioni di \" & ROUND(Heating!I6,0) & \" kgCO2.\",\"Risparmierai  \" & ROUND(Heating!G6,0) & \"  kWh , equivalenti a \" & ROUND(Heating!H6,0) & \" € all'anno.\" & \" Il costo relativo all'installazione di un sistema di riscaldamento centralizzato ad alta efficienza energetica ammonta a circa \" & ROUND(Heating!J6,0) & \" €. Aiuterai l'ambiente riducendo le tue emissioni di \" & ROUND(Heating!I6,0) & \" kgCO2.\")","v":"Risparmierai  0  kWh , equivalenti a 0 € all'anno. Il costo relativo all'installazione di un sistema di riscaldamento centralizzato ad alta efficienza energetica ammonta a circa 0 €. Aiuterai l'ambiente riducendo le tue emissioni di 0 kgCO2."},"Potražite visoko učinkovit centraliziran sustav. Ako je vaš sustav starijeg datuma, čak i ako radi ispravno, moderni visoko učinkoviti sustavi mogu vam pomoći da puno uštedite. ",{"$f":"IF(Heating!K6<>\"\",\"Uštedjet ćete \" & ROUND(Heating!G6,0) & \" kWh (što vrijedi oko \" & ROUND(Heating!H6,0) & \" €) godišnje. \" & \"Cijena energetski visoko učinkovitog centraliziranog sustava je oko \" & ROUND(Heating!J6,2) & \" € (molimo vas da zatražite informacije kako bi saznali točan iznos za vaš slučaj). \" & \"Jednostavan period povrata (JPP) ulaganja je \" & ROUND(Heating!K6,2) & \" god. Pomoći ćete okolišu smanjenjem emisija  \" & ROUND(Heating!I6,0) & \" kgCO2.\",\"Uštedjet ćete \" & ROUND(Heating!G6,0) & \" kWh (što vrijedi oko \" & ROUND(Heating!H6,0) & \" €) godišnje. \" & \"Cijena energetski visoko učinkovitog centraliziranog sustava je oko \" & ROUND(Heating!J6,2) & \" € (molimo vas da zatražite informacije kako bi saznali točan iznos za vaš slučaj). Pomoći ćete okolišu smanjenjem emisija  \" & ROUND(Heating!I6,0) & \" kgCO2.\")","v":"Uštedjet ćete 0 kWh (što vrijedi oko 0 €) godišnje. Cijena energetski visoko učinkovitog centraliziranog sustava je oko 0 € (molimo vas da zatražite informacije kako bi saznali točan iznos za vaš slučaj). Pomoći ćete okolišu smanjenjem emisija  0 kgCO2."},"Потърсете високо-ефективна система. Ако вашата система е стара, дори и да работи добре, бихте спестили много, ако я подмените с нова, високо-ефективна и модерна система. ",{"$f":"IF(Heating!K6<>\"\",\"Ще спестите \" & ROUND(Heating!G6,0) & \" кВтч (това е около \" & ROUND(Heating!H6,2) & \" €) годишно. \" & \"Цената на високо-ефективна система може да бъде около\" & ROUND(Heating!J6,2) & \" € (проверете за по-точна цена във вашия случай). \" & \"Срокът на изплащане е \" & ROUND(Heating!K6,2) & \" години. Ще намалите вредните емисии с \" & ROUND(Heating!I6,0) & \" kgCO2.\",\"Ще спестите \" & ROUND(Heating!G6,0) & \" кВтч (това е около \" & ROUND(Heating!H6,2) & \" €) годишно. \" & \"Цената на високо-ефективна система може да бъде около\" & ROUND(Heating!J6,2) & \" € (проверете за по-точна цена във вашия случай). Ще намалите вредните емисии с \" & ROUND(Heating!I6,0) & \" kgCO2.\")","v":"Ще спестите 0 кВтч (това е около 0 €) годишно. Цената на високо-ефективна система може да бъде около0 € (проверете за по-точна цена във вашия случай). Ще намалите вредните емисии с 0 kgCO2."}]
[null,"Tip 21","5 minutes are enough in excessive warm weather. ","5 minutes are enough in excessive warm weather. Please remember: the shorter the better",{"$f":"\"You will save  \" & ROUND(Cooling!H11,0) & \" kWh (that’s worth about \" & ROUND(Cooling!I11,0) & \" €) per year.You will help the environment by reducing your emissions in \" & ROUND(Cooling!J11,0) & \" kgCO2.\"","v":"You will save  0 kWh (that’s worth about 0 €) per year.You will help the environment by reducing your emissions in 0 kgCO2."},"Estas ventilando excesivamente. En épocas cálidas, también hay que ventilar la casa, pero con 5 minutos será más que suficiente. ",{"$f":"\"Ahorraréis \" & ROUND(Cooling!H11,0) & \" kWh (lo que supone un ahorro de \" & ROUND(Cooling!I11,0) & \" €) al año. Estaréis ayudando al medioambiente al reducir vuestras emisiones en \" & ROUND(Cooling!J11,0) & \" kgCO2.\"","v":"Ahorraréis 0 kWh (lo que supone un ahorro de 0 €) al año. Estaréis ayudando al medioambiente al reducir vuestras emisiones en 0 kgCO2."},"5 λεπτά είναι αρκετά όταν ο καιρός είναι υπερβολικά ζεστός . Να θυμάστε : Όσο πιο σύντομα, τόσο το καλύτερο.",{"$f":"\"Θα εξοικονομήσετε \" & ROUND(Cooling!H11,0) & \" kWh (Aυτό αντιστοιχεί σε περίπου \" & ROUND(Cooling!I11,0) & \" €) τον χρόνο. Θα βοηθήσετε το περιβάλλον μειώνοντας τις εκπομπές σας κατά \" & ROUND(Cooling!J11,0) & \" kgCO2.\"","v":"Θα εξοικονομήσετε 0 kWh (Aυτό αντιστοιχεί σε περίπου 0 €) τον χρόνο. Θα βοηθήσετε το περιβάλλον μειώνοντας τις εκπομπές σας κατά 0 kgCO2."},"Arieggiare d'estate.\nDurante il giorno apri le finestre il meno possibile: 5 minuti sono sufficienti. \n",{"$f":"\"Risparmierai  fino a \" & ROUND(Cooling!H11,0) & \"  kWh, equivalenti a \" & ROUND(Cooling!I11,2) & \" € all'anno. Aiuterai l'ambiente riducendo le tue emissioni di \" & ROUND(Cooling!J11,0) & \" kgCO2.\"","v":"Risparmierai  fino a 0  kWh, equivalenti a 0 € all'anno. Aiuterai l'ambiente riducendo le tue emissioni di 0 kgCO2."},"5 minuta je dovoljno za izuzetno toplog vremena. Molim vas da zapamtite: što kraće,  to bolje. ",{"$f":"\"Uštedjet ćete \" & ROUND(Cooling!H11,0) & \" kWh (što vrijedi oko \" & ROUND(Cooling!I11,0) & \" €) godišnje.  Pomoći ćete okolišu smanjenjem emisija  \" & ROUND(Cooling!J11,0) & \" kgCO2.\"","v":"Uštedjet ćete 0 kWh (što vrijedi oko 0 €) godišnje.  Pomoći ćete okolišu smanjenjem emisija  0 kgCO2."},"5 минути проветряване са достатъчни в горещо време. Запоменте: колкото по-кратко, толкова по-добре. ",{"$f":"\"Ще спестите \" & ROUND(Cooling!H11,0) & \" кВтч (това е около \" & ROUND(Cooling!I11,0) & \" €) годишно. Ще намалите вредните емисии с \" & ROUND(Cooling!J11,0) & \" kgCO2.\"","v":"Ще спестите 0 кВтч (това е около 0 €) годишно. Ще намалите вредните емисии с 0 kgCO2."}]
[null,"Tip 22","In summer, ventilate when the weather is less warm. ","In summer, ventilate when the weather is less warm.  Air out when outdoors temperature is lower.",{"$f":"\"You will save  \" & ROUND(Cooling!H12,0) & \" kWh (that’s worth about \" & ROUND(Cooling!I12,0) & \" €) per year.You will help the environment by reducing your emissions in \" & ROUND(Cooling!J12,0) & \" kgCO2.\"","v":"You will save  0 kWh (that’s worth about 0 €) per year.You will help the environment by reducing your emissions in 0 kgCO2."},"En verano, ventilad en las horas menos cálidas. Conviene que en verano, ventiléis en las horas más frescas (por la noche). ",{"$f":"\"Ahorraréis \" & ROUND(Cooling!H12,0) & \" kWh (lo que supone un ahorro de \" & ROUND(Cooling!I12,0) & \" €) al año. Estaréis ayudando al medioambiente al reducir vuestras emisiones en \" & ROUND(Cooling!J12,0) & \" kgCO2.\"","v":"Ahorraréis 0 kWh (lo que supone un ahorro de 0 €) al año. Estaréis ayudando al medioambiente al reducir vuestras emisiones en 0 kgCO2."},"Το καλοκαίρι, εξαερίζετε όταν ο καιρός δεν είναι πολύ ζεστός. Εξαερίστε όταν η εξωτερική θερμοκρασία είναι χαμηλότερη.",{"$f":"\"Θα εξοικονομήσετε \" & ROUND(Cooling!H12,0) & \" kWh (Aυτό αντιστοιχεί σε περίπου \" & ROUND(Cooling!I12,0) & \" €) τον χρόνο. Θα βοηθήσετε το περιβάλλον μειώνοντας τις εκπομπές σας κατά \" & ROUND(Cooling!J12,0) & \" kgCO2.\"","v":"Θα εξοικονομήσετε 0 kWh (Aυτό αντιστοιχεί σε περίπου 0 €) τον χρόνο. Θα βοηθήσετε το περιβάλλον μειώνοντας τις εκπομπές σας κατά 0 kgCO2."},"In estate arieggia la casa di sera o di notte.\nAssicurati che il sistema di condizionamento sia spento quando le finestre sono aperte. ",{"$f":"\"Risparmierai  fino a  \" & ROUND(Cooling!H12,0) & \"  kWh, equivalenti a \" & ROUND(Cooling!I12,2) & \" € all'anno. Aiuterai l'ambiente riducendo le tue emissioni di \" & ROUND(Cooling!J12,0) & \" kgCO2.\"","v":"Risparmierai  fino a  0  kWh, equivalenti a 0 € all'anno. Aiuterai l'ambiente riducendo le tue emissioni di 0 kgCO2."},"Ljeti, provjetravajte kad je vanjska temperatura niža. Provjetravajte kad je vanjska temperatura niža.",{"$f":"\"Uštedjet ćete \" & ROUND(Cooling!H12,0) & \" kWh (što vrijedi oko \" & ROUND(Cooling!I12,0) & \" €) godišnje.  Pomoći ćete okolišu smanjenjem emisija  \" & ROUND(Cooling!J12,0) & \" kgCO2.\"","v":"Uštedjet ćete 0 kWh (što vrijedi oko 0 €) godišnje.  Pomoći ćete okolišu smanjenjem emisija  0 kgCO2."},"През лятото проветрявайте, когато е по-хладен въздуха отвън. Проветрявайте при възможно най-ниски температури навън. ",{"$f":"\"Ще спестите \" & ROUND(Cooling!H12,0) & \" кВтч (това е около \" & ROUND(Cooling!I12,0) & \" €) годишно.Ще намалите вредните емисии с \" & ROUND(Cooling!J12,0) & \" kgCO2.\"","v":"Ще спестите 0 кВтч (това е около 0 €) годишно.Ще намалите вредните емисии с 0 kgCO2."}]
[null,"Tip 23","Install awnings","Install awnings. Protect your windows from excessive sun exposure",{"$f":"\"You will save  \" & ROUND(Cooling!H7,0) & \" kWh (that’s worth about \" & ROUND(Cooling!I7,0) & \" €) per year. \" & \"The price of installing awnings is around \" & ROUND(Cooling!K7,2) & \" € (please request quotations to find out the exact cost for your case). The payback is \" & ROUND(Cooling!L7,2) & \" years.  \" & \"You will help the environment by reducing your emissions in \" & ROUND(Cooling!J7,0) & \" kgCO2.\"","v":{"$error":"#VALUE!"}},"Instalad toldos. Proteged vuestras ventanas del exceso de sol. ",{"$f":"\"Ahorraréis \" & ROUND(Cooling!H7,0) & \" kWh (lo que supone un ahorro de \" & ROUND(Cooling!I7,0) & \" €) al año. \" & \"El precio de instalar toldos es aproximadamente de \" & ROUND(Cooling!K7,2) & \" € (os recomendamos que solicitéis presupuesto para vuestro caso concreto). \" & \"Recuperaréis la inversión aproximadamente en \" & ROUND(Cooling!L7,2) & \" años. Estaréis ayudando al medioambiente al reducir vuestras emisiones en \" & ROUND(Cooling!J7,0) & \" kgCO2.\"","v":{"$error":"#VALUE!"}},"Εγκαταστήστε τέντες. Προστατέψτε τα παράθυρά σας από την υπερβολική έκθεση στον ήλιο",{"$f":"\"Θα εξοικονομήσετε \" & ROUND(Cooling!H7,0) & \" kWh (Aυτό αντιστοιχεί σε περίπου \" & ROUND(Cooling!I7,0) & \" €) τον χρόνο. \" & \"Το κόστος εγκατάστασης τεντών είναι περίπου € \" & ROUND(Cooling!K7,2) & \" (παρακαλούμε να ζητήσετε προσφορές για να μάθετε το ακριβές κόστος για την περίπτωσή σας). \" & \"Η απόσβεση της επένδυσης σας είναι \" & ROUND(Cooling!L7,2) & \" χρόνια.  Θα βοηθήσετε το περιβάλλον μειώνοντας τις εκπομπές σας κατά \" & ROUND(Cooling!J7,0) & \" kgCO2.\"","v":{"$error":"#VALUE!"}},"Installa tende da sole.\n Proteggi le tue finestre da un'eccessiva esposizione al sole.",{"$f":"\"Risparmierai  fino a \" & ROUND(Cooling!H7,0) & \"  kWh , equivalenti a \" & ROUND(Cooling!I7,2) & \" € all'anno.\" & \" Il costo relativo all'installazione di tende da sole ammonta a circa \" & ROUND(Cooling!K7,2) & \" €.Il ritorno dell'investimento è pari a \" & ROUND(Cooling!L7,2) & \" anni.\" & \" Aiuterai l'ambiente riducendo le tue emissioni di \" & ROUND(Cooling!J7,0) & \" kgCO2.\"","v":{"$error":"#VALUE!"}},"Postavite tende. Zaštitite svoje prozore od direktnog sunčevog zračenja.",{"$f":"\"Uštedjet ćete \" & ROUND(Cooling!H7,0) & \" kWh (što vrijedi oko \" & ROUND(Cooling!I7,0) & \" €) godišnje. \" & \"Cijena postavljanja tendi je oko \" & ROUND(Cooling!K7,2) & \" € (molimo vas da zatražite informacije kako bi saznali točan iznos za vaš slučaj). Jednostavan period povrata (JPP) ulaganja je \" & ROUND(Cooling!L7,2) & \" god. \" & \"Pomoći ćete okolišu smanjenjem emisija  \" & ROUND(Cooling!J7,0) & \" kgCO2.\"","v":{"$error":"#VALUE!"}},"Монтирайте сенници. Защите прозорците от директното слънце греене. ",{"$f":"\"Ще спестите \" & ROUND(Cooling!H7,0) & \" кВтч (това е около \" & ROUND(Cooling!I7,0) & \" €) годишно. \" & \"Цената на сенниците може да бъде около \" & ROUND(Cooling!K7,2) & \" € (проверете за по-точна цена във вашия случай). \" & \"Срокът на изплащане е \" & ROUND(Cooling!L7,2) & \" години. Ще намалите вредните емисии с \" & ROUND(Cooling!J7,0) & \" kgCO2.\"","v":{"$error":"#VALUE!"}}]
[null,"Tip 24","Set the ideal energy efficiency temperature: at 26ºC. ","Set the ideal energy efficiency temperature: at 26ºC. In summer 26ºC should be enough to stay at home. Just by turning up your room thermostat by one degree, you can save 8% in energy consumption.",{"$f":"\"You will save  \" & ROUND(Cooling!H8,0) & \" kWh (that’s worth about \" & ROUND(Cooling!I8,0) & \" €) per year. You will help the environment by reducing your emissions in \" & ROUND(Cooling!J8,0) & \" kgCO2.\"","v":"You will save  0 kWh (that’s worth about 0 €) per year. You will help the environment by reducing your emissions in 0 kgCO2."},"Estableced la temperatura energéticamente eficiente: en verano, 26ºC. En verano, 26ºC deberían ser suficientes para estar cómodamente en casa. Sólo elevando un grado la temperatura del termostato, podéis ahorrar un 8% del consumo energético.",{"$f":"\"Ahorraréis \" & ROUND(Cooling!H8,0) & \" kWh (lo que supone un ahorro de \" & ROUND(Cooling!I8,0) & \" €) al año.  Estaréis ayudando al medioambiente al reducir vuestras emisiones en \" & ROUND(Cooling!J8,0) & \" kgCO2.\"","v":"Ahorraréis 0 kWh (lo que supone un ahorro de 0 €) al año.  Estaréis ayudando al medioambiente al reducir vuestras emisiones en 0 kgCO2."},"Ρυθμίστε την ιδανική θερμοκρασία ενεργειακής απόδοσης: σε 26ºC. Το καλοκαίρι 26ºC  είναι αρκετοί για να μείνετε στο σπίτι. Με το να δυναμώσετε τον θερμοστάτη σας κατά ένα και μόνο βαθμό, μπορείτε να εξοικονομήσετε 8% στην ενεργειακή κατανάλωση.",{"$f":"\"Θα εξοικονομήσετε \" & ROUND(Cooling!H8,0) & \" kWh (Aυτό αντιστοιχεί σε περίπου \" & ROUND(Cooling!I8,0) & \" €) τον χρόνο. Θα βοηθήσετε το περιβάλλον μειώνοντας τις εκπομπές σας κατά \" & ROUND(Cooling!J8,0) & \" kgCO2.\"","v":"Θα εξοικονομήσετε 0 kWh (Aυτό αντιστοιχεί σε περίπου 0 €) τον χρόνο. Θα βοηθήσετε το περιβάλλον μειώνοντας τις εκπομπές σας κατά 0 kgCO2."},"In estate quando utilizzi il condizionatore non impostare una temperatura troppo bassa e mai inferiore a 26ºC.\nQuando il clima è molto umido prediligi la funzione di \"deumidificazione\". \nRicordati che alzando il termostato di un solo grado puoi risparmiare l'8% del consumo di energia.",{"$f":"\"Risparmierai fino a \" & ROUND(Cooling!H8,0) & \"  kWh, equivalenti a \" & ROUND(Cooling!I8,0) & \" € all'anno. Aiuterai l'ambiente riducendo le tue emissioni di \" & ROUND(Cooling!J8,0) & \" kgCO2.\"","v":"Risparmierai fino a 0  kWh, equivalenti a 0 € all'anno. Aiuterai l'ambiente riducendo le tue emissioni di 0 kgCO2."},"U sezoni hlađenja, postavite idealnu energetski učinkovitu temperaturu: na 26°C. Podizanjem temperature na termostatu za samo jedan stupanj možete uštedjeti 8% potrošnje energije. ",{"$f":"\"Uštedjet ćete \" & ROUND(Cooling!H8,0) & \" kWh (što vrijedi oko \" & ROUND(Cooling!I8,0) & \" €) godišnje.  Pomoći ćete okolišu smanjenjem emisija  \" & ROUND(Cooling!J8,0) & \" kgCO2.\"","v":"Uštedjet ćete 0 kWh (što vrijedi oko 0 €) godišnje.  Pomoći ćete okolišu smanjenjem emisija  0 kgCO2."},"Настройте оптимална температура за енергийна ефективност: 26ºC. През лятото 26ºC е добре за да се остане в помещението. Повишавайки термостатът само с един градус нагоре, вие може да спестите 8% от енергийното потребление. ",{"$f":"\"Ще спестите \" & ROUND(Cooling!H8,0) & \" кВтч (това е около \" & ROUND(Cooling!I8,0) & \" €) годишно. Ще намалите вредните емисии с \" & ROUND(Cooling!J8,0) & \" kgCO2.\"","v":"Ще спестите 0 кВтч (това е около 0 €) годишно. Ще намалите вредните емисии с 0 kgCO2."}]
[null,"Tip 25","Make the most of evaporative cooling and fans.","Make the most of evaporative cooling and fans. If you live in a very dry climate, air coming through water, is the best choice to feel like there are a couple degrees less in the room. \nFans consume little energy and they can reduce the indoor temperature between 3ºC to 5ºC.",{"$f":"\"You will save  \" & ROUND(Cooling!H10,0) & \" kWh (that’s worth about \" & ROUND(Cooling!I10,0) & \" €) per year. \" & \"The price ofthese alternative systems is around \" & ROUND(Cooling!K10,2) & \" € (please request quotations to find out the exact cost for your case). The payback is \" & ROUND(Cooling!L10,2) & \" years.  \" & \"You will help the environment by reducing your emissions in \" & ROUND(Cooling!J10,0) & \" kgCO2.\"","v":{"$error":"#VALUE!"}},"Prueba los sistemas de refrigeración evaporativa y elige siempre que puedas utilizar un ventilador en lugar del aire acondicionado. Si vives en un clima muy seco, el aire, al pasar por el agua, baja un par de grados la temperatura de la habitación. \nLos ventiladores consumen poca energía y pueden reducir la temperatura de la habitación entre 3º y 5ºC.\n",{"$f":"\"Ahorraréis \" & ROUND(Cooling!H10,0) & \" kWh (lo que supone un ahorro de \" & ROUND(Cooling!I10,0) & \" €) al año. \" & \"El precio de instalar estos sistemas alternativos de refrigeración es aproximadamente de \" & ROUND(Cooling!K10,2) & \" € (os recomendamos que solicitéis presupuesto para vuestro caso concreto). \" & \"Recuperaréis la inversión aproximadamente en \" & ROUND(Cooling!L10,2) & \" años. Estaréis ayudando al medioambiente al reducir vuestras emisiones en \" & ROUND(Cooling!J10,0) & \" kgCO2.\"","v":{"$error":"#VALUE!"}},"Αξιοποιήστε στο έπακρον την ψύξη μέσω εξάτμισης και ανεμιστήρων. Εάν ζείτε σε ξηρό κλίμα, ο αέρας είναι η καλύτερη επιλογή για να νιώσετε πως η θερμοκρασία του δωματίου είναι κατά 1-2 βαθμούς πιο χαμηλή.\nΟι ανεμιστήρες καταναλώνουν λίγη ενέργεια και μπορούν να μειώσουν την εσωτερική θερμοκρασία από 3°C έως 5°C. ",{"$f":"\"Θα εξοικονομήσετε \" & ROUND(Cooling!H10,0) & \" kWh (Aυτό αντιστοιχεί σε περίπου \" & ROUND(Cooling!I10,0) & \" €) τον χρόνο. \" & \"Το κόστος αυτών των εναλλακτικών συστημάτων είναι περίπου € \" & ROUND(Cooling!K10,2) & \"  (παρακαλούμε να ζητήσετε προσφορές για να μάθετε το ακριβές κόστος για την περίπτωσή σας). \" & \"Η απόσβεση της επένδυσης σας είναι \" & ROUND(Cooling!L10,2) & \" χρόνια.  Θα βοηθήσετε το περιβάλλον μειώνοντας τις εκπομπές σας κατά \" & ROUND(Cooling!J10,0) & \" kgCO2.\"","v":{"$error":"#VALUE!"}},"Quando puoi preferisci il ventilatore al condizionatore\nI ventilatori consumano meno energia e possono ridurre la percezione della temperatura interna di 3°C - 5°C.\nSe abiti in climi molto secchi prova il raffrescamento  evaporativo.",{"$f":"\"Risparmierai fino a \" & ROUND(Cooling!H10,0) & \"  kWh , equivalenti a \" & ROUND(Cooling!I10,0) & \" € all'anno.\" & \" Il costo di questi sistemi alternativi ammonta a circa \" & ROUND(Cooling!K10,0) & \" €.Il ritorno dell'investimento è pari a  \" & ROUND(Cooling!L10,0) & \" anni.\" & \" Aiuterai l'ambiente riducendo le tue emissioni di \" & ROUND(Cooling!J10,0) & \" kgCO2.\"","v":{"$error":"#VALUE!"}},"Iskoristite najbolje što možete evaporativno hlađenje i ventilatore. Ako živite u vrlo suhoj klimi, zrak koji dolazi kroz vodu najbolji je izbor ako želite osjećati nekoliko stupnjeva nižu temperaturu u prostoriji. Ventilatori troše malo struje i mogu smanjiti sobnu temperaturu za 3- 5°C. ",{"$f":"\"Uštedjet ćete \" & ROUND(Cooling!H10,0) & \" kWh (što vrijedi oko \" & ROUND(Cooling!I10,0) & \" €) godišnje. \" & \"Cijena ovih alternativnih sustava je oko \" & ROUND(Cooling!K10,2) & \" € (molimo vas da zatražite informacije kako bi saznali točan iznos za vaš slučaj). \" & \"Jednostavan period povrata (JPP) ulaganja je \" & ROUND(Cooling!L10,2) & \" god. Pomoći ćete okolišu smanjenjem emisija  \" & ROUND(Cooling!J10,0) & \" kgCO2.\"","v":{"$error":"#VALUE!"}},"Възползвайте се максимално от охлаждане с пара и вентилатори. Ако живеете в много сух климат, въздушните пари са идеални за да се чувствате с няколко градуса по-хладно. Вентилаторите консумират малко енергия и могат да понижат вътрешната температура от 3ºC до 5ºC.",{"$f":"\"Ще спестите \" & ROUND(Cooling!H10,0) & \" кВтч (това е около \" & ROUND(Cooling!I10,0) & \" €) годишно. \" & \"Цената на тези алтернативни системи може да бъде \" & ROUND(Cooling!K10,2) & \" € (проверете за по-точна цена във вашия случай). \" & \"Срокът на изплащане е \" & ROUND(Cooling!L10,2) & \" години. Ще намалите вредните емисии с \" & ROUND(Cooling!J10,0) & \" kgCO2.\"","v":{"$error":"#VALUE!"}}]
[null,"Tip 26","Install a low e-glass with solar control.","Install a low e-glass with solar control. The glass will absorb heat,  reflecting it back to the house. The solar control will avoid excessive heat from outside.",{"$f":"\"You will save  \" & ROUND(Cooling!H6,0) & \" kWh (that’s worth about \" & ROUND(Cooling!I6,0) & \" €) per year. \" & \"The price of installing low e-glass with solar control is around \" & ROUND(Cooling!K6,2) & \" € (please request quotations to find out the exact cost for your case). \" & \"The payback is \" & ROUND(Cooling!L6,2) & \" years.  You will help the environment by reducing your emissions in \" & ROUND(Cooling!J6,0) & \" kgCO2.\"","v":{"$error":"#VALUE!"}},"Instalad vidrios bajos emisivos de control solar. El cristal absorberá el calor, permitiendo atraparlo dentro de casa. El control solar os protegerá del exceso de sol. ",{"$f":"\"Ahorraréis \" & ROUND(Cooling!H6,0) & \" kWh (lo que supone un ahorro de \" & ROUND(Cooling!I6,0) & \" €) al año. \" & \"El precio de instalar vidrios bajo emisivos de control solar es aproximadamente de \" & ROUND(Cooling!K6,2) & \" € (os recomendamos que solicitéis presupuesto para vuestro caso concreto). \" & \"Recuperaréis la inversión aproximadamente en \" & ROUND(Cooling!L6,2) & \" años. Estaréis ayudando al medioambiente al reducir vuestras emisiones en \" & ROUND(Cooling!J6,0) & \" kgCO2.\"","v":{"$error":"#VALUE!"}},"Εγκαταστήστε ένα e-glass με ηλιοπροστασία. Το γυαλί θα απορροφήσει τη θερμότητα και θα την αντανακλάσει πίσω στο σπίτι. Η ηλιοπροστασία θα αποτρέψει την υπερβολική θερμότητα από το εξωτερικό.",{"$f":"\"Θα εξοικονομήσετε \" & ROUND(Cooling!H6,0) & \" kWh (Aυτό αντιστοιχεί σε περίπου \" & ROUND(Cooling!I6,0) & \" €) τον χρόνο. \" & \"Το κόστος εγκατάστασης e-glass με ηλιακό έλεγχο είναι περίπου € \" & ROUND(Cooling!K6,2) & \"  (παρακαλούμε να ζητήσετε προσφορές για να μάθετε το ακριβές κόστος για την περίπτωσή σας). \" & \"Η απόσβεση της επένδυσης σας είναι \" & ROUND(Cooling!L6,2) & \" χρόνια.  Θα βοηθήσετε το περιβάλλον μειώνοντας τις εκπομπές σας κατά \" & ROUND(Cooling!J6,0) & \" kgCO2.\"","v":{"$error":"#VALUE!"}},"Installa vetri basso-emissivi a controllo solare.\nLa bassa emissività conserva il calore durante l'inverno, mente il controllo solare riflette la radiazione solare durante l'estate. ",{"$f":"\"Risparmierai  fino a \" & ROUND(Cooling!H6,0) & \"  kWh , equivalenti a \" & ROUND(Cooling!I6,2) & \" € all'anno.\" & \" Il costo di installazione di vetri basso-emissivi a controllo solare ammonta a circa \" & ROUND(Cooling!K6,2) & \" €.Il ritorno dell'investimento è pari a \" & ROUND(Cooling!L6,0) & \" anni.\" & \" Aiuterai l'ambiente riducendo le tue emissioni di \" & ROUND(Cooling!J6,0) & \" kgCO2.\"","v":{"$error":"#VALUE!"}},"Ugradite prozore sa low-e premazom. Staklo će apsorbirati toplinu, reflektirajući je natrag u kuću. Kontrolom sunčeve topline izbjeći će se prekomjerna toplina izvana. ",{"$f":"\"Uštedjet ćete \" & ROUND(Cooling!H6,0) & \" kWh (što vrijedi oko \" & ROUND(Cooling!I6,0) & \" €) godišnje. \" & \"Cijena postavljanja prozora sa low-e premazom je oko \" & ROUND(Cooling!K6,2) & \" € (molimo vas da zatražite informacije kako bi saznali točan iznos za vaš slučaj). \" & \"Jednostavan period povrata (JPP) ulaganja je \" & ROUND(Cooling!L6,2) & \" god. Pomoći ćete okolišu smanjenjem emisija  \" & ROUND(Cooling!J6,0) & \" kgCO2.\"","v":{"$error":"#VALUE!"}},"Сложете ниско емисионно стъкло с контрол на слънцегреенето. Стъклото поглъща топлина и ще я отразява обратно навътре. Контролът на слънцегреенето ще спре излишната топлина навлизаща от вън.",{"$f":"\"Ще спестите \" & ROUND(Cooling!H6,0) & \" кВтч (това е около \" & ROUND(Cooling!I6,0) & \" €) годишно. Цената на тази мярка може да бъде около \" & ROUND(Cooling!K6,2) & \" € (проверете за по-точна цена във вашия случай). Срокът на изплащане е \" & ROUND(Cooling!L6,2) & \" години. Ще намалите вредните емисии с \" & ROUND(Cooling!J6,0) & \" kgCO2.\"","v":{"$error":"#VALUE!"}}]
[null,"Tip 27","Purchase a new highly  efficient cooling system. ","Purchase a new highly  efficient cooling system. Pay attention to the energy label when buying a new cooling system. ",{"$f":"\"You will save  \" & ROUND(Cooling!H5,0) & \" kWh (that’s worth about \" & ROUND(Cooling!I5,0) & \" €) per year. \" & \"The price of purchasing a new high efficient system is around \" & ROUND(Cooling!K5,2) & \" € (please request quotations to find out the exact cost for your case). \" & \"The payback is \" & ROUND(Cooling!L5,2) & \" years.  You will help the environment by reducing your emissions in \" & ROUND(Cooling!J5,0) & \" kgCO2.\"","v":{"$error":"#VALUE!"}},"Adquirid un nuevo sistema altamente eficiente. Fijaos en la etiqueta energética para saber su grado de eficiencia. ",{"$f":"\"Ahorraréis \" & ROUND(Cooling!H5,0) & \" kWh (lo que supone un ahorro de \" & ROUND(Cooling!I5,0) & \" €) al año. \" & \"El precio de adquirir un nuevo sistema altamente eficiente es aproximadamente de \" & ROUND(Cooling!K5,2) & \" € (os recomendamos que solicitéis presupuesto para vuestro caso concreto). \" & \"Recuperaréis la inversión aproximadamente en \" & ROUND(Cooling!L5,2) & \" años. Estaréis ayudando al medioambiente al reducir vuestras emisiones en \" & ROUND(Cooling!J5,0) & \" kgCO2.\"","v":{"$error":"#VALUE!"}},"Αγοράστε ένα καινούργιο σύστημα ψύξης υψηλής απόδοσης. Δώστε προσοχή στην ετικέτα ενέργειας όταν αγοράζετε ένα νέο σύστημα ψύξης.",{"$f":"\"Θα εξοικονομήσετε \" & ROUND(Cooling!H5,0) & \" kWh (Aυτό αντιστοιχεί σε περίπου \" & ROUND(Cooling!I5,0) & \" €) τον χρόνο. \" & \"Το κόστος αγοράς καινούργιου συστήματος υψηλής απόδοσης είναι περίπου € \" & ROUND(Cooling!K5,2) & \" (παρακαλούμε να ζητήσετε προσφορές για να μάθετε το ακριβές κόστος για την περίπτωσή σας). \" & \"Η απόσβεση της επένδυσης σας είναι \" & ROUND(Cooling!L5,2) & \" χρόνια.  Θα βοηθήσετε το περιβάλλον μειώνοντας τις εκπομπές σας κατά \" & ROUND(Cooling!J5,0) & \" kgCO2.\"","v":{"$error":"#VALUE!"}},"Acquista impianti di condizionamento efficienti.\nQuando procedi all' acquisto fai attenzione  all'etichetta energetica.",{"$f":"\"Risparmierai  fino a \" & ROUND(Cooling!H5,0) & \"  kWh , equivalenti a \" & ROUND(Cooling!I5,2) & \" € all'anno.\" & \" Il costo di acquisto di impianti di condizionamento efficienti ammonta a circa \" & ROUND(Cooling!K5,2) & \" €.Il ritorno dell'investimento è pari a \" & ROUND(Cooling!IL2,2) & \" anni.\" & \" Aiuterai l'ambiente riducendo le tue emissioni di \" & ROUND(Cooling!J5,0) & \" kgCO2.\"","v":"Risparmierai  fino a 0  kWh , equivalenti a 0 € all'anno. Il costo di acquisto di impianti di condizionamento efficienti ammonta a circa 0 €.Il ritorno dell'investimento è pari a 0 anni. Aiuterai l'ambiente riducendo le tue emissioni di 0 kgCO2."},"Nabavite novi visoko učinkovit sustav hlađenja. Obratite pažnju na energetsku etiketu kod kupnje novog sustava hlađenja. ",{"$f":"\"Uštedjet ćete \" & ROUND(Cooling!H5,0) & \" kWh (što vrijedi oko \" & ROUND(Cooling!I5,0) & \" €) godišnje. \" & \"Cijena kupnje novog visoko učinkovitog sustava hlađenja je oko \" & ROUND(Cooling!K5,2) & \" € (molimo vas da zatražite informacije kako bi saznali točan iznos za vaš slučaj). \" & \"Jednostavan period povrata (JPP) ulaganja je \" & ROUND(Cooling!L5,2) & \" god. Pomoći ćete okolišu smanjenjem emisija  \" & ROUND(Cooling!J5,0) & \" kgCO2.\"","v":{"$error":"#VALUE!"}},"Купете нова ефективна охлаждаща система. Съобразете се с енергийния клас при покупка на нова система. ",{"$f":"\"Ще спестите \" & ROUND(Cooling!H5,0) & \" кВтч (това е около \" & ROUND(Cooling!I5,0) & \" €) годишно. Цената на нова по-ефектива система може да бъде около \" & ROUND(Cooling!K5,2) & \" € (проверете за по-точна цена във вашия случай). Срокът на изплащане е \" & ROUND(Cooling!L5,2) & \" години. Ще намалите вредните емисии с \" & ROUND(Cooling!J5,0) & \" kgCO2.\"","v":{"$error":"#VALUE!"}}]
[null,"Tip 28","Switch off completely appliances with stand-by. ","Switch off completely appliances with stand-by. Avoid wasting energy that you do not use. Don’t leave electronic devices on stand-by, get used to switch them off completely.",{"$f":"\"You will save  \" & ROUND('EE Appliances and Lighting'!H6,0) & \" kWh (that’s worth about \" & ROUND('EE Appliances and Lighting'!H6,0) & \" €) per year.   You will help the environment by reducing your emissions in \" & ROUND('EE Appliances and Lighting'!J6,2) & \" kgCO2.\"","v":"You will save  0 kWh (that’s worth about 0 €) per year.   You will help the environment by reducing your emissions in 0 kgCO2."},"Apagad por completo los aparatos con modo \"stand-by\". Evitad usar energía que no estáis disfrutando. No dejéis aparatos electrónicos en modo \"stand- by\", acostumbraos a apagarlos por completo. ",{"$f":"\"Ahorraréis \" & ROUND('EE Appliances and Lighting'!H6,0) & \" kWh (lo que supone un ahorro de \" & ROUND('EE Appliances and Lighting'!I6,2) & \" €) al año.  Estaréis ayudando al medioambiente al reducir vuestras emisiones en \" & ROUND('EE Appliances and Lighting'!J6,2) & \" kgCO2.\"","v":"Ahorraréis 0 kWh (lo que supone un ahorro de 0 €) al año.  Estaréis ayudando al medioambiente al reducir vuestras emisiones en 0 kgCO2."},"Σβήστε εντελώς συσκευές που είναι σε κατάσταση αναμονής (stand-by). Αποφύγετε να σπαταλάτε ενέργεια την οποία δεν χρησιμοποιείτε. Μην αφήνετε ηλεκτρονικές συσκευές στο stand-by, αλλά συνηθίστε να τις θέτετε εκτός λειτουργίας.",{"$f":"\"Θα εξοικονομήσετε \" & ROUND('EE Appliances and Lighting'!H6,0) & \" kWh (Aυτό αντιστοιχεί σε περίπου \" & ROUND('EE Appliances and Lighting'!H6,0) & \" €) τον χρόνο. Θα βοηθήσετε το περιβάλλον μειώνοντας τις εκπομπές σας κατά \" & ROUND('EE Appliances and Lighting'!J6,2) & \" kgCO2.\"","v":"Θα εξοικονομήσετε 0 kWh (Aυτό αντιστοιχεί σε περίπου 0 €) τον χρόνο. Θα βοηθήσετε το περιβάλλον μειώνοντας τις εκπομπές σας κατά 0 kgCO2."},"Elimina lo stand by \nEvita di sprecare energia che non usi: abituati a spegnere completamente tutti i dispositivi elettrici",{"$f":"\"Risparmierai fino a \" & ROUND('EE Appliances and Lighting'!H6,0) & \"  kWh, equivalenti a \" & ROUND('EE Appliances and Lighting'!I6,0) & \" € all'anno. Aiuterai l'ambiente riducendo le tue emissioni di \" & ROUND('EE Appliances and Lighting'!J6,2) & \" kgCO2.\"","v":"Risparmierai fino a 0  kWh, equivalenti a 0 € all'anno. Aiuterai l'ambiente riducendo le tue emissioni di 0 kgCO2."},"Ne ostavljajte uređaje u stanju pripravnosti (stand-by način rada).  Izbjegavajte rasipanje energije koju ne koristite. Ne ostavljajte elektronske naprave u načinu rada \"stand by\", naviknite se potpuno ih gasiti. ",{"$f":"\"Uštedjet ćete \" & ROUND(Heating!G15,0) & \" kWh (što vrijedi oko \" & ROUND(Heating!H15,0) & \" €) godišnje.  Pomoći ćete okolišu smanjenjem emisija  \" & ROUND(Heating!I15,0) & \" kgCO2.\"","v":"Uštedjet ćete 0 kWh (što vrijedi oko 0 €) godišnje.  Pomoći ćete okolišu smanjenjem emisija  0 kgCO2."},"Изключете изцяло уредите от стенд-бай режим. Не хабете енергия, която не ползвате. Не оставяйте ел. уредите на стенд-бай режим, а се научете да ги изключвате изцяло. ",{"$f":"\"Ще спестите \" & ROUND('EE Appliances and Lighting'!H6,0) & \" кВтч (това е около \" & ROUND('EE Appliances and Lighting'!H6,0) & \" €) годишно. Ще намалите вредните емисии с \" & ROUND('EE Appliances and Lighting'!J6,2) & \" kgCO2.\"","v":"Ще спестите 0 кВтч (това е около 0 €) годишно. Ще намалите вредните емисии с 0 kgCO2."}]
[null,"Tip 29","Change progressively the light bulbs for low consumption ones. ","Change progressively the light bulbs for low consumption ones. Replace when possible incandescent or halogen light bulbs with low consumption or fluorescents.",{"$f":"\"You will save \" & ROUND('EE Appliances and Lighting'!H7,0) & \" kWh (that’s worth about \" & ROUND('EE Appliances and Lighting'!I7,2) & \" €) per year. \" & \"The price of changing the light bulbs for low consumption ones is around \" & ROUND('EE Appliances and Lighting'!K7,2) & \" € (please request quotations to find out the exact cost for your case). \" & \"The payback is \" & ROUND('EE Appliances and Lighting'!L7,2) & \" years.  You will help the environment by reducing your emissions in \" & ROUND('EE Appliances and Lighting'!J7,2) & \" kgCO2.\"","v":{"$error":"#VALUE!"}},"Cambiad progresivamente las bombillas por bombillas de bajo consumo. Sustituid cuando sea posible bombillas incandescentes o halógenas por bombillas de bajo consumo o fluorescentes. ",{"$f":"\"Ahorraréis \" & ROUND('EE Appliances and Lighting'!H7,0) & \" kWh (lo que supone un ahorro de \" & ROUND('EE Appliances and Lighting'!I7,2) & \" €) al año. \" & \"El precio de cambiar las bombillas por unas de bajo consumo es aproximadamente de \" & ROUND('EE Appliances and Lighting'!K7,2) & \" €. \" & \"Recuperaréis la inversión aproximadamente en \" & ROUND('EE Appliances and Lighting'!L7,2) & \" años. Estaréis ayudando al medioambiente al reducir vuestras emisiones en \" & ROUND('EE Appliances and Lighting'!J7,2) & \" kgCO2.\"","v":{"$error":"#VALUE!"}},"Αντικαταστείστε σταδιακά τους λαμπτήρες σας με λαμπτήρες χαμηλής κατανάλωσης. Όταν είναι δυνατόν αντικαταστήστε τους λαμπτήρες πυρακτώσεως ή αλογόνου με χαμηλής κατανάλωσης, φθορισμού ή LED.",{"$f":"\"Θα εξοικονομήσετε \" & ROUND('EE Appliances and Lighting'!H7,0) & \" kWh (Aυτό αντιστοιχεί σε περίπου \" & ROUND('EE Appliances and Lighting'!I7,2) & \" €) τον χρόνο. \" & \"Το κόστος για την αλλαγή των υφιστάμενων λαμπτήρων με λαμπτήρες χαμηλότερης κατανάλωσης είναι περίπου \" & ROUND('EE Appliances and Lighting'!K7,2) & \" € (παρακαλούμε να ζητήσετε προσφορές για να μάθετε το ακριβές κόστος για την περίπτωσή σας). \" & \"Η απόσβεση της επένδυσης σας είναι \" & ROUND('EE Appliances and Lighting'!L7,2) & \" χρόνια.  \" & \"Θα βοηθήσετε το περιβάλλον μειώνοντας τις εκπομπές σας κατά \" & ROUND('EE Appliances and Lighting'!J7,2) & \" kgCO2.\"","v":{"$error":"#VALUE!"}},"Sostituisci progressivamente le lampadine alogene o incandescenti con quelle fluorescenti o LED.\n",{"$f":"\"Risparmierai fino a \" & ROUND('EE Appliances and Lighting'!H7,0) & \"  kWh , equivalenti a \" & ROUND('EE Appliances and Lighting'!I7,2) & \" € all'anno.\" & \" Il costo di sostituzione di lampadine alogene o incandescenti con quelle fluorescenti o LED ammonta a circa \" & ROUND('EE Appliances and Lighting'!K7,2) & \" €.Il ritorno dell'investimento è pari a  \" & ROUND('EE Appliances and Lighting'!L7,2) & \" anni.\" & \" Aiuterai l'ambiente riducendo le tue emissioni di \" & ROUND('EE Appliances and Lighting'!J7,2) & \" kgCO2.\"","v":{"$error":"#VALUE!"}},"Postupno zamijenite žarulje sa žarnom niti. Kada je to moguće, žarulje s žarnom niti ili halogene žarulje zamijenite energetski efikasnijim fluokompaktnim ili LED žaruljama.",{"$f":"\"Uštedjet ćete\" & ROUND('EE Appliances and Lighting'!H7,0) & \" kWh (što vrijedi oko \" & ROUND('EE Appliances and Lighting'!I7,2) & \" €) godišnje. \" & \"Cijena zamjene žarulja s energetski učinkovitijim fluokompaktnim ili LED žaruljama je oko \" & ROUND('EE Appliances and Lighting'!K7,2) & \" € (molimo vas da zatražite informacije kako bi saznali točan iznos za vaš slučaj). \" & \"Jednostavan period povrata (JPP) ulaganja je \" & ROUND('EE Appliances and Lighting'!L7,2) & \" god. Pomoći ćete okolišu smanjenjem emisija \" & ROUND('EE Appliances and Lighting'!J7,2) & \" kgCO2.\"","v":{"$error":"#VALUE!"}},"Подмете постепенно крушките си с енергийно ефективни лампи. При подходящ случай, подмете халогенните крушки и такива с нажежаема жичка с енерго ефективни крушки. ",{"$f":"\"Ще спестите \" & ROUND('EE Appliances and Lighting'!H7,0) & \" кВтч (това е около \" & ROUND('EE Appliances and Lighting'!I7,2) & \" €) годишно. Цената на тази мярка може да бъде около \" & ROUND('EE Appliances and Lighting'!K7,2) & \" € (проверете за по-точна цена във вашия случай). Срокът на изплащане е \" & ROUND('EE Appliances and Lighting'!L7,2) & \" години. Ще намалите вредните емисии с \" & ROUND('EE Appliances and Lighting'!J7,2) & \" kgCO2.\"","v":{"$error":"#VALUE!"}}]
[null,"Tip 30","Always check the Energy Label when purchasing new appliances. ","Always check the Energy Label when purchasing new appliances. Choose a high energy efficiency system (A+ or higher)",{"$f":"\"You will save  \" & ROUND('EE Appliances and Lighting'!H8,0) & \" kWh (that’s worth about \" & ROUND('EE Appliances and Lighting'!I8,2) & \" €) per year.   You will help the environment by reducing your emissions in \" & ROUND('EE Appliances and Lighting'!J8,2) & \" kgCO2.\"","v":"You will save  0 kWh (that’s worth about 0 €) per year.   You will help the environment by reducing your emissions in 0 kgCO2."},"Comprobad la etiqueta energética cuando adquiráis un nuevo electrodoméstico. Elegid un sistema energético eficiente (A+ o superior)",{"$f":"\"Ahorraréis \" & ROUND('EE Appliances and Lighting'!H8,0) & \" kWh (lo que supone un ahorro de \" & ROUND('EE Appliances and Lighting'!I8,2) & \" €) al año.  Estaréis ayudando al medioambiente al reducir vuestras emisiones en \" & ROUND('EE Appliances and Lighting'!J8,2) & \" kgCO2.\"","v":"Ahorraréis 0 kWh (lo que supone un ahorro de 0 €) al año.  Estaréis ayudando al medioambiente al reducir vuestras emisiones en 0 kgCO2."},"Πάντα να ελέγχετε το σήμα ενεργειακής απόδοσης κατά την αγορά νέων συσκευών. Επιλέξτε ένα σύστημα υψηλής ενεργειακής απόδοσης (A+ ή υψηλότερη)",{"$f":"\"Θα εξοικονομήσετε \" & ROUND('EE Appliances and Lighting'!H8,0) & \" kWh (Aυτό αντιστοιχεί σε περίπου \" & ROUND('EE Appliances and Lighting'!I8,2) & \" €) τον χρόνο. Θα βοηθήσετε το περιβάλλον μειώνοντας τις εκπομπές σας κατά \" & ROUND('EE Appliances and Lighting'!J8,2) & \" kgCO2.\"","v":"Θα εξοικονομήσετε 0 kWh (Aυτό αντιστοιχεί σε περίπου 0 €) τον χρόνο. Θα βοηθήσετε το περιβάλλον μειώνοντας τις εκπομπές σας κατά 0 kgCO2."},"Quando acquisti nuovi elettrodomestici, controlla sempre l'etichetta energetica.\n Scegli un prodotto ad alta efficienza energetica (A + o superiore)",{"$f":"\"Risparmierai fino a \" & ROUND('EE Appliances and Lighting'!H8,0) & \"  kWh, equivalenti a \" & ROUND('EE Appliances and Lighting'!I8,2) & \" € all'anno. Aiuterai l'ambiente riducendo le tue emissioni di \" & ROUND('EE Appliances and Lighting'!J8,2) & \" kgCO2.\"","v":"Risparmierai fino a 0  kWh, equivalenti a 0 € all'anno. Aiuterai l'ambiente riducendo le tue emissioni di 0 kgCO2."},"Uvijek provjerite energetsku etiketu kad kupujete nove aparate. Odaberite visoko učinkovit sustav (A+ ili više). ",{"$f":"\"Uštedjet ćete \" & ROUND('EE Appliances and Lighting'!H8,0) & \" kWh (što vrijedi oko \" & ROUND('EE Appliances and Lighting'!I8,2) & \" €) godišnje.  Pomoći ćete okolišu smanjenjem emisija  \" & ROUND('EE Appliances and Lighting'!J8,2) & \" kgCO2.\"","v":"Uštedjet ćete 0 kWh (što vrijedi oko 0 €) godišnje.  Pomoći ćete okolišu smanjenjem emisija  0 kgCO2."},"Винаги проверявайте енергийният клас при покупка на ел. уред. Избирайте такива с по-висока енергийна ефективност (А+ или повече).",{"$f":"\"Ще спестите \" & ROUND('EE Appliances and Lighting'!H8,0) & \" кВтч (това е около \" & ROUND('EE Appliances and Lighting'!I8,2) & \" €) годишно. Ще намалите вредните емисии с \" & ROUND('EE Appliances and Lighting'!J8,2) & \" kgCO2.\"","v":"Ще спестите 0 кВтч (това е около 0 €) годишно. Ще намалите вредните емисии с 0 kgCO2."}]
[null,"Tip 31","Install induction cooking system.","Install induction cooking system. Consider an induction cooktop: efficiency boosts to over 80%",{"$f":"\"You will save  \" & ROUND('EE Appliances and Lighting'!H9,0) & \" kWh (that’s worth about \" & ROUND('EE Appliances and Lighting'!I9,2) & \" €) per year. \" & \"The price of installing a induction cooking system is around \" & ROUND('EE Appliances and Lighting'!K9,2) & \" € (please request quotations to find out the exact cost for your case). The payback is \" & ROUND('EE Appliances and Lighting'!L9,2) & \" years.  \" & \"You will help the environment by reducing your emissions in \" & ROUND('EE Appliances and Lighting'!J9,2) & \" kgCO2.\"","v":{"$error":"#VALUE!"}},"Instalad un sistema de cocina por inducción. Considerad la opción de este sistema, su eficiencia energética es del 80%.",{"$f":"\"Ahorraréis \" & ROUND('EE Appliances and Lighting'!H9,0) & \" kWh (lo que supone un ahorro de \" & ROUND('EE Appliances and Lighting'!I9,2) & \" €) al año. \" & \"El precio de instalar una cocina de inducción es aproximadamente de \" & ROUND('EE Appliances and Lighting'!K9,2) & \" € (os recomendamos que solicitéis presupuesto para vuestro caso concreto). \" & \"Recuperaréis la inversión aproximadamente en \" & ROUND('EE Appliances and Lighting'!L9,2) & \" años. Estaréis ayudando al medioambiente al reducir vuestras emisiones en \" & ROUND('EE Appliances and Lighting'!J9,2) & \" kgCO2.\"","v":{"$error":"#VALUE!"}},"Εγκαταστήστε επαγωγικό σύστημα μαγειρέματος. Σκεφτείτε πως μια επαγωγική εστία μαγειρέματος: αυξάνει την αποτελεσματικότητα για πάνω από 80%",{"$f":"\"Θα εξοικονομήσετε \" & ROUND('EE Appliances and Lighting'!H9,0) & \" kWh (Aυτό αντιστοιχεί σε περίπου \" & ROUND('EE Appliances and Lighting'!I9,2) & \" €) τον χρόνο. \" & \"Το κόστος εγκατάστασης επαγωγικού συστήματος μαγειρέματος είναι περίπου \" & ROUND('EE Appliances and Lighting'!J9,2) & \" € (παρακαλούμε να ζητήσετε προσφορές για να μάθετε το ακριβές κόστος για την περίπτωσή σας). \" & \"Η απόσβεση της επένδυσης σας είναι \" & ROUND('EE Appliances and Lighting'!L9,2) & \" χρόνια. Θα βοηθήσετε το περιβάλλον μειώνοντας τις εκπομπές σας κατά \" & ROUND('EE Appliances and Lighting'!J9,2) & \" kgCO2.\"","v":{"$error":"#VALUE!"}},"Installa i piani di cottura ad induzione. \nConsidera l'acquisto di un fornello ad induzione che consente di aumentare l'efficienza ben oltre il 80%",{"$f":"\"Risparmierai fino a \" & ROUND('EE Appliances and Lighting'!H9,0) & \"  kWh , equivalenti a \" & ROUND('EE Appliances and Lighting'!I9,2) & \" € all'anno.\" & \" Il costo di installazione di un piano di cottura ad induzione ammonta a circa \" & ROUND('EE Appliances and Lighting'!K9,2) & \" €.Il ritorno dell'investimento è pari a \" & ROUND('EE Appliances and Lighting'!L9,2) & \" anni.\" & \" Aiuterai l'ambiente riducendo le tue emissioni di \" & ROUND('EE Appliances and Lighting'!J9,2) & \" kgCO2.\"","v":{"$error":"#VALUE!"}},"Postavite indukcijske sustave kuhanja. Razmislite o indukcijskoj ploči za kuhanje: efikasnost je veća za preko 80%. ",{"$f":"\"Uštedjet ćete \" & ROUND('EE Appliances and Lighting'!H9,0) & \" kWh (što vrijedi oko \" & ROUND('EE Appliances and Lighting'!I9,2) & \" €) godišnje. \" & \"Cijena ugradnje indukcijskih ploča za kuhanje je oko \" & ROUND('EE Appliances and Lighting'!K9,2) & \" € (molimo vas da zatražite informacije kako bi saznali točan iznos za vaš slučaj). \" & \"Jednostavan period povrata (JPP) ulaganja je \" & ROUND('EE Appliances and Lighting'!L9,2) & \" god. Pomoći ćete okolišu smanjenjem emisija  \" & ROUND('EE Appliances and Lighting'!J9,2) & \" kgCO2.\"","v":{"$error":"#VALUE!"}},"Монтирайте индукционна система за готвене. Обмислете покупка на готварска печка с индукционен плот: ефективността нараства с над 80%",{"$f":"\"Ще спестите \" & ROUND('EE Appliances and Lighting'!H9,0) & \" кВтч (това е около \" & ROUND('EE Appliances and Lighting'!I9,2) & \" €) годишно. Цената на индукционна система за готвене може да бъде около \" & ROUND('EE Appliances and Lighting'!K9,2) & \" € (проверете за по-точна цена във вашия случай). Срокът на изплащане е \" & ROUND('EE Appliances and Lighting'!L9,2) & \" години. Ще намалите вредните емисии с \" & ROUND('EE Appliances and Lighting'!J9,2) & \" kgCO2.\"","v":{"$error":"#VALUE!"}}]
[null,"Tip 32","Check the FEE Guide and you will find new ways to save money. ","Check the FEE Guide and you will find new ways to save money. You will find new tips and information to start saving money.",null,"Consulta la Guía FIESTA y descubre nuevas formas de ahorrar energía. Encontraréis más consejos e información para empezar a ahorrar dinero.",null,"Ελέγξτε τον Οδηγό FEE και θα βρείτε νέους τρόπους για να εξοικονομήσετε χρήματα. Θα βρείτε νέες συμβουλές και πληροφορίες για να ξεκινήσετε να εξοικονομάτε χρήματα.",null,"Consulta la Guida per le famiglie di FIESTA e scopri nuovi modi per risparmiare. ",null,"Pogledajte  FIESTA energetski vodič. Pronaći ćete nove korisne savjete i informacije kako uštedjeti energiju i novac.",null,"Проверете ръководството по ЕЕ на проект \"ФИЕСТА\" за още съвети как да пестите. Там ще намерите още съвети и информация как да започнете да пестите пари от енергия."]
[]
[null,"English:","Croatian:","Italian:","Cyprus:","Spanish: ","Bulgarian:"]
[null,"Last year energy consumption","Prošlogodišnja potrošnja energije","Consumo energetico relativo all'anno precedente","Κατανάλωση ενέργειας του περασμένου έτους","Consumo energético del año anterior","Енергийно потребление от последната година"]
[null,"District cooling","Centralizirano hlađenje","Teleraffreddamento","Κεντρική ψύξη","Red de refrigeración centralizada","Централно охлаждане"]
[null,"District heating- Sanitary hot water","Centralizirano grijanje- potrošna topla voda (PTV)","Teleriscaldamento -acqua calda sanitaria","Κεντρική θέρμανση- Ζεστού νερού","Red de calefacción y ACS centralizada","Централно отопление - топла вода"]
[null,"District heating","Centralizirano grijanje ","Teleriscaldamento","Κεντρική θέρμανση","Red de calefacción centralizada","Централно отопление"]
[null,"Central boiler","Centralni bojler","Caldaia centralizzata","Κεντρικός λέβητας","Caldera central","Централна система за отопление"]
[null,"Firewood","Ogrijev","Legna","Καυσόξυλα","Leña","Дърва за огрев"]
[null,"Pellet","Peleti","Pellet","Πίλλετς","Pellets","Пелети"]
[null,"Diesel","Nafta","Gasolio","Ντίζελ","Gasoil","Дизелово гориво"]
[null,"Propane","Propan","Propano","Προπάνιο","Propano","Пропан"]
[null,"Butane","Butan","Butano","Βουτάνιο","Butano","Бутан"]
[null,"Natural gas","Priordni plin","Metano","Φυσικό αέριο","Gas natural","Природен газ"]
[null,"Electricity","Električna energija","Elettricità","Ηλεκτρισμός","Electricidad","Електричество"]
[]
[]
[null,"Actual consumption","Stvarna potrošnja","Consumo attuale","Πραγματική κατανάλωση","Consumo energético actual","Реално потребление"]
[null,"Heating","Grijanje","Riscaldamento","Θέρμανση","Calefacción","Отопление"]
[null,"Appliances","Kućanski aparati","Elettrodomestici","Συσκευές","Electrodomésticos","Ел. уреди"]
[null,"Domestic hot water","Priprema PTV (potrošne tople vode)","Acqua calda sanitaria","Θέρμανση ζεστού νερού","Agua caliente sanitaria","Топла вода"]
[null,"Lighting","Rasvjeta","Illuminazione","Φωτισμός","Iluminación","Осветление"]
[null,"Cooling","Hlađenje","Condizionamento","Ψύξη","Refrigeración","Охлаждане"]
[]
[]
[null,"Potential savings","Potencijalne uštede","Potenziali risparmi","Δυνατή εξοικονόμηση","Ahorros de energía potenciales","Потенциал за спестявания"]
[null,"Total savings ","Ukupna ušteda","Totale risparmi","Συνολική εξοικονόμηση","Ahorros potencial","Общ потенциал за спестявания"]
[null,"Potential consumption","Potencijalna potrošnja","Consumo potenziale ","Δυνατή κατανάλωση","Consumo potencial","Потенциално потребление"]
[]
[]
[null,"Potential energy savings applying tips","Potencijalna ušteda energije primjenom korisnih savjeta ","Potenziale risparmio energetico ottenuto grazie all'applicazione dei consigli","Ενδεχόμενη εξοικονόμηση ενέργειας εφαρμόζοντας τις συμβουλές","Ahorros energéticos potenciales ","Потенциални спестявания при изпълнение на съвети"]
[null,"Potential energy saving with large investment  (kWh)","Potencijalna ušteda energije velikom investicijom (kWh)","Potenziale risparmio energetico ottenibile con   investimenti  (kWh)","Ενδεχόμενη εξοικονόμηση ενέργειας  με μεγάλες επενδύσεις (kWh)","Ahorros potenciales aplicando medidas de inversión considerable (kWh)","Потенциални спестявания на енергия с голяма инвестиция (кВтч)"]
[null,"Potential energy saving with small purchase tip (kWh)","Potencijalna ušteda energije primjenom korisnog savjeta (kWh)","Potenziale risparmio energetico ottenibile con acquisti di prodotti più efficienti (kWh)","Ενδεχόμενη εξοικονόμηση ενέργειας  με μικρή αγορά (kWh)","Ahorros potenciales aplicando medidas de inversión pequeña","Потенциални спестявания на енергия с малки покупки (кВтч)"]
[null,"Potential energy saving behavioural (kWh)","Potencijalna ušteda energije promjenom ponašanja (kWh) ","Potenziale risparmio energetico ottenibile con cambiamenti comportamentali (kWh)","Ενδεχόμενη εξοικονόμηση ενέργειας  που αφορά την συμπεριφορά (kWh)","Ahorros potenciales cambiando hábitos de consumo","Потенциални спестявания на енергия с промяна на поведението (кВтч)"]
[]
[]
[null,"CO2 savings","Uštede CO2","Risparmi di CO2 ","Εξοικονόμηση εκπομπών CO2","Emisiones evitadas de CO2","CO2 спестявания"]
[null,"Potential carbon savings","Uštede CO2","Risparmi di CO2 ","Εξοικονόμηση εκπομπών CO2","Ahorro potencial de CO2","CO2 спестявания"]
[null,"Estimated carbon emissions","Potencijalne emisije ugljičnog dioksida","Potenziale riduzione delle emissione di carbonio","Ενδεχόμενες εκπομπές διοξειδίου του άνθρακα","Emisiones estimadas de CO2","Потенциални въглеродни емисии"]

{"sheet":"Pull-down","index":20,"n_rows":300,"n_cols":4,"rows_kept":300,"cut":false,"hidden":true,"merged":[]}
[]
[null,"X"]
[]
[null,"Yes"]
[]
[null,"Yes"]
[null,"Family- Men/Women"]
[]
[null,"Male"]
[null,"Female"]
[]
[null,"Family- Situation"]
[]
[null,"Working"]
[null,"Unemployed"]
[null,"Studying"]
[null,"Retired"]
[null,"Housekeeper"]
[]
[null,"Housing- Type"]
[]
[null,"Housing block"]
[null,"Single- family detached"]
[null,"Row house"]
[]
[]
[null,"Housing- Facade"]
[]
[null,"Brick finish"]
[null,"Stone finish"]
[null,"Rendered finish"]
[null,"Ventilated facade"]
[]
[null,"Housing- Roof"]
[]
[null,"Leaned roof"]
[null,"Flat roof"]
[]
[null,"Housing- Floor type",null," "]
[]
[null,"Basement",1]
[null,"Ground floor",2]
[null,"Middle floor",3]
[null,"Top floor",4]
[null,null,5]
[null,"Housing- Main orientation",6]
[null,null,7]
[null,"North"]
[null,"East"]
[null,"West"]
[null,"South"]
[]
[null,"Property"]
[]
[null,"Rented"]
[null,"Self-Owned"]
[null,"Family owned"]
[]
[null,"Housing- Refurbishment- %"]
[]
[null,"0- 25%"]
[null,"25- 50%"]
[null,"50- 75%"]
[null,"75- 100%"]
[]
[null,"Housing- Refurbishment- How long ago?"]
[]
[null,"1 year"]
[null,"2 - 5 years "]
[null,"5-10 years "]
[null,"More than 10 years"]
[]
[null,"Rooms"]
[]
[null,"Living room"]
[null,"Kitchen"]
[null,"Bedroom"]
[null,"Bathroom"]
[null,"Hall and corridors"]
[null,"Home office"]
[]
[null,"Housing- Windowpane"]
[]
[null,"Single"]
[null,"Double"]
[null,"Triple"]
[null,"Low e- glass"]
[null,"Solar control"]
[]
[null,"Housing- Window frame"]
[]
[null,"Metal"]
[null,"Thermal break metal"]
[null,"Wood"]
[null,"PVC"]
[]
[null,"Housing- Flooring material"]
[]
[null,"Wood"]
[null,"Ceramic"]
[null,"Stone"]
[null,"Carpet"]
[]
[null,"Air leaks"]
[]
[null,"Typical"]
[null,"Drafty/ Street noise"]
[null,"Rubber strips need repair"]
[]
[null,"Housing- Ventilation"]
[]
[null,"Manual"]
[null,"Mechanical"]
[]
[null,"Housing- Ventilation When"]
[]
[null,"Morning"]
[null,"Noon"]
[null,"Afternoon"]
[null,"Evening"]
[null,"Night"]
[]
[null,"Heating and cooling- Smoke evacuation"]
[]
[null,"Rooftop"]
[null,"Balcony or facade"]
[]
[null,"blown fuses"]
[null,"Never"]
[null,"Rarely"]
[null,"Sometimes"]
[null,"Often"]
[]
[null,"Appliances- Lighting Energy Rating"]
[null,"Appliances- Lighting Energy Rating"]
[]
[null,"A+++"]
[null,"A++"]
[null,"A+"]
[null,"A"]
[null,"B"]
[null,"C"]
[null,"D"]
[null,"E"]
[null,"F"]
[null,"G"]
[]
[null,"Maintenance"]
[]
[null,"More than once a year"]
[null,"Once a year"]
[null,"Less than once a year"]
[]
[null,"Contract holder"]
[]
[null,"Owner"]
[null,"Resident"]
[]
[null,"Temperature at home"]
[]
[null,"It is cold"]
[null,"It is warm"]
[]
[null,"0-10"]
[]
[null,0]
[null,1]
[null,2]
[null,3]
[null,4]
[null,5]
[null,6]
[null,7]
[null,8]
[null,9]
[null,10]
[]
[null,"Tariff"]
[]
[null,"Regulated market"]
[null,"Liberalised market"]
[null,"Contract with hourly reduced energy tariff"]
[null,"Social tariff"]
[]
[null,"Yes/No"]
[]
[null,"Yes"]
[null,"No"]
[]
[null,"Problems"]
[]
[null,"Lack of information"]
[null,"Lack of time"]
[null,"Distractions"]
[null,"Laziness"]
[]
[null,"Problems2"]
[]
[null,"Financial issues"]
[null,"Lack of time"]
[null,"Distractions"]
[null,"Lack of information"]
[]
[]
[null,"No "]
[null,"Yes, if payback period is shorter than 1 years"]
[null,"Yes, if payback period is shorter than 3 years"]
[null,"Yes, regardlessof payback"]
[]
[null,"Stand Bye"]
[]
[null,"Power off"]
[null,"Stand by mode"]
[]
[null,"Payment Frequency"]
[]
[null,"Montlhy"]
[null,"Bimonthly"]
[null,"Longer intervals"]
[]
[]
[null,"Contrat Propietary"]
[]
[null,"Owner"]
[null,"Tenant"]
[]
[]
[]
[null,"No "]
[null,"Yes, if payback period is shorter than 5 years"]
[null,"Yes, if payback period is shorter than 10 years"]
[null,"Yes, regardlessof payback"]
[]
[]
[null,"Financial issues"]
[null,"Avoid inconvenience"]
[null,"Lack of time"]
[null,"Lack of understandable information"]
[]
[]
[null,"Incomes"]
[]
[null,"Less than 450 euros"]
[null,"Between 451 and 900 euros"]
[null,"Between 901 and 1.200 euros"]
[null,"Between 1.201 and 1.500 euros"]
[null,"Between 1.501 and 1.800 euros"]
[null,"Between 1.801 and 2.500 euros"]
[null,"Between 2.500 and 3.500 euros"]
[null,"More than 3.501 euros"]
[]
[null,"Natural Gas"]
[null,"m3"]
[null,"kWh"]
[]
[null,"Natural Gas 2"]
[null,"€/m3"]
[null,"€/kWh"]
[]
[null,"Use of bulding"]
[]
[null,0.1]
[null,0.2]
[null,0.3]
[null,0.4]
[null,0.5]
[null,0.6]
[null,0.7]
[null,0.8]
[null,0.9]
[null,1]
[]
[null,"Ciudades"]
[null,"Burgas"]
[null,"Forli"]
[null,"Larnaka"]
[null,"Limassol"]
[null,"Logroño"]
[null,"Pamplona"]
[null,"Pazardjik"]
[null,"Pola"]
[null,"Pula"]
[null,"Ravenna"]
[null,"Rijeka"]
[null,"Trieste"]
[null,"Vratsa"]
[null,"Zadar"]
[null,"Zaragoza"]
[]
[null,"yes"]
[]
[null,"yes"]
[]
[null,"Report Language"]
[null,"English"]
[null,"Spanish"]
[null,"Italian"]
[null,"Bulgarian"]
[null,"Croatian"]
[null,"Greek"]

{"sheet":"RADIACION","index":21,"n_rows":167,"n_cols":53,"rows_kept":167,"cut":false,"hidden":true,"merged":[[1,41,1,52],[1,20,1,31],[1,1,1,12],[81,0,81,12],[56,0,56,12],[57,40,61,40],[74,40,77,40],[60,41,60,45],[76,41,76,45]]}
[1,2,3,4,5,6,7,8,9,10,11,12,13,14,15,16,17,18,19,20,21,22,23,24,25,26,27,28,29,30,31,32,33,34,35,36,37,38,39,40,41,42,43,44,45,46,47,48,49,50,51,52,53]
["Provincia","RADIACIÓN HORIZONTAL                                                                                                                                                                                                                                                                                                                                                                                            [kJ/m2/día]",null,null,null,null,null,null,null,null,null,null,null,"ALTITUD de la capital             [m]",null,"LATITUD de la capital                         [ º ]","VARIACIÓN DIURNA [ºC]","HUMEDAD RELATIVA [%]","TEMPERATURA MÁXIMA EN VERANO [ºC]","TEMPERATURA MÍNIMA EN INVIERNO [ºC]","TEMPERATURA AMBIENTE                                                                                                                                                                                                                                                                                                                                                                                                      [ºC]",null,null,null,null,null,null,null,null,null,null,null,"GRADOS DIA NOV./MAR.","GRADOS DIA ANUAL","DIRECCIÓN DEL VIENTO","VELOCIDAD DEL VIENTO [Km/h]",null,"TEMPERATURA AMB. MÍNIMA HISTÓRICA [ºC]","Provincia","ZONA CLIMÁTICA CTE-79","ZONA CLIMÁTICA (CAPITAL) CTE-2006","TEMPERATURA AGUA FRIA DE RED                                                                                                                                                                                                                                                                                                                                                                                                      [ºC]"]
["Álava",4600,6900,11200,13000,14800,16600,18100,17300,14300,9500,5500,4100,542,null,42.9,13,70,26,-4,7,7,11,12,15,19,21,21,19,15,10,7,1313.8,1599.6,"NE",7,null,-18,"Álava","D","I",5,6,8,10,11,12,13,12,11,10,8,5]
["Albacete",6700,10500,15000,19200,21200,25100,26700,23200,18800,12400,8400,6400,686,null,39,18,36,35,-7,6,8,11,13,17,22,26,26,22,16,11,7,1247.5999999999999,1377.4,"O",12,null,-23,"Albacete","D","V",5,6,8,10,11,12,13,12,11,10,8,5]
["Alicante",8500,12000,16300,18900,23100,24800,25800,22500,18300,13600,9800,7600,7,null,38.4,13,60,31,null,13,14,16,18,21,25,28,28,26,21,17,14,338.2,338.2,"SE",9,null,-5,"Alicante","A","V",8,9,11,13,14,15,16,15,14,13,11,8]
["Almería",8900,12200,16400,19600,23100,24600,25300,22500,18500,13900,10000,8000,65,null,36.9,8,70,30,5,15,15,16,18,21,24,27,28,26,22,18,16,207.9,207.9,"OSO",9,null,-1,"Almería","A","V",8,9,11,13,14,15,16,15,14,13,11,8]
["Asturias",5300,7700,10600,12200,15000,15200,16800,14800,12400,9800,5900,4600,232,null,43.4,9,70,26,-2,9,10,11,12,15,18,20,20,19,16,12,10,978.6,1200.3,"NE",1,null,-11,"Asturias","C","I",6,7,9,11,12,13,14,13,12,11,9,6]
["Ávila",6000,9100,13500,17700,19400,22300,26300,25300,18800,11200,6900,5200,1126,null,40.700000000000003,17,41,30,-6,4,5,8,11,14,18,22,22,18,13,8,5,1672.6,2127.1999999999998,"NO",11,null,-21,"Ávila","E","IV",4,5,7,9,10,11,12,11,10,9,7,4]
["Badajoz",6500,10000,13600,18700,21800,24600,25900,23800,17900,12300,8200,6200,186,null,38.9,17,47,38,-1,11,12,15,17,20,25,28,28,25,20,15,11,749.4,767.4,"NO",7,null,-6,"Badajoz","B","V",6,7,9,11,12,13,14,13,12,11,9,6]
["Baleares",7200,10700,14400,16200,21000,22700,24200,20600,16400,12100,8500,6500,28,null,39.6,8,63,28,4,12,13,14,17,19,23,26,27,25,20,16,14,503.4,527.4,"VARIA",9,null,-4,"Baleares","B","IV",8,9,11,13,14,15,16,15,14,13,11,8]
["Barcelona",6500,9500,12900,16100,18600,20300,21600,18100,14600,10800,7200,5800,95,null,41.4,8,68,31,2,11,12,14,17,20,24,26,26,24,20,16,12,622.70000000000005,655.7,"S",8,null,-20,"Barcelona","B","II",8,9,11,13,14,15,16,15,14,13,11,8]
["Burgos",5100,7900,12400,16000,18700,21500,23000,20700,16700,10100,6500,4500,929,null,42.3,15,42,30,-6,5,6,9,11,14,18,21,21,18,13,9,5,1615.2,2048.4,"SO",8,null,-18,"Burgos","E","II",4,5,7,9,10,11,12,11,10,9,7,4]
["Cáceres",6800,10000,14700,19600,22100,25100,28100,25400,19700,12700,8900,6600,459,null,39.5,14,37,38,-1,10,11,14,16,19,25,28,28,25,19,14,10,946.1,1003.1,"NO",7,null,-6,"Cáceres","C","V",6,7,9,11,12,13,14,13,12,11,9,6]
["Cádiz",8100,11500,15700,18500,22200,23800,25900,23000,18100,14200,10000,7400,28,null,36.5,12,55,32,2,13,15,17,19,21,24,27,27,25,22,18,15,227.4,227.4,"SE",20,null,-2,"Cádiz","A","IV",8,9,11,13,14,15,16,15,14,13,11,8]
["Cantabria",5000,7400,11000,13000,16100,17000,18400,15500,13000,9500,5800,4500,69,null,43.5,7,74,25,2,11,11,14,14,16,19,21,21,20,17,14,12,634.1,724.1,"O",20,null,-4,"Cantabria","B","I",8,9,11,13,14,15,16,15,14,13,11,8]
["Castellon",8000,12200,15500,17400,20600,21400,23900,19500,16600,13100,8600,7300,27,null,40,9,60,29,4,13,13,15,17,20,24,26,27,25,21,16,13,443.4,452.4,"NO",3,null,-8,"Castellon","B","IV",8,9,11,13,14,15,16,15,14,13,11,8]
["Ceuta",8900,13100,18600,21000,24300,26700,26800,24300,19100,14200,11000,8600,206,null,35.9,null,null,null,null,15,15,16,17,19,23,25,26,24,21,18,16,225,225,"S",7,null,-1,"Ceuta","A","V",8,9,10,12,13,13,14,13,13,12,11,8]
["Ciudad Real",7000,10100,15000,18700,21400,23700,25300,23200,18800,12500,8700,6500,628,null,39,20,56,37,-4,7,9,12,15,18,23,28,27,20,17,11,8,1201.2,1312.6,"SO",4,null,-10,"Ciudad Real","D","IV",5,6,8,10,11,12,13,12,11,10,8,5]
["Córdoba",7200,10100,15100,18500,21800,25900,28500,25100,19900,12600,8600,6900,128,null,37.9,17,33,38,-1,11,13,16,18,21,26,30,30,26,21,16,12,653.70000000000005,662.7,"SO",5,null,-6,"Córdoba","B","IV",6,7,9,11,12,13,14,13,12,11,9,6]
["Cuenca",5900,8800,12900,17400,18700,22000,25600,22300,17500,11200,7200,5500,949,null,40.1,18,52,33,-7,5,6,9,12,15,20,24,23,20,14,9,6,1520.8,1828,"O",8,null,-21,"Cuenca","E","III",4,5,7,9,10,11,12,11,10,9,7,4]
["Gerona",7100,10500,14200,15900,18700,19000,22300,18500,14900,11700,7800,6600,95,null,42,10,58,33,-3,9,10,13,15,19,23,26,25,23,18,13,10,873.3,939.3,"S",5,null,-11,"Gerona","C","III",6,7,9,11,12,13,14,13,12,11,9,6]
["Granada",7800,10800,15200,18500,21900,24800,26700,23600,18800,12900,9600,7100,775,null,37.200000000000003,18,49,36,-2,9,10,13,16,18,24,27,27,24,18,13,9,972.8,1041.8,"O",4,null,-13,"Granada","C","IV",6,7,9,11,12,13,14,13,12,11,9,6]
["Guadalajara",6500,9200,14000,17900,19400,22700,25000,23200,17800,11700,7800,5600,685,null,40.6,15,37,34,-4,7,8,12,14,18,22,26,26,22,16,10,8,1287,1468.6,"O",10,null,-14,"Guadalajara","D","IV",6,7,9,11,12,13,14,13,12,11,9,6]
["Guipúzcoa",5500,7700,11300,11700,14600,16200,16100,13600,12700,10300,6200,5000,181,null,43.3,7,76,22,-1,10,10,13,14,16,19,21,21,20,17,13,10,807.9,913.1,"S",17,null,-12,"Guipúzcoa","C","I",8,9,11,13,14,15,16,15,14,13,11,8]
["Huelva",7600,11300,16000,19500,24100,25600,28700,25600,21200,14500,9200,7500,4,null,37.299999999999997,14,57,31,1,13,14,16,20,21,24,27,27,25,21,17,14,402.3,402.3,"SO",1,null,-6,"Huelva","B","V",8,9,11,13,14,15,16,15,14,13,11,8]
["Huesca",6100,9600,14300,18700,20300,22100,23100,20900,16900,11300,7200,5100,488,null,42.1,15,72,31,-5,7,8,12,15,18,22,25,25,21,16,11,7,1232.5,1350.1,"SO",1,null,-14,"Huesca","D","III",5,6,8,10,11,12,13,12,11,10,8,5]
["Jaén",6700,10100,14400,18000,20300,24400,26700,24100,19200,11900,8100,6500,586,null,37.799999999999997,14,35,36,0,11,11,14,17,21,26,30,29,25,19,15,10,791.4,830.4,"SO",5,null,-8,"Jaén","C","IV",8,9,11,13,14,15,17,16,14,13,11,7]
["La Coruña",5400,8000,11400,12400,15400,16200,17400,15300,13900,10900,6400,5100,54,null,43.4,9,63,23,2,".12",12,14,14,16,19,20,21,20,17,14,12,688.2,827.5,"SO",18,null,-9,"La Coruña","C","I",8,9,11,13,14,15,16,15,14,13,11,8]
["La Rioja",5600,8800,13700,16600,19200,21400,23300,20800,16200,10700,6800,4800,380,null,42.5,14,59,33,-3,7,9,12,14,17,21,24,24,21,16,11,8,1229.4000000000001,1404.9,"NO",15,null,-12,"La Rioja","D","III",6,7,9,11,12,13,14,13,12,11,9,6]
["Las Palmas",11200,14200,17800,19600,21700,22500,24300,21900,19800,15100,12300,10700,6,null,28.2,4,66,24,15,20,20,21,22,23,24,25,25,26,25,23,21,241.1,259.10000000000002,"NE",9,null,6,"Las Palmas","A","V",8,9,11,13,14,15,16,15,14,13,11,8]
["León",5800,8700,13800,17200,19500,22100,24200,20900,17200,10400,7000,4800,908,null,42.6,16,45,28,-6,5,6,10,12,15,19,22,22,19,14,9,6,1693.7,2142.6,"NO",8,null,-18,"León","E","III",4,5,7,9,10,11,12,11,10,9,7,4]
["Lérida",6000,9900,10000,18800,20900,22600,23800,21300,16800,12100,7200,4800,323,null,41.7,14,50,33,-5,7,10,14,15,21,24,27,27,23,18,11,8,1189.7,1225.7,"S",1,null,-11,"Lérida","C","III",5,6,8,10,11,12,13,12,11,10,8,5]
["Lugo",5100,7600,11700,15200,17100,19500,20200,18400,15000,9900,6200,4500,465,null,43,14,67,26,-2,8,9,11,13,15,18,20,21,19,15,11,8,1377.8,1770.9,"NE",12,null,-8,"Lugo","D","II",6,7,9,11,12,13,14,13,12,11,9,6]
["Madrid",6700,10600,13600,18800,20900,23500,26000,23100,16900,11400,7500,5900,667,null,40.4,15,42,34,-3,6,8,11,13,18,23,28,26,21,15,11,7,1259.5,1404.9,"NE",10,null,-16,"Madrid","D","IV",6,7,9,11,12,13,14,13,12,11,9,6]
["Málaga",8300,12000,15500,18500,23200,24500,26500,23200,19000,13600,9300,8000,40,null,36.700000000000003,6,60,28,13,15,15,17,19,21,25,27,28,26,22,18,15,247.6,247.6,"S",7,null,-4,"Málaga","A","IV",8,9,11,13,14,15,16,15,14,13,11,8]
["Melilla",9400,12600,17200,20300,23000,24800,24800,22600,18300,14200,10900,8700,47,null,35.299999999999997,null,null,null,null,15,15,16,18,21,25,27,28,26,22,18,16,225,225,"S",7,null,-1,"Melilla","A","V",8,9,11,13,14,15,16,15,14,13,11,8]
["Murcia",10100,14800,16600,20400,24200,25600,27700,23500,18600,13900,9800,8100,42,null,38,14,59,36,-1,12,12,15,17,21,25,28,28,25,20,16,12,432.5,432.5,"SO",1,null,-5,"Murcia","B","IV",8,9,11,13,14,15,16,15,14,13,11,8]
["Navarra",5000,7400,12300,14500,17100,18900,20500,18200,16200,10200,6000,4500,449,null,42.8,12,51,32,-5,7,7,11,13,16,20,22,23,20,15,10,8,1303.9000000000001,1534.6,"N",8,null,-16,"Navarra","D","II",5,6,8,10,11,12,13,12,11,10,8,5]
["Orense",4700,7300,11300,14000,16200,17600,18300,16600,14300,9400,5600,4300,139,null,42.3,9,55,33,-3,9,9,13,15,18,21,24,23,21,16,12,9,910.4,967.4,"SO",18,null,-8,"Orense","C","II",5,7,9,11,12,13,14,13,12,11,9,6]
["Palencia",5300,9000,13200,17500,19700,21800,24100,21600,17100,10900,6600,4600,734,null,42,16,45,30,-6,5,7,10,13,16,20,23,23,20,14,9,6,1483.4,1781.5,"NE",1,null,-14,"Palencia","D","II",5,6,8,10,11,12,13,12,11,10,8,5]
["Pontevedra",5500,8200,13000,15700,17500,20400,22000,18900,15100,11300,6800,5500,19,null,42.4,12,62,27,0,11,12,14,16,18,20,22,23,20,17,14,12,791.4,891,"N",12,null,-4,"Pontevedra","C","I",8,9,11,13,14,15,16,15,14,13,11,8]
["Salamanca",6100,9500,13500,17100,19700,22800,24600,22600,17500,11300,7400,5200,803,null,41,18,46,34,-7,6,7,10,13,16,20,24,23,20,14,9,6,1425.2,1662.2,"O",10,null,-16,"Salamanca","D","III",5,6,8,10,11,12,13,12,11,10,8,5]
["Santa Cruz de Tenerife",10700,13300,18100,21500,25700,26500,29300,26600,21200,16200,10800,9300,37,null,28.5,8,55,22,15,19,20,20,21,22,24,26,27,26,25,23,20,241.1,259.10000000000002,"N",18,null,3,"Santa Cruz de Tenerife","A","V",8,9,11,13,14,15,16,15,14,13,11,8]
["Segovia",5700,8800,13400,18400,20400,22600,25700,24900,18800,11400,6800,5100,1002,null,41,17,35,33,-6,4,6,10,12,15,20,24,23,20,14,9,5,1534.1,1366.1,"O",9,null,-17,"Segovia","E","III",4,5,7,9,10,11,12,11,10,9,7,4]
["Sevilla",7300,10900,14400,19200,22400,24300,24900,23000,17900,12300,8800,6900,30,null,37.4,18,43,40,1,11,13,14,17,21,25,29,29,24,20,16,12,438.4,438.4,"SO",10,null,-6,"Sevilla","B","V",8,9,11,13,14,15,16,15,14,13,11,8]
["Soria",5900,8700,12800,17100,19700,21800,24100,22300,17500,11100,7600,5600,1063,null,41.8,18,45,29,-7,4,6,9,11,14,19,22,22,18,13,8,5,1609.1,1977.6,"VARIA",15,null,-16,"Soria","E","III",4,5,7,9,10,11,12,11,10,9,7,4]
["Tarragona",7300,10700,14900,17600,20200,22500,23800,20500,16400,12300,8800,6300,60,null,41.1,7,68,26,1,11,12,14,16,19,22,25,26,23,20,15,12,583.70000000000005,625.70000000000005,"S",5,null,-7,"Tarragona","B","III",6,7,9,11,12,13,14,13,12,11,9,6]
["Teruel",6100,8800,12900,16700,18400,20600,21800,20700,16900,11000,7100,5300,915,null,40.4,14,55,32,-8,5,6,9,12,16,20,23,24,19,14,9,6,1509.6,1801.7,"SO",1,null,-14,"Teruel","E","III",4,5,7,9,10,11,12,11,10,9,7,4]
["Toledo",6200,9500,14000,19300,21000,24400,27200,24500,18100,11900,7600,5600,540,null,39.9,16,34,34,-4,8,9,13,15,19,24,28,27,23,17,12,8,1089,1158,"E",5,null,-9,"Toledo","C","IV",6,7,9,11,12,13,14,13,12,11,9,6]
["Valencia",7600,10600,14900,18100,20600,22800,23800,20700,16700,12000,8700,6600,10,null,39.5,11.4,68,32,0,12,13,15,17,20,23,26,27,24,20,16,13,509.9,515.9,"O",10,null,-8,"Valencia","B","IV",8,9,11,13,14,15,16,15,14,13,11,8]
["Valladolid",5500,8800,13900,17200,19900,22600,25100,23000,18300,11200,6900,4200,694,null,41.7,13,45,33,-5,4,6,9,12,17,21,24,23,18,13,8,4,1444.1,1708.8,"SO",10,null,-16,"Valladolid","D","II",5,6,8,10,11,12,13,12,11,10,8,5]
["Vizcaya",5000,7100,10800,12700,15500,16700,17900,15700,13100,9300,6000,4600,32,null,43.3,8,71,30,0,10,11,12,13,16,20,22,22,20,16,13,18,735.9,819.9,"NE",7,null,-8,"Vizcaya","C","I",6,7,9,11,12,13,14,13,12,11,9,6]
["Zamora",5400,8900,13200,17300,22200,21600,23500,22000,17200,11100,6700,4600,649,null,41.5,18,65,32,-6,6,7,11,13,16,21,24,23,20,15,10,6,1303.9000000000001,1501,"O",11,null,-14,"Zamora","D","III",5,6,8,10,11,12,13,12,11,10,8,5]
["Zaragoza",6300,9800,15200,18300,21800,24200,25100,23400,18300,12100,7400,5700,200,null,41.7,14,57,34,-3,8,10,13,16,19,23,26,26,23,17,12,9,1069.5,1150.7,"NO",15,null,-11,"Zaragoza","C","IV",5,6,8,10,11,12,13,12,11,10,8,5]
[]
[]
["AGUA CALIENTE SANITARIA",null,null,null,null,null,null,null,null,null,null,null,null,null,null,"CÁLCULO DEL AHORRO ECONÓMICO"]
["MES",1,2,3,4,5,6,7,8,9,10,11,12,null,null,"tipo combustible","PCI (kWh/?)","PRECIO","RTO.","AHORRO €/año",null,null,null,null,null,null,null,null,null,null,null,"Factores de paso Energía Final-Emisiones de CO2",null,null,null,null,null,null,null,null,"Demanda total ACS del edificio (litros/día a 60ºC)"]
["N",31,28,31,30,31,30,31,31,30,31,30,31,null,null,"Natural Gas",1,{"$f":"'Excel de Apoyo'!P34","v":0},1,{"$f":"$R$65*R59/(Q59*S59)","v":{"$error":"#DIV/0!"}},null,null,null,null,null,null,null,null,null,null,null,null,null,null,null,null,null,null,null,null,null,null,"Apoyo:","Combustible"]
["QP",{"$f":"'DHW-ST'!I54","v":50.3711558854719},null,"C P,P",{"$f":"'DHW-ST'!I56","v":0.9},null,"C P",{"$f":"B60*E60*'DHW-ST'!H72*(4180/3600)","v":366.35949098621427},null,"C MIN",{"$f":"MINA(H60:H61)","v":366.35949098621427},null,null,null,null,"Diesel",1,{"$f":"'Excel de Apoyo'!P37","v":0},0.9,{"$f":"$R$65*R60/(Q60*S60)","v":{"$error":"#DIV/0!"}},null,null,null,null,null,null,null,null,null,null,"Natural Gas",0.20399999999999999,"kgr CO2/kWh"]
["QS",{"$f":"'DHW-ST'!I55","v":45.599151643690355},null,"C P,S",{"$f":"'DHW-ST'!I57","v":1},null,"C S",{"$f":"B61*E61*'DHW-ST'!H72*(4180/3600)","v":368.50194414987629},null,null,null,null,null,null,null,"Propane",1,{"$f":"'Excel de Apoyo'!P36","v":0},0.85,{"$error":"#DIV/0!"},null,null,null,null,null,null,null,null,null,null,"Gasóleo",0.28699999999999998,"kgr CO2/kWh",null,null,null,null,null,null,null,null,"Zona climática"]
["FR'/FR",{"$f":"1/(1+((('DHW-ST'!I48*'DHW-ST'!H72)/RADIACION!H60)*((RADIACION!H60/('DHW-ST'!I58*RADIACION!K60))-1)))","v":0.98273057046878554},{"$f":"B62","v":0.98273057046878554},0.98273057046878554,0.98273057046878554,0.98273057046878554,0.98273057046878554,0.98273057046878554,0.98273057046878554,0.98273057046878554,0.98273057046878554,0.98273057046878554,0.98273057046878554,null,null,"Electricity",1,{"$f":"'Excel de Apoyo'!P33","v":0},0.95,{"$error":"#DIV/0!"},null,null,null,null,null,null,null,null,null,null,"GLP",0.24399999999999999,"kgr CO2/kWh",null,null,null,null,null,null,null,null,"I","II","III","IV","V"]
["M a 60ºC",{"$f":"('DHW-ST'!$I$30*RADIACION!B59*'DHW-ST'!B34)/(1000*100)","v":0},{"$f":"('DHW-ST'!$I$30*RADIACION!C59*'DHW-ST'!C34)/(1000*100)","v":0},{"$f":"('DHW-ST'!$I$30*RADIACION!D59*'DHW-ST'!D34)/(1000*100)","v":0},{"$f":"('DHW-ST'!$I$30*RADIACION!E59*'DHW-ST'!E34)/(1000*100)","v":0},{"$f":"('DHW-ST'!$I$30*RADIACION!F59*'DHW-ST'!F34)/(1000*100)","v":0},{"$f":"('DHW-ST'!$I$30*RADIACION!G59*'DHW-ST'!G34)/(1000*100)","v":0},{"$f":"('DHW-ST'!$I$30*RADIACION!H59*'DHW-ST'!H34)/(1000*100)","v":0},{"$f":"('DHW-ST'!$I$30*RADIACION!I59*'DHW-ST'!I34)/(1000*100)","v":0},{"$f":"('DHW-ST'!$I$30*RADIACION!J59*'DHW-ST'!J34)/(1000*100)","v":0},{"$f":"('DHW-ST'!$I$30*RADIACION!K59*'DHW-ST'!K34)/(1000*100)","v":0},{"$f":"('DHW-ST'!$I$30*RADIACION!L59*'DHW-ST'!L34)/(1000*100)","v":0},{"$f":"('DHW-ST'!$I$30*RADIACION!M59*'DHW-ST'!M34)/(1000*100)","v":0},null,null,"Butane",1,{"$f":"'Excel de Apoyo'!P35","v":0},0.9,{"$error":"#DIV/0!"},null,null,null,null,null,null,null,null,null,null,"Carbón domést.",0.34699999999999998,"kgr CO2/kWh",null,null,null,null,null,null,null,"50-5000",30,30,50,60,70]
["INCR. TEMP.",{"$f":"60-'DHW-ST'!B21","v":52},{"$f":"60-'DHW-ST'!C21","v":51},{"$f":"60-'DHW-ST'!D21","v":50},{"$f":"60-'DHW-ST'!E21","v":48},{"$f":"60-'DHW-ST'!F21","v":45},{"$f":"60-'DHW-ST'!G21","v":43},{"$f":"60-'DHW-ST'!H21","v":40},{"$f":"60-'DHW-ST'!I21","v":41},{"$f":"60-'DHW-ST'!J21","v":43},{"$f":"60-'DHW-ST'!K21","v":46},{"$f":"60-'DHW-ST'!L21","v":50},{"$f":"60-'DHW-ST'!M21","v":52},null,null,null,null,null,null,null,null,null,null,null,null,null,null,null,null,null,"Electricity",0.64900000000000002,"kgr CO2/kWh","(Convencional Sistema Peninsular)",null,null,null,null,null,null,"5000-6000",30,30,55,65,70]
["ENER. NEC.",{"$f":"B63*B64","v":0},0,0,0,0,0,0,0,0,0,0,0,null,null,"ENERGÍA AHORRADA EN kWh:",null,{"$f":"'DHW-ST'!N80*1.16","v":{"$error":"#DIV/0!"}},null,null,null,null,null,null,null,null,null,null,null,null,"Biomasa",0,"kgr CO2/kWh",null,null,null,null,null,null,null,"6000-7000",30,35,61,70,70]
["M a 45ºC",{"$f":"B63*(60-'DHW-ST'!B21)/('DHW-ST'!$I$31-'DHW-ST'!B21)","v":0},{"$f":"C63*(60-'DHW-ST'!C21)/('DHW-ST'!$I$31-'DHW-ST'!C21)","v":0},{"$f":"D63*(60-'DHW-ST'!D21)/('DHW-ST'!$I$31-'DHW-ST'!D21)","v":0},{"$f":"E63*(60-'DHW-ST'!E21)/('DHW-ST'!$I$31-'DHW-ST'!E21)","v":0},{"$f":"F63*(60-'DHW-ST'!F21)/('DHW-ST'!$I$31-'DHW-ST'!F21)","v":0},{"$f":"G63*(60-'DHW-ST'!G21)/('DHW-ST'!$I$31-'DHW-ST'!G21)","v":0},{"$f":"H63*(60-'DHW-ST'!H21)/('DHW-ST'!$I$31-'DHW-ST'!H21)","v":0},{"$f":"I63*(60-'DHW-ST'!I21)/('DHW-ST'!$I$31-'DHW-ST'!I21)","v":0},{"$f":"J63*(60-'DHW-ST'!J21)/('DHW-ST'!$I$31-'DHW-ST'!J21)","v":0},{"$f":"K63*(60-'DHW-ST'!K21)/('DHW-ST'!$I$31-'DHW-ST'!K21)","v":0},{"$f":"L63*(60-'DHW-ST'!L21)/('DHW-ST'!$I$31-'DHW-ST'!L21)","v":0},{"$f":"M63*(60-'DHW-ST'!M21)/('DHW-ST'!$I$31-'DHW-ST'!M21)","v":0},null,null,null,null,null,null,null,null,null,null,null,null,null,null,null,null,null,"Fuente: CALENER",null,null,null,null,null,null,null,null,null,"7000-8000",30,45,63,70,70]
["X",{"$f":"('DHW-ST'!$I$48*RADIACION!B62*(100-'DHW-ST'!B20)*(3600*24*RADIACION!B59)*'DHW-ST'!$H$72)/(B65*4.18*1000000)","v":{"$error":"#DIV/0!"}},{"$f":"('DHW-ST'!$I$48*RADIACION!C62*(100-'DHW-ST'!C20)*(3600*24*RADIACION!C59)*'DHW-ST'!$H$72)/(C65*4.18*1000000)","v":{"$error":"#DIV/0!"}},{"$f":"('DHW-ST'!$I$48*RADIACION!D62*(100-'DHW-ST'!D20)*(3600*24*RADIACION!D59)*'DHW-ST'!$H$72)/(D65*4.18*1000000)","v":{"$error":"#DIV/0!"}},{"$f":"('DHW-ST'!$I$48*RADIACION!E62*(100-'DHW-ST'!E20)*(3600*24*RADIACION!E59)*'DHW-ST'!$H$72)/(E65*4.18*1000000)","v":{"$error":"#DIV/0!"}},{"$f":"('DHW-ST'!$I$48*RADIACION!F62*(100-'DHW-ST'!F20)*(3600*24*RADIACION!F59)*'DHW-ST'!$H$72)/(F65*4.18*1000000)","v":{"$error":"#DIV/0!"}},{"$f":"('DHW-ST'!$I$48*RADIACION!G62*(100-'DHW-ST'!G20)*(3600*24*RADIACION!G59)*'DHW-ST'!$H$72)/(G65*4.18*1000000)","v":{"$error":"#DIV/0!"}},{"$f":"('DHW-ST'!$I$48*RADIACION!H62*(100-'DHW-ST'!H20)*(3600*24*RADIACION!H59)*'DHW-ST'!$H$72)/(H65*4.18*1000000)","v":{"$error":"#DIV/0!"}},{"$f":"('DHW-ST'!$I$48*RADIACION!I62*(100-'DHW-ST'!I20)*(3600*24*RADIACION!I59)*'DHW-ST'!$H$72)/(I65*4.18*1000000)","v":{"$error":"#DIV/0!"}},{"$f":"('DHW-ST'!$I$48*RADIACION!J62*(100-'DHW-ST'!J20)*(3600*24*RADIACION!J59)*'DHW-ST'!$H$72)/(J65*4.18*1000000)","v":{"$error":"#DIV/0!"}},{"$f":"('DHW-ST'!$I$48*RADIACION!K62*(100-'DHW-ST'!K20)*(3600*24*RADIACION!K59)*'DHW-ST'!$H$72)/(K65*4.18*1000000)","v":{"$error":"#DIV/0!"}},{"$f":"('DHW-ST'!$I$48*RADIACION!L62*(100-'DHW-ST'!L20)*(3600*24*RADIACION!L59)*'DHW-ST'!$H$72)/(L65*4.18*1000000)","v":{"$error":"#DIV/0!"}},{"$f":"('DHW-ST'!$I$48*RADIACION!M62*(100-'DHW-ST'!M20)*(3600*24*RADIACION!M59)*'DHW-ST'!$H$72)/(M65*4.18*1000000)","v":{"$error":"#DIV/0!"}},null,null,null,null,null,null,null,null,null,null,null,null,null,null,null,null,null,null,null,null,null,null,null,null,null,null,null,"8000-9000",30,52,65,70,70]
["XC",{"$f":"B67*SQRT(SQRT(75/'DHW-ST'!$I$50))","v":{"$error":"#DIV/0!"}},{"$f":"C67*SQRT(SQRT(75/'DHW-ST'!$I$50))","v":{"$error":"#DIV/0!"}},{"$f":"D67*SQRT(SQRT(75/'DHW-ST'!$I$50))","v":{"$error":"#DIV/0!"}},{"$f":"E67*SQRT(SQRT(75/'DHW-ST'!$I$50))","v":{"$error":"#DIV/0!"}},{"$f":"F67*SQRT(SQRT(75/'DHW-ST'!$I$50))","v":{"$error":"#DIV/0!"}},{"$f":"G67*SQRT(SQRT(75/'DHW-ST'!$I$50))","v":{"$error":"#DIV/0!"}},{"$f":"H67*SQRT(SQRT(75/'DHW-ST'!$I$50))","v":{"$error":"#DIV/0!"}},{"$f":"I67*SQRT(SQRT(75/'DHW-ST'!$I$50))","v":{"$error":"#DIV/0!"}},{"$f":"J67*SQRT(SQRT(75/'DHW-ST'!$I$50))","v":{"$error":"#DIV/0!"}},{"$f":"K67*SQRT(SQRT(75/'DHW-ST'!$I$50))","v":{"$error":"#DIV/0!"}},{"$f":"L67*SQRT(SQRT(75/'DHW-ST'!$I$50))","v":{"$error":"#DIV/0!"}},{"$f":"M67*SQRT(SQRT(75/'DHW-ST'!$I$50))","v":{"$error":"#DIV/0!"}},null,null,null,null,null,null,null,null,null,null,null,null,null,null,null,null,null,"1 kcal =",1.163E-3,"kWh",null,null,null,null,null,null,null,"9000-10000",30,55,70,70,70]
["X'C",{"$f":"B68*((11.6+1.18*'DHW-ST'!$I$31+3.86*'DHW-ST'!B21-2.32*'DHW-ST'!B20)/(100-'DHW-ST'!B20))","v":{"$error":"#DIV/0!"}},{"$f":"C68*((11.6+1.18*'DHW-ST'!$I$31+3.86*'DHW-ST'!C21-2.32*'DHW-ST'!C20)/(100-'DHW-ST'!C20))","v":{"$error":"#DIV/0!"}},{"$f":"D68*((11.6+1.18*'DHW-ST'!$I$31+3.86*'DHW-ST'!D21-2.32*'DHW-ST'!D20)/(100-'DHW-ST'!D20))","v":{"$error":"#DIV/0!"}},{"$f":"E68*((11.6+1.18*'DHW-ST'!$I$31+3.86*'DHW-ST'!E21-2.32*'DHW-ST'!E20)/(100-'DHW-ST'!E20))","v":{"$error":"#DIV/0!"}},{"$f":"F68*((11.6+1.18*'DHW-ST'!$I$31+3.86*'DHW-ST'!F21-2.32*'DHW-ST'!F20)/(100-'DHW-ST'!F20))","v":{"$error":"#DIV/0!"}},{"$f":"G68*((11.6+1.18*'DHW-ST'!$I$31+3.86*'DHW-ST'!G21-2.32*'DHW-ST'!G20)/(100-'DHW-ST'!G20))","v":{"$error":"#DIV/0!"}},{"$f":"H68*((11.6+1.18*'DHW-ST'!$I$31+3.86*'DHW-ST'!H21-2.32*'DHW-ST'!H20)/(100-'DHW-ST'!H20))","v":{"$error":"#DIV/0!"}},{"$f":"I68*((11.6+1.18*'DHW-ST'!$I$31+3.86*'DHW-ST'!I21-2.32*'DHW-ST'!I20)/(100-'DHW-ST'!I20))","v":{"$error":"#DIV/0!"}},{"$f":"J68*((11.6+1.18*'DHW-ST'!$I$31+3.86*'DHW-ST'!J21-2.32*'DHW-ST'!J20)/(100-'DHW-ST'!J20))","v":{"$error":"#DIV/0!"}},{"$f":"K68*((11.6+1.18*'DHW-ST'!$I$31+3.86*'DHW-ST'!K21-2.32*'DHW-ST'!K20)/(100-'DHW-ST'!K20))","v":{"$error":"#DIV/0!"}},{"$f":"L68*((11.6+1.18*'DHW-ST'!$I$31+3.86*'DHW-ST'!L21-2.32*'DHW-ST'!L20)/(100-'DHW-ST'!L20))","v":{"$error":"#DIV/0!"}},{"$f":"M68*((11.6+1.18*'DHW-ST'!$I$31+3.86*'DHW-ST'!M21-2.32*'DHW-ST'!M20)/(100-'DHW-ST'!M20))","v":{"$error":"#DIV/0!"}},null,null,null,null,null,null,null,null,null,null,null,null,null,null,null,null,null,"Rendimiento nominal calderas = ",0.9,null,null,null,null,null,null,null,null,"10000-12500",30,65,70,70,70]
["Y",{"$f":"('DHW-ST'!$I$46*RADIACION!B62*0.96*(B156*1000)*B59*'DHW-ST'!$H$72)/(B65*4.18*1000000)","v":{"$error":"#DIV/0!"}},{"$f":"('DHW-ST'!$I$46*RADIACION!C62*0.96*(C156*1000)*C59*'DHW-ST'!$H$72)/(C65*4.18*1000000)","v":{"$error":"#DIV/0!"}},{"$f":"('DHW-ST'!$I$46*RADIACION!D62*0.96*(D156*1000)*D59*'DHW-ST'!$H$72)/(D65*4.18*1000000)","v":{"$error":"#DIV/0!"}},{"$f":"('DHW-ST'!$I$46*RADIACION!E62*0.96*(E156*1000)*E59*'DHW-ST'!$H$72)/(E65*4.18*1000000)","v":{"$error":"#DIV/0!"}},{"$f":"('DHW-ST'!$I$46*RADIACION!F62*0.96*(F156*1000)*F59*'DHW-ST'!$H$72)/(F65*4.18*1000000)","v":{"$error":"#DIV/0!"}},{"$f":"('DHW-ST'!$I$46*RADIACION!G62*0.96*(G156*1000)*G59*'DHW-ST'!$H$72)/(G65*4.18*1000000)","v":{"$error":"#DIV/0!"}},{"$f":"('DHW-ST'!$I$46*RADIACION!H62*0.96*(H156*1000)*H59*'DHW-ST'!$H$72)/(H65*4.18*1000000)","v":{"$error":"#DIV/0!"}},{"$f":"('DHW-ST'!$I$46*RADIACION!I62*0.96*(I156*1000)*I59*'DHW-ST'!$H$72)/(I65*4.18*1000000)","v":{"$error":"#DIV/0!"}},{"$f":"('DHW-ST'!$I$46*RADIACION!J62*0.96*(J156*1000)*J59*'DHW-ST'!$H$72)/(J65*4.18*1000000)","v":{"$error":"#DIV/0!"}},{"$f":"('DHW-ST'!$I$46*RADIACION!K62*0.96*(K156*1000)*K59*'DHW-ST'!$H$72)/(K65*4.18*1000000)","v":{"$error":"#DIV/0!"}},{"$f":"('DHW-ST'!$I$46*RADIACION!L62*0.96*(L156*1000)*L59*'DHW-ST'!$H$72)/(L65*4.18*1000000)","v":{"$error":"#DIV/0!"}},{"$f":"('DHW-ST'!$I$46*RADIACION!M62*0.96*(M156*1000)*M59*'DHW-ST'!$H$72)/(M65*4.18*1000000)","v":{"$error":"#DIV/0!"}},null,null,"Natural Gas",null,null,null,null,null,null,null,null,null,null,null,null,null,null,null,null,null,null,null,null,null,null,null,null,"12500-15000",30,70,70,70,70]
["F",{"$f":"1.029*B70-0.065*B69-0.245*B70^2+0.0018*B69^2+0.0215*B70^3","v":{"$error":"#DIV/0!"}},{"$error":"#DIV/0!"},{"$error":"#DIV/0!"},{"$error":"#DIV/0!"},{"$error":"#DIV/0!"},{"$error":"#DIV/0!"},{"$error":"#DIV/0!"},{"$error":"#DIV/0!"},{"$error":"#DIV/0!"},{"$error":"#DIV/0!"},{"$error":"#DIV/0!"},{"$error":"#DIV/0!"},null,null,"Gasóleo",null,null,null,null,null,null,null,null,null,null,null,null,null,null,null,null,null,null,null,null,null,null,null,null,"15000-17500",35,70,70,70,70]
[null,null,null,null,null,null,null,null,null,null,null,null,null,null,null,"GLP",null,null,null,null,null,null,null,null,null,null,null,null,null,null,null,null,null,null,null,null,null,null,null,null,"17500-20000",45,70,70,70,70]
[null,null,null,null,null,null,null,null,null,null,null,null,null,null,null,"Carbón domést.",null,null,null,null,null,null,null,null,null,null,null,null,null,null,null,null,null,null,null,null,null,null,null,null,"Más de 20000",52,70,70,70,70]
[null,null,null,null,null,null,null,null,null,null,null,null,null,null,null,"Electricity"]
[null,null,null,null,null,null,null,null,null,null,null,null,null,null,null,"Biomasa",null,null,null,null,null,null,null,null,null,null,null,null,null,null,null,null,null,null,null,null,null,null,null,null,"Demanda total ACS del edificio (litros/día a 60ºC)",null,"Apoyo:","Electr.(ef Joule)"]
[]
[null,null,null,null,null,null,null,null,null,null,null,null,null,null,null,null,null,null,null,null,null,null,null,null,null,null,null,null,null,null,null,null,null,null,null,null,null,null,null,null,null,"Zona climática"]
[null,null,null,null,null,null,null,null,null,null,null,null,null,null,null,null,null,null,null,null,null,null,null,null,null,null,null,null,null,null,null,null,null,null,null,null,null,null,null,null,null,"I","II","III","IV","V"]
[null,null,null,null,null,null,null,null,null,null,null,null,null,null,null,null,null,null,null,null,null,null,null,null,null,null,null,null,null,null,null,null,null,null,null,null,null,null,null,null,"50-1000",50,60,70,70,70]
[null,null,null,null,null,null,null,null,null,null,null,null,null,null,null,null,null,null,null,null,null,null,null,null,null,null,null,null,null,null,null,null,null,null,null,null,null,null,null,null,"1000-2000",50,63,70,70,70]
[null,null,null,null,null,null,null,null,null,null,null,null,null,null,null,null,null,null,null,null,null,null,null,null,null,null,null,null,null,null,null,null,null,null,null,null,null,null,null,null,"2000-3000",50,66,70,70,70]
["RADIACIÓN AGUA CALIENTE SANITARIA",null,null,null,null,null,null,null,null,null,null,null,null,null,null,null,null,null,null,null,null,null,null,null,null,null,null,null,null,null,null,null,null,null,null,null,null,null,null,null,"3000-4000",51,69,70,70,70]
["RAD",{"$f":"3.1416/180","v":1.7453333333333335E-2},1.7453333333333335E-2,1.7453333333333335E-2,1.7453333333333335E-2,1.7453333333333335E-2,1.7453333333333335E-2,1.7453333333333335E-2,1.7453333333333335E-2,1.7453333333333335E-2,1.7453333333333335E-2,1.7453333333333335E-2,1.7453333333333335E-2,null,null,null,null,null,null,null,null,null,null,null,null,null,null,null,null,null,null,null,null,null,null,null,null,null,null,null,"4000-5000",58,70,70,70,70]
[null,null,null,null,null,null,null,null,null,null,null,null,null,null,null,null,null,null,null,null,null,null,null,null,null,null,null,null,null,null,null,null,null,null,null,null,null,null,null,null,"5000-6000",62,70,70,70,70]
["INCL",{"$f":"'DHW-ST'!$H$73","v":50},{"$f":"'DHW-ST'!$H$73","v":50},{"$f":"'DHW-ST'!$H$73","v":50},{"$f":"'DHW-ST'!$H$73","v":50},{"$f":"'DHW-ST'!$H$73","v":50},{"$f":"'DHW-ST'!$H$73","v":50},{"$f":"'DHW-ST'!$H$73","v":50},{"$f":"'DHW-ST'!$H$73","v":50},{"$f":"'DHW-ST'!$H$73","v":50},{"$f":"'DHW-ST'!$H$73","v":50},{"$f":"'DHW-ST'!$H$73","v":50},{"$f":"'DHW-ST'!$H$73","v":50},null,null,null,null,null,null,null,null,null,null,null,null,null,null,null,null,null,null,null,null,null,null,null,null,null,null,null,"Más de 6000",70,70,70,70,70]
["INCL.RAD",{"$f":"B85*B83","v":0.8726666666666667},0.8726666666666667,0.8726666666666667,0.8726666666666667,0.8726666666666667,0.8726666666666667,0.8726666666666667,0.8726666666666667,0.8726666666666667,0.8726666666666667,0.8726666666666667,0.8726666666666667]
["SINCL",{"$f":"SIN(B86)","v":0.76604575483445425},0.76604575483445425,0.76604575483445425,0.76604575483445425,0.76604575483445425,0.76604575483445425,0.76604575483445425,0.76604575483445425,0.76604575483445425,0.76604575483445425,0.76604575483445425,0.76604575483445425]
["CINCL",{"$f":"COS(B86)","v":0.6427860464416687},0.6427860464416687,0.6427860464416687,0.6427860464416687,0.6427860464416687,0.6427860464416687,0.6427860464416687,0.6427860464416687,0.6427860464416687,0.6427860464416687,0.6427860464416687,0.6427860464416687]
[]
["Orientación",0,0,0,0,0,0,0,0,0,0,0,0]
[]
["LT",{"$f":"'DHW-ST'!$I$6","v":41.8},{"$f":"'DHW-ST'!$I$6","v":41.8},{"$f":"'DHW-ST'!$I$6","v":41.8},{"$f":"'DHW-ST'!$I$6","v":41.8},{"$f":"'DHW-ST'!$I$6","v":41.8},{"$f":"'DHW-ST'!$I$6","v":41.8},{"$f":"'DHW-ST'!$I$6","v":41.8},{"$f":"'DHW-ST'!$I$6","v":41.8},{"$f":"'DHW-ST'!$I$6","v":41.8},{"$f":"'DHW-ST'!$I$6","v":41.8},{"$f":"'DHW-ST'!$I$6","v":41.8},{"$f":"'DHW-ST'!$I$6","v":41.8}]
["LT.RAD",{"$f":"B92*B83","v":0.72954933333333338},0.72954933333333338,0.72954933333333338,0.72954933333333338,0.72954933333333338,0.72954933333333338,0.72954933333333338,0.72954933333333338,0.72954933333333338,0.72954933333333338,0.72954933333333338,0.72954933333333338]
["SLT",{"$f":"SIN(B93)","v":0.66653374203031701},0.66653374203031701,0.66653374203031701,0.66653374203031701,0.66653374203031701,0.66653374203031701,0.66653374203031701,0.66653374203031701,0.66653374203031701,0.66653374203031701,0.66653374203031701,0.66653374203031701]
["CLT",{"$f":"COS(B93)","v":0.74547486257758067},0.74547486257758067,0.74547486257758067,0.74547486257758067,0.74547486257758067,0.74547486257758067,0.74547486257758067,0.74547486257758067,0.74547486257758067,0.74547486257758067,0.74547486257758067,0.74547486257758067]
["TLT",{"$f":"TAN(B93)","v":0.8941062609753011},0.8941062609753011,0.8941062609753011,0.8941062609753011,0.8941062609753011,0.8941062609753011,0.8941062609753011,0.8941062609753011,0.8941062609753011,0.8941062609753011,0.8941062609753011,0.8941062609753011]
[]
["LT.INCLRAD",{"$f":"(B92-B85)*B83","v":-0.1431173333333334},-0.1431173333333334,-0.1431173333333334,-0.1431173333333334,-0.1431173333333334,-0.1431173333333334,-0.1431173333333334,-0.1431173333333334,-0.1431173333333334,-0.1431173333333334,-0.1431173333333334,-0.1431173333333334]
["SLTINCL",{"$f":"SIN(B98)","v":-0.14262926495371531},-0.14262926495371531,-0.14262926495371531,-0.14262926495371531,-0.14262926495371531,-0.14262926495371531,-0.14262926495371531,-0.14262926495371531,-0.14262926495371531,-0.14262926495371531,-0.14262926495371531,-0.14262926495371531]
["CLTINCL",{"$f":"COS(B98)","v":0.98977618317413707},0.98977618317413707,0.98977618317413707,0.98977618317413707,0.98977618317413707,0.98977618317413707,0.98977618317413707,0.98977618317413707,0.98977618317413707,0.98977618317413707,0.98977618317413707,0.98977618317413707]
["TLTINCL",{"$f":"TAN(B98)","v":-0.14410254295704922},-0.14410254295704922,-0.14410254295704922,-0.14410254295704922,-0.14410254295704922,-0.14410254295704922,-0.14410254295704922,-0.14410254295704922,-0.14410254295704922,-0.14410254295704922,-0.14410254295704922,-0.14410254295704922]
[]
["COS37.5",{"$f":"COS((37.5)*B83)","v":0.7933524085796444},0.7933524085796444,0.7933524085796444,0.7933524085796444,0.7933524085796444,0.7933524085796444,0.7933524085796444,0.7933524085796444,0.7933524085796444,0.7933524085796444,0.7933524085796444,0.7933524085796444]
[]
["RAD23.45",{"$f":"23.45*B83","v":0.40928066666666668},0.40928066666666668,0.40928066666666668,0.40928066666666668,0.40928066666666668,0.40928066666666668,0.40928066666666668,0.40928066666666668,0.40928066666666668,0.40928066666666668,0.40928066666666668,0.40928066666666668]
[]
["D",{"$f":"B59","v":31},28,31,30,31,30,31,31,30,31,30,31]
[]
["ALBEDO",0.2,0.2,0.2,0.2,0.2,0.2,0.2,0.2,0.2,0.2,0.2,0.2]
[]
["N",{"$f":"B165","v":15},46,74,105,135,166,196,227,258,270,319,349]
[]
["IOEXT",{"$f":"1353*3.6","v":4870.8},4870.8,4870.8,4870.8,4870.8,4870.8,4870.8,4870.8,4870.8,4870.8,4870.8,4870.8]
["PI.24IOEXT",{"$f":"(24*B113)/PI()","v":37210.171046976189},37210.171046976189,37210.171046976189,37210.171046976189,37210.171046976189,37210.171046976189,37210.171046976189,37210.171046976189,37210.171046976189,37210.171046976189,37210.171046976189,37210.171046976189]
[]
["RAD.360",{"$f":"(360*B83)/365","v":1.7214246575342467E-2},1.7214246575342467E-2,1.7214246575342467E-2,1.7214246575342467E-2,1.7214246575342467E-2,1.7214246575342467E-2,1.7214246575342467E-2,1.7214246575342467E-2,1.7214246575342467E-2,1.7214246575342467E-2,1.7214246575342467E-2,1.7214246575342467E-2]
[]
["D.RAD",{"$f":"B105*SIN(B116*(284+B111))","v":-0.3712211435606817},-0.2319355930484541,-4.91929733590118E-2,0.16432714153853595,0.32798572969714895,0.4069149637920641,0.37554609429859892,0.24056232884537518,3.8683174356094072E-2,-4.5708943106277856E-2,-0.33419897312343533,-0.40727839558097756]
["SDE",{"$f":"SIN(B118)","v":-0.36275366759762828},-0.22986171720298501,-4.917313501482222E-2,0.16358857392194831,0.32213678731842965,0.39577808465666137,0.3667806193532111,0.23824880017779948,3.8673527571711046E-2,-4.5693028096147996E-2,-0.32801256643789667,-0.39611181470691553]
["CDE",{"$f":"COS(B118)","v":0.93188506622033029},0.97322329964119481,0.99879026967267459,0.98652865061395112,0.94669313415497047,0.91834618075402519,0.93030746383487373,0.97120415424041462,0.99925189930525526,0.99895552813095967,0.94467335955811971,0.91820228177106711]
[]
["W1",{"$f":"-B96*TAN(B118)","v":0.34804756203068848},0.21117538039368128,4.4019259321524E-2,-0.14826286907796213,-0.30424274565904719,-0.38533144784005535,-0.35250802655745767,-0.21933570092214871,-3.46041305099433E-2,4.0897138414284238E-2,0.31045449346415788,0.3857168083841081]
["W1",{"$f":"ATAN(SQRT(1-B122^2)/B122)/B83","v":69.631895472186841},77.808576622526544,87.476862437665858,-81.473538800957002,-72.287219479851231,-67.335524051697604,-69.359043641853944,-77.329800648657255,-88.01672764317469,87.655907898953856,71.913209331846019,67.31159478421624]
["W1",{"$f":"IF(B123<0,B123+180,B123)","v":69.631895472186841},77.808576622526544,87.476862437665858,98.526461199042998,107.71278052014877,112.6644759483024,110.64095635814606,102.67019935134275,91.98327235682531,87.655907898953856,71.913209331846019,67.31159478421624]
["W1.RAD",{"$f":"B124*B83","v":1.2153086823079011},1.3580190239851635,1.5267628390787282,1.7196151694606305,1.8799470626783299,1.9663706535510379,1.9310534916375093,1.7919372126787689,1.6054147135344579,1.5298877791964081,1.2551252135384861,1.1748117009671875]
[]
["W2",{"$f":"-B101*TAN(B118)","v":-5.6094606365818762E-2},-3.4035003055964838E-2,-7.094556300722101E-3,2.3895433230651086E-2,4.9034611700269203E-2,6.2103626759646903E-2,5.6813496624316694E-2,3.5350196776020054E-2,5.5771259199785322E-3,-6.5913660404706429E-3,-5.0035755181747459E-2,-6.2165735075824825E-2]
["W2",{"$f":"ATAN(SQRT(1-B127^2)/B127)/B83","v":-86.784124948570991},-88.049355389155764,-89.593298948324843,88.630554944458936,87.189192745771948,86.4392308872782,86.742869872582389,87.97395512185399,89.68024285498754,-89.622130234451561,-87.13176107700555,-86.435665462001822]
["W2",{"$f":"IF(B128<0,B128+180,B128)","v":93.215875051429009},91.950644610844236,90.406701051675157,88.630554944458936,87.189192745771948,86.4392308872782,86.742869872582389,87.97395512185399,89.68024285498754,90.377869765548439,92.86823892299445,93.564334537998178]
["W2.RAD",{"$f":"B129*B83","v":1.6269277392309411},1.6048452506079349,1.5778982890219038,1.5468986189639566,1.5217420440562066,1.508652709752629,1.5139522221761381,1.535438763393425,1.5652191719623827,1.5773950869747055,1.6208603300026632,1.633009518803195]
[]
["H0",{"$f":"B125*B94*B119+B95*B120*SIN(B125)","v":0.35741575201140491},0.50108896421869487,0.69381081403561884,0.91480570454764543,1.075931523455349,1.1504632203808376,1.1210889416886665,0.99093829542761469,0.78585396423570097,0.69747901586362226,0.39502315216421646,0.32135245828949027]
["H0",{"$f":"B114*(1+0.033*COS(B116*B111))*B132","v":13723.83479239279},19077.873925169373,26066.098965222445,33776.662663831456,39132.013769302124,41452.838653058279,40376.294679319195,35996.07729793476,28983.335145193796,25898.073906787697,15039.653582752881,12337.308741678329]
[]
["K1",{"$f":"'DHW-ST'!B22/RADIACION!B133","v":0.2652319890951817},{"$f":"'DHW-ST'!C22/RADIACION!C133","v":0.26627705057312351},{"$f":"'DHW-ST'!D22/RADIACION!D133","v":0.23363680189065947},{"$f":"'DHW-ST'!E22/RADIACION!E133","v":0.16993982079071643},{"$f":"'DHW-ST'!F22/RADIACION!F133","v":0.14796069617408955},{"$f":"'DHW-ST'!G22/RADIACION!G133","v":0.14401908757000287},{"$f":"'DHW-ST'!H22/RADIACION!H133","v":0.15949952939338385},{"$f":"'DHW-ST'!I22/RADIACION!I133","v":0.18001961564772459},{"$f":"'DHW-ST'!J22/RADIACION!J133","v":0.21529613375204534},{"$f":"'DHW-ST'!K22/RADIACION!K133","v":0.20580681093056291},{"$f":"'DHW-ST'!L22/RADIACION!L133","v":0.27660211567443216},{"$f":"'DHW-ST'!M22/RADIACION!M133","v":0.27882904383991552}]
[]
["K(I)",{"$f":"B135","v":0.2652319890951817},0.26627705057312351,0.23363680189065947,0.16993982079071643,0.14796069617408955,0.14401908757000287,0.15949952939338385,0.18001961564772459,0.21529613375204534,0.20580681093056291,0.27660211567443216,0.27882904383991552]
[]
["H1",{"$f":"1.39-4.03*B135+5.53*B135^2-3.11*B135^3","v":0.65211150246958571},0.650282967340583,0.71064225562013816,0.84958318408922984,0.90470924436129097,0.91501345519302335,0.87528125175331994,0.82558855159936373,0.7476492537972651,0.76771905356129588,0.63257145039816354,0.62883454335934663]
[]
["R",{"$f":"B95*B120*SIN(B125)+B125*B94*B119","v":0.35741575201140491},0.50108896421869487,0.69381081403561884,0.91480570454764543,1.075931523455349,1.1504632203808376,1.1210889416886665,0.99093829542761469,0.78585396423570097,0.69747901586362226,0.39502315216421646,0.32135245828949027]
["R",{"$f":"(B100*B120*SIN(IF(B129>B124,B125,B130))+IF(B129>B124,B125,B130)*B99*B119)/B141","v":2.5952078644687493},1.9678588429059916,1.4389060362764881,1.0276178948719599,0.80485512517151914,0.7145294710393294,0.74936832468679448,0.91680562246087782,1.2475430310425242,1.4307035419568157,2.3986808404047317,2.8157918718408435]
[]
["H",{"$f":"((1-B139)*B142+B139*(1+B88)/2+B109*(1-B88)/2)","v":1.474204198595555},1.2580530430824068,1.0357965911596636,0.888134107132037,0.85553850977487222,0.84803245451096143,0.84813158833265767,0.87375546820579286,0.96465369104477228,0.99864564254371913,1.4366549935491935,1.5973663779483065]
[]
["OM",{"$f":"B119*B94*B88","v":-0.15541766944918625},-9.8481629751300204E-2,-2.1067668575554914E-2,7.0087657764680206E-2,0.13801583057848552,0.16956660409187055,0.157142970976754,0.10207497974567842,1.6569231579048205E-2,-1.9576656478237465E-2,-0.1405332410928809,-0.1697095869236615]
["OM",{"$f":"B146-B119*B95*B87","v":5.1739288968714076E-2},3.2785007765660512E-2,7.0135281026338925E-3,-2.3332518053313989E-2,-4.5946133189778915E-2,-5.644953729936894E-2,-5.2313650137616935E-2,-3.3981251245464111E-2,-5.515976810720389E-3,6.5171630108630495E-3,4.6784191246618895E-2,5.6497136971129625E-2]
["OM",{"$f":"B147+B120*B95*B88*B103","v":0.40600403851600464},0.40276487008857259,0.38671291117247869,0.3517054968260292,0.31394804070210591,0.29266827938813911,0.30135135923330647,0.33523101422925694,0.3743588990447671,0.38627937061611151,0.40591052909559189,0.40556024912585176]
["OM",{"$f":"B148+B120*B94*B87*B103","v":0.78349394740838574},0.7970001551367345,0.79130491674088943,0.75133054066371474,0.69743643204489458,0.66467382886063064,0.67820220972423706,0.72864837972809893,0.77913790248905512,0.79093831941885773,0.78858074601302919,0.77750750770396637]
["OM",{"$f":"ATAN(SQRT(1-B149^2)/B149)/B83","v":38.418309584941468},37.155327501210344,37.692286115666413,41.294138196481242,45.778204221885133,48.342579655622316,47.296572797899529,43.226696596226596,38.818199026714204,37.726626223848989,37.94683414577203,38.966980613285664]
[]
["TRR",{"$f":"(1-B139)*B142/B144*B158*B159","v":0.57104674578841819},0.5102205997333884,0.37485655172335708,0.16234868583732848,8.3750570255054502E-2,6.6870086081474489E-2,0.10294628728148164,0.17083658957864734,0.30429581552412494,0.31032740082346083,0.57205783295260293,0.61005731876962421]
["TRR",{"$f":"B152+B139/B144*(1+B88)*0.440418","v":0.89109118279800459},0.88420155964515135,0.87124608547714488,0.85445597771470538,0.8488458645004171,0.84752855045512654,0.84961929741345754,0.85446455624365925,0.86505002131341269,0.86653507111742978,0.89062657912203602,0.89488219497323229]
["TRR",{"$f":"B153+B109*(1-B88)*0.440418","v":0.92255587379765525},0.915666250644802,0.90271077647679554,0.88592066871435604,0.88031055550006776,0.8789932414547772,0.8810839884131082,0.8859292472433099,0.89651471231306334,0.89799976211708044,0.92209127012168668,0.92634688597288295]
[]
[null,{"$f":"B144*'DHW-ST'!B22","v":5366.1032828878197},{"$f":"C144*'DHW-ST'!C22","v":6390.9094588586267},{"$f":"D144*'DHW-ST'!D22","v":6308.0012401623517},{"$f":"E144*'DHW-ST'!E22","v":5097.8897749378921},{"$f":"F144*'DHW-ST'!F22","v":4953.5679715965098},{"$f":"G144*'DHW-ST'!G22","v":5062.7537534304402},{"$f":"H144*'DHW-ST'!H22","v":5461.9674288623155},{"$f":"I144*'DHW-ST'!I22","v":5661.9354339735373},{"$f":"J144*'DHW-ST'!J22","v":6019.4390321193787},{"$f":"K144*'DHW-ST'!K22","v":5322.7812747580228},{"$f":"L144*'DHW-ST'!L22","v":5976.484773164645},{"$f":"M144*'DHW-ST'!M22","v":5494.9403401421741}]
[]
["FNTR",{"$f":"0.999853094699999+2.77399*10^(-3)*B150-2.8993*10^(-4)*B150^(2)+8.025541*10^(-6)*B150^(3)-7.21636*10^(-8)*B150^(4)","v":0.97637276489587821},0.97679527584034576,0.9766149188436154,0.9752987595269389,0.97225754009740895,0.96895924325870486,0.97049079741123045,0.97429062023883617,0.97623801806723098,0.97660345995701969,0.97653006900274164,0.97618731571987782]
["FNTA",{"$f":"0.989501758+7.34668*10^(-3)*B150-6.301221*10^(-4)*B150^(2)+1.52771*10^(-5)*B150^(3)-1.16131*10^(-7)*B150^(4)","v":0.95499573023711681},0.95486651416984203,0.95487975152861482,0.95644853165422949,0.96089853465594854,0.9637591766578949,0.96262121876449369,0.95814231695139274,0.95510598450719919,0.95488272718921596,0.95490779424282535,0.95515514328220741]
[]
[]
[]
[]
[]
["N",15,46,74,105,135,166,196,227,258,270,319,349]
["N'",17,47,75,105,135,162,198,228,258,288,318,344]
["Declinación",-20.9,-13,-2.4,9.4,18.8,23.1,21.2,13.5,2.2000000000000002,-9.6,-18.899999999999999,-23]

{"sheet":"WordReport","index":22,"n_rows":10,"n_cols":2,"rows_kept":10,"cut":false,"hidden":true,"merged":[]}
["[Family name]",{"$f":"Identification!B10","v":0}]
["[City]",{"$f":"Identification!B4","v":0}]
["[Date]",{"$f":"Identification!B15","v":"00:00:00"}]
["[Potential electricity savings (kWh)]",{"$f":"IFERROR(IFERROR(TEXT(ROUND('Savings Indicator'!D21+'Savings Indicator'!D22+'Savings Indicator'!D23,0),\"#.##0\"),ROUND('Savings Indicator'!D21+'Savings Indicator'!D22+'Savings Indicator'!D23,0)),\"-\")","v":"0"}]
["[Potential fuel savings (kWh)]",{"$f":"IFERROR(IFERROR(TEXT(ROUND('Savings Indicator'!E21+'Savings Indicator'!E22+'Savings Indicator'!E23,0),\"#.##0\"),ROUND('Savings Indicator'!E21+'Savings Indicator'!E22+'Savings Indicator'!E23,0)),\"-\")","v":"0"}]
["[Total savings $]",{"$f":"IFERROR(TEXT(ROUND('Optimal Power'!G8+Heating!H23+Cooling!I13+'EE Appliances and Lighting'!I11,2),\"#.##0\"),ROUND('Optimal Power'!G8+Heating!H23+Cooling!I13+'EE Appliances and Lighting'!I11,2))","v":"0"}]
["[electricity yearly consumption kWh]",{"$f":"IFERROR(TEXT(ROUND(Energy!P5,0),\"#.##0\"),ROUND(Energy!P5,0))","v":"0"}]
["[electricity monthly consumption kWh]",{"$f":"IFERROR(TEXT(ROUND(Energy!P5/12,0),\"#.##0\"),ROUND(Energy!P5/12,0))","v":"0"}]
["[fuel yearly consumption kWh]",{"$f":"IFERROR(TEXT(ROUND(SUM('Excel de Apoyo'!P21,'Excel de Apoyo'!P22,'Excel de Apoyo'!P23,'Excel de Apoyo'!P24,'Excel de Apoyo'!P25,'Excel de Apoyo'!P26,'Excel de Apoyo'!P27,'Excel de Apoyo'!P28,'Excel de Apoyo'!P29),0),\"#.##0\"),ROUND(SUM('Excel de Apoyo'!P21,'Excel de Apoyo'!P22,'Excel de Apoyo'!P23,'Excel de Apoyo'!P24,'Excel de Apoyo'!P25,'Excel de Apoyo'!P26,'Excel de Apoyo'!P27,'Excel de Apoyo'!P28,'Excel de Apoyo'!P29),0))","v":"0"}]
["[fuel monthly consumption kWh]",{"$f":"IFERROR(TEXT(ROUND(B9/12,0),\"#.##0\"),ROUND(B9/12,0))","v":"0"}]